Workbook

Sheet STP-SO Schule
A1: Status / Schuljahr | I1: STELLENPLAN | S1: ='STP1'!E2 & " - " & 'STP1'!D2 -> SO Salzburg - 501013
A2: =IF('STP1'!F2=0,"Planung",IF('STP1'!F2=1,"Vorl. Stellenplan",IF('STP1'!F2=2,"Endg. Stellenplan",IF('STP1'!F2=3,"Tagesaktueller Stellenplan","")))) & " " & 'STP1'!A2 -> Endg. Stellenplan 2021/22 | I2: Land Salzburg | S2: =CHOOSE('STP1'!B2,"Salzburg-Stadt","Hallein","Salzburg-Umgebung","St. Johann","Tamsweg","Zell am See") -> Salzburg-Stadt
A3: ="Genehmigungsstatus: " & 'STP1'!EL2 -> Genehmigungsstatus: genehmigt | I3: Version 9.1 | S3: ="Stichtag: " & TEXT('STP1'!G2,"TT.MM.JJJJ") -> Stichtag: 01.10.2021
A5: Schul- | B5: Klassen- | C5: Schul- | K5: davon | Q5: davon | R5: Anz. | S5: davon | T5: Gesamt- | CI5: davon SchülerInnen
A6: stufe | B6: name | C6: stufen | E6: Anzahl SchülerInnen | K6: ohne | L6: Anzahl SchülerInnen | Q6: ohne | R6: Schü.: | S6: ohne | T6: schüler- | CI6: nichtdt. Erstsprache | CK6: sprengel-
A7: der | B7: laut | C7: in der | D7: Klassen | E7: Stufe | F7: Stufe | G7: Stufe | H7: Stufe | I7: Stufe | J7: Stufe | K7: SPF | L7: Stufe | M7: Stufe | N7: Stufe | O7: Stufe | P7: Stufe | Q7: SPF | R7: Stufe | S7: SPF | T7: zahl | U7: allgemeine Sonderschüler | AE7: Summe | AF7: Sondererziehungs-Schüler | AP7: Summe | AQ7: schwerstbehind. Schüler | BA7: Summe | BB7: körperbehinderte Schüler | BL7: Summe | BM7: mehrfachbehinderte Schüler | BW7: Summe | BX7: sinnesbehinderte Schüler | CH7: Summe | CJ7: davon | CK7: fremde
A8: Klasse | B8: BiDok | C8: Klasse | D8: art | E8: 0 | F8: 1 | G8: 2 | H8: 3 | I8: 4 | J8: 0-4 | K8: 0-4 | L8: 5 | M8: 6 | N8: 7 | O8: 8 | P8: 5-8 | Q8: 5-8 | R8: 9 | S8: 9 | U8: 0 | V8: 1 | W8: 2 | X8: 3 | Y8: 4 | Z8: 5 | AA8: 6 | AB8: 7 | AC8: 8 | AD8: 9 | AE8: ASO | AF8: 0 | AG8: 1 | AH8: 2 | AI8: 3 | AJ8: 4 | AK8: 5 | AL8: 6 | AM8: 7 | AN8: 8 | AO8: 9 | AP8: SE | AQ8: 0 | AR8: 1 | AS8: 2 | AT8: 3 | AU8: 4 | AV8: 5 | AW8: 6 | AX8: 7 | AY8: 8 | AZ8: 9 | BA8: SB | BB8: 0 | BC8: 1 | BD8: 2 | BE8: 3 | BF8: 4 | BG8: 5 | BH8: 6 | BI8: 7 | BJ8: 8 | BK8: 9 | BL8: KB | BM8: 0 | BN8: 1 | BO8: 2 | BP8: 3 | BQ8: 4 | BR8: 5 | BS8: 6 | BT8: 7 | BU8: 8 | BV8: 9 | BW8: MB | BX8: 0 | BY8: 1 | BZ8: 2 | CA8: 3 | CB8: 4 | CC8: 5 | CD8: 6 | CE8: 7 | CF8: 8 | CG8: 9 | CH8: SI | CI8: Gesamt | CJ8: AO | CK8: Kinder
A9: =IF('STP2'!I2="99","",'STP2'!I2) -> 03 | B9: =IF(A9="","",'STP2'!J2) -> 1GUS | C9: =IF(A9="","",COUNTIF(E9:I9,">0")+COUNTIF(L9:O9,">0")+COUNTIF(R9,">0")) -> 4 | D9: =IF(A9="","",IF('STP2'!K2,"ASO",IF('STP2'!L2,"SE",IF('STP2'!M2,"KB",IF('STP2'!N2,"SB",IF('STP2'!O2,"SI",IF('STP2'!P2,"MB","S"))))))) -> SB | E9: =IF(A9="","",'STP2'!S2) -> 0 | F9: =IF(A9="","",'STP2'!V2) -> 1 | G9: =IF(A9="","",'STP2'!Y2) -> 1 | H9: =IF(A9="","",'STP2'!AB2) -> 4 | I9: =IF(A9="","",'STP2'!AE2) -> 1 | J9: =IF(A9="","",SUM(E9:I9)) -> 7 | K9: =IF(A9="","", J9-'STP2'!T2-'STP2'!W2-'STP2'!Z2-'STP2'!AC2-'STP2'!AF2) -> 0 | L9: =IF(A9="","",'STP2'!AH2) -> 0 | M9: =IF(A9="","",'STP2'!AK2) -> 0 | N9: =IF(A9="","",'STP2'!AN2) -> 0 | O9: =IF(A9="","",'STP2'!AQ2) -> 0 | P9: =IF(A9="","",SUM(L9:O9)) -> 0 | Q9: =IF(A9="","",P9-'STP2'!AI2-'STP2'!AL2-'STP2'!AO2-'STP2'!AR2) -> 0 | R9: =IF(A9="","",'STP2'!AT2) -> 0 | S9: =IF(A9="","",R9-'STP2'!AU2) -> 0 | T9: =IF(A9="","",SUM(J9,P9,R9)) -> 7 | U9: =IF(A9="","",'STP2'!CD2) -> 0 | V9: =IF(A9="","",'STP2'!CE2) -> 0 | W9: =IF(A9="","",'STP2'!CF2) -> 0 | X9: =IF(A9="","",'STP2'!CG2) -> 0 | Y9: =IF(A9="","",'STP2'!CH2) -> 1 | Z9: =IF(A9="","",'STP2'!CI2) -> 0 | AA9: =IF(A9="","",'STP2'!CJ2) -> 0 | AB9: =IF(A9="","",'STP2'!CK2) -> 0 | AC9: =IF(A9="","",'STP2'!CL2) -> 0 | AD9: =IF(A9="","",'STP2'!CM2) -> 0 | AE9: =IF(A9="","",SUM(U9:AD9)) -> 1 | AF9: =IF(A9="","",'STP2'!CN2) -> 0 | AG9: =IF(A9="","",'STP2'!CO2) -> 0 | AH9: =IF(A9="","",'STP2'!CP2) -> 0 | AI9: =IF(A9="","",'STP2'!CQ2) -> 1 | AJ9: =IF(A9="","",'STP2'!CR2) -> 0 | AK9: =IF(A9="","",'STP2'!CS2) -> 0 | AL9: =IF(A9="","",'STP2'!CT2) -> 0 | AM9: =IF(A9="","",'STP2'!CU2) -> 0 | AN9: =IF(A9="","",'STP2'!CV2) -> 0 | AO9: =IF(A9="","",'STP2'!CW2) -> 0 | AP9: =IF(A9="","",SUM(AF9:AO9)) -> 1 | AQ9: =IF(A9="","",'STP2'!CX2) -> 0 | AR9: =IF(A9="","",'STP2'!CY2) -> 0 | AS9: =IF(A9="","",'STP2'!CZ2) -> 1 | AT9: =IF(A9="","",'STP2'!DA2) -> 3 | AU9: =IF(A9="","",'STP2'!DB2) -> 0 | AV9: =IF(A9="","",'STP2'!DC2) -> 0 | AW9: =IF(A9="","",'STP2'!DD2) -> 0 | AX9: =IF(A9="","",'STP2'!DE2) -> 0 | AY9: =IF(A9="","",'STP2'!DF2) -> 0 | AZ9: =IF(A9="","",'STP2'!DG2) -> 0 | BA9: =IF(A9="","",SUM(AQ9:AZ9)) -> 4 | BB9: =IF(A9="","",'STP2'!DH2) -> 0 | BC9: =IF(A9="","",'STP2'!DI2) -> 0 | BD9: =IF(A9="","",'STP2'!DJ2) -> 0 | BE9: =IF(A9="","",'STP2'!DK2) -> 0 | BF9: =IF(A9="","",'STP2'!DL2) -> 0 | BG9: =IF(A9="","",'STP2'!DM2) -> 0 | BH9: =IF(A9="","",'STP2'!DN2) -> 0 | BI9: =IF(A9="","",'STP2'!DO2) -> 0 | BJ9: =IF(A9="","",'STP2'!DP2) -> 0 | BK9: =IF(A9="","",'STP2'!DQ2) -> 0 | BL9: =IF(A9="","",SUM(BB9:BK9)) -> 0 | BM9: =IF(A9="","",'STP2'!DR2) -> 0 | BN9: =IF(A9="","",'STP2'!DS2) -> 0 | BO9: =IF(A9="","",'STP2'!DT2) -> 0 | BP9: =IF(A9="","",'STP2'!DU2) -> 0 | BQ9: =IF(A9="","",'STP2'!DV2) -> 0 | BR9: =IF(A9="","",'STP2'!DW2) -> 0 | BS9: =IF(A9="","",'STP2'!DX2) -> 0 | BT9: =IF(A9="","",'STP2'!DY2) -> 0 | BU9: =IF(A9="","",'STP2'!DZ2) -> 0 | BV9: =IF(A9="","",'STP2'!EA2) -> 0 | BW9: =IF(A9="","",SUM(BM9:BV9)) -> 0 | BX9: =IF(A9="","",'STP2'!EB2) -> 0 | BY9: =IF(A9="","",'STP2'!EC2) -> 1 | BZ9: =IF(A9="","",'STP2'!ED2) -> 0 | CA9: =IF(A9="","",'STP2'!EE2) -> 0 | CB9: =IF(A9="","",'STP2'!EF2) -> 0 | CC9: =IF(A9="","",'STP2'!EG2) -> 0 | CD9: =IF(A9="","",'STP2'!EH2) -> 0 | CE9: =IF(A9="","",'STP2'!EI2) -> 0 | CF9: =IF(A9="","",'STP2'!EJ2) -> 0 | CG9: =IF(A9="","",'STP2'!EK2) -> 0 | CH9: =IF(A9="","",SUM(BX9:CG9)) -> 1 | CI9: =IF(A9="","",'STP2'!AV2) -> 5 | CJ9: =IF(A9="","",'STP2'!AW2) -> 0 | CK9: =IF(A9="","",'STP2'!AX2) -> 0
A10: =IF('STP2'!I3="99","",'STP2'!I3) -> 05 | B10: =IF(A10="","",'STP2'!J3) -> 1aFö | C10: =IF(A10="","",COUNTIF(E10:I10,">0")+COUNTIF(L10:O10,">0")+COUNTIF(R10,">0")) -> 1 | D10: =IF(A10="","",IF('STP2'!K3,"ASO",IF('STP2'!L3,"SE",IF('STP2'!M3,"KB",IF('STP2'!N3,"SB",IF('STP2'!O3,"SI",IF('STP2'!P3,"MB","S"))))))) -> ASO | E10: =IF(A10="","",'STP2'!S3) -> 0 | F10: =IF(A10="","",'STP2'!V3) -> 0 | G10: =IF(A10="","",'STP2'!Y3) -> 0 | H10: =IF(A10="","",'STP2'!AB3) -> 0 | I10: =IF(A10="","",'STP2'!AE3) -> 0 | J10: =IF(A10="","",SUM(E10:I10)) -> 0 | K10: =IF(A10="","", J10-'STP2'!T3-'STP2'!W3-'STP2'!Z3-'STP2'!AC3-'STP2'!AF3) -> 0 | L10: =IF(A10="","",'STP2'!AH3) -> 9 | M10: =IF(A10="","",'STP2'!AK3) -> 0 | N10: =IF(A10="","",'STP2'!AN3) -> 0 | O10: =IF(A10="","",'STP2'!AQ3) -> 0 | P10: =IF(A10="","",SUM(L10:O10)) -> 9 | Q10: =IF(A10="","",P10-'STP2'!AI3-'STP2'!AL3-'STP2'!AO3-'STP2'!AR3) -> 0 | R10: =IF(A10="","",'STP2'!AT3) -> 0 | S10: =IF(A10="","",R10-'STP2'!AU3) -> 0 | T10: =IF(A10="","",SUM(J10,P10,R10)) -> 9 | U10: =IF(A10="","",'STP2'!CD3) -> 0 | V10: =IF(A10="","",'STP2'!CE3) -> 0 | W10: =IF(A10="","",'STP2'!CF3) -> 0 | X10: =IF(A10="","",'STP2'!CG3) -> 0 | Y10: =IF(A10="","",'STP2'!CH3) -> 0 | Z10: =IF(A10="","",'STP2'!CI3) -> 5 | AA10: =IF(A10="","",'STP2'!CJ3) -> 0 | AB10: =IF(A10="","",'STP2'!CK3) -> 0 | AC10: =IF(A10="","",'STP2'!CL3) -> 0 | AD10: =IF(A10="","",'STP2'!CM3) -> 0 | AE10: 5 | AF10: =IF(A10="","",'STP2'!CN3) -> 0 | AG10: =IF(A10="","",'STP2'!CO3) -> 0 | AH10: =IF(A10="","",'STP2'!CP3) -> 0 | AI10: =IF(A10="","",'STP2'!CQ3) -> 0 | AJ10: =IF(A10="","",'STP2'!CR3) -> 0 | AK10: =IF(A10="","",'STP2'!CS3) -> 1 | AL10: =IF(A10="","",'STP2'!CT3) -> 0 | AM10: =IF(A10="","",'STP2'!CU3) -> 0 | AN10: =IF(A10="","",'STP2'!CV3) -> 0 | AO10: =IF(A10="","",'STP2'!CW3) -> 0 | AP10: 1 | AQ10: =IF(A10="","",'STP2'!CX3) -> 0 | AR10: =IF(A10="","",'STP2'!CY3) -> 0 | AS10: =IF(A10="","",'STP2'!CZ3) -> 0 | AT10: =IF(A10="","",'STP2'!DA3) -> 0 | AU10: =IF(A10="","",'STP2'!DB3) -> 0 | AV10: =IF(A10="","",'STP2'!DC3) -> 2 | AW10: =IF(A10="","",'STP2'!DD3) -> 0 | AX10: =IF(A10="","",'STP2'!DE3) -> 0 | AY10: =IF(A10="","",'STP2'!DF3) -> 0 | AZ10: =IF(A10="","",'STP2'!DG3) -> 0 | BA10: 2 | BB10: =IF(A10="","",'STP2'!DH3) -> 0 | BC10: =IF(A10="","",'STP2'!DI3) -> 0 | BD10: =IF(A10="","",'STP2'!DJ3) -> 0 | BE10: =IF(A10="","",'STP2'!DK3) -> 0 | BF10: =IF(A10="","",'STP2'!DL3) -> 0 | BG10: =IF(A10="","",'STP2'!DM3) -> 0 | BH10: =IF(A10="","",'STP2'!DN3) -> 0 | BI10: =IF(A10="","",'STP2'!DO3) -> 0 | BJ10: =IF(A10="","",'STP2'!DP3) -> 0 | BK10: =IF(A10="","",'STP2'!DQ3) -> 0 | BL10: 0 | BM10: =IF(A10="","",'STP2'!DR3) -> 0 | BN10: =IF(A10="","",'STP2'!DS3) -> 0 | BO10: =IF(A10="","",'STP2'!DT3) -> 0 | BP10: =IF(A10="","",'STP2'!DU3) -> 0 | BQ10: =IF(A10="","",'STP2'!DV3) -> 0 | BR10: =IF(A10="","",'STP2'!DW3) -> 0 | BS10: =IF(A10="","",'STP2'!DX3) -> 0 | BT10: =IF(A10="","",'STP2'!DY3) -> 0 | BU10: =IF(A10="","",'STP2'!DZ3) -> 0 | BV10: =IF(A10="","",'STP2'!EA3) -> 0 | BW10: 0 | BX10: =IF(A10="","",'STP2'!EB3) -> 0 | BY10: =IF(A10="","",'STP2'!EC3) -> 0 | BZ10: =IF(A10="","",'STP2'!ED3) -> 0 | CA10: =IF(A10="","",'STP2'!EE3) -> 0 | CB10: =IF(A10="","",'STP2'!EF3) -> 0 | CC10: =IF(A10="","",'STP2'!EG3) -> 0 | CD10: =IF(A10="","",'STP2'!EH3) -> 0 | CE10: =IF(A10="","",'STP2'!EI3) -> 0 | CF10: =IF(A10="","",'STP2'!EJ3) -> 0 | CG10: =IF(A10="","",'STP2'!EK3) -> 0 | CH10: 0 | CI10: =IF('STP2'!$I3<>99,'STP2'!AV3,"") -> 5 | CJ10: =IF('STP2'!$I3<>99,'STP2'!AW3,"") -> 0 | CK10: =IF('STP2'!$I3<>99,'STP2'!AX3,"") -> 0
A11: =IF('STP2'!I4="99","",'STP2'!I4) -> 06 | B11: =IF(A11="","",'STP2'!J4) -> 2aFö | C11: 1 | D11: =IF(A11="","",IF('STP2'!K4,"ASO",IF('STP2'!L4,"SE",IF('STP2'!M4,"KB",IF('STP2'!N4,"SB",IF('STP2'!O4,"SI",IF('STP2'!P4,"MB","S"))))))) -> ASO | E11: =IF(A11="","",'STP2'!S4) -> 0 | F11: =IF(A11="","",'STP2'!V4) -> 0 | G11: =IF(A11="","",'STP2'!Y4) -> 0 | H11: =IF(A11="","",'STP2'!AB4) -> 0 | I11: =IF(A11="","",'STP2'!AE4) -> 0 | J11: 0 | K11: =IF(A11="","", J11-'STP2'!T4-'STP2'!W4-'STP2'!Z4-'STP2'!AC4-'STP2'!AF4) -> 0 | L11: =IF(A11="","",'STP2'!AH4) -> 0 | M11: =IF(A11="","",'STP2'!AK4) -> 9 | N11: =IF(A11="","",'STP2'!AN4) -> 0 | O11: =IF(A11="","",'STP2'!AQ4) -> 0 | P11: 9 | Q11: =IF(A11="","",P11-'STP2'!AI4-'STP2'!AL4-'STP2'!AO4-'STP2'!AR4) -> 2 | R11: =IF(A11="","",'STP2'!AT4) -> 0 | S11: =IF(A11="","",R11-'STP2'!AU4) -> 0 | T11: 9 | U11: =IF(A11="","",'STP2'!CD4) -> 0 | V11: =IF(A11="","",'STP2'!CE4) -> 0 | W11: =IF(A11="","",'STP2'!CF4) -> 0 | X11: =IF(A11="","",'STP2'!CG4) -> 0 | Y11: =IF(A11="","",'STP2'!CH4) -> 0 | Z11: =IF(A11="","",'STP2'!CI4) -> 0 | AA11: =IF(A11="","",'STP2'!CJ4) -> 8 | AB11: =IF(A11="","",'STP2'!CK4) -> 0 | AC11: =IF(A11="","",'STP2'!CL4) -> 0 | AD11: =IF(A11="","",'STP2'!CM4) -> 0 | AE11: 8 | AF11: =IF(A11="","",'STP2'!CN4) -> 0 | AG11: =IF(A11="","",'STP2'!CO4) -> 0 | AH11: =IF(A11="","",'STP2'!CP4) -> 0 | AI11: =IF(A11="","",'STP2'!CQ4) -> 0 | AJ11: =IF(A11="","",'STP2'!CR4) -> 0 | AK11: =IF(A11="","",'STP2'!CS4) -> 0 | AL11: =IF(A11="","",'STP2'!CT4) -> 1 | AM11: =IF(A11="","",'STP2'!CU4) -> 0 | AN11: =IF(A11="","",'STP2'!CV4) -> 0 | AO11: =IF(A11="","",'STP2'!CW4) -> 0 | AP11: 1 | AQ11: =IF(A11="","",'STP2'!CX4) -> 0 | AR11: =IF(A11="","",'STP2'!CY4) -> 0 | AS11: =IF(A11="","",'STP2'!CZ4) -> 0 | AT11: =IF(A11="","",'STP2'!DA4) -> 0 | AU11: =IF(A11="","",'STP2'!DB4) -> 0 | AV11: =IF(A11="","",'STP2'!DC4) -> 0 | AW11: =IF(A11="","",'STP2'!DD4) -> 0 | AX11: =IF(A11="","",'STP2'!DE4) -> 0 | AY11: =IF(A11="","",'STP2'!DF4) -> 0 | AZ11: =IF(A11="","",'STP2'!DG4) -> 0 | BA11: 0 | BB11: =IF(A11="","",'STP2'!DH4) -> 0 | BC11: =IF(A11="","",'STP2'!DI4) -> 0 | BD11: =IF(A11="","",'STP2'!DJ4) -> 0 | BE11: =IF(A11="","",'STP2'!DK4) -> 0 | BF11: =IF(A11="","",'STP2'!DL4) -> 0 | BG11: =IF(A11="","",'STP2'!DM4) -> 0 | BH11: =IF(A11="","",'STP2'!DN4) -> 0 | BI11: =IF(A11="","",'STP2'!DO4) -> 0 | BJ11: =IF(A11="","",'STP2'!DP4) -> 0 | BK11: =IF(A11="","",'STP2'!DQ4) -> 0 | BL11: 0 | BM11: =IF(A11="","",'STP2'!DR4) -> 0 | BN11: =IF(A11="","",'STP2'!DS4) -> 0 | BO11: =IF(A11="","",'STP2'!DT4) -> 0 | BP11: =IF(A11="","",'STP2'!DU4) -> 0 | BQ11: =IF(A11="","",'STP2'!DV4) -> 0 | BR11: =IF(A11="","",'STP2'!DW4) -> 0 | BS11: =IF(A11="","",'STP2'!DX4) -> 0 | BT11: =IF(A11="","",'STP2'!DY4) -> 0 | BU11: =IF(A11="","",'STP2'!DZ4) -> 0 | BV11: =IF(A11="","",'STP2'!EA4) -> 0 | BW11: 0 | BX11: =IF(A11="","",'STP2'!EB4) -> 0 | BY11: =IF(A11="","",'STP2'!EC4) -> 0 | BZ11: =IF(A11="","",'STP2'!ED4) -> 0 | CA11: =IF(A11="","",'STP2'!EE4) -> 0 | CB11: =IF(A11="","",'STP2'!EF4) -> 0 | CC11: =IF(A11="","",'STP2'!EG4) -> 0 | CD11: =IF(A11="","",'STP2'!EH4) -> 0 | CE11: =IF(A11="","",'STP2'!EI4) -> 0 | CF11: =IF(A11="","",'STP2'!EJ4) -> 0 | CG11: =IF(A11="","",'STP2'!EK4) -> 0 | CH11: 0 | CI11: =IF('STP2'!$I4<>99,'STP2'!AV4,"") -> 3 | CJ11: =IF('STP2'!$I4<>99,'STP2'!AW4,"") -> 0 | CK11: =IF('STP2'!$I4<>99,'STP2'!AX4,"") -> 0
A12: =IF('STP2'!I5="99","",'STP2'!I5) -> 07 | B12: =IF(A12="","",'STP2'!J5) -> 2agk1 | C12: 4 | D12: =IF(A12="","",IF('STP2'!K5,"ASO",IF('STP2'!L5,"SE",IF('STP2'!M5,"KB",IF('STP2'!N5,"SB",IF('STP2'!O5,"SI",IF('STP2'!P5,"MB","S"))))))) -> ASO | E12: =IF(A12="","",'STP2'!S5) -> 0 | F12: =IF(A12="","",'STP2'!V5) -> 0 | G12: =IF(A12="","",'STP2'!Y5) -> 0 | H12: =IF(A12="","",'STP2'!AB5) -> 1 | I12: =IF(A12="","",'STP2'!AE5) -> 0 | J12: 1 | K12: =IF(A12="","", J12-'STP2'!T5-'STP2'!W5-'STP2'!Z5-'STP2'!AC5-'STP2'!AF5) -> 0 | L12: =IF(A12="","",'STP2'!AH5) -> 0 | M12: =IF(A12="","",'STP2'!AK5) -> 3 | N12: =IF(A12="","",'STP2'!AN5) -> 4 | O12: =IF(A12="","",'STP2'!AQ5) -> 1 | P12: 8 | Q12: =IF(A12="","",P12-'STP2'!AI5-'STP2'!AL5-'STP2'!AO5-'STP2'!AR5) -> 0 | R12: =IF(A12="","",'STP2'!AT5) -> 0 | S12: =IF(A12="","",R12-'STP2'!AU5) -> 0 | T12: 9 | U12: =IF(A12="","",'STP2'!CD5) -> 0 | V12: =IF(A12="","",'STP2'!CE5) -> 0 | W12: =IF(A12="","",'STP2'!CF5) -> 0 | X12: =IF(A12="","",'STP2'!CG5) -> 1 | Y12: =IF(A12="","",'STP2'!CH5) -> 0 | Z12: =IF(A12="","",'STP2'!CI5) -> 0 | AA12: =IF(A12="","",'STP2'!CJ5) -> 3 | AB12: =IF(A12="","",'STP2'!CK5) -> 4 | AC12: =IF(A12="","",'STP2'!CL5) -> 0 | AD12: =IF(A12="","",'STP2'!CM5) -> 0 | AE12: 8 | AF12: =IF(A12="","",'STP2'!CN5) -> 0 | AG12: =IF(A12="","",'STP2'!CO5) -> 0 | AH12: =IF(A12="","",'STP2'!CP5) -> 0 | AI12: =IF(A12="","",'STP2'!CQ5) -> 0 | AJ12: =IF(A12="","",'STP2'!CR5) -> 0 | AK12: =IF(A12="","",'STP2'!CS5) -> 0 | AL12: =IF(A12="","",'STP2'!CT5) -> 0 | AM12: =IF(A12="","",'STP2'!CU5) -> 0 | AN12: =IF(A12="","",'STP2'!CV5) -> 1 | AO12: =IF(A12="","",'STP2'!CW5) -> 0 | AP12: 1 | AQ12: =IF(A12="","",'STP2'!CX5) -> 0 | AR12: =IF(A12="","",'STP2'!CY5) -> 0 | AS12: =IF(A12="","",'STP2'!CZ5) -> 0 | AT12: =IF(A12="","",'STP2'!DA5) -> 0 | AU12: =IF(A12="","",'STP2'!DB5) -> 0 | AV12: =IF(A12="","",'STP2'!DC5) -> 0 | AW12: =IF(A12="","",'STP2'!DD5) -> 0 | AX12: =IF(A12="","",'STP2'!DE5) -> 0 | AY12: =IF(A12="","",'STP2'!DF5) -> 0 | AZ12: =IF(A12="","",'STP2'!DG5) -> 0 | BA12: 0 | BB12: =IF(A12="","",'STP2'!DH5) -> 0 | BC12: =IF(A12="","",'STP2'!DI5) -> 0 | BD12: =IF(A12="","",'STP2'!DJ5) -> 0 | BE12: =IF(A12="","",'STP2'!DK5) -> 0 | BF12: =IF(A12="","",'STP2'!DL5) -> 0 | BG12: =IF(A12="","",'STP2'!DM5) -> 0 | BH12: =IF(A12="","",'STP2'!DN5) -> 0 | BI12: =IF(A12="","",'STP2'!DO5) -> 0 | BJ12: =IF(A12="","",'STP2'!DP5) -> 0 | BK12: =IF(A12="","",'STP2'!DQ5) -> 0 | BL12: 0 | BM12: =IF(A12="","",'STP2'!DR5) -> 0 | BN12: =IF(A12="","",'STP2'!DS5) -> 0 | BO12: =IF(A12="","",'STP2'!DT5) -> 0 | BP12: =IF(A12="","",'STP2'!DU5) -> 0 | BQ12: =IF(A12="","",'STP2'!DV5) -> 0 | BR12: =IF(A12="","",'STP2'!DW5) -> 0 | BS12: =IF(A12="","",'STP2'!DX5) -> 0 | BT12: =IF(A12="","",'STP2'!DY5) -> 0 | BU12: =IF(A12="","",'STP2'!DZ5) -> 0 | BV12: =IF(A12="","",'STP2'!EA5) -> 0 | BW12: 0 | BX12: =IF(A12="","",'STP2'!EB5) -> 0 | BY12: =IF(A12="","",'STP2'!EC5) -> 0 | BZ12: =IF(A12="","",'STP2'!ED5) -> 0 | CA12: =IF(A12="","",'STP2'!EE5) -> 0 | CB12: =IF(A12="","",'STP2'!EF5) -> 0 | CC12: =IF(A12="","",'STP2'!EG5) -> 0 | CD12: =IF(A12="","",'STP2'!EH5) -> 0 | CE12: =IF(A12="","",'STP2'!EI5) -> 0 | CF12: =IF(A12="","",'STP2'!EJ5) -> 0 | CG12: =IF(A12="","",'STP2'!EK5) -> 0 | CH12: 0 | CI12: =IF('STP2'!$I5<>99,'STP2'!AV5,"") -> 5 | CJ12: =IF('STP2'!$I5<>99,'STP2'!AW5,"") -> 0 | CK12: =IF('STP2'!$I5<>99,'STP2'!AX5,"") -> 0
A13: =IF('STP2'!I6="99","",'STP2'!I6) -> 07 | B13: =IF(A13="","",'STP2'!J6) -> 3MS1 | C13: 1 | D13: =IF(A13="","",IF('STP2'!K6,"ASO",IF('STP2'!L6,"SE",IF('STP2'!M6,"KB",IF('STP2'!N6,"SB",IF('STP2'!O6,"SI",IF('STP2'!P6,"MB","S"))))))) -> ASO | E13: =IF(A13="","",'STP2'!S6) -> 0 | F13: =IF(A13="","",'STP2'!V6) -> 0 | G13: =IF(A13="","",'STP2'!Y6) -> 0 | H13: =IF(A13="","",'STP2'!AB6) -> 0 | I13: =IF(A13="","",'STP2'!AE6) -> 0 | J13: 0 | K13: =IF(A13="","", J13-'STP2'!T6-'STP2'!W6-'STP2'!Z6-'STP2'!AC6-'STP2'!AF6) -> 0 | L13: =IF(A13="","",'STP2'!AH6) -> 0 | M13: =IF(A13="","",'STP2'!AK6) -> 0 | N13: =IF(A13="","",'STP2'!AN6) -> 14 | O13: =IF(A13="","",'STP2'!AQ6) -> 0 | P13: 14 | Q13: =IF(A13="","",P13-'STP2'!AI6-'STP2'!AL6-'STP2'!AO6-'STP2'!AR6) -> 5 | R13: =IF(A13="","",'STP2'!AT6) -> 0 | S13: =IF(A13="","",R13-'STP2'!AU6) -> 0 | T13: 14 | U13: =IF(A13="","",'STP2'!CD6) -> 0 | V13: =IF(A13="","",'STP2'!CE6) -> 0 | W13: =IF(A13="","",'STP2'!CF6) -> 0 | X13: =IF(A13="","",'STP2'!CG6) -> 0 | Y13: =IF(A13="","",'STP2'!CH6) -> 0 | Z13: =IF(A13="","",'STP2'!CI6) -> 0 | AA13: =IF(A13="","",'STP2'!CJ6) -> 0 | AB13: =IF(A13="","",'STP2'!CK6) -> 7 | AC13: =IF(A13="","",'STP2'!CL6) -> 0 | AD13: =IF(A13="","",'STP2'!CM6) -> 0 | AE13: 7 | AF13: =IF(A13="","",'STP2'!CN6) -> 0 | AG13: =IF(A13="","",'STP2'!CO6) -> 0 | AH13: =IF(A13="","",'STP2'!CP6) -> 0 | AI13: =IF(A13="","",'STP2'!CQ6) -> 0 | AJ13: =IF(A13="","",'STP2'!CR6) -> 0 | AK13: =IF(A13="","",'STP2'!CS6) -> 0 | AL13: =IF(A13="","",'STP2'!CT6) -> 0 | AM13: =IF(A13="","",'STP2'!CU6) -> 1 | AN13: =IF(A13="","",'STP2'!CV6) -> 0 | AO13: =IF(A13="","",'STP2'!CW6) -> 0 | AP13: 1 | AQ13: =IF(A13="","",'STP2'!CX6) -> 0 | AR13: =IF(A13="","",'STP2'!CY6) -> 0 | AS13: =IF(A13="","",'STP2'!CZ6) -> 0 | AT13: =IF(A13="","",'STP2'!DA6) -> 0 | AU13: =IF(A13="","",'STP2'!DB6) -> 0 | AV13: =IF(A13="","",'STP2'!DC6) -> 0 | AW13: =IF(A13="","",'STP2'!DD6) -> 0 | AX13: =IF(A13="","",'STP2'!DE6) -> 0 | AY13: =IF(A13="","",'STP2'!DF6) -> 0 | AZ13: =IF(A13="","",'STP2'!DG6) -> 0 | BA13: 0 | BB13: =IF(A13="","",'STP2'!DH6) -> 0 | BC13: =IF(A13="","",'STP2'!DI6) -> 0 | BD13: =IF(A13="","",'STP2'!DJ6) -> 0 | BE13: =IF(A13="","",'STP2'!DK6) -> 0 | BF13: =IF(A13="","",'STP2'!DL6) -> 0 | BG13: =IF(A13="","",'STP2'!DM6) -> 0 | BH13: =IF(A13="","",'STP2'!DN6) -> 0 | BI13: =IF(A13="","",'STP2'!DO6) -> 0 | BJ13: =IF(A13="","",'STP2'!DP6) -> 0 | BK13: =IF(A13="","",'STP2'!DQ6) -> 0 | BL13: 0 | BM13: =IF(A13="","",'STP2'!DR6) -> 0 | BN13: =IF(A13="","",'STP2'!DS6) -> 0 | BO13: =IF(A13="","",'STP2'!DT6) -> 0 | BP13: =IF(A13="","",'STP2'!DU6) -> 0 | BQ13: =IF(A13="","",'STP2'!DV6) -> 0 | BR13: =IF(A13="","",'STP2'!DW6) -> 0 | BS13: =IF(A13="","",'STP2'!DX6) -> 0 | BT13: =IF(A13="","",'STP2'!DY6) -> 0 | BU13: =IF(A13="","",'STP2'!DZ6) -> 0 | BV13: =IF(A13="","",'STP2'!EA6) -> 0 | BW13: 0 | BX13: =IF(A13="","",'STP2'!EB6) -> 0 | BY13: =IF(A13="","",'STP2'!EC6) -> 0 | BZ13: =IF(A13="","",'STP2'!ED6) -> 0 | CA13: =IF(A13="","",'STP2'!EE6) -> 0 | CB13: =IF(A13="","",'STP2'!EF6) -> 0 | CC13: =IF(A13="","",'STP2'!EG6) -> 0 | CD13: =IF(A13="","",'STP2'!EH6) -> 0 | CE13: =IF(A13="","",'STP2'!EI6) -> 0 | CF13: =IF(A13="","",'STP2'!EJ6) -> 0 | CG13: =IF(A13="","",'STP2'!EK6) -> 0 | CH13: 0 | CI13: =IF(A9="","",'STP2'!AV6) -> 13 | CJ13: =IF(A9="","",'STP2'!AW6) -> 0 | CK13: =IF(A9="","",'STP2'!AX6) -> 0
A14: =IF('STP2'!I7="99","",'STP2'!I7) -> 08 | B14: =IF(A14="","",'STP2'!J7) -> 1LOK | C14: 4 | D14: =IF(A14="","",IF('STP2'!K7,"ASO",IF('STP2'!L7,"SE",IF('STP2'!M7,"KB",IF('STP2'!N7,"SB",IF('STP2'!O7,"SI",IF('STP2'!P7,"MB","S"))))))) -> ASO | E14: =IF(A14="","",'STP2'!S7) -> 0 | F14: =IF(A14="","",'STP2'!V7) -> 0 | G14: =IF(A14="","",'STP2'!Y7) -> 0 | H14: =IF(A14="","",'STP2'!AB7) -> 0 | I14: =IF(A14="","",'STP2'!AE7) -> 0 | J14: 0 | K14: =IF(A14="","", J14-'STP2'!T7-'STP2'!W7-'STP2'!Z7-'STP2'!AC7-'STP2'!AF7) -> 0 | L14: =IF(A14="","",'STP2'!AH7) -> 1 | M14: =IF(A14="","",'STP2'!AK7) -> 1 | N14: =IF(A14="","",'STP2'!AN7) -> 4 | O14: =IF(A14="","",'STP2'!AQ7) -> 0 | P14: 6 | Q14: =IF(A14="","",P14-'STP2'!AI7-'STP2'!AL7-'STP2'!AO7-'STP2'!AR7) -> 0 | R14: =IF(A14="","",'STP2'!AT7) -> 2 | S14: =IF(A14="","",R14-'STP2'!AU7) -> 0 | T14: 8 | U14: =IF(A14="","",'STP2'!CD7) -> 0 | V14: =IF(A14="","",'STP2'!CE7) -> 0 | W14: =IF(A14="","",'STP2'!CF7) -> 0 | X14: =IF(A14="","",'STP2'!CG7) -> 0 | Y14: =IF(A14="","",'STP2'!CH7) -> 0 | Z14: =IF(A14="","",'STP2'!CI7) -> 1 | AA14: =IF(A14="","",'STP2'!CJ7) -> 1 | AB14: =IF(A14="","",'STP2'!CK7) -> 3 | AC14: =IF(A14="","",'STP2'!CL7) -> 0 | AD14: =IF(A14="","",'STP2'!CM7) -> 0 | AE14: 5 | AF14: =IF(A14="","",'STP2'!CN7) -> 0 | AG14: =IF(A14="","",'STP2'!CO7) -> 0 | AH14: =IF(A14="","",'STP2'!CP7) -> 0 | AI14: =IF(A14="","",'STP2'!CQ7) -> 0 | AJ14: =IF(A14="","",'STP2'!CR7) -> 0 | AK14: =IF(A14="","",'STP2'!CS7) -> 0 | AL14: =IF(A14="","",'STP2'!CT7) -> 0 | AM14: =IF(A14="","",'STP2'!CU7) -> 1 | AN14: =IF(A14="","",'STP2'!CV7) -> 0 | AO14: =IF(A14="","",'STP2'!CW7) -> 0 | AP14: 1 | AQ14: =IF(A14="","",'STP2'!CX7) -> 0 | AR14: =IF(A14="","",'STP2'!CY7) -> 0 | AS14: =IF(A14="","",'STP2'!CZ7) -> 0 | AT14: =IF(A14="","",'STP2'!DA7) -> 0 | AU14: =IF(A14="","",'STP2'!DB7) -> 0 | AV14: =IF(A14="","",'STP2'!DC7) -> 0 | AW14: =IF(A14="","",'STP2'!DD7) -> 0 | AX14: =IF(A14="","",'STP2'!DE7) -> 0 | AY14: =IF(A14="","",'STP2'!DF7) -> 0 | AZ14: =IF(A14="","",'STP2'!DG7) -> 2 | BA14: 2 | BB14: =IF(A14="","",'STP2'!DH7) -> 0 | BC14: =IF(A14="","",'STP2'!DI7) -> 0 | BD14: =IF(A14="","",'STP2'!DJ7) -> 0 | BE14: =IF(A14="","",'STP2'!DK7) -> 0 | BF14: =IF(A14="","",'STP2'!DL7) -> 0 | BG14: =IF(A14="","",'STP2'!DM7) -> 0 | BH14: =IF(A14="","",'STP2'!DN7) -> 0 | BI14: =IF(A14="","",'STP2'!DO7) -> 0 | BJ14: =IF(A14="","",'STP2'!DP7) -> 0 | BK14: =IF(A14="","",'STP2'!DQ7) -> 0 | BL14: 0 | BM14: =IF(A14="","",'STP2'!DR7) -> 0 | BN14: =IF(A14="","",'STP2'!DS7) -> 0 | BO14: =IF(A14="","",'STP2'!DT7) -> 0 | BP14: =IF(A14="","",'STP2'!DU7) -> 0 | BQ14: =IF(A14="","",'STP2'!DV7) -> 0 | BR14: =IF(A14="","",'STP2'!DW7) -> 0 | BS14: =IF(A14="","",'STP2'!DX7) -> 0 | BT14: =IF(A14="","",'STP2'!DY7) -> 0 | BU14: =IF(A14="","",'STP2'!DZ7) -> 0 | BV14: =IF(A14="","",'STP2'!EA7) -> 0 | BW14: 0 | BX14: =IF(A14="","",'STP2'!EB7) -> 0 | BY14: =IF(A14="","",'STP2'!EC7) -> 0 | BZ14: =IF(A14="","",'STP2'!ED7) -> 0 | CA14: =IF(A14="","",'STP2'!EE7) -> 0 | CB14: =IF(A14="","",'STP2'!EF7) -> 0 | CC14: =IF(A14="","",'STP2'!EG7) -> 0 | CD14: =IF(A14="","",'STP2'!EH7) -> 0 | CE14: =IF(A14="","",'STP2'!EI7) -> 0 | CF14: =IF(A14="","",'STP2'!EJ7) -> 0 | CG14: =IF(A14="","",'STP2'!EK7) -> 0 | CH14: 0 | CI14: =IF(A10="","",'STP2'!AV7) -> 7 | CJ14: =IF(A10="","",'STP2'!AW7) -> 0 | CK14: =IF(A10="","",'STP2'!AX7) -> 0
A15: =IF('STP2'!I8="99","",'STP2'!I8) -> 08 | B15: =IF(A15="","",'STP2'!J8) -> 2fam1 | C15: 6 | D15: =IF(A15="","",IF('STP2'!K8,"ASO",IF('STP2'!L8,"SE",IF('STP2'!M8,"KB",IF('STP2'!N8,"SB",IF('STP2'!O8,"SI",IF('STP2'!P8,"MB","S"))))))) -> SB | E15: =IF(A15="","",'STP2'!S8) -> 0 | F15: =IF(A15="","",'STP2'!V8) -> 0 | G15: =IF(A15="","",'STP2'!Y8) -> 0 | H15: =IF(A15="","",'STP2'!AB8) -> 1 | I15: =IF(A15="","",'STP2'!AE8) -> 1 | J15: 2 | K15: =IF(A15="","", J15-'STP2'!T8-'STP2'!W8-'STP2'!Z8-'STP2'!AC8-'STP2'!AF8) -> 0 | L15: =IF(A15="","",'STP2'!AH8) -> 0 | M15: =IF(A15="","",'STP2'!AK8) -> 3 | N15: =IF(A15="","",'STP2'!AN8) -> 2 | O15: =IF(A15="","",'STP2'!AQ8) -> 2 | P15: 7 | Q15: =IF(A15="","",P15-'STP2'!AI8-'STP2'!AL8-'STP2'!AO8-'STP2'!AR8) -> 0 | R15: =IF(A15="","",'STP2'!AT8) -> 1 | S15: =IF(A15="","",R15-'STP2'!AU8) -> 0 | T15: 10 | U15: =IF(A15="","",'STP2'!CD8) -> 0 | V15: =IF(A15="","",'STP2'!CE8) -> 0 | W15: =IF(A15="","",'STP2'!CF8) -> 0 | X15: =IF(A15="","",'STP2'!CG8) -> 1 | Y15: =IF(A15="","",'STP2'!CH8) -> 1 | Z15: =IF(A15="","",'STP2'!CI8) -> 0 | AA15: =IF(A15="","",'STP2'!CJ8) -> 1 | AB15: =IF(A15="","",'STP2'!CK8) -> 0 | AC15: =IF(A15="","",'STP2'!CL8) -> 0 | AD15: =IF(A15="","",'STP2'!CM8) -> 0 | AE15: 3 | AF15: =IF(A15="","",'STP2'!CN8) -> 0 | AG15: =IF(A15="","",'STP2'!CO8) -> 0 | AH15: =IF(A15="","",'STP2'!CP8) -> 0 | AI15: =IF(A15="","",'STP2'!CQ8) -> 0 | AJ15: =IF(A15="","",'STP2'!CR8) -> 0 | AK15: =IF(A15="","",'STP2'!CS8) -> 0 | AL15: =IF(A15="","",'STP2'!CT8) -> 0 | AM15: =IF(A15="","",'STP2'!CU8) -> 0 | AN15: =IF(A15="","",'STP2'!CV8) -> 0 | AO15: =IF(A15="","",'STP2'!CW8) -> 0 | AP15: 0 | AQ15: =IF(A15="","",'STP2'!CX8) -> 0 | AR15: =IF(A15="","",'STP2'!CY8) -> 0 | AS15: =IF(A15="","",'STP2'!CZ8) -> 0 | AT15: =IF(A15="","",'STP2'!DA8) -> 0 | AU15: =IF(A15="","",'STP2'!DB8) -> 0 | AV15: =IF(A15="","",'STP2'!DC8) -> 0 | AW15: =IF(A15="","",'STP2'!DD8) -> 2 | AX15: =IF(A15="","",'STP2'!DE8) -> 2 | AY15: =IF(A15="","",'STP2'!DF8) -> 2 | AZ15: =IF(A15="","",'STP2'!DG8) -> 1 | BA15: 7 | BB15: =IF(A15="","",'STP2'!DH8) -> 0 | BC15: =IF(A15="","",'STP2'!DI8) -> 0 | BD15: =IF(A15="","",'STP2'!DJ8) -> 0 | BE15: =IF(A15="","",'STP2'!DK8) -> 0 | BF15: =IF(A15="","",'STP2'!DL8) -> 0 | BG15: =IF(A15="","",'STP2'!DM8) -> 0 | BH15: =IF(A15="","",'STP2'!DN8) -> 0 | BI15: =IF(A15="","",'STP2'!DO8) -> 0 | BJ15: =IF(A15="","",'STP2'!DP8) -> 0 | BK15: =IF(A15="","",'STP2'!DQ8) -> 0 | BL15: 0 | BM15: =IF(A15="","",'STP2'!DR8) -> 0 | BN15: =IF(A15="","",'STP2'!DS8) -> 0 | BO15: =IF(A15="","",'STP2'!DT8) -> 0 | BP15: =IF(A15="","",'STP2'!DU8) -> 0 | BQ15: =IF(A15="","",'STP2'!DV8) -> 0 | BR15: =IF(A15="","",'STP2'!DW8) -> 0 | BS15: =IF(A15="","",'STP2'!DX8) -> 0 | BT15: =IF(A15="","",'STP2'!DY8) -> 0 | BU15: =IF(A15="","",'STP2'!DZ8) -> 0 | BV15: =IF(A15="","",'STP2'!EA8) -> 0 | BW15: 0 | BX15: =IF(A15="","",'STP2'!EB8) -> 0 | BY15: =IF(A15="","",'STP2'!EC8) -> 0 | BZ15: =IF(A15="","",'STP2'!ED8) -> 0 | CA15: =IF(A15="","",'STP2'!EE8) -> 0 | CB15: =IF(A15="","",'STP2'!EF8) -> 0 | CC15: =IF(A15="","",'STP2'!EG8) -> 0 | CD15: =IF(A15="","",'STP2'!EH8) -> 0 | CE15: =IF(A15="","",'STP2'!EI8) -> 0 | CF15: =IF(A15="","",'STP2'!EJ8) -> 0 | CG15: =IF(A15="","",'STP2'!EK8) -> 0 | CH15: 0 | CI15: =IF(A11="","",'STP2'!AV8) -> 5 | CJ15: =IF(A11="","",'STP2'!AW8) -> 0 | CK15: =IF(A11="","",'STP2'!AX8) -> 0
A16: =IF('STP2'!I9="99","",'STP2'!I9) -> 08 | B16: =IF(A16="","",'STP2'!J9) -> 2fam2 | C16: 4 | D16: =IF(A16="","",IF('STP2'!K9,"ASO",IF('STP2'!L9,"SE",IF('STP2'!M9,"KB",IF('STP2'!N9,"SB",IF('STP2'!O9,"SI",IF('STP2'!P9,"MB","S"))))))) -> SB | E16: =IF(A16="","",'STP2'!S9) -> 0 | F16: =IF(A16="","",'STP2'!V9) -> 0 | G16: =IF(A16="","",'STP2'!Y9) -> 0 | H16: =IF(A16="","",'STP2'!AB9) -> 2 | I16: =IF(A16="","",'STP2'!AE9) -> 3 | J16: 5 | K16: =IF(A16="","", J16-'STP2'!T9-'STP2'!W9-'STP2'!Z9-'STP2'!AC9-'STP2'!AF9) -> 0 | L16: =IF(A16="","",'STP2'!AH9) -> 1 | M16: =IF(A16="","",'STP2'!AK9) -> 5 | N16: =IF(A16="","",'STP2'!AN9) -> 0 | O16: =IF(A16="","",'STP2'!AQ9) -> 0 | P16: 6 | Q16: =IF(A16="","",P16-'STP2'!AI9-'STP2'!AL9-'STP2'!AO9-'STP2'!AR9) -> 0 | R16: =IF(A16="","",'STP2'!AT9) -> 0 | S16: =IF(A16="","",R16-'STP2'!AU9) -> 0 | T16: 11 | U16: =IF(A16="","",'STP2'!CD9) -> 0 | V16: =IF(A16="","",'STP2'!CE9) -> 0 | W16: =IF(A16="","",'STP2'!CF9) -> 0 | X16: =IF(A16="","",'STP2'!CG9) -> 1 | Y16: =IF(A16="","",'STP2'!CH9) -> 3 | Z16: =IF(A16="","",'STP2'!CI9) -> 1 | AA16: =IF(A16="","",'STP2'!CJ9) -> 2 | AB16: =IF(A16="","",'STP2'!CK9) -> 0 | AC16: =IF(A16="","",'STP2'!CL9) -> 0 | AD16: =IF(A16="","",'STP2'!CM9) -> 0 | AE16: 7 | AF16: =IF(A16="","",'STP2'!CN9) -> 0 | AG16: =IF(A16="","",'STP2'!CO9) -> 0 | AH16: =IF(A16="","",'STP2'!CP9) -> 0 | AI16: =IF(A16="","",'STP2'!CQ9) -> 0 | AJ16: =IF(A16="","",'STP2'!CR9) -> 0 | AK16: =IF(A16="","",'STP2'!CS9) -> 0 | AL16: =IF(A16="","",'STP2'!CT9) -> 1 | AM16: =IF(A16="","",'STP2'!CU9) -> 0 | AN16: =IF(A16="","",'STP2'!CV9) -> 0 | AO16: =IF(A16="","",'STP2'!CW9) -> 0 | AP16: 1 | AQ16: =IF(A16="","",'STP2'!CX9) -> 0 | AR16: =IF(A16="","",'STP2'!CY9) -> 0 | AS16: =IF(A16="","",'STP2'!CZ9) -> 0 | AT16: =IF(A16="","",'STP2'!DA9) -> 1 | AU16: =IF(A16="","",'STP2'!DB9) -> 0 | AV16: =IF(A16="","",'STP2'!DC9) -> 0 | AW16: =IF(A16="","",'STP2'!DD9) -> 2 | AX16: =IF(A16="","",'STP2'!DE9) -> 0 | AY16: =IF(A16="","",'STP2'!DF9) -> 0 | AZ16: =IF(A16="","",'STP2'!DG9) -> 0 | BA16: 3 | BB16: =IF(A16="","",'STP2'!DH9) -> 0 | BC16: =IF(A16="","",'STP2'!DI9) -> 0 | BD16: =IF(A16="","",'STP2'!DJ9) -> 0 | BE16: =IF(A16="","",'STP2'!DK9) -> 0 | BF16: =IF(A16="","",'STP2'!DL9) -> 0 | BG16: =IF(A16="","",'STP2'!DM9) -> 0 | BH16: =IF(A16="","",'STP2'!DN9) -> 0 | BI16: =IF(A16="","",'STP2'!DO9) -> 0 | BJ16: =IF(A16="","",'STP2'!DP9) -> 0 | BK16: =IF(A16="","",'STP2'!DQ9) -> 0 | BL16: 0 | BM16: =IF(A16="","",'STP2'!DR9) -> 0 | BN16: =IF(A16="","",'STP2'!DS9) -> 0 | BO16: =IF(A16="","",'STP2'!DT9) -> 0 | BP16: =IF(A16="","",'STP2'!DU9) -> 0 | BQ16: =IF(A16="","",'STP2'!DV9) -> 0 | BR16: =IF(A16="","",'STP2'!DW9) -> 0 | BS16: =IF(A16="","",'STP2'!DX9) -> 0 | BT16: =IF(A16="","",'STP2'!DY9) -> 0 | BU16: =IF(A16="","",'STP2'!DZ9) -> 0 | BV16: =IF(A16="","",'STP2'!EA9) -> 0 | BW16: 0 | BX16: =IF(A16="","",'STP2'!EB9) -> 0 | BY16: =IF(A16="","",'STP2'!EC9) -> 0 | BZ16: =IF(A16="","",'STP2'!ED9) -> 0 | CA16: =IF(A16="","",'STP2'!EE9) -> 0 | CB16: =IF(A16="","",'STP2'!EF9) -> 0 | CC16: =IF(A16="","",'STP2'!EG9) -> 0 | CD16: =IF(A16="","",'STP2'!EH9) -> 0 | CE16: =IF(A16="","",'STP2'!EI9) -> 0 | CF16: =IF(A16="","",'STP2'!EJ9) -> 0 | CG16: =IF(A16="","",'STP2'!EK9) -> 0 | CH16: 0 | CI16: =IF(A12="","",'STP2'!AV9) -> 5 | CJ16: =IF(A12="","",'STP2'!AW9) -> 0 | CK16: =IF(A12="","",'STP2'!AX9) -> 0
A17: =IF('STP2'!I10="99","",'STP2'!I10) -> 08 | B17: =IF(A17="","",'STP2'!J10) -> 4MS1 | C17: 1 | D17: =IF(A17="","",IF('STP2'!K10,"ASO",IF('STP2'!L10,"SE",IF('STP2'!M10,"KB",IF('STP2'!N10,"SB",IF('STP2'!O10,"SI",IF('STP2'!P10,"MB","S"))))))) -> ASO | E17: =IF(A17="","",'STP2'!S10) -> 0 | F17: =IF(A17="","",'STP2'!V10) -> 0 | G17: =IF(A17="","",'STP2'!Y10) -> 0 | H17: =IF(A17="","",'STP2'!AB10) -> 0 | I17: =IF(A17="","",'STP2'!AE10) -> 0 | J17: 0 | K17: =IF(A17="","", J17-'STP2'!T10-'STP2'!W10-'STP2'!Z10-'STP2'!AC10-'STP2'!AF10) -> 0 | L17: =IF(A17="","",'STP2'!AH10) -> 0 | M17: =IF(A17="","",'STP2'!AK10) -> 0 | N17: =IF(A17="","",'STP2'!AN10) -> 0 | O17: =IF(A17="","",'STP2'!AQ10) -> 10 | P17: 10 | Q17: =IF(A17="","",P17-'STP2'!AI10-'STP2'!AL10-'STP2'!AO10-'STP2'!AR10) -> 3 | R17: =IF(A17="","",'STP2'!AT10) -> 0 | S17: =IF(A17="","",R17-'STP2'!AU10) -> 0 | T17: 10 | U17: =IF(A17="","",'STP2'!CD10) -> 0 | V17: =IF(A17="","",'STP2'!CE10) -> 0 | W17: =IF(A17="","",'STP2'!CF10) -> 0 | X17: =IF(A17="","",'STP2'!CG10) -> 0 | Y17: =IF(A17="","",'STP2'!CH10) -> 0 | Z17: =IF(A17="","",'STP2'!CI10) -> 0 | AA17: =IF(A17="","",'STP2'!CJ10) -> 0 | AB17: =IF(A17="","",'STP2'!CK10) -> 0 | AC17: =IF(A17="","",'STP2'!CL10) -> 5 | AD17: =IF(A17="","",'STP2'!CM10) -> 0 | AE17: 5 | AF17: =IF(A17="","",'STP2'!CN10) -> 0 | AG17: =IF(A17="","",'STP2'!CO10) -> 0 | AH17: =IF(A17="","",'STP2'!CP10) -> 0 | AI17: =IF(A17="","",'STP2'!CQ10) -> 0 | AJ17: =IF(A17="","",'STP2'!CR10) -> 0 | AK17: =IF(A17="","",'STP2'!CS10) -> 0 | AL17: =IF(A17="","",'STP2'!CT10) -> 0 | AM17: =IF(A17="","",'STP2'!CU10) -> 0 | AN17: =IF(A17="","",'STP2'!CV10) -> 3 | AO17: =IF(A17="","",'STP2'!CW10) -> 0 | AP17: 3 | AQ17: =IF(A17="","",'STP2'!CX10) -> 0 | AR17: =IF(A17="","",'STP2'!CY10) -> 0 | AS17: =IF(A17="","",'STP2'!CZ10) -> 0 | AT17: =IF(A17="","",'STP2'!DA10) -> 0 | AU17: =IF(A17="","",'STP2'!DB10) -> 0 | AV17: =IF(A17="","",'STP2'!DC10) -> 0 | AW17: =IF(A17="","",'STP2'!DD10) -> 0 | AX17: =IF(A17="","",'STP2'!DE10) -> 0 | AY17: =IF(A17="","",'STP2'!DF10) -> 0 | AZ17: =IF(A17="","",'STP2'!DG10) -> 0 | BA17: 0 | BB17: =IF(A17="","",'STP2'!DH10) -> 0 | BC17: =IF(A17="","",'STP2'!DI10) -> 0 | BD17: =IF(A17="","",'STP2'!DJ10) -> 0 | BE17: =IF(A17="","",'STP2'!DK10) -> 0 | BF17: =IF(A17="","",'STP2'!DL10) -> 0 | BG17: =IF(A17="","",'STP2'!DM10) -> 0 | BH17: =IF(A17="","",'STP2'!DN10) -> 0 | BI17: =IF(A17="","",'STP2'!DO10) -> 0 | BJ17: =IF(A17="","",'STP2'!DP10) -> 0 | BK17: =IF(A17="","",'STP2'!DQ10) -> 0 | BL17: 0 | BM17: =IF(A17="","",'STP2'!DR10) -> 0 | BN17: =IF(A17="","",'STP2'!DS10) -> 0 | BO17: =IF(A17="","",'STP2'!DT10) -> 0 | BP17: =IF(A17="","",'STP2'!DU10) -> 0 | BQ17: =IF(A17="","",'STP2'!DV10) -> 0 | BR17: =IF(A17="","",'STP2'!DW10) -> 0 | BS17: =IF(A17="","",'STP2'!DX10) -> 0 | BT17: =IF(A17="","",'STP2'!DY10) -> 0 | BU17: =IF(A17="","",'STP2'!DZ10) -> 0 | BV17: =IF(A17="","",'STP2'!EA10) -> 0 | BW17: 0 | BX17: =IF(A17="","",'STP2'!EB10) -> 0 | BY17: =IF(A17="","",'STP2'!EC10) -> 0 | BZ17: =IF(A17="","",'STP2'!ED10) -> 0 | CA17: =IF(A17="","",'STP2'!EE10) -> 0 | CB17: =IF(A17="","",'STP2'!EF10) -> 0 | CC17: =IF(A17="","",'STP2'!EG10) -> 0 | CD17: =IF(A17="","",'STP2'!EH10) -> 0 | CE17: =IF(A17="","",'STP2'!EI10) -> 0 | CF17: =IF(A17="","",'STP2'!EJ10) -> 0 | CG17: =IF(A17="","",'STP2'!EK10) -> 0 | CH17: 0 | CI17: =IF(A13="","",'STP2'!AV10) -> 6 | CJ17: =IF(A13="","",'STP2'!AW10) -> 0 | CK17: =IF(A13="","",'STP2'!AX10) -> 0
A18: =IF('STP2'!I11="99","",'STP2'!I11) -> 09 | B18: =IF(A18="","",'STP2'!J11) -> 1bv1 | C18: 1 | D18: =IF(A18="","",IF('STP2'!K11,"ASO",IF('STP2'!L11,"SE",IF('STP2'!M11,"KB",IF('STP2'!N11,"SB",IF('STP2'!O11,"SI",IF('STP2'!P11,"MB","S"))))))) -> ASO | E18: =IF(A18="","",'STP2'!S11) -> 0 | F18: =IF(A18="","",'STP2'!V11) -> 0 | G18: =IF(A18="","",'STP2'!Y11) -> 0 | H18: =IF(A18="","",'STP2'!AB11) -> 0 | I18: =IF(A18="","",'STP2'!AE11) -> 0 | J18: 0 | K18: =IF(A18="","", J18-'STP2'!T11-'STP2'!W11-'STP2'!Z11-'STP2'!AC11-'STP2'!AF11) -> 0 | L18: =IF(A18="","",'STP2'!AH11) -> 0 | M18: =IF(A18="","",'STP2'!AK11) -> 0 | N18: =IF(A18="","",'STP2'!AN11) -> 0 | O18: =IF(A18="","",'STP2'!AQ11) -> 0 | P18: 0 | Q18: =IF(A18="","",P18-'STP2'!AI11-'STP2'!AL11-'STP2'!AO11-'STP2'!AR11) -> 0 | R18: =IF(A18="","",'STP2'!AT11) -> 12 | S18: =IF(A18="","",R18-'STP2'!AU11) -> 0 | T18: 12 | U18: =IF(A18="","",'STP2'!CD11) -> 0 | V18: =IF(A18="","",'STP2'!CE11) -> 0 | W18: =IF(A18="","",'STP2'!CF11) -> 0 | X18: =IF(A18="","",'STP2'!CG11) -> 0 | Y18: =IF(A18="","",'STP2'!CH11) -> 0 | Z18: =IF(A18="","",'STP2'!CI11) -> 0 | AA18: =IF(A18="","",'STP2'!CJ11) -> 0 | AB18: =IF(A18="","",'STP2'!CK11) -> 0 | AC18: =IF(A18="","",'STP2'!CL11) -> 0 | AD18: =IF(A18="","",'STP2'!CM11) -> 12 | AE18: 12 | AF18: =IF(A18="","",'STP2'!CN11) -> 0 | AG18: =IF(A18="","",'STP2'!CO11) -> 0 | AH18: =IF(A18="","",'STP2'!CP11) -> 0 | AI18: =IF(A18="","",'STP2'!CQ11) -> 0 | AJ18: =IF(A18="","",'STP2'!CR11) -> 0 | AK18: =IF(A18="","",'STP2'!CS11) -> 0 | AL18: =IF(A18="","",'STP2'!CT11) -> 0 | AM18: =IF(A18="","",'STP2'!CU11) -> 0 | AN18: =IF(A18="","",'STP2'!CV11) -> 0 | AO18: =IF(A18="","",'STP2'!CW11) -> 0 | AP18: 0 | AQ18: =IF(A18="","",'STP2'!CX11) -> 0 | AR18: =IF(A18="","",'STP2'!CY11) -> 0 | AS18: =IF(A18="","",'STP2'!CZ11) -> 0 | AT18: =IF(A18="","",'STP2'!DA11) -> 0 | AU18: =IF(A18="","",'STP2'!DB11) -> 0 | AV18: =IF(A18="","",'STP2'!DC11) -> 0 | AW18: =IF(A18="","",'STP2'!DD11) -> 0 | AX18: =IF(A18="","",'STP2'!DE11) -> 0 | AY18: =IF(A18="","",'STP2'!DF11) -> 0 | AZ18: =IF(A18="","",'STP2'!DG11) -> 0 | BA18: 0 | BB18: =IF(A18="","",'STP2'!DH11) -> 0 | BC18: =IF(A18="","",'STP2'!DI11) -> 0 | BD18: =IF(A18="","",'STP2'!DJ11) -> 0 | BE18: =IF(A18="","",'STP2'!DK11) -> 0 | BF18: =IF(A18="","",'STP2'!DL11) -> 0 | BG18: =IF(A18="","",'STP2'!DM11) -> 0 | BH18: =IF(A18="","",'STP2'!DN11) -> 0 | BI18: =IF(A18="","",'STP2'!DO11) -> 0 | BJ18: =IF(A18="","",'STP2'!DP11) -> 0 | BK18: =IF(A18="","",'STP2'!DQ11) -> 0 | BL18: 0 | BM18: =IF(A18="","",'STP2'!DR11) -> 0 | BN18: =IF(A18="","",'STP2'!DS11) -> 0 | BO18: =IF(A18="","",'STP2'!DT11) -> 0 | BP18: =IF(A18="","",'STP2'!DU11) -> 0 | BQ18: =IF(A18="","",'STP2'!DV11) -> 0 | BR18: =IF(A18="","",'STP2'!DW11) -> 0 | BS18: =IF(A18="","",'STP2'!DX11) -> 0 | BT18: =IF(A18="","",'STP2'!DY11) -> 0 | BU18: =IF(A18="","",'STP2'!DZ11) -> 0 | BV18: =IF(A18="","",'STP2'!EA11) -> 0 | BW18: 0 | BX18: =IF(A18="","",'STP2'!EB11) -> 0 | BY18: =IF(A18="","",'STP2'!EC11) -> 0 | BZ18: =IF(A18="","",'STP2'!ED11) -> 0 | CA18: =IF(A18="","",'STP2'!EE11) -> 0 | CB18: =IF(A18="","",'STP2'!EF11) -> 0 | CC18: =IF(A18="","",'STP2'!EG11) -> 0 | CD18: =IF(A18="","",'STP2'!EH11) -> 0 | CE18: =IF(A18="","",'STP2'!EI11) -> 0 | CF18: =IF(A18="","",'STP2'!EJ11) -> 0 | CG18: =IF(A18="","",'STP2'!EK11) -> 0 | CH18: 0 | CI18: =IF(A14="","",'STP2'!AV11) -> 6 | CJ18: =IF(A14="","",'STP2'!AW11) -> 0 | CK18: =IF(A14="","",'STP2'!AX11) -> 0
A19: =IF('STP2'!I12="99","",'STP2'!I12) -> 09 | B19: =IF(A19="","",'STP2'!J12) -> 1bv2 | C19: 2 | D19: =IF(A19="","",IF('STP2'!K12,"ASO",IF('STP2'!L12,"SE",IF('STP2'!M12,"KB",IF('STP2'!N12,"SB",IF('STP2'!O12,"SI",IF('STP2'!P12,"MB","S"))))))) -> ASO | E19: =IF(A19="","",'STP2'!S12) -> 0 | F19: =IF(A19="","",'STP2'!V12) -> 0 | G19: =IF(A19="","",'STP2'!Y12) -> 0 | H19: =IF(A19="","",'STP2'!AB12) -> 0 | I19: =IF(A19="","",'STP2'!AE12) -> 0 | J19: 0 | K19: =IF(A19="","", J19-'STP2'!T12-'STP2'!W12-'STP2'!Z12-'STP2'!AC12-'STP2'!AF12) -> 0 | L19: =IF(A19="","",'STP2'!AH12) -> 0 | M19: =IF(A19="","",'STP2'!AK12) -> 0 | N19: =IF(A19="","",'STP2'!AN12) -> 0 | O19: =IF(A19="","",'STP2'!AQ12) -> 1 | P19: 1 | Q19: =IF(A19="","",P19-'STP2'!AI12-'STP2'!AL12-'STP2'!AO12-'STP2'!AR12) -> 0 | R19: =IF(A19="","",'STP2'!AT12) -> 9 | S19: =IF(A19="","",R19-'STP2'!AU12) -> 0 | T19: 10 | U19: =IF(A19="","",'STP2'!CD12) -> 0 | V19: =IF(A19="","",'STP2'!CE12) -> 0 | W19: =IF(A19="","",'STP2'!CF12) -> 0 | X19: =IF(A19="","",'STP2'!CG12) -> 0 | Y19: =IF(A19="","",'STP2'!CH12) -> 0 | Z19: =IF(A19="","",'STP2'!CI12) -> 0 | AA19: =IF(A19="","",'STP2'!CJ12) -> 0 | AB19: =IF(A19="","",'STP2'!CK12) -> 0 | AC19: =IF(A19="","",'STP2'!CL12) -> 0 | AD19: =IF(A19="","",'STP2'!CM12) -> 9 | AE19: 9 | AF19: =IF(A19="","",'STP2'!CN12) -> 0 | AG19: =IF(A19="","",'STP2'!CO12) -> 0 | AH19: =IF(A19="","",'STP2'!CP12) -> 0 | AI19: =IF(A19="","",'STP2'!CQ12) -> 0 | AJ19: =IF(A19="","",'STP2'!CR12) -> 0 | AK19: =IF(A19="","",'STP2'!CS12) -> 0 | AL19: =IF(A19="","",'STP2'!CT12) -> 0 | AM19: =IF(A19="","",'STP2'!CU12) -> 0 | AN19: =IF(A19="","",'STP2'!CV12) -> 1 | AO19: =IF(A19="","",'STP2'!CW12) -> 0 | AP19: 1 | AQ19: =IF(A19="","",'STP2'!CX12) -> 0 | AR19: =IF(A19="","",'STP2'!CY12) -> 0 | AS19: =IF(A19="","",'STP2'!CZ12) -> 0 | AT19: =IF(A19="","",'STP2'!DA12) -> 0 | AU19: =IF(A19="","",'STP2'!DB12) -> 0 | AV19: =IF(A19="","",'STP2'!DC12) -> 0 | AW19: =IF(A19="","",'STP2'!DD12) -> 0 | AX19: =IF(A19="","",'STP2'!DE12) -> 0 | AY19: =IF(A19="","",'STP2'!DF12) -> 0 | AZ19: =IF(A19="","",'STP2'!DG12) -> 0 | BA19: 0 | BB19: =IF(A19="","",'STP2'!DH12) -> 0 | BC19: =IF(A19="","",'STP2'!DI12) -> 0 | BD19: =IF(A19="","",'STP2'!DJ12) -> 0 | BE19: =IF(A19="","",'STP2'!DK12) -> 0 | BF19: =IF(A19="","",'STP2'!DL12) -> 0 | BG19: =IF(A19="","",'STP2'!DM12) -> 0 | BH19: =IF(A19="","",'STP2'!DN12) -> 0 | BI19: =IF(A19="","",'STP2'!DO12) -> 0 | BJ19: =IF(A19="","",'STP2'!DP12) -> 0 | BK19: =IF(A19="","",'STP2'!DQ12) -> 0 | BL19: 0 | BM19: =IF(A19="","",'STP2'!DR12) -> 0 | BN19: =IF(A19="","",'STP2'!DS12) -> 0 | BO19: =IF(A19="","",'STP2'!DT12) -> 0 | BP19: =IF(A19="","",'STP2'!DU12) -> 0 | BQ19: =IF(A19="","",'STP2'!DV12) -> 0 | BR19: =IF(A19="","",'STP2'!DW12) -> 0 | BS19: =IF(A19="","",'STP2'!DX12) -> 0 | BT19: =IF(A19="","",'STP2'!DY12) -> 0 | BU19: =IF(A19="","",'STP2'!DZ12) -> 0 | BV19: =IF(A19="","",'STP2'!EA12) -> 0 | BW19: 0 | BX19: =IF(A19="","",'STP2'!EB12) -> 0 | BY19: =IF(A19="","",'STP2'!EC12) -> 0 | BZ19: =IF(A19="","",'STP2'!ED12) -> 0 | CA19: =IF(A19="","",'STP2'!EE12) -> 0 | CB19: =IF(A19="","",'STP2'!EF12) -> 0 | CC19: =IF(A19="","",'STP2'!EG12) -> 0 | CD19: =IF(A19="","",'STP2'!EH12) -> 0 | CE19: =IF(A19="","",'STP2'!EI12) -> 0 | CF19: =IF(A19="","",'STP2'!EJ12) -> 0 | CG19: =IF(A19="","",'STP2'!EK12) -> 0 | CH19: 0 | CI19: =IF(A15="","",'STP2'!AV12) -> 9 | CJ19: =IF(A15="","",'STP2'!AW12) -> 0 | CK19: =IF(A15="","",'STP2'!AX12) -> 0
A20: =IF('STP2'!I13="99","",'STP2'!I13) -> 09 | B20: =IF(A20="","",'STP2'!J13) -> 1bv3 | C20: 2 | D20: =IF(A20="","",IF('STP2'!K13,"ASO",IF('STP2'!L13,"SE",IF('STP2'!M13,"KB",IF('STP2'!N13,"SB",IF('STP2'!O13,"SI",IF('STP2'!P13,"MB","S"))))))) -> ASO | E20: =IF(A20="","",'STP2'!S13) -> 0 | F20: =IF(A20="","",'STP2'!V13) -> 0 | G20: =IF(A20="","",'STP2'!Y13) -> 0 | H20: =IF(A20="","",'STP2'!AB13) -> 0 | I20: =IF(A20="","",'STP2'!AE13) -> 0 | J20: 0 | K20: =IF(A20="","", J20-'STP2'!T13-'STP2'!W13-'STP2'!Z13-'STP2'!AC13-'STP2'!AF13) -> 0 | L20: =IF(A20="","",'STP2'!AH13) -> 0 | M20: =IF(A20="","",'STP2'!AK13) -> 0 | N20: =IF(A20="","",'STP2'!AN13) -> 0 | O20: =IF(A20="","",'STP2'!AQ13) -> 3 | P20: 3 | Q20: =IF(A20="","",P20-'STP2'!AI13-'STP2'!AL13-'STP2'!AO13-'STP2'!AR13) -> 0 | R20: =IF(A20="","",'STP2'!AT13) -> 8 | S20: =IF(A20="","",R20-'STP2'!AU13) -> 0 | T20: 11 | U20: =IF(A20="","",'STP2'!CD13) -> 0 | V20: =IF(A20="","",'STP2'!CE13) -> 0 | W20: =IF(A20="","",'STP2'!CF13) -> 0 | X20: =IF(A20="","",'STP2'!CG13) -> 0 | Y20: =IF(A20="","",'STP2'!CH13) -> 0 | Z20: =IF(A20="","",'STP2'!CI13) -> 0 | AA20: =IF(A20="","",'STP2'!CJ13) -> 0 | AB20: =IF(A20="","",'STP2'!CK13) -> 0 | AC20: =IF(A20="","",'STP2'!CL13) -> 3 | AD20: =IF(A20="","",'STP2'!CM13) -> 8 | AE20: 11 | AF20: =IF(A20="","",'STP2'!CN13) -> 0 | AG20: =IF(A20="","",'STP2'!CO13) -> 0 | AH20: =IF(A20="","",'STP2'!CP13) -> 0 | AI20: =IF(A20="","",'STP2'!CQ13) -> 0 | AJ20: =IF(A20="","",'STP2'!CR13) -> 0 | AK20: =IF(A20="","",'STP2'!CS13) -> 0 | AL20: =IF(A20="","",'STP2'!CT13) -> 0 | AM20: =IF(A20="","",'STP2'!CU13) -> 0 | AN20: =IF(A20="","",'STP2'!CV13) -> 0 | AO20: =IF(A20="","",'STP2'!CW13) -> 0 | AP20: 0 | AQ20: =IF(A20="","",'STP2'!CX13) -> 0 | AR20: =IF(A20="","",'STP2'!CY13) -> 0 | AS20: =IF(A20="","",'STP2'!CZ13) -> 0 | AT20: =IF(A20="","",'STP2'!DA13) -> 0 | AU20: =IF(A20="","",'STP2'!DB13) -> 0 | AV20: =IF(A20="","",'STP2'!DC13) -> 0 | AW20: =IF(A20="","",'STP2'!DD13) -> 0 | AX20: =IF(A20="","",'STP2'!DE13) -> 0 | AY20: =IF(A20="","",'STP2'!DF13) -> 0 | AZ20: =IF(A20="","",'STP2'!DG13) -> 0 | BA20: 0 | BB20: =IF(A20="","",'STP2'!DH13) -> 0 | BC20: =IF(A20="","",'STP2'!DI13) -> 0 | BD20: =IF(A20="","",'STP2'!DJ13) -> 0 | BE20: =IF(A20="","",'STP2'!DK13) -> 0 | BF20: =IF(A20="","",'STP2'!DL13) -> 0 | BG20: =IF(A20="","",'STP2'!DM13) -> 0 | BH20: =IF(A20="","",'STP2'!DN13) -> 0 | BI20: =IF(A20="","",'STP2'!DO13) -> 0 | BJ20: =IF(A20="","",'STP2'!DP13) -> 0 | BK20: =IF(A20="","",'STP2'!DQ13) -> 0 | BL20: 0 | BM20: =IF(A20="","",'STP2'!DR13) -> 0 | BN20: =IF(A20="","",'STP2'!DS13) -> 0 | BO20: =IF(A20="","",'STP2'!DT13) -> 0 | BP20: =IF(A20="","",'STP2'!DU13) -> 0 | BQ20: =IF(A20="","",'STP2'!DV13) -> 0 | BR20: =IF(A20="","",'STP2'!DW13) -> 0 | BS20: =IF(A20="","",'STP2'!DX13) -> 0 | BT20: =IF(A20="","",'STP2'!DY13) -> 0 | BU20: =IF(A20="","",'STP2'!DZ13) -> 0 | BV20: =IF(A20="","",'STP2'!EA13) -> 0 | BW20: 0 | BX20: =IF(A20="","",'STP2'!EB13) -> 0 | BY20: =IF(A20="","",'STP2'!EC13) -> 0 | BZ20: =IF(A20="","",'STP2'!ED13) -> 0 | CA20: =IF(A20="","",'STP2'!EE13) -> 0 | CB20: =IF(A20="","",'STP2'!EF13) -> 0 | CC20: =IF(A20="","",'STP2'!EG13) -> 0 | CD20: =IF(A20="","",'STP2'!EH13) -> 0 | CE20: =IF(A20="","",'STP2'!EI13) -> 0 | CF20: =IF(A20="","",'STP2'!EJ13) -> 0 | CG20: =IF(A20="","",'STP2'!EK13) -> 0 | CH20: 0 | CI20: =IF(A16="","",'STP2'!AV13) -> 9 | CJ20: =IF(A16="","",'STP2'!AW13) -> 0 | CK20: =IF(A16="","",'STP2'!AX13) -> 0
A21: =IF('STP2'!I14="99","",'STP2'!I14) -> 09 | B21: =IF(A21="","",'STP2'!J14) -> 1bv4 | C21: 2 | D21: =IF(A21="","",IF('STP2'!K14,"ASO",IF('STP2'!L14,"SE",IF('STP2'!M14,"KB",IF('STP2'!N14,"SB",IF('STP2'!O14,"SI",IF('STP2'!P14,"MB","S"))))))) -> SB | E21: =IF(A21="","",'STP2'!S14) -> 0 | F21: =IF(A21="","",'STP2'!V14) -> 0 | G21: =IF(A21="","",'STP2'!Y14) -> 0 | H21: =IF(A21="","",'STP2'!AB14) -> 0 | I21: =IF(A21="","",'STP2'!AE14) -> 0 | J21: 0 | K21: =IF(A21="","", J21-'STP2'!T14-'STP2'!W14-'STP2'!Z14-'STP2'!AC14-'STP2'!AF14) -> 0 | L21: =IF(A21="","",'STP2'!AH14) -> 0 | M21: =IF(A21="","",'STP2'!AK14) -> 0 | N21: =IF(A21="","",'STP2'!AN14) -> 0 | O21: =IF(A21="","",'STP2'!AQ14) -> 4 | P21: 4 | Q21: =IF(A21="","",P21-'STP2'!AI14-'STP2'!AL14-'STP2'!AO14-'STP2'!AR14) -> 0 | R21: =IF(A21="","",'STP2'!AT14) -> 4 | S21: =IF(A21="","",R21-'STP2'!AU14) -> 0 | T21: 8 | U21: =IF(A21="","",'STP2'!CD14) -> 0 | V21: =IF(A21="","",'STP2'!CE14) -> 0 | W21: =IF(A21="","",'STP2'!CF14) -> 0 | X21: =IF(A21="","",'STP2'!CG14) -> 0 | Y21: =IF(A21="","",'STP2'!CH14) -> 0 | Z21: =IF(A21="","",'STP2'!CI14) -> 0 | AA21: =IF(A21="","",'STP2'!CJ14) -> 0 | AB21: =IF(A21="","",'STP2'!CK14) -> 0 | AC21: =IF(A21="","",'STP2'!CL14) -> 0 | AD21: =IF(A21="","",'STP2'!CM14) -> 0 | AE21: 0 | AF21: =IF(A21="","",'STP2'!CN14) -> 0 | AG21: =IF(A21="","",'STP2'!CO14) -> 0 | AH21: =IF(A21="","",'STP2'!CP14) -> 0 | AI21: =IF(A21="","",'STP2'!CQ14) -> 0 | AJ21: =IF(A21="","",'STP2'!CR14) -> 0 | AK21: =IF(A21="","",'STP2'!CS14) -> 0 | AL21: =IF(A21="","",'STP2'!CT14) -> 0 | AM21: =IF(A21="","",'STP2'!CU14) -> 0 | AN21: =IF(A21="","",'STP2'!CV14) -> 0 | AO21: =IF(A21="","",'STP2'!CW14) -> 0 | AP21: 0 | AQ21: =IF(A21="","",'STP2'!CX14) -> 0 | AR21: =IF(A21="","",'STP2'!CY14) -> 0 | AS21: =IF(A21="","",'STP2'!CZ14) -> 0 | AT21: =IF(A21="","",'STP2'!DA14) -> 0 | AU21: =IF(A21="","",'STP2'!DB14) -> 0 | AV21: =IF(A21="","",'STP2'!DC14) -> 0 | AW21: =IF(A21="","",'STP2'!DD14) -> 0 | AX21: =IF(A21="","",'STP2'!DE14) -> 0 | AY21: =IF(A21="","",'STP2'!DF14) -> 4 | AZ21: =IF(A21="","",'STP2'!DG14) -> 4 | BA21: 8 | BB21: =IF(A21="","",'STP2'!DH14) -> 0 | BC21: =IF(A21="","",'STP2'!DI14) -> 0 | BD21: =IF(A21="","",'STP2'!DJ14) -> 0 | BE21: =IF(A21="","",'STP2'!DK14) -> 0 | BF21: =IF(A21="","",'STP2'!DL14) -> 0 | BG21: =IF(A21="","",'STP2'!DM14) -> 0 | BH21: =IF(A21="","",'STP2'!DN14) -> 0 | BI21: =IF(A21="","",'STP2'!DO14) -> 0 | BJ21: =IF(A21="","",'STP2'!DP14) -> 0 | BK21: =IF(A21="","",'STP2'!DQ14) -> 0 | BL21: 0 | BM21: =IF(A21="","",'STP2'!DR14) -> 0 | BN21: =IF(A21="","",'STP2'!DS14) -> 0 | BO21: =IF(A21="","",'STP2'!DT14) -> 0 | BP21: =IF(A21="","",'STP2'!DU14) -> 0 | BQ21: =IF(A21="","",'STP2'!DV14) -> 0 | BR21: =IF(A21="","",'STP2'!DW14) -> 0 | BS21: =IF(A21="","",'STP2'!DX14) -> 0 | BT21: =IF(A21="","",'STP2'!DY14) -> 0 | BU21: =IF(A21="","",'STP2'!DZ14) -> 0 | BV21: =IF(A21="","",'STP2'!EA14) -> 0 | BW21: 0 | BX21: =IF(A21="","",'STP2'!EB14) -> 0 | BY21: =IF(A21="","",'STP2'!EC14) -> 0 | BZ21: =IF(A21="","",'STP2'!ED14) -> 0 | CA21: =IF(A21="","",'STP2'!EE14) -> 0 | CB21: =IF(A21="","",'STP2'!EF14) -> 0 | CC21: =IF(A21="","",'STP2'!EG14) -> 0 | CD21: =IF(A21="","",'STP2'!EH14) -> 0 | CE21: =IF(A21="","",'STP2'!EI14) -> 0 | CF21: =IF(A21="","",'STP2'!EJ14) -> 0 | CG21: =IF(A21="","",'STP2'!EK14) -> 0 | CH21: 0 | CI21: =IF(A17="","",'STP2'!AV14) -> 6 | CJ21: =IF(A17="","",'STP2'!AW14) -> 0 | CK21: =IF(A17="","",'STP2'!AX14) -> 0
A22: =IF('STP2'!I15="99","",'STP2'!I15) -> 09 | B22: =IF(A22="","",'STP2'!J15) -> 1bv5 | C22: 2 | D22: =IF(A22="","",IF('STP2'!K15,"ASO",IF('STP2'!L15,"SE",IF('STP2'!M15,"KB",IF('STP2'!N15,"SB",IF('STP2'!O15,"SI",IF('STP2'!P15,"MB","S"))))))) -> SB | E22: =IF(A22="","",'STP2'!S15) -> 0 | F22: =IF(A22="","",'STP2'!V15) -> 0 | G22: =IF(A22="","",'STP2'!Y15) -> 0 | H22: =IF(A22="","",'STP2'!AB15) -> 0 | I22: =IF(A22="","",'STP2'!AE15) -> 0 | J22: 0 | K22: =IF(A22="","", J22-'STP2'!T15-'STP2'!W15-'STP2'!Z15-'STP2'!AC15-'STP2'!AF15) -> 0 | L22: =IF(A22="","",'STP2'!AH15) -> 0 | M22: =IF(A22="","",'STP2'!AK15) -> 0 | N22: =IF(A22="","",'STP2'!AN15) -> 0 | O22: =IF(A22="","",'STP2'!AQ15) -> 1 | P22: 1 | Q22: =IF(A22="","",P22-'STP2'!AI15-'STP2'!AL15-'STP2'!AO15-'STP2'!AR15) -> 0 | R22: =IF(A22="","",'STP2'!AT15) -> 6 | S22: =IF(A22="","",R22-'STP2'!AU15) -> 0 | T22: 7 | U22: =IF(A22="","",'STP2'!CD15) -> 0 | V22: =IF(A22="","",'STP2'!CE15) -> 0 | W22: =IF(A22="","",'STP2'!CF15) -> 0 | X22: =IF(A22="","",'STP2'!CG15) -> 0 | Y22: =IF(A22="","",'STP2'!CH15) -> 0 | Z22: =IF(A22="","",'STP2'!CI15) -> 0 | AA22: =IF(A22="","",'STP2'!CJ15) -> 0 | AB22: =IF(A22="","",'STP2'!CK15) -> 0 | AC22: =IF(A22="","",'STP2'!CL15) -> 0 | AD22: =IF(A22="","",'STP2'!CM15) -> 0 | AE22: 0 | AF22: =IF(A22="","",'STP2'!CN15) -> 0 | AG22: =IF(A22="","",'STP2'!CO15) -> 0 | AH22: =IF(A22="","",'STP2'!CP15) -> 0 | AI22: =IF(A22="","",'STP2'!CQ15) -> 0 | AJ22: =IF(A22="","",'STP2'!CR15) -> 0 | AK22: =IF(A22="","",'STP2'!CS15) -> 0 | AL22: =IF(A22="","",'STP2'!CT15) -> 0 | AM22: =IF(A22="","",'STP2'!CU15) -> 0 | AN22: =IF(A22="","",'STP2'!CV15) -> 0 | AO22: =IF(A22="","",'STP2'!CW15) -> 0 | AP22: 0 | AQ22: =IF(A22="","",'STP2'!CX15) -> 0 | AR22: =IF(A22="","",'STP2'!CY15) -> 0 | AS22: =IF(A22="","",'STP2'!CZ15) -> 0 | AT22: =IF(A22="","",'STP2'!DA15) -> 0 | AU22: =IF(A22="","",'STP2'!DB15) -> 0 | AV22: =IF(A22="","",'STP2'!DC15) -> 0 | AW22: =IF(A22="","",'STP2'!DD15) -> 0 | AX22: =IF(A22="","",'STP2'!DE15) -> 0 | AY22: =IF(A22="","",'STP2'!DF15) -> 1 | AZ22: =IF(A22="","",'STP2'!DG15) -> 6 | BA22: 7 | BB22: =IF(A22="","",'STP2'!DH15) -> 0 | BC22: =IF(A22="","",'STP2'!DI15) -> 0 | BD22: =IF(A22="","",'STP2'!DJ15) -> 0 | BE22: =IF(A22="","",'STP2'!DK15) -> 0 | BF22: =IF(A22="","",'STP2'!DL15) -> 0 | BG22: =IF(A22="","",'STP2'!DM15) -> 0 | BH22: =IF(A22="","",'STP2'!DN15) -> 0 | BI22: =IF(A22="","",'STP2'!DO15) -> 0 | BJ22: =IF(A22="","",'STP2'!DP15) -> 0 | BK22: =IF(A22="","",'STP2'!DQ15) -> 0 | BL22: 0 | BM22: =IF(A22="","",'STP2'!DR15) -> 0 | BN22: =IF(A22="","",'STP2'!DS15) -> 0 | BO22: =IF(A22="","",'STP2'!DT15) -> 0 | BP22: =IF(A22="","",'STP2'!DU15) -> 0 | BQ22: =IF(A22="","",'STP2'!DV15) -> 0 | BR22: =IF(A22="","",'STP2'!DW15) -> 0 | BS22: =IF(A22="","",'STP2'!DX15) -> 0 | BT22: =IF(A22="","",'STP2'!DY15) -> 0 | BU22: =IF(A22="","",'STP2'!DZ15) -> 0 | BV22: =IF(A22="","",'STP2'!EA15) -> 0 | BW22: 0 | BX22: =IF(A22="","",'STP2'!EB15) -> 0 | BY22: =IF(A22="","",'STP2'!EC15) -> 0 | BZ22: =IF(A22="","",'STP2'!ED15) -> 0 | CA22: =IF(A22="","",'STP2'!EE15) -> 0 | CB22: =IF(A22="","",'STP2'!EF15) -> 0 | CC22: =IF(A22="","",'STP2'!EG15) -> 0 | CD22: =IF(A22="","",'STP2'!EH15) -> 0 | CE22: =IF(A22="","",'STP2'!EI15) -> 0 | CF22: =IF(A22="","",'STP2'!EJ15) -> 0 | CG22: =IF(A22="","",'STP2'!EK15) -> 0 | CH22: 0 | CI22: =IF(A18="","",'STP2'!AV15) -> 6 | CJ22: =IF(A18="","",'STP2'!AW15) -> 0 | CK22: =IF(A18="","",'STP2'!AX15) -> 0
A23: =IF('STP2'!I16="99","",'STP2'!I16) ->  | B23: =IF(A23="","",'STP2'!J16) ->  | D23: =IF(A23="","",IF('STP2'!K16,"ASO",IF('STP2'!L16,"SE",IF('STP2'!M16,"KB",IF('STP2'!N16,"SB",IF('STP2'!O16,"SI",IF('STP2'!P16,"MB","S"))))))) ->  | E23: =IF(A23="","",'STP2'!S16) ->  | F23: =IF(A23="","",'STP2'!V16) ->  | G23: =IF(A23="","",'STP2'!Y16) ->  | H23: =IF(A23="","",'STP2'!AB16) ->  | I23: =IF(A23="","",'STP2'!AE16) ->  | K23: =IF(A23="","", J23-'STP2'!T16-'STP2'!W16-'STP2'!Z16-'STP2'!AC16-'STP2'!AF16) ->  | L23: =IF(A23="","",'STP2'!AH16) ->  | M23: =IF(A23="","",'STP2'!AK16) ->  | N23: =IF(A23="","",'STP2'!AN16) ->  | O23: =IF(A23="","",'STP2'!AQ16) ->  | Q23: =IF(A23="","",P23-'STP2'!AI16-'STP2'!AL16-'STP2'!AO16-'STP2'!AR16) ->  | R23: =IF(A23="","",'STP2'!AT16) ->  | S23: =IF(A23="","",R23-'STP2'!AU16) ->  | U23: =IF(A23="","",'STP2'!CD16) ->  | V23: =IF(A23="","",'STP2'!CE16) ->  | W23: =IF(A23="","",'STP2'!CF16) ->  | X23: =IF(A23="","",'STP2'!CG16) ->  | Y23: =IF(A23="","",'STP2'!CH16) ->  | Z23: =IF(A23="","",'STP2'!CI16) ->  | AA23: =IF(A23="","",'STP2'!CJ16) ->  | AB23: =IF(A23="","",'STP2'!CK16) ->  | AC23: =IF(A23="","",'STP2'!CL16) ->  | AD23: =IF(A23="","",'STP2'!CM16) ->  | AF23: =IF(A23="","",'STP2'!CN16) ->  | AG23: =IF(A23="","",'STP2'!CO16) ->  | AH23: =IF(A23="","",'STP2'!CP16) ->  | AI23: =IF(A23="","",'STP2'!CQ16) ->  | AJ23: =IF(A23="","",'STP2'!CR16) ->  | AK23: =IF(A23="","",'STP2'!CS16) ->  | AL23: =IF(A23="","",'STP2'!CT16) ->  | AM23: =IF(A23="","",'STP2'!CU16) ->  | AN23: =IF(A23="","",'STP2'!CV16) ->  | AO23: =IF(A23="","",'STP2'!CW16) ->  | AQ23: =IF(A23="","",'STP2'!CX16) ->  | AR23: =IF(A23="","",'STP2'!CY16) ->  | AS23: =IF(A23="","",'STP2'!CZ16) ->  | AT23: =IF(A23="","",'STP2'!DA16) ->  | AU23: =IF(A23="","",'STP2'!DB16) ->  | AV23: =IF(A23="","",'STP2'!DC16) ->  | AW23: =IF(A23="","",'STP2'!DD16) ->  | AX23: =IF(A23="","",'STP2'!DE16) ->  | AY23: =IF(A23="","",'STP2'!DF16) ->  | AZ23: =IF(A23="","",'STP2'!DG16) ->  | BB23: =IF(A23="","",'STP2'!DH16) ->  | BC23: =IF(A23="","",'STP2'!DI16) ->  | BD23: =IF(A23="","",'STP2'!DJ16) ->  | BE23: =IF(A23="","",'STP2'!DK16) ->  | BF23: =IF(A23="","",'STP2'!DL16) ->  | BG23: =IF(A23="","",'STP2'!DM16) ->  | BH23: =IF(A23="","",'STP2'!DN16) ->  | BI23: =IF(A23="","",'STP2'!DO16) ->  | BJ23: =IF(A23="","",'STP2'!DP16) ->  | BK23: =IF(A23="","",'STP2'!DQ16) ->  | BM23: =IF(A23="","",'STP2'!DR16) ->  | BN23: =IF(A23="","",'STP2'!DS16) ->  | BO23: =IF(A23="","",'STP2'!DT16) ->  | BP23: =IF(A23="","",'STP2'!DU16) ->  | BQ23: =IF(A23="","",'STP2'!DV16) ->  | BR23: =IF(A23="","",'STP2'!DW16) ->  | BS23: =IF(A23="","",'STP2'!DX16) ->  | BT23: =IF(A23="","",'STP2'!DY16) ->  | BU23: =IF(A23="","",'STP2'!DZ16) ->  | BV23: =IF(A23="","",'STP2'!EA16) ->  | BX23: =IF(A23="","",'STP2'!EB16) ->  | BY23: =IF(A23="","",'STP2'!EC16) ->  | BZ23: =IF(A23="","",'STP2'!ED16) ->  | CA23: =IF(A23="","",'STP2'!EE16) ->  | CB23: =IF(A23="","",'STP2'!EF16) ->  | CC23: =IF(A23="","",'STP2'!EG16) ->  | CD23: =IF(A23="","",'STP2'!EH16) ->  | CE23: =IF(A23="","",'STP2'!EI16) ->  | CF23: =IF(A23="","",'STP2'!EJ16) ->  | CG23: =IF(A23="","",'STP2'!EK16) ->  | CI23: =IF(A19="","",'STP2'!AV16) ->  | CJ23: =IF(A19="","",'STP2'!AW16) ->  | CK23: =IF(A19="","",'STP2'!AX16) -> 
A24: =IF('STP2'!I17="99","",'STP2'!I17) ->  | B24: =IF(A24="","",'STP2'!J17) ->  | D24: =IF(A24="","",IF('STP2'!K17,"ASO",IF('STP2'!L17,"SE",IF('STP2'!M17,"KB",IF('STP2'!N17,"SB",IF('STP2'!O17,"SI",IF('STP2'!P17,"MB","S"))))))) ->  | E24: =IF(A24="","",'STP2'!S17) ->  | F24: =IF(A24="","",'STP2'!V17) ->  | G24: =IF(A24="","",'STP2'!Y17) ->  | H24: =IF(A24="","",'STP2'!AB17) ->  | I24: =IF(A24="","",'STP2'!AE17) ->  | K24: =IF(A24="","", J24-'STP2'!T17-'STP2'!W17-'STP2'!Z17-'STP2'!AC17-'STP2'!AF17) ->  | L24: =IF(A24="","",'STP2'!AH17) ->  | M24: =IF(A24="","",'STP2'!AK17) ->  | N24: =IF(A24="","",'STP2'!AN17) ->  | O24: =IF(A24="","",'STP2'!AQ17) ->  | Q24: =IF(A24="","",P24-'STP2'!AI17-'STP2'!AL17-'STP2'!AO17-'STP2'!AR17) ->  | R24: =IF(A24="","",'STP2'!AT17) ->  | S24: =IF(A24="","",R24-'STP2'!AU17) ->  | U24: =IF(A24="","",'STP2'!CD17) ->  | V24: =IF(A24="","",'STP2'!CE17) ->  | W24: =IF(A24="","",'STP2'!CF17) ->  | X24: =IF(A24="","",'STP2'!CG17) ->  | Y24: =IF(A24="","",'STP2'!CH17) ->  | Z24: =IF(A24="","",'STP2'!CI17) ->  | AA24: =IF(A24="","",'STP2'!CJ17) ->  | AB24: =IF(A24="","",'STP2'!CK17) ->  | AC24: =IF(A24="","",'STP2'!CL17) ->  | AD24: =IF(A24="","",'STP2'!CM17) ->  | AF24: =IF(A24="","",'STP2'!CN17) ->  | AG24: =IF(A24="","",'STP2'!CO17) ->  | AH24: =IF(A24="","",'STP2'!CP17) ->  | AI24: =IF(A24="","",'STP2'!CQ17) ->  | AJ24: =IF(A24="","",'STP2'!CR17) ->  | AK24: =IF(A24="","",'STP2'!CS17) ->  | AL24: =IF(A24="","",'STP2'!CT17) ->  | AM24: =IF(A24="","",'STP2'!CU17) ->  | AN24: =IF(A24="","",'STP2'!CV17) ->  | AO24: =IF(A24="","",'STP2'!CW17) ->  | AQ24: =IF(A24="","",'STP2'!CX17) ->  | AR24: =IF(A24="","",'STP2'!CY17) ->  | AS24: =IF(A24="","",'STP2'!CZ17) ->  | AT24: =IF(A24="","",'STP2'!DA17) ->  | AU24: =IF(A24="","",'STP2'!DB17) ->  | AV24: =IF(A24="","",'STP2'!DC17) ->  | AW24: =IF(A24="","",'STP2'!DD17) ->  | AX24: =IF(A24="","",'STP2'!DE17) ->  | AY24: =IF(A24="","",'STP2'!DF17) ->  | AZ24: =IF(A24="","",'STP2'!DG17) ->  | BB24: =IF(A24="","",'STP2'!DH17) ->  | BC24: =IF(A24="","",'STP2'!DI17) ->  | BD24: =IF(A24="","",'STP2'!DJ17) ->  | BE24: =IF(A24="","",'STP2'!DK17) ->  | BF24: =IF(A24="","",'STP2'!DL17) ->  | BG24: =IF(A24="","",'STP2'!DM17) ->  | BH24: =IF(A24="","",'STP2'!DN17) ->  | BI24: =IF(A24="","",'STP2'!DO17) ->  | BJ24: =IF(A24="","",'STP2'!DP17) ->  | BK24: =IF(A24="","",'STP2'!DQ17) ->  | BM24: =IF(A24="","",'STP2'!DR17) ->  | BN24: =IF(A24="","",'STP2'!DS17) ->  | BO24: =IF(A24="","",'STP2'!DT17) ->  | BP24: =IF(A24="","",'STP2'!DU17) ->  | BQ24: =IF(A24="","",'STP2'!DV17) ->  | BR24: =IF(A24="","",'STP2'!DW17) ->  | BS24: =IF(A24="","",'STP2'!DX17) ->  | BT24: =IF(A24="","",'STP2'!DY17) ->  | BU24: =IF(A24="","",'STP2'!DZ17) ->  | BV24: =IF(A24="","",'STP2'!EA17) ->  | BX24: =IF(A24="","",'STP2'!EB17) ->  | BY24: =IF(A24="","",'STP2'!EC17) ->  | BZ24: =IF(A24="","",'STP2'!ED17) ->  | CA24: =IF(A24="","",'STP2'!EE17) ->  | CB24: =IF(A24="","",'STP2'!EF17) ->  | CC24: =IF(A24="","",'STP2'!EG17) ->  | CD24: =IF(A24="","",'STP2'!EH17) ->  | CE24: =IF(A24="","",'STP2'!EI17) ->  | CF24: =IF(A24="","",'STP2'!EJ17) ->  | CG24: =IF(A24="","",'STP2'!EK17) ->  | CI24: =IF(A20="","",'STP2'!AV17) ->  | CJ24: =IF(A20="","",'STP2'!AW17) ->  | CK24: =IF(A20="","",'STP2'!AX17) -> 
A25: =IF('STP2'!I18="99","",'STP2'!I18) ->  | B25: =IF(A25="","",'STP2'!J18) ->  | D25: =IF(A25="","",IF('STP2'!K18,"ASO",IF('STP2'!L18,"SE",IF('STP2'!M18,"KB",IF('STP2'!N18,"SB",IF('STP2'!O18,"SI",IF('STP2'!P18,"MB","S"))))))) ->  | E25: =IF(A25="","",'STP2'!S18) ->  | F25: =IF(A25="","",'STP2'!V18) ->  | G25: =IF(A25="","",'STP2'!Y18) ->  | H25: =IF(A25="","",'STP2'!AB18) ->  | I25: =IF(A25="","",'STP2'!AE18) ->  | K25: =IF(A25="","", J25-'STP2'!T18-'STP2'!W18-'STP2'!Z18-'STP2'!AC18-'STP2'!AF18) ->  | L25: =IF(A25="","",'STP2'!AH18) ->  | M25: =IF(A25="","",'STP2'!AK18) ->  | N25: =IF(A25="","",'STP2'!AN18) ->  | O25: =IF(A25="","",'STP2'!AQ18) ->  | Q25: =IF(A25="","",P25-'STP2'!AI18-'STP2'!AL18-'STP2'!AO18-'STP2'!AR18) ->  | R25: =IF(A25="","",'STP2'!AT18) ->  | S25: =IF(A25="","",R25-'STP2'!AU18) ->  | U25: =IF(A25="","",'STP2'!CD18) ->  | V25: =IF(A25="","",'STP2'!CE18) ->  | W25: =IF(A25="","",'STP2'!CF18) ->  | X25: =IF(A25="","",'STP2'!CG18) ->  | Y25: =IF(A25="","",'STP2'!CH18) ->  | Z25: =IF(A25="","",'STP2'!CI18) ->  | AA25: =IF(A25="","",'STP2'!CJ18) ->  | AB25: =IF(A25="","",'STP2'!CK18) ->  | AC25: =IF(A25="","",'STP2'!CL18) ->  | AD25: =IF(A25="","",'STP2'!CM18) ->  | AF25: =IF(A25="","",'STP2'!CN18) ->  | AG25: =IF(A25="","",'STP2'!CO18) ->  | AH25: =IF(A25="","",'STP2'!CP18) ->  | AI25: =IF(A25="","",'STP2'!CQ18) ->  | AJ25: =IF(A25="","",'STP2'!CR18) ->  | AK25: =IF(A25="","",'STP2'!CS18) ->  | AL25: =IF(A25="","",'STP2'!CT18) ->  | AM25: =IF(A25="","",'STP2'!CU18) ->  | AN25: =IF(A25="","",'STP2'!CV18) ->  | AO25: =IF(A25="","",'STP2'!CW18) ->  | AQ25: =IF(A25="","",'STP2'!CX18) ->  | AR25: =IF(A25="","",'STP2'!CY18) ->  | AS25: =IF(A25="","",'STP2'!CZ18) ->  | AT25: =IF(A25="","",'STP2'!DA18) ->  | AU25: =IF(A25="","",'STP2'!DB18) ->  | AV25: =IF(A25="","",'STP2'!DC18) ->  | AW25: =IF(A25="","",'STP2'!DD18) ->  | AX25: =IF(A25="","",'STP2'!DE18) ->  | AY25: =IF(A25="","",'STP2'!DF18) ->  | AZ25: =IF(A25="","",'STP2'!DG18) ->  | BB25: =IF(A25="","",'STP2'!DH18) ->  | BC25: =IF(A25="","",'STP2'!DI18) ->  | BD25: =IF(A25="","",'STP2'!DJ18) ->  | BE25: =IF(A25="","",'STP2'!DK18) ->  | BF25: =IF(A25="","",'STP2'!DL18) ->  | BG25: =IF(A25="","",'STP2'!DM18) ->  | BH25: =IF(A25="","",'STP2'!DN18) ->  | BI25: =IF(A25="","",'STP2'!DO18) ->  | BJ25: =IF(A25="","",'STP2'!DP18) ->  | BK25: =IF(A25="","",'STP2'!DQ18) ->  | BM25: =IF(A25="","",'STP2'!DR18) ->  | BN25: =IF(A25="","",'STP2'!DS18) ->  | BO25: =IF(A25="","",'STP2'!DT18) ->  | BP25: =IF(A25="","",'STP2'!DU18) ->  | BQ25: =IF(A25="","",'STP2'!DV18) ->  | BR25: =IF(A25="","",'STP2'!DW18) ->  | BS25: =IF(A25="","",'STP2'!DX18) ->  | BT25: =IF(A25="","",'STP2'!DY18) ->  | BU25: =IF(A25="","",'STP2'!DZ18) ->  | BV25: =IF(A25="","",'STP2'!EA18) ->  | BX25: =IF(A25="","",'STP2'!EB18) ->  | BY25: =IF(A25="","",'STP2'!EC18) ->  | BZ25: =IF(A25="","",'STP2'!ED18) ->  | CA25: =IF(A25="","",'STP2'!EE18) ->  | CB25: =IF(A25="","",'STP2'!EF18) ->  | CC25: =IF(A25="","",'STP2'!EG18) ->  | CD25: =IF(A25="","",'STP2'!EH18) ->  | CE25: =IF(A25="","",'STP2'!EI18) ->  | CF25: =IF(A25="","",'STP2'!EJ18) ->  | CG25: =IF(A25="","",'STP2'!EK18) ->  | CI25: =IF(A21="","",'STP2'!AV18) ->  | CJ25: =IF(A21="","",'STP2'!AW18) ->  | CK25: =IF(A21="","",'STP2'!AX18) -> 
A26: =IF('STP2'!I19="99","",'STP2'!I19) ->  | B26: =IF(A26="","",'STP2'!J19) ->  | D26: =IF(A26="","",IF('STP2'!K19,"ASO",IF('STP2'!L19,"SE",IF('STP2'!M19,"KB",IF('STP2'!N19,"SB",IF('STP2'!O19,"SI",IF('STP2'!P19,"MB","S"))))))) ->  | E26: =IF(A26="","",'STP2'!S19) ->  | F26: =IF(A26="","",'STP2'!V19) ->  | G26: =IF(A26="","",'STP2'!Y19) ->  | H26: =IF(A26="","",'STP2'!AB19) ->  | I26: =IF(A26="","",'STP2'!AE19) ->  | K26: =IF(A26="","", J26-'STP2'!T19-'STP2'!W19-'STP2'!Z19-'STP2'!AC19-'STP2'!AF19) ->  | L26: =IF(A26="","",'STP2'!AH19) ->  | M26: =IF(A26="","",'STP2'!AK19) ->  | N26: =IF(A26="","",'STP2'!AN19) ->  | O26: =IF(A26="","",'STP2'!AQ19) ->  | Q26: =IF(A26="","",P26-'STP2'!AI19-'STP2'!AL19-'STP2'!AO19-'STP2'!AR19) ->  | R26: =IF(A26="","",'STP2'!AT19) ->  | S26: =IF(A26="","",R26-'STP2'!AU19) ->  | U26: =IF(A26="","",'STP2'!CD19) ->  | V26: =IF(A26="","",'STP2'!CE19) ->  | W26: =IF(A26="","",'STP2'!CF19) ->  | X26: =IF(A26="","",'STP2'!CG19) ->  | Y26: =IF(A26="","",'STP2'!CH19) ->  | Z26: =IF(A26="","",'STP2'!CI19) ->  | AA26: =IF(A26="","",'STP2'!CJ19) ->  | AB26: =IF(A26="","",'STP2'!CK19) ->  | AC26: =IF(A26="","",'STP2'!CL19) ->  | AD26: =IF(A26="","",'STP2'!CM19) ->  | AF26: =IF(A26="","",'STP2'!CN19) ->  | AG26: =IF(A26="","",'STP2'!CO19) ->  | AH26: =IF(A26="","",'STP2'!CP19) ->  | AI26: =IF(A26="","",'STP2'!CQ19) ->  | AJ26: =IF(A26="","",'STP2'!CR19) ->  | AK26: =IF(A26="","",'STP2'!CS19) ->  | AL26: =IF(A26="","",'STP2'!CT19) ->  | AM26: =IF(A26="","",'STP2'!CU19) ->  | AN26: =IF(A26="","",'STP2'!CV19) ->  | AO26: =IF(A26="","",'STP2'!CW19) ->  | AQ26: =IF(A26="","",'STP2'!CX19) ->  | AR26: =IF(A26="","",'STP2'!CY19) ->  | AS26: =IF(A26="","",'STP2'!CZ19) ->  | AT26: =IF(A26="","",'STP2'!DA19) ->  | AU26: =IF(A26="","",'STP2'!DB19) ->  | AV26: =IF(A26="","",'STP2'!DC19) ->  | AW26: =IF(A26="","",'STP2'!DD19) ->  | AX26: =IF(A26="","",'STP2'!DE19) ->  | AY26: =IF(A26="","",'STP2'!DF19) ->  | AZ26: =IF(A26="","",'STP2'!DG19) ->  | BB26: =IF(A26="","",'STP2'!DH19) ->  | BC26: =IF(A26="","",'STP2'!DI19) ->  | BD26: =IF(A26="","",'STP2'!DJ19) ->  | BE26: =IF(A26="","",'STP2'!DK19) ->  | BF26: =IF(A26="","",'STP2'!DL19) ->  | BG26: =IF(A26="","",'STP2'!DM19) ->  | BH26: =IF(A26="","",'STP2'!DN19) ->  | BI26: =IF(A26="","",'STP2'!DO19) ->  | BJ26: =IF(A26="","",'STP2'!DP19) ->  | BK26: =IF(A26="","",'STP2'!DQ19) ->  | BM26: =IF(A26="","",'STP2'!DR19) ->  | BN26: =IF(A26="","",'STP2'!DS19) ->  | BO26: =IF(A26="","",'STP2'!DT19) ->  | BP26: =IF(A26="","",'STP2'!DU19) ->  | BQ26: =IF(A26="","",'STP2'!DV19) ->  | BR26: =IF(A26="","",'STP2'!DW19) ->  | BS26: =IF(A26="","",'STP2'!DX19) ->  | BT26: =IF(A26="","",'STP2'!DY19) ->  | BU26: =IF(A26="","",'STP2'!DZ19) ->  | BV26: =IF(A26="","",'STP2'!EA19) ->  | BX26: =IF(A26="","",'STP2'!EB19) ->  | BY26: =IF(A26="","",'STP2'!EC19) ->  | BZ26: =IF(A26="","",'STP2'!ED19) ->  | CA26: =IF(A26="","",'STP2'!EE19) ->  | CB26: =IF(A26="","",'STP2'!EF19) ->  | CC26: =IF(A26="","",'STP2'!EG19) ->  | CD26: =IF(A26="","",'STP2'!EH19) ->  | CE26: =IF(A26="","",'STP2'!EI19) ->  | CF26: =IF(A26="","",'STP2'!EJ19) ->  | CG26: =IF(A26="","",'STP2'!EK19) ->  | CI26: =IF(A22="","",'STP2'!AV19) ->  | CJ26: =IF(A22="","",'STP2'!AW19) ->  | CK26: =IF(A22="","",'STP2'!AX19) -> 
A27: =IF('STP2'!I20="99","",'STP2'!I20) ->  | B27: =IF(A27="","",'STP2'!J20) ->  | D27: =IF(A27="","",IF('STP2'!K20,"ASO",IF('STP2'!L20,"SE",IF('STP2'!M20,"KB",IF('STP2'!N20,"SB",IF('STP2'!O20,"SI",IF('STP2'!P20,"MB","S"))))))) ->  | E27: =IF(A27="","",'STP2'!S20) ->  | F27: =IF(A27="","",'STP2'!V20) ->  | G27: =IF(A27="","",'STP2'!Y20) ->  | H27: =IF(A27="","",'STP2'!AB20) ->  | I27: =IF(A27="","",'STP2'!AE20) ->  | K27: =IF(A27="","", J27-'STP2'!T20-'STP2'!W20-'STP2'!Z20-'STP2'!AC20-'STP2'!AF20) ->  | L27: =IF(A27="","",'STP2'!AH20) ->  | M27: =IF(A27="","",'STP2'!AK20) ->  | N27: =IF(A27="","",'STP2'!AN20) ->  | O27: =IF(A27="","",'STP2'!AQ20) ->  | Q27: =IF(A27="","",P27-'STP2'!AI20-'STP2'!AL20-'STP2'!AO20-'STP2'!AR20) ->  | R27: =IF(A27="","",'STP2'!AT20) ->  | S27: =IF(A27="","",R27-'STP2'!AU20) ->  | U27: =IF(A27="","",'STP2'!CD20) ->  | V27: =IF(A27="","",'STP2'!CE20) ->  | W27: =IF(A27="","",'STP2'!CF20) ->  | X27: =IF(A27="","",'STP2'!CG20) ->  | Y27: =IF(A27="","",'STP2'!CH20) ->  | Z27: =IF(A27="","",'STP2'!CI20) ->  | AA27: =IF(A27="","",'STP2'!CJ20) ->  | AB27: =IF(A27="","",'STP2'!CK20) ->  | AC27: =IF(A27="","",'STP2'!CL20) ->  | AD27: =IF(A27="","",'STP2'!CM20) ->  | AF27: =IF(A27="","",'STP2'!CN20) ->  | AG27: =IF(A27="","",'STP2'!CO20) ->  | AH27: =IF(A27="","",'STP2'!CP20) ->  | AI27: =IF(A27="","",'STP2'!CQ20) ->  | AJ27: =IF(A27="","",'STP2'!CR20) ->  | AK27: =IF(A27="","",'STP2'!CS20) ->  | AL27: =IF(A27="","",'STP2'!CT20) ->  | AM27: =IF(A27="","",'STP2'!CU20) ->  | AN27: =IF(A27="","",'STP2'!CV20) ->  | AO27: =IF(A27="","",'STP2'!CW20) ->  | AQ27: =IF(A27="","",'STP2'!CX20) ->  | AR27: =IF(A27="","",'STP2'!CY20) ->  | AS27: =IF(A27="","",'STP2'!CZ20) ->  | AT27: =IF(A27="","",'STP2'!DA20) ->  | AU27: =IF(A27="","",'STP2'!DB20) ->  | AV27: =IF(A27="","",'STP2'!DC20) ->  | AW27: =IF(A27="","",'STP2'!DD20) ->  | AX27: =IF(A27="","",'STP2'!DE20) ->  | AY27: =IF(A27="","",'STP2'!DF20) ->  | AZ27: =IF(A27="","",'STP2'!DG20) ->  | BB27: =IF(A27="","",'STP2'!DH20) ->  | BC27: =IF(A27="","",'STP2'!DI20) ->  | BD27: =IF(A27="","",'STP2'!DJ20) ->  | BE27: =IF(A27="","",'STP2'!DK20) ->  | BF27: =IF(A27="","",'STP2'!DL20) ->  | BG27: =IF(A27="","",'STP2'!DM20) ->  | BH27: =IF(A27="","",'STP2'!DN20) ->  | BI27: =IF(A27="","",'STP2'!DO20) ->  | BJ27: =IF(A27="","",'STP2'!DP20) ->  | BK27: =IF(A27="","",'STP2'!DQ20) ->  | BM27: =IF(A27="","",'STP2'!DR20) ->  | BN27: =IF(A27="","",'STP2'!DS20) ->  | BO27: =IF(A27="","",'STP2'!DT20) ->  | BP27: =IF(A27="","",'STP2'!DU20) ->  | BQ27: =IF(A27="","",'STP2'!DV20) ->  | BR27: =IF(A27="","",'STP2'!DW20) ->  | BS27: =IF(A27="","",'STP2'!DX20) ->  | BT27: =IF(A27="","",'STP2'!DY20) ->  | BU27: =IF(A27="","",'STP2'!DZ20) ->  | BV27: =IF(A27="","",'STP2'!EA20) ->  | BX27: =IF(A27="","",'STP2'!EB20) ->  | BY27: =IF(A27="","",'STP2'!EC20) ->  | BZ27: =IF(A27="","",'STP2'!ED20) ->  | CA27: =IF(A27="","",'STP2'!EE20) ->  | CB27: =IF(A27="","",'STP2'!EF20) ->  | CC27: =IF(A27="","",'STP2'!EG20) ->  | CD27: =IF(A27="","",'STP2'!EH20) ->  | CE27: =IF(A27="","",'STP2'!EI20) ->  | CF27: =IF(A27="","",'STP2'!EJ20) ->  | CG27: =IF(A27="","",'STP2'!EK20) ->  | CI27: =IF(A23="","",'STP2'!AV20) ->  | CJ27: =IF(A23="","",'STP2'!AW20) ->  | CK27: =IF(A23="","",'STP2'!AX20) -> 
A28: =IF('STP2'!I21="99","",'STP2'!I21) ->  | B28: =IF(A28="","",'STP2'!J21) ->  | D28: =IF(A28="","",IF('STP2'!K21,"ASO",IF('STP2'!L21,"SE",IF('STP2'!M21,"KB",IF('STP2'!N21,"SB",IF('STP2'!O21,"SI",IF('STP2'!P21,"MB","S"))))))) ->  | E28: =IF(A28="","",'STP2'!S21) ->  | F28: =IF(A28="","",'STP2'!V21) ->  | G28: =IF(A28="","",'STP2'!Y21) ->  | H28: =IF(A28="","",'STP2'!AB21) ->  | I28: =IF(A28="","",'STP2'!AE21) ->  | K28: =IF(A28="","", J28-'STP2'!T21-'STP2'!W21-'STP2'!Z21-'STP2'!AC21-'STP2'!AF21) ->  | L28: =IF(A28="","",'STP2'!AH21) ->  | M28: =IF(A28="","",'STP2'!AK21) ->  | N28: =IF(A28="","",'STP2'!AN21) ->  | O28: =IF(A28="","",'STP2'!AQ21) ->  | Q28: =IF(A28="","",P28-'STP2'!AI21-'STP2'!AL21-'STP2'!AO21-'STP2'!AR21) ->  | R28: =IF(A28="","",'STP2'!AT21) ->  | S28: =IF(A28="","",R28-'STP2'!AU21) ->  | U28: =IF(A28="","",'STP2'!CD21) ->  | V28: =IF(A28="","",'STP2'!CE21) ->  | W28: =IF(A28="","",'STP2'!CF21) ->  | X28: =IF(A28="","",'STP2'!CG21) ->  | Y28: =IF(A28="","",'STP2'!CH21) ->  | Z28: =IF(A28="","",'STP2'!CI21) ->  | AA28: =IF(A28="","",'STP2'!CJ21) ->  | AB28: =IF(A28="","",'STP2'!CK21) ->  | AC28: =IF(A28="","",'STP2'!CL21) ->  | AD28: =IF(A28="","",'STP2'!CM21) ->  | AF28: =IF(A28="","",'STP2'!CN21) ->  | AG28: =IF(A28="","",'STP2'!CO21) ->  | AH28: =IF(A28="","",'STP2'!CP21) ->  | AI28: =IF(A28="","",'STP2'!CQ21) ->  | AJ28: =IF(A28="","",'STP2'!CR21) ->  | AK28: =IF(A28="","",'STP2'!CS21) ->  | AL28: =IF(A28="","",'STP2'!CT21) ->  | AM28: =IF(A28="","",'STP2'!CU21) ->  | AN28: =IF(A28="","",'STP2'!CV21) ->  | AO28: =IF(A28="","",'STP2'!CW21) ->  | AQ28: =IF(A28="","",'STP2'!CX21) ->  | AR28: =IF(A28="","",'STP2'!CY21) ->  | AS28: =IF(A28="","",'STP2'!CZ21) ->  | AT28: =IF(A28="","",'STP2'!DA21) ->  | AU28: =IF(A28="","",'STP2'!DB21) ->  | AV28: =IF(A28="","",'STP2'!DC21) ->  | AW28: =IF(A28="","",'STP2'!DD21) ->  | AX28: =IF(A28="","",'STP2'!DE21) ->  | AY28: =IF(A28="","",'STP2'!DF21) ->  | AZ28: =IF(A28="","",'STP2'!DG21) ->  | BB28: =IF(A28="","",'STP2'!DH21) ->  | BC28: =IF(A28="","",'STP2'!DI21) ->  | BD28: =IF(A28="","",'STP2'!DJ21) ->  | BE28: =IF(A28="","",'STP2'!DK21) ->  | BF28: =IF(A28="","",'STP2'!DL21) ->  | BG28: =IF(A28="","",'STP2'!DM21) ->  | BH28: =IF(A28="","",'STP2'!DN21) ->  | BI28: =IF(A28="","",'STP2'!DO21) ->  | BJ28: =IF(A28="","",'STP2'!DP21) ->  | BK28: =IF(A28="","",'STP2'!DQ21) ->  | BM28: =IF(A28="","",'STP2'!DR21) ->  | BN28: =IF(A28="","",'STP2'!DS21) ->  | BO28: =IF(A28="","",'STP2'!DT21) ->  | BP28: =IF(A28="","",'STP2'!DU21) ->  | BQ28: =IF(A28="","",'STP2'!DV21) ->  | BR28: =IF(A28="","",'STP2'!DW21) ->  | BS28: =IF(A28="","",'STP2'!DX21) ->  | BT28: =IF(A28="","",'STP2'!DY21) ->  | BU28: =IF(A28="","",'STP2'!DZ21) ->  | BV28: =IF(A28="","",'STP2'!EA21) ->  | BX28: =IF(A28="","",'STP2'!EB21) ->  | BY28: =IF(A28="","",'STP2'!EC21) ->  | BZ28: =IF(A28="","",'STP2'!ED21) ->  | CA28: =IF(A28="","",'STP2'!EE21) ->  | CB28: =IF(A28="","",'STP2'!EF21) ->  | CC28: =IF(A28="","",'STP2'!EG21) ->  | CD28: =IF(A28="","",'STP2'!EH21) ->  | CE28: =IF(A28="","",'STP2'!EI21) ->  | CF28: =IF(A28="","",'STP2'!EJ21) ->  | CG28: =IF(A28="","",'STP2'!EK21) ->  | CI28: =IF(A24="","",'STP2'!AV21) ->  | CJ28: =IF(A24="","",'STP2'!AW21) ->  | CK28: =IF(A24="","",'STP2'!AX21) -> 
A29: =IF('STP2'!I22="99","",'STP2'!I22) ->  | B29: =IF(A29="","",'STP2'!J22) ->  | D29: =IF(A29="","",IF('STP2'!K22,"ASO",IF('STP2'!L22,"SE",IF('STP2'!M22,"KB",IF('STP2'!N22,"SB",IF('STP2'!O22,"SI",IF('STP2'!P22,"MB","S"))))))) ->  | E29: =IF(A29="","",'STP2'!S22) ->  | F29: =IF(A29="","",'STP2'!V22) ->  | G29: =IF(A29="","",'STP2'!Y22) ->  | H29: =IF(A29="","",'STP2'!AB22) ->  | I29: =IF(A29="","",'STP2'!AE22) ->  | K29: =IF(A29="","", J29-'STP2'!T22-'STP2'!W22-'STP2'!Z22-'STP2'!AC22-'STP2'!AF22) ->  | L29: =IF(A29="","",'STP2'!AH22) ->  | M29: =IF(A29="","",'STP2'!AK22) ->  | N29: =IF(A29="","",'STP2'!AN22) ->  | O29: =IF(A29="","",'STP2'!AQ22) ->  | Q29: =IF(A29="","",P29-'STP2'!AI22-'STP2'!AL22-'STP2'!AO22-'STP2'!AR22) ->  | R29: =IF(A29="","",'STP2'!AT22) ->  | S29: =IF(A29="","",R29-'STP2'!AU22) ->  | U29: =IF(A29="","",'STP2'!CD22) ->  | V29: =IF(A29="","",'STP2'!CE22) ->  | W29: =IF(A29="","",'STP2'!CF22) ->  | X29: =IF(A29="","",'STP2'!CG22) ->  | Y29: =IF(A29="","",'STP2'!CH22) ->  | Z29: =IF(A29="","",'STP2'!CI22) ->  | AA29: =IF(A29="","",'STP2'!CJ22) ->  | AB29: =IF(A29="","",'STP2'!CK22) ->  | AC29: =IF(A29="","",'STP2'!CL22) ->  | AD29: =IF(A29="","",'STP2'!CM22) ->  | AF29: =IF(A29="","",'STP2'!CN22) ->  | AG29: =IF(A29="","",'STP2'!CO22) ->  | AH29: =IF(A29="","",'STP2'!CP22) ->  | AI29: =IF(A29="","",'STP2'!CQ22) ->  | AJ29: =IF(A29="","",'STP2'!CR22) ->  | AK29: =IF(A29="","",'STP2'!CS22) ->  | AL29: =IF(A29="","",'STP2'!CT22) ->  | AM29: =IF(A29="","",'STP2'!CU22) ->  | AN29: =IF(A29="","",'STP2'!CV22) ->  | AO29: =IF(A29="","",'STP2'!CW22) ->  | AQ29: =IF(A29="","",'STP2'!CX22) ->  | AR29: =IF(A29="","",'STP2'!CY22) ->  | AS29: =IF(A29="","",'STP2'!CZ22) ->  | AT29: =IF(A29="","",'STP2'!DA22) ->  | AU29: =IF(A29="","",'STP2'!DB22) ->  | AV29: =IF(A29="","",'STP2'!DC22) ->  | AW29: =IF(A29="","",'STP2'!DD22) ->  | AX29: =IF(A29="","",'STP2'!DE22) ->  | AY29: =IF(A29="","",'STP2'!DF22) ->  | AZ29: =IF(A29="","",'STP2'!DG22) ->  | BB29: =IF(A29="","",'STP2'!DH22) ->  | BC29: =IF(A29="","",'STP2'!DI22) ->  | BD29: =IF(A29="","",'STP2'!DJ22) ->  | BE29: =IF(A29="","",'STP2'!DK22) ->  | BF29: =IF(A29="","",'STP2'!DL22) ->  | BG29: =IF(A29="","",'STP2'!DM22) ->  | BH29: =IF(A29="","",'STP2'!DN22) ->  | BI29: =IF(A29="","",'STP2'!DO22) ->  | BJ29: =IF(A29="","",'STP2'!DP22) ->  | BK29: =IF(A29="","",'STP2'!DQ22) ->  | BM29: =IF(A29="","",'STP2'!DR22) ->  | BN29: =IF(A29="","",'STP2'!DS22) ->  | BO29: =IF(A29="","",'STP2'!DT22) ->  | BP29: =IF(A29="","",'STP2'!DU22) ->  | BQ29: =IF(A29="","",'STP2'!DV22) ->  | BR29: =IF(A29="","",'STP2'!DW22) ->  | BS29: =IF(A29="","",'STP2'!DX22) ->  | BT29: =IF(A29="","",'STP2'!DY22) ->  | BU29: =IF(A29="","",'STP2'!DZ22) ->  | BV29: =IF(A29="","",'STP2'!EA22) ->  | BX29: =IF(A29="","",'STP2'!EB22) ->  | BY29: =IF(A29="","",'STP2'!EC22) ->  | BZ29: =IF(A29="","",'STP2'!ED22) ->  | CA29: =IF(A29="","",'STP2'!EE22) ->  | CB29: =IF(A29="","",'STP2'!EF22) ->  | CC29: =IF(A29="","",'STP2'!EG22) ->  | CD29: =IF(A29="","",'STP2'!EH22) ->  | CE29: =IF(A29="","",'STP2'!EI22) ->  | CF29: =IF(A29="","",'STP2'!EJ22) ->  | CG29: =IF(A29="","",'STP2'!EK22) ->  | CI29: =IF(A25="","",'STP2'!AV22) ->  | CJ29: =IF(A25="","",'STP2'!AW22) ->  | CK29: =IF(A25="","",'STP2'!AX22) -> 
A30: =IF('STP2'!I23="99","",'STP2'!I23) ->  | B30: =IF(A30="","",'STP2'!J23) ->  | D30: =IF(A30="","",IF('STP2'!K23,"ASO",IF('STP2'!L23,"SE",IF('STP2'!M23,"KB",IF('STP2'!N23,"SB",IF('STP2'!O23,"SI",IF('STP2'!P23,"MB","S"))))))) ->  | E30: =IF(A30="","",'STP2'!S23) ->  | F30: =IF(A30="","",'STP2'!V23) ->  | G30: =IF(A30="","",'STP2'!Y23) ->  | H30: =IF(A30="","",'STP2'!AB23) ->  | I30: =IF(A30="","",'STP2'!AE23) ->  | K30: =IF(A30="","", J30-'STP2'!T23-'STP2'!W23-'STP2'!Z23-'STP2'!AC23-'STP2'!AF23) ->  | L30: =IF(A30="","",'STP2'!AH23) ->  | M30: =IF(A30="","",'STP2'!AK23) ->  | N30: =IF(A30="","",'STP2'!AN23) ->  | O30: =IF(A30="","",'STP2'!AQ23) ->  | Q30: =IF(A30="","",P30-'STP2'!AI23-'STP2'!AL23-'STP2'!AO23-'STP2'!AR23) ->  | R30: =IF(A30="","",'STP2'!AT23) ->  | S30: =IF(A30="","",R30-'STP2'!AU23) ->  | U30: =IF(A30="","",'STP2'!CD23) ->  | V30: =IF(A30="","",'STP2'!CE23) ->  | W30: =IF(A30="","",'STP2'!CF23) ->  | X30: =IF(A30="","",'STP2'!CG23) ->  | Y30: =IF(A30="","",'STP2'!CH23) ->  | Z30: =IF(A30="","",'STP2'!CI23) ->  | AA30: =IF(A30="","",'STP2'!CJ23) ->  | AB30: =IF(A30="","",'STP2'!CK23) ->  | AC30: =IF(A30="","",'STP2'!CL23) ->  | AD30: =IF(A30="","",'STP2'!CM23) ->  | AF30: =IF(A30="","",'STP2'!CN23) ->  | AG30: =IF(A30="","",'STP2'!CO23) ->  | AH30: =IF(A30="","",'STP2'!CP23) ->  | AI30: =IF(A30="","",'STP2'!CQ23) ->  | AJ30: =IF(A30="","",'STP2'!CR23) ->  | AK30: =IF(A30="","",'STP2'!CS23) ->  | AL30: =IF(A30="","",'STP2'!CT23) ->  | AM30: =IF(A30="","",'STP2'!CU23) ->  | AN30: =IF(A30="","",'STP2'!CV23) ->  | AO30: =IF(A30="","",'STP2'!CW23) ->  | AQ30: =IF(A30="","",'STP2'!CX23) ->  | AR30: =IF(A30="","",'STP2'!CY23) ->  | AS30: =IF(A30="","",'STP2'!CZ23) ->  | AT30: =IF(A30="","",'STP2'!DA23) ->  | AU30: =IF(A30="","",'STP2'!DB23) ->  | AV30: =IF(A30="","",'STP2'!DC23) ->  | AW30: =IF(A30="","",'STP2'!DD23) ->  | AX30: =IF(A30="","",'STP2'!DE23) ->  | AY30: =IF(A30="","",'STP2'!DF23) ->  | AZ30: =IF(A30="","",'STP2'!DG23) ->  | BB30: =IF(A30="","",'STP2'!DH23) ->  | BC30: =IF(A30="","",'STP2'!DI23) ->  | BD30: =IF(A30="","",'STP2'!DJ23) ->  | BE30: =IF(A30="","",'STP2'!DK23) ->  | BF30: =IF(A30="","",'STP2'!DL23) ->  | BG30: =IF(A30="","",'STP2'!DM23) ->  | BH30: =IF(A30="","",'STP2'!DN23) ->  | BI30: =IF(A30="","",'STP2'!DO23) ->  | BJ30: =IF(A30="","",'STP2'!DP23) ->  | BK30: =IF(A30="","",'STP2'!DQ23) ->  | BM30: =IF(A30="","",'STP2'!DR23) ->  | BN30: =IF(A30="","",'STP2'!DS23) ->  | BO30: =IF(A30="","",'STP2'!DT23) ->  | BP30: =IF(A30="","",'STP2'!DU23) ->  | BQ30: =IF(A30="","",'STP2'!DV23) ->  | BR30: =IF(A30="","",'STP2'!DW23) ->  | BS30: =IF(A30="","",'STP2'!DX23) ->  | BT30: =IF(A30="","",'STP2'!DY23) ->  | BU30: =IF(A30="","",'STP2'!DZ23) ->  | BV30: =IF(A30="","",'STP2'!EA23) ->  | BX30: =IF(A30="","",'STP2'!EB23) ->  | BY30: =IF(A30="","",'STP2'!EC23) ->  | BZ30: =IF(A30="","",'STP2'!ED23) ->  | CA30: =IF(A30="","",'STP2'!EE23) ->  | CB30: =IF(A30="","",'STP2'!EF23) ->  | CC30: =IF(A30="","",'STP2'!EG23) ->  | CD30: =IF(A30="","",'STP2'!EH23) ->  | CE30: =IF(A30="","",'STP2'!EI23) ->  | CF30: =IF(A30="","",'STP2'!EJ23) ->  | CG30: =IF(A30="","",'STP2'!EK23) ->  | CI30: =IF(A26="","",'STP2'!AV23) ->  | CJ30: =IF(A26="","",'STP2'!AW23) ->  | CK30: =IF(A26="","",'STP2'!AX23) -> 
A31: Gesamtsumme | E31: =SUM(E9:E30) -> 0 | F31: =SUM(F9:F30) -> 1 | G31: 1 | H31: 8 | I31: 5 | J31: 15 | K31: 0 | L31: 11 | M31: 21 | N31: 24 | O31: 22 | P31: 78 | Q31: 10 | R31: 42 | S31: 0 | T31: 135 | U31: =SUM(U9:U30) -> 0 | V31: 0 | W31: 0 | X31: 3 | Y31: 5 | Z31: 7 | AA31: 15 | AB31: 14 | AC31: 8 | AD31: 29 | AE31: 81 | AF31: 0 | AG31: 0 | AH31: 0 | AI31: 1 | AJ31: 0 | AK31: 1 | AL31: 2 | AM31: 2 | AN31: 5 | AO31: 0 | AP31: 11 | AQ31: 0 | AR31: 0 | AS31: 1 | AT31: 4 | AU31: 0 | AV31: 2 | AW31: 4 | AX31: 2 | AY31: 7 | AZ31: 13 | BA31: =SUM(BA9:BA30) -> 33 | BB31: 0 | BC31: 0 | BD31: 0 | BE31: 0 | BF31: 0 | BG31: 0 | BH31: 0 | BI31: 0 | BJ31: 0 | BK31: 0 | BL31: 0 | BM31: 0 | BN31: 0 | BO31: 0 | BP31: 0 | BQ31: 0 | BR31: 0 | BS31: 0 | BT31: 0 | BU31: 0 | BV31: 0 | BW31: 0 | BX31: 0 | BY31: 1 | BZ31: 0 | CA31: 0 | CB31: 0 | CC31: 0 | CD31: 0 | CE31: 0 | CF31: 0 | CG31: =SUM(CG9:CG30) -> 0 | CH31: =SUM(CH9:CH30) -> 1 | CI31: =SUM(CI9:CI30) -> 90 | CJ31: =SUM(CJ9:CJ30) -> 0 | CK31: =SUM(CK9:CK30) -> 0
A32: Gesamt-St.0 | C32: =COUNTIF(A9:A30,"00") -> 0 | E32: =E31 -> 0 | T32: =E32 -> 0
A33: Gesamt-St.1-4 | C33: =COUNTIF(A9:A30,"01")+COUNTIF(A9:A30,"02")+COUNTIF(A9:A30,"03")+COUNTIF(A9:A30,"04") -> 1 | F33: =F31 -> 1 | G33: 1 | H33: 8 | I33: 5 | J33: =SUM(F33:I33) -> 15 | K33: 0 | T33: =J33 -> 15
A34: Gesamt-St.5-8 | C34: =COUNTIF(A9:A30,"05")+COUNTIF(A9:A30,"06")+COUNTIF(A9:A30,"07")+COUNTIF(A9:A30,"08") -> 8 | L34: =L31 -> 11 | M34: 21 | N34: 24 | O34: 22 | P34: 78 | Q34: 10 | T34: =P34 -> 78
A35: Gesamt-St.9 | C35: =COUNTIF(A9:A30,"09") -> 5 | R35: =R31 -> 42 | S35: =S31 -> 0 | T35: =R35 -> 42
A36: Anzahl Klassen | C36: =SUM(C32:C35) -> 14 | F36: Differenz zw. GesamtschülerInnenzahl und Summe der "SchülerInnenarten": | T36: =(AE31+AP31+BA31+BL31+BW31+CH31)-(T31-S31-Q31-K31) -> 1
A38: Status / Schuljahr | I38: STELLENPLAN | S38: =S1 -> SO Salzburg - 501013
A39: =A2 -> Endg. Stellenplan 2021/22 | I39: Land Salzburg | S39: =S2 -> Salzburg-Stadt
A40: =A3 -> Genehmigungsstatus: genehmigt | I40: =I3 -> Version 9.1 | S40: =S3 -> Stichtag: 01.10.2021
A47: Geplanter Einsatz von Wochenstunden für: | J47: Religionen: | K47: Schüler | M47: Gruppen | O47: Wst. | R47: Schüler | T47: Gruppen | CI47: Wst.
H48: röm.-kath. | K48: ='STP1'!AW2-'STP1'!AX2+'STP1'!AY2 -> 15 | M48: ='STP3'!AD2 -> 3 | O48: ='STP3'!AE2 -> 3 | Q48: ev. | R48: ='STP1'!AZ2-'STP1'!BA2+'STP1'!BB2 -> 0 | T48: ='STP3'!AF2 -> 0 | CI48: ='STP3'!AG2 -> 0
H49: islam. | K49: ='STP1'!BC2-'STP1'!BD2+'STP1'!BE2 -> 14 | M49: ='STP3'!AH2 -> 3 | O49: ='STP3'!AI2 -> 3 | Q49: orth. | R49: ='STP1'!BF2-'STP1'!BG2+'STP1'!BH2 -> 0 | T49: ='STP3'!AJ2 -> 0 | CI49: ='STP3'!AK2 -> 0
H50: sonstige | K50: ='STP1'!BI2-'STP1'!BJ2+'STP1'!BK2 -> 0 | M50: ='STP3'!AL2 -> 0 | O50: ='STP3'!AM2 -> 0
A52: Geplante Ganztägige Schulform: | L52: SchülerInnen: | O52: ='STP1'!BW2+'STP1'!BX2+'STP1'!BY2+'STP1'!BZ2+'STP1'!CA2 -> 47 | R52: Gruppen: | CI52: ='STP3'!N2 -> 5
E53: gegenstandsbezogene Lernzeit: | O53: ='STP3'!O2 -> 30 | R53: individuelle Lernzeit: | CI53: ='STP3'!P2 -> 0
A57: Schulversuchsstunden lt. Aufstellung - auslaufend: | P57: SV1: | Q57: ='STP3'!Q2 -> 37 | R57: SV2: | S57: ='STP3'!R2 -> 0 | T57: SV3: | CI57: ='STP3'!S2 -> 0
A59: Berechnung des fixen "Sockelkontingentes" ohne Stunden für GTS, SV, BFD! | CK59: Summen:
A61: 1. Anzahl SchülerInnen nach Lehrplangruppen: | I61: ASO | K61: SE | M61: SB | O61: KB | Q61: MB | S61: SI | CI61: Summe:
I62: =AE31 -> 81 | K62: =AP31 -> 11 | M62: =BA31 -> 33 | O62: =BL31 -> 0 | Q62: =BW31 -> 0 | S62: =CH31 -> 1 | CI62: =SUM(CI63:CI65) -> 126
H63: davon 0. bis 4. Stufe: | I63: =U31+V31+W31+X31+Y31 -> 8 | K63: =AF31+AG31+AH31+AI31+AJ31 -> 1 | M63: =AQ31+AR31+AS31+AT31+AU31 -> 5 | O63: =BB31+BC31+BD31+BE31+BF31 -> 0 | Q63: =BM31+BN31+BO31+BP31+BQ31 -> 0 | S63: =BX31+BY31+BZ31+CA31+CB31 -> 1 | CI63: =I63+K63+M63+O63+Q63+S63 -> 15
H64: davon 5. bis 8. Stufe: | I64: =Z31+AA31+AB31+AC31 -> 44 | K64: =AK31+AL31+AM31+AN31 -> 10 | M64: =AV31+AW31+AX31+AY31 -> 15 | O64: =BG31+BH31+BI31+BJ31 -> 0 | Q64: =BR31+BS31+BT31+BU31 -> 0 | S64: =CC31+CD31+CE31+CF31 -> 0 | CI64: =I64+K64+M64+O64+Q64+S64 -> 69
H65: davon 9. Stufe: | I65: =AD31 -> 29 | K65: =AO31 -> 0 | M65: =AZ31 -> 13 | O65: =BK31 -> 0 | Q65: =BV31 -> 0 | S65: =CG31 -> 0 | CI65: =I65+K65+M65+O65+Q65+S65 -> 42
A69: 2. Ermittlung fiktiver Lehrplangruppen: | G69: Lehrplan: | I69: Schü.: | L69: Faktor | M69: Summe:
G70: ASO + SI: | I70: alle | J70: =I$62+S$62 -> 82 | K70: x | L70: 1 | M70: =IF(RIGHT($S$1,6)="501033",$I$62*1+$S$62*1.25,$I$62+$S$62*1) -> 82 | O70: bei 'SKZ 501033: SI*1,25
G71: SB, MB, KB: | I71: 1-15 | J71: =IF((M$62+O$62+Q$62)<16,M$62+O$62+Q$62,0) -> 0 | K71: x | L71: 2 | M71: =J71*L71 -> 0
I72: 1-20 | J72: =IF(AND((M$62+O$62+Q$62)>15,(M$62+O$62+Q$62)<21),M$62+O$62+Q$62,0) -> 0 | K72: x | L72: 1.9 | M72: 0 | O72: Summe:
I73: 1-25 | J73: =IF(AND((M$62+O$62+Q$62)>20,(M$62+O$62+Q$62)<26),M$62+O$62+Q$62,0) -> 0 | K73: x | L73: 1.8 | M73: 0 | O73: =SUM(M70:M77) -> 159 | P73: = | S73: Anzahl LP-Gruppen: | T73: =$O$73/$O$74 -> 15.9
I74: ab 26 | J74: =IF((M$62+O$62+Q$62)>25,M$62+O$62+Q$62,0) -> 33 | K74: x | L74: 1.7 | M74: 56.1 | O74: 10
G75: SE: | I75: 1-10 | J75: =IF(K$62<11,K$62,0) -> 0 | K75: x | L75: 2 | M75: 0
I76: 1-15 | J76: =IF(AND(K$62>10,K$62<16),K$62,0) -> 11 | K76: x | L76: 1.9 | M76: 20.9
I77: ab 16 | J77: =IF(K$62>15,K$62,0) -> 0 | K77: x | L77: 1.8 | M77: 0
A79: 3. Durchschnittliche SchülerInnenzahl in "Lehrplangruppen": | R79: Gesamt-SchülerInnen / Anz. LP-Gruppen | S79: = | T79: =(I62+K62+M62+O62+Q62+S62)/T73 -> 7.924528302
A81: 4. Berechnung von Wochenstunden für Lehrplangruppen (Ø-Werte): | M81: Für alle Schulen gilt der ASO-Lehrplan - Ausnahmen: ABK-Schule + J. Rehrl-Schule
A84: Wstd. pro LP-Gruppe: | E84: Stufe | F84: ASO | G84: SB | H84: J.Rehrl | J84: LP-Gr.: | L84: Wstd. | CJ84: Summe Wstd. "Lehrplangruppen":
E85: 0.-4.: | F85: 22.5 | G85: 23.5 | H85: 26.5 | J85: =CI$63/T$79 -> 1.892857143 | L85: =IF(RIGHT($S$1,6)="501023",$G$85*$J$85,IF(RIGHT($S$1,6)="501033",$H$85*$J$85,$F$85*$J$85)) -> 42.58928571 | CJ85: Sonderschule: | CK85: =IF(OR((RIGHT($S$1,6)="501023"),(RIGHT($S$1,6)="501033")),0,(($CI$63/$T$79*$F$85)+($CI$64/$T$79)*$F$86)+($CI$65/$T$79)*$F$87) -> 454.0964286
E86: 5.-8.: | F86: 29 | G86: 26.5 | H86: 32 | J86: =CI$64/T$79 -> 8.707142857 | L86: =IF(RIGHT($S$1,6)="501023",$G$86*$J$86,IF(RIGHT($S$1,6)="501033",$H$86*$J$86,$F$86*$J$86)) -> 252.5071429 | CJ86: ABK-Schule: | CK86: =IF(RIGHT($S$1,6)="501023",($CI$63/$T$79)*$G$85+($CI$64/$T$79)*$G$86+($CI$65/$T$79)*$G$87,0) -> 0
E87: 9.: | F87: 30 | G87: 27 | H87: 33 | J87: =CI$65/T$79 -> 5.3 | L87: =IF(RIGHT($S$1,6)="501023",$G$87*$J$87,IF(RIGHT($S$1,6)="501033",$H$87*$J$87,$F$87*$J$87)) -> 159 | CJ87: J. Rehrl Schule: | CK87: =IF(RIGHT($S$1,6)="501033",($CI$63/$T$79)*$H$85+($CI$64/$T$79)*$H$86+($CI$65/$T$79)*$H$87,0) -> 0
A89: 5. Berechnung "Teilungen" und "Förderstunden": inkl. SchülerInnen "umgekehrte Integration"
B91: BSP: | C91: =($P$31+$R$31)/10*3 -> 36 | D91: (Schü. 5.-9.St.) | G91: WE, EH: | I91: =($P$31+$R$31)/10*1.5 -> 18 | J91: (Schü. 5.-9.St.) | N91: Förderstd.: | O91: =($J$31/$T$79)*1+(($P$31+$R$31)/$T$79)*2 -> 32.17857143 | P91: (Schü. 1. - 9. St.) | CJ91: Summe: | CK91: =C91+I91+O91 -> 86.17857143
A95: 6. SonderschulleiterInnen (Abzugsstunden): | H95: (Schulleiter/innen im PD-Schema sind gesondert zu berücksichtigen!) | CK95: =IF(($C$36+$CI$52/2)>7.5,20,($C$36*1.5+2+$CI$52*0.75)) -> 20
A97: 6. Ganztägige Schulform: | K97: SchülerInnen: | O97: =O52 -> 47 | R97: Gruppen: | CI97: =CI52 -> 5 | CK97: =CI97*5 -> 25
A99: 7. Schulversuchsstunden: | M99: SV 1: | O99: ='STP3'!$Q$2 -> 37 | Q99: SV 2: | R99: ='STP3'!$R$2 -> 0 | T99: SV 3: | CI99: ='STP3'!$S$2 -> 0 | CK99: =O99+R99+CI99 -> 37
A101: 8. Mobiler sonderpädagogischer Dienst (nur für SPZ): | K101: Sprachheilstunden: | O101: =O55 -> 0 | R101: Beratungsstunden: | CI101: =CI55 -> 0 | CK101: =O101+CI101 -> 0
A103: Fixes Sockelkontingent ohne GTS, SV, BFD: | T103: =IF(RIGHT(S1,6)="501123","Fixkontingent: ","Sockelkontingent: ") -> Sockelkontingent: | CK103: =ROUND(IF(RIGHT(S1,6)="501123",400,CK85+CK86+CK87+CK91+CK95),0) -> 560

Sheet STP1
A1: ='[1]311 SO-Schule'!B1 -> Schuljahr | B1: ='[1]311 SO-Schule'!C1 -> BezirkNr | C1: ='[1]311 SO-Schule'!D1 -> Schultyp | D1: ='[1]311 SO-Schule'!E1 -> SKZ | E1: ='[1]311 SO-Schule'!F1 -> Schule | F1: ='[1]311 SO-Schule'!G1 -> Status | G1: ='[1]311 SO-Schule'!H1 -> Stichtag | H1: ='[1]311 SO-Schule'!I1 -> Schulart | I1: ='[1]311 SO-Schule'!J1 -> Kl_Art_ASO | J1: ='[1]311 SO-Schule'!K1 -> Kl_Art_SE | K1: ='[1]311 SO-Schule'!L1 -> Kl_Art_KB | L1: ='[1]311 SO-Schule'!M1 -> Kl_Art_SB | M1: ='[1]311 SO-Schule'!N1 -> Kl_Art_SI | N1: ='[1]311 SO-Schule'!O1 -> Kl_Art_MB | O1: ='[1]311 SO-Schule'!P1 -> Kl_Anz | P1: ='[1]311 SO-Schule'!Q1 -> Kl0 | Q1: ='[1]311 SO-Schule'!R1 -> Anz0 | R1: ='[1]311 SO-Schule'!S1 -> SPF0 | S1: ='[1]311 SO-Schule'!T1 -> Kl1 | T1: ='[1]311 SO-Schule'!U1 -> Anz1 | U1: ='[1]311 SO-Schule'!V1 -> SPF1 | V1: ='[1]311 SO-Schule'!W1 -> Kl2 | W1: ='[1]311 SO-Schule'!X1 -> Anz2 | X1: ='[1]311 SO-Schule'!Y1 -> SPF2 | Y1: ='[1]311 SO-Schule'!Z1 -> Kl3 | Z1: ='[1]311 SO-Schule'!AA1 -> Anz3 | AA1: ='[1]311 SO-Schule'!AB1 -> SPF3 | AB1: ='[1]311 SO-Schule'!AC1 -> Kl4 | AC1: ='[1]311 SO-Schule'!AD1 -> Anz4 | AD1: ='[1]311 SO-Schule'!AE1 -> SPF4 | AE1: ='[1]311 SO-Schule'!AF1 -> Kl5 | AF1: ='[1]311 SO-Schule'!AG1 -> Anz5 | AG1: ='[1]311 SO-Schule'!AH1 -> SPF5 | AH1: ='[1]311 SO-Schule'!AI1 -> Kl6 | AI1: ='[1]311 SO-Schule'!AJ1 -> Anz6 | AJ1: ='[1]311 SO-Schule'!AK1 -> SPF6 | AK1: ='[1]311 SO-Schule'!AL1 -> Kl7 | AL1: ='[1]311 SO-Schule'!AM1 -> Anz7 | AM1: ='[1]311 SO-Schule'!AN1 -> SPF7 | AN1: ='[1]311 SO-Schule'!AO1 -> Kl8 | AO1: ='[1]311 SO-Schule'!AP1 -> Anz8 | AP1: ='[1]311 SO-Schule'!AQ1 -> SPF8 | AQ1: ='[1]311 SO-Schule'!AR1 -> Kl9 | AR1: ='[1]311 SO-Schule'!AS1 -> Anz9 | AS1: ='[1]311 SO-Schule'!AT1 -> SPF9 | AT1: ='[1]311 SO-Schule'!AU1 -> NDSprache | AU1: ='[1]311 SO-Schule'!AV1 -> AO | AV1: ='[1]311 SO-Schule'!AW1 -> SprengelF | AW1: ='[1]311 SO-Schule'!AX1 -> Rel_RK | AX1: ='[1]311 SO-Schule'!AY1 -> Rel_RK_Abmeld | AY1: ='[1]311 SO-Schule'!AZ1 -> Rel_RK_FG | AZ1: ='[1]311 SO-Schule'!BA1 -> Rel_EV | BA1: ='[1]311 SO-Schule'!BB1 -> Rel_EV_Abmeld | BB1: ='[1]311 SO-Schule'!BC1 -> Rel_EV_FG | BC1: ='[1]311 SO-Schule'!BD1 -> Rel_ISL | BD1: ='[1]311 SO-Schule'!BE1 -> Rel_ISL_Abmeld | BE1: ='[1]311 SO-Schule'!BF1 -> Rel_ISL_FG | BF1: ='[1]311 SO-Schule'!BG1 -> Rel_ORTH | BG1: ='[1]311 SO-Schule'!BH1 -> Rel_ORTH_Abmeld | BH1: ='[1]311 SO-Schule'!BI1 -> Rel_ORTH_FG | BI1: ='[1]311 SO-Schule'!BJ1 -> Rel_SONST | BJ1: ='[1]311 SO-Schule'!BK1 -> Rel_SONST_Abmeld | BK1: ='[1]311 SO-Schule'!BL1 -> Rel_SONST_FG | BL1: ='[1]311 SO-Schule'!BM1 -> I_Klassen | BM1: ='[1]311 SO-Schule'!BN1 -> Anz_I1 | BN1: ='[1]311 SO-Schule'!BO1 -> Anz_I2 | BO1: ='[1]311 SO-Schule'!BP1 -> Anz_I3 | BP1: ='[1]311 SO-Schule'!BQ1 -> Anz_I4 | BQ1: ='[1]311 SO-Schule'!BR1 -> Anz_I5 | BR1: ='[1]311 SO-Schule'!BS1 -> Anz_I6 | BS1: ='[1]311 SO-Schule'!BT1 -> Anz_I7 | BT1: ='[1]311 SO-Schule'!BU1 -> Anz_I8 | BU1: ='[1]311 SO-Schule'!BV1 -> Anz_I9 | BV1: ='[1]311 SO-Schule'!BW1 -> Anz_I10 | BW1: ='[1]311 SO-Schule'!BX1 -> GTS_1Tag | BX1: ='[1]311 SO-Schule'!BY1 -> GTS_2Tage | BY1: ='[1]311 SO-Schule'!BZ1 -> GTS_3Tage | BZ1: ='[1]311 SO-Schule'!CA1 -> GTS_4Tage | CA1: ='[1]311 SO-Schule'!CB1 -> GTS_5Tage | CB1: ='[1]311 SO-Schule'!CC1 -> ASO_0 | CC1: ='[1]311 SO-Schule'!CD1 -> ASO_1 | CD1: ='[1]311 SO-Schule'!CE1 -> ASO_2 | CE1: ='[1]311 SO-Schule'!CF1 -> ASO_3 | CF1: ='[1]311 SO-Schule'!CG1 -> ASO_4 | CG1: ='[1]311 SO-Schule'!CH1 -> ASO_5 | CH1: ='[1]311 SO-Schule'!CI1 -> ASO_6 | CI1: ='[1]311 SO-Schule'!CJ1 -> ASO_7 | CJ1: ='[1]311 SO-Schule'!CK1 -> ASO_8 | CK1: ='[1]311 SO-Schule'!CL1 -> ASO_9 | CL1: ='[1]311 SO-Schule'!CM1 -> SE_0 | CM1: ='[1]311 SO-Schule'!CN1 -> SE_1 | CN1: ='[1]311 SO-Schule'!CO1 -> SE_2 | CO1: ='[1]311 SO-Schule'!CP1 -> SE_3 | CP1: ='[1]311 SO-Schule'!CQ1 -> SE_4 | CQ1: ='[1]311 SO-Schule'!CR1 -> SE_5 | CR1: ='[1]311 SO-Schule'!CS1 -> SE_6 | CS1: ='[1]311 SO-Schule'!CT1 -> SE_7 | CT1: ='[1]311 SO-Schule'!CU1 -> SE_8 | CU1: ='[1]311 SO-Schule'!CV1 -> SE_9 | CV1: ='[1]311 SO-Schule'!CW1 -> SB_0 | CW1: ='[1]311 SO-Schule'!CX1 -> SB_1 | CX1: ='[1]311 SO-Schule'!CY1 -> SB_2 | CY1: ='[1]311 SO-Schule'!CZ1 -> SB_3 | CZ1: ='[1]311 SO-Schule'!DA1 -> SB_4 | DA1: ='[1]311 SO-Schule'!DB1 -> SB_5 | DB1: ='[1]311 SO-Schule'!DC1 -> SB_6 | DC1: ='[1]311 SO-Schule'!DD1 -> SB_7 | DD1: ='[1]311 SO-Schule'!DE1 -> SB_8 | DE1: ='[1]311 SO-Schule'!DF1 -> SB_9 | DF1: ='[1]311 SO-Schule'!DG1 -> KB_0 | DG1: ='[1]311 SO-Schule'!DH1 -> KB_1 | DH1: ='[1]311 SO-Schule'!DI1 -> KB_2 | DI1: ='[1]311 SO-Schule'!DJ1 -> KB_3 | DJ1: ='[1]311 SO-Schule'!DK1 -> KB_4 | DK1: ='[1]311 SO-Schule'!DL1 -> KB_5 | DL1: ='[1]311 SO-Schule'!DM1 -> KB_6 | DM1: ='[1]311 SO-Schule'!DN1 -> KB_7 | DN1: ='[1]311 SO-Schule'!DO1 -> KB_8 | DO1: ='[1]311 SO-Schule'!DP1 -> KB_9 | DP1: ='[1]311 SO-Schule'!DQ1 -> MB_0 | DQ1: ='[1]311 SO-Schule'!DR1 -> MB_1 | DR1: ='[1]311 SO-Schule'!DS1 -> MB_2 | DS1: ='[1]311 SO-Schule'!DT1 -> MB_3 | DT1: ='[1]311 SO-Schule'!DU1 -> MB_4 | DU1: ='[1]311 SO-Schule'!DV1 -> MB_5 | DV1: ='[1]311 SO-Schule'!DW1 -> MB_6 | DW1: ='[1]311 SO-Schule'!DX1 -> MB_7 | DX1: ='[1]311 SO-Schule'!DY1 -> MB_8 | DY1: ='[1]311 SO-Schule'!DZ1 -> MB_9 | DZ1: ='[1]311 SO-Schule'!EA1 -> SI_0 | EA1: ='[1]311 SO-Schule'!EB1 -> SI_1 | EB1: ='[1]311 SO-Schule'!EC1 -> SI_2 | EC1: ='[1]311 SO-Schule'!ED1 -> SI_3 | ED1: ='[1]311 SO-Schule'!EE1 -> SI_4 | EE1: ='[1]311 SO-Schule'!EF1 -> SI_5 | EF1: ='[1]311 SO-Schule'!EG1 -> SI_6 | EG1: ='[1]311 SO-Schule'!EH1 -> SI_7 | EH1: ='[1]311 SO-Schule'!EI1 -> SI_8 | EI1: ='[1]311 SO-Schule'!EJ1 -> SI_9 | EJ1: ='[1]311 SO-Schule'!EK1 -> Genehmiger | EK1: ='[1]311 SO-Schule'!EL1 -> GN_Datum | EL1: ='[1]311 SO-Schule'!EM1 -> GN_Status | EM1: ='[1]311 SO-Schule'!EN1 -> UpdateDatum | EN1: ='[1]311 SO-Schule'!EO1 -> SPF_lfdVerf | EO1: ='[1]311 SO-Schule'!EP1 -> DF-Klasse int. | EP1: ='[1]311 SO-Schule'!EQ1 -> DF-Kurs | EQ1: ='[1]311 SO-Schule'!ER1 -> DF-BFD | ER1: ='[1]311 SO-Schule'!ES1 -> DF-Kurs int.
A2: ='[1]311 SO-Schule'!B2 -> 2021/22 | B2: ='[1]311 SO-Schule'!C2 -> 1 | C2: ='[1]311 SO-Schule'!D2 -> 3 | D2: ='[1]311 SO-Schule'!E2 -> 501013 | E2: ='[1]311 SO-Schule'!F2 -> SO Salzburg | F2: ='[1]311 SO-Schule'!G2 -> 2 | G2: ='[1]311 SO-Schule'!H2 -> 2021-10-01 | H2: ='[1]311 SO-Schule'!I2 -> 3 | I2: ='[1]311 SO-Schule'!J2 -> 9 | J2: ='[1]311 SO-Schule'!K2 -> 0 | K2: ='[1]311 SO-Schule'!L2 -> 0 | L2: ='[1]311 SO-Schule'!M2 -> 5 | M2: ='[1]311 SO-Schule'!N2 -> 0 | N2: ='[1]311 SO-Schule'!O2 -> 0 | O2: ='[1]311 SO-Schule'!P2 -> 14 | P2: ='[1]311 SO-Schule'!Q2 -> 0 | Q2: ='[1]311 SO-Schule'!R2 -> 0 | R2: ='[1]311 SO-Schule'!S2 -> 0 | S2: ='[1]311 SO-Schule'!T2 -> 0 | T2: ='[1]311 SO-Schule'!U2 -> 1 | U2: ='[1]311 SO-Schule'!V2 -> 1 | V2: ='[1]311 SO-Schule'!W2 -> 0 | W2: ='[1]311 SO-Schule'!X2 -> 1 | X2: ='[1]311 SO-Schule'!Y2 -> 1 | Y2: ='[1]311 SO-Schule'!Z2 -> 1 | Z2: ='[1]311 SO-Schule'!AA2 -> 8 | AA2: ='[1]311 SO-Schule'!AB2 -> 8 | AB2: ='[1]311 SO-Schule'!AC2 -> 0 | AC2: ='[1]311 SO-Schule'!AD2 -> 5 | AD2: ='[1]311 SO-Schule'!AE2 -> 5 | AE2: ='[1]311 SO-Schule'!AF2 -> 1 | AF2: ='[1]311 SO-Schule'!AG2 -> 11 | AG2: ='[1]311 SO-Schule'!AH2 -> 11 | AH2: ='[1]311 SO-Schule'!AI2 -> 1 | AI2: ='[1]311 SO-Schule'!AJ2 -> 21 | AJ2: ='[1]311 SO-Schule'!AK2 -> 19 | AK2: ='[1]311 SO-Schule'!AL2 -> 2 | AL2: ='[1]311 SO-Schule'!AM2 -> 24 | AM2: ='[1]311 SO-Schule'!AN2 -> 19 | AN2: ='[1]311 SO-Schule'!AO2 -> 4 | AO2: ='[1]311 SO-Schule'!AP2 -> 22 | AP2: ='[1]311 SO-Schule'!AQ2 -> 19 | AQ2: ='[1]311 SO-Schule'!AR2 -> 5 | AR2: ='[1]311 SO-Schule'!AS2 -> 42 | AS2: ='[1]311 SO-Schule'!AT2 -> 42 | AT2: ='[1]311 SO-Schule'!AU2 -> 90 | AU2: ='[1]311 SO-Schule'!AV2 -> 0 | AV2: ='[1]311 SO-Schule'!AW2 -> 0 | AW2: ='[1]311 SO-Schule'!AX2 -> 33 | AX2: ='[1]311 SO-Schule'!AY2 -> 18 | AY2: ='[1]311 SO-Schule'!AZ2 -> 0 | AZ2: ='[1]311 SO-Schule'!BA2 -> 4 | BA2: ='[1]311 SO-Schule'!BB2 -> 4 | BB2: ='[1]311 SO-Schule'!BC2 -> 0 | BC2: ='[1]311 SO-Schule'!BD2 -> 52 | BD2: ='[1]311 SO-Schule'!BE2 -> 38 | BE2: ='[1]311 SO-Schule'!BF2 -> 0 | BF2: ='[1]311 SO-Schule'!BG2 -> 17 | BG2: ='[1]311 SO-Schule'!BH2 -> 17 | BH2: ='[1]311 SO-Schule'!BI2 -> 0 | BI2: ='[1]311 SO-Schule'!BJ2 -> 0 | BJ2: ='[1]311 SO-Schule'!BK2 -> 0 | BK2: ='[1]311 SO-Schule'!BL2 -> 0 | BL2: ='[1]311 SO-Schule'!BM2 -> 14 | BM2: ='[1]311 SO-Schule'!BN2 -> 0 | BN2: ='[1]311 SO-Schule'!BO2 -> 0 | BO2: ='[1]311 SO-Schule'!BP2 -> 0 | BP2: ='[1]311 SO-Schule'!BQ2 -> 0 | BQ2: ='[1]311 SO-Schule'!BR2 -> 0 | BR2: ='[1]311 SO-Schule'!BS2 -> 0 | BS2: ='[1]311 SO-Schule'!BT2 -> 4 | BT2: ='[1]311 SO-Schule'!BU2 -> 2 | BU2: ='[1]311 SO-Schule'!BV2 -> 3 | BV2: ='[1]311 SO-Schule'!BW2 -> 2 | BW2: ='[1]311 SO-Schule'!BX2 -> 0 | BX2: ='[1]311 SO-Schule'!BY2 -> 4 | BY2: ='[1]311 SO-Schule'!BZ2 -> 7 | BZ2: ='[1]311 SO-Schule'!CA2 -> 12 | CA2: ='[1]311 SO-Schule'!CB2 -> 24 | CB2: ='[1]311 SO-Schule'!CC2 -> 0 | CC2: ='[1]311 SO-Schule'!CD2 -> 0 | CD2: ='[1]311 SO-Schule'!CE2 -> 0 | CE2: ='[1]311 SO-Schule'!CF2 -> 3 | CF2: ='[1]311 SO-Schule'!CG2 -> 5 | CG2: ='[1]311 SO-Schule'!CH2 -> 7 | CH2: ='[1]311 SO-Schule'!CI2 -> 15 | CI2: ='[1]311 SO-Schule'!CJ2 -> 14 | CJ2: ='[1]311 SO-Schule'!CK2 -> 8 | CK2: ='[1]311 SO-Schule'!CL2 -> 29 | CL2: ='[1]311 SO-Schule'!CM2 -> 0 | CM2: ='[1]311 SO-Schule'!CN2 -> 0 | CN2: ='[1]311 SO-Schule'!CO2 -> 0 | CO2: ='[1]311 SO-Schule'!CP2 -> 1 | CP2: ='[1]311 SO-Schule'!CQ2 -> 0 | CQ2: ='[1]311 SO-Schule'!CR2 -> 1 | CR2: ='[1]311 SO-Schule'!CS2 -> 2 | CS2: ='[1]311 SO-Schule'!CT2 -> 2 | CT2: ='[1]311 SO-Schule'!CU2 -> 5 | CU2: ='[1]311 SO-Schule'!CV2 -> 0 | CV2: ='[1]311 SO-Schule'!CW2 -> 0 | CW2: ='[1]311 SO-Schule'!CX2 -> 0 | CX2: ='[1]311 SO-Schule'!CY2 -> 1 | CY2: ='[1]311 SO-Schule'!CZ2 -> 4 | CZ2: ='[1]311 SO-Schule'!DA2 -> 0 | DA2: ='[1]311 SO-Schule'!DB2 -> 2 | DB2: ='[1]311 SO-Schule'!DC2 -> 4 | DC2: ='[1]311 SO-Schule'!DD2 -> 2 | DD2: ='[1]311 SO-Schule'!DE2 -> 7 | DE2: ='[1]311 SO-Schule'!DF2 -> 13 | DF2: ='[1]311 SO-Schule'!DG2 -> 0 | DG2: ='[1]311 SO-Schule'!DH2 -> 0 | DH2: ='[1]311 SO-Schule'!DI2 -> 0 | DI2: ='[1]311 SO-Schule'!DJ2 -> 0 | DJ2: ='[1]311 SO-Schule'!DK2 -> 0 | DK2: ='[1]311 SO-Schule'!DL2 -> 0 | DL2: ='[1]311 SO-Schule'!DM2 -> 0 | DM2: ='[1]311 SO-Schule'!DN2 -> 0 | DN2: ='[1]311 SO-Schule'!DO2 -> 0 | DO2: ='[1]311 SO-Schule'!DP2 -> 0 | DP2: ='[1]311 SO-Schule'!DQ2 -> 0 | DQ2: ='[1]311 SO-Schule'!DR2 -> 0 | DR2: ='[1]311 SO-Schule'!DS2 -> 0 | DS2: ='[1]311 SO-Schule'!DT2 -> 0 | DT2: ='[1]311 SO-Schule'!DU2 -> 0 | DU2: ='[1]311 SO-Schule'!DV2 -> 0 | DV2: ='[1]311 SO-Schule'!DW2 -> 0 | DW2: ='[1]311 SO-Schule'!DX2 -> 0 | DX2: ='[1]311 SO-Schule'!DY2 -> 0 | DY2: ='[1]311 SO-Schule'!DZ2 -> 0 | DZ2: ='[1]311 SO-Schule'!EA2 -> 0 | EA2: ='[1]311 SO-Schule'!EB2 -> 1 | EB2: ='[1]311 SO-Schule'!EC2 -> 0 | EC2: ='[1]311 SO-Schule'!ED2 -> 0 | ED2: ='[1]311 SO-Schule'!EE2 -> 0 | EE2: ='[1]311 SO-Schule'!EF2 -> 0 | EF2: ='[1]311 SO-Schule'!EG2 -> 0 | EG2: ='[1]311 SO-Schule'!EH2 -> 0 | EH2: ='[1]311 SO-Schule'!EI2 -> 0 | EI2: ='[1]311 SO-Schule'!EJ2 -> 0 | EJ2: ='[1]311 SO-Schule'!EK2 -> 501013 | EK2: ='[1]311 SO-Schule'!EL2 -> 44475 | EL2: ='[1]311 SO-Schule'!EM2 -> genehmigt | EM2: ='[1]311 SO-Schule'!EN2 -> 2021-10-06 | EN2: ='[1]311 SO-Schule'!EO2 -> 2 | EO2: ='[1]311 SO-Schule'!EP2 -> 0 | EP2: ='[1]311 SO-Schule'!EQ2 -> 0 | EQ2: ='[1]311 SO-Schule'!ER2 -> 77 | ER2: ='[1]311 SO-Schule'!ES2 -> 0

Sheet STP2
A1: ='[2]312 SO-Klassen'!B1 -> Schuljahr | B1: ='[2]312 SO-Klassen'!C1 -> BezirkNr | C1: ='[2]312 SO-Klassen'!D1 -> Schultyp | D1: ='[2]312 SO-Klassen'!E1 -> SKZ | E1: ='[2]312 SO-Klassen'!F1 -> Schule | F1: ='[2]312 SO-Klassen'!G1 -> Status | G1: ='[2]312 SO-Klassen'!H1 -> Stichtag | H1: ='[2]312 SO-Klassen'!I1 -> Schulart | I1: ='[2]312 SO-Klassen'!J1 -> Schulstufe | J1: ='[2]312 SO-Klassen'!K1 -> Klasse | K1: ='[2]312 SO-Klassen'!L1 -> Kl_Art_ASO | L1: ='[2]312 SO-Klassen'!M1 -> Kl_Art_SE | M1: ='[2]312 SO-Klassen'!N1 -> Kl_Art_KB | N1: ='[2]312 SO-Klassen'!O1 -> Kl_Art_SB | O1: ='[2]312 SO-Klassen'!P1 -> Kl_Art_SI | P1: ='[2]312 SO-Klassen'!Q1 -> Kl_Art_MB | Q1: ='[2]312 SO-Klassen'!R1 -> Kl_Anz | R1: ='[2]312 SO-Klassen'!S1 -> Kl0 | S1: ='[2]312 SO-Klassen'!T1 -> Anz0 | T1: ='[2]312 SO-Klassen'!U1 -> SPF0 | U1: ='[2]312 SO-Klassen'!V1 -> Kl1 | V1: ='[2]312 SO-Klassen'!W1 -> Anz1 | W1: ='[2]312 SO-Klassen'!X1 -> SPF1 | X1: ='[2]312 SO-Klassen'!Y1 -> Kl2 | Y1: ='[2]312 SO-Klassen'!Z1 -> Anz2 | Z1: ='[2]312 SO-Klassen'!AA1 -> SPF2 | AA1: ='[2]312 SO-Klassen'!AB1 -> Kl3 | AB1: ='[2]312 SO-Klassen'!AC1 -> Anz3 | AC1: ='[2]312 SO-Klassen'!AD1 -> SPF3 | AD1: ='[2]312 SO-Klassen'!AE1 -> Kl4 | AE1: ='[2]312 SO-Klassen'!AF1 -> Anz4 | AF1: ='[2]312 SO-Klassen'!AG1 -> SPF4 | AG1: ='[2]312 SO-Klassen'!AH1 -> Kl5 | AH1: ='[2]312 SO-Klassen'!AI1 -> Anz5 | AI1: ='[2]312 SO-Klassen'!AJ1 -> SPF5 | AJ1: ='[2]312 SO-Klassen'!AK1 -> Kl6 | AK1: ='[2]312 SO-Klassen'!AL1 -> Anz6 | AL1: ='[2]312 SO-Klassen'!AM1 -> SPF6 | AM1: ='[2]312 SO-Klassen'!AN1 -> Kl7 | AN1: ='[2]312 SO-Klassen'!AO1 -> Anz7 | AO1: ='[2]312 SO-Klassen'!AP1 -> SPF7 | AP1: ='[2]312 SO-Klassen'!AQ1 -> Kl8 | AQ1: ='[2]312 SO-Klassen'!AR1 -> Anz8 | AR1: ='[2]312 SO-Klassen'!AS1 -> SPF8 | AS1: ='[2]312 SO-Klassen'!AT1 -> Kl9 | AT1: ='[2]312 SO-Klassen'!AU1 -> Anz9 | AU1: ='[2]312 SO-Klassen'!AV1 -> SPF9 | AV1: ='[2]312 SO-Klassen'!AW1 -> NDSprache | AW1: ='[2]312 SO-Klassen'!AX1 -> AO | AX1: ='[2]312 SO-Klassen'!AY1 -> SprengelF | AY1: ='[2]312 SO-Klassen'!AZ1 -> Rel_RK | AZ1: ='[2]312 SO-Klassen'!BA1 -> Rel_RK_Abmeld | BA1: ='[2]312 SO-Klassen'!BB1 -> Rel_RK_FG | BB1: ='[2]312 SO-Klassen'!BC1 -> Rel_EV | BC1: ='[2]312 SO-Klassen'!BD1 -> Rel_EV_Abmeld | BD1: ='[2]312 SO-Klassen'!BE1 -> Rel_EV_FG | BE1: ='[2]312 SO-Klassen'!BF1 -> Rel_ISL | BF1: ='[2]312 SO-Klassen'!BG1 -> Rel_ISL_Abmeld | BG1: ='[2]312 SO-Klassen'!BH1 -> Rel_ISL_FG | BH1: ='[2]312 SO-Klassen'!BI1 -> Rel_ORTH | BI1: ='[2]312 SO-Klassen'!BJ1 -> Rel_ORTH_Abmeld | BJ1: ='[2]312 SO-Klassen'!BK1 -> Rel_ORTH_FG | BK1: ='[2]312 SO-Klassen'!BL1 -> Rel_SONST | BL1: ='[2]312 SO-Klassen'!BM1 -> Rel_SONST_Abmeld | BM1: ='[2]312 SO-Klassen'!BN1 -> Rel_SONST_FG | BN1: ='[2]312 SO-Klassen'!BO1 -> I_Klassen | BO1: ='[2]312 SO-Klassen'!BP1 -> Anz_I1 | BP1: ='[2]312 SO-Klassen'!BQ1 -> Anz_I2 | BQ1: ='[2]312 SO-Klassen'!BR1 -> Anz_I3 | BR1: ='[2]312 SO-Klassen'!BS1 -> Anz_I4 | BS1: ='[2]312 SO-Klassen'!BT1 -> Anz_I5 | BT1: ='[2]312 SO-Klassen'!BU1 -> Anz_I6 | BU1: ='[2]312 SO-Klassen'!BV1 -> Anz_I7 | BV1: ='[2]312 SO-Klassen'!BW1 -> Anz_I8 | BW1: ='[2]312 SO-Klassen'!BX1 -> Anz_I9 | BX1: ='[2]312 SO-Klassen'!BY1 -> Anz_I10 | BY1: ='[2]312 SO-Klassen'!BZ1 -> GTS_1Tag | BZ1: ='[2]312 SO-Klassen'!CA1 -> GTS_2Tage | CA1: ='[2]312 SO-Klassen'!CB1 -> GTS_3Tage | CB1: ='[2]312 SO-Klassen'!CC1 -> GTS_4Tage | CC1: ='[2]312 SO-Klassen'!CD1 -> GTS_5Tage | CD1: ='[2]312 SO-Klassen'!CE1 -> ASO_0 | CE1: ='[2]312 SO-Klassen'!CF1 -> ASO_1 | CF1: ='[2]312 SO-Klassen'!CG1 -> ASO_2 | CG1: ='[2]312 SO-Klassen'!CH1 -> ASO_3 | CH1: ='[2]312 SO-Klassen'!CI1 -> ASO_4 | CI1: ='[2]312 SO-Klassen'!CJ1 -> ASO_5 | CJ1: ='[2]312 SO-Klassen'!CK1 -> ASO_6 | CK1: ='[2]312 SO-Klassen'!CL1 -> ASO_7 | CL1: ='[2]312 SO-Klassen'!CM1 -> ASO_8 | CM1: ='[2]312 SO-Klassen'!CN1 -> ASO_9 | CN1: ='[2]312 SO-Klassen'!CO1 -> SE_0 | CO1: ='[2]312 SO-Klassen'!CP1 -> SE_1 | CP1: ='[2]312 SO-Klassen'!CQ1 -> SE_2 | CQ1: ='[2]312 SO-Klassen'!CR1 -> SE_3 | CR1: ='[2]312 SO-Klassen'!CS1 -> SE_4 | CS1: ='[2]312 SO-Klassen'!CT1 -> SE_5 | CT1: ='[2]312 SO-Klassen'!CU1 -> SE_6 | CU1: ='[2]312 SO-Klassen'!CV1 -> SE_7 | CV1: ='[2]312 SO-Klassen'!CW1 -> SE_8 | CW1: ='[2]312 SO-Klassen'!CX1 -> SE_9 | CX1: ='[2]312 SO-Klassen'!CY1 -> SB_0 | CY1: ='[2]312 SO-Klassen'!CZ1 -> SB_1 | CZ1: ='[2]312 SO-Klassen'!DA1 -> SB_2 | DA1: ='[2]312 SO-Klassen'!DB1 -> SB_3 | DB1: ='[2]312 SO-Klassen'!DC1 -> SB_4 | DC1: ='[2]312 SO-Klassen'!DD1 -> SB_5 | DD1: ='[2]312 SO-Klassen'!DE1 -> SB_6 | DE1: ='[2]312 SO-Klassen'!DF1 -> SB_7 | DF1: ='[2]312 SO-Klassen'!DG1 -> SB_8 | DG1: ='[2]312 SO-Klassen'!DH1 -> SB_9 | DH1: ='[2]312 SO-Klassen'!DI1 -> KB_0 | DI1: ='[2]312 SO-Klassen'!DJ1 -> KB_1 | DJ1: ='[2]312 SO-Klassen'!DK1 -> KB_2 | DK1: ='[2]312 SO-Klassen'!DL1 -> KB_3 | DL1: ='[2]312 SO-Klassen'!DM1 -> KB_4 | DM1: ='[2]312 SO-Klassen'!DN1 -> KB_5 | DN1: ='[2]312 SO-Klassen'!DO1 -> KB_6 | DO1: ='[2]312 SO-Klassen'!DP1 -> KB_7 | DP1: ='[2]312 SO-Klassen'!DQ1 -> KB_8 | DQ1: ='[2]312 SO-Klassen'!DR1 -> KB_9 | DR1: ='[2]312 SO-Klassen'!DS1 -> MB_0 | DS1: ='[2]312 SO-Klassen'!DT1 -> MB_1 | DT1: ='[2]312 SO-Klassen'!DU1 -> MB_2 | DU1: ='[2]312 SO-Klassen'!DV1 -> MB_3 | DV1: ='[2]312 SO-Klassen'!DW1 -> MB_4 | DW1: ='[2]312 SO-Klassen'!DX1 -> MB_5 | DX1: ='[2]312 SO-Klassen'!DY1 -> MB_6 | DY1: ='[2]312 SO-Klassen'!DZ1 -> MB_7 | DZ1: ='[2]312 SO-Klassen'!EA1 -> MB_8 | EA1: ='[2]312 SO-Klassen'!EB1 -> MB_9 | EB1: ='[2]312 SO-Klassen'!EC1 -> SI_0 | EC1: ='[2]312 SO-Klassen'!ED1 -> SI_1 | ED1: ='[2]312 SO-Klassen'!EE1 -> SI_2 | EE1: ='[2]312 SO-Klassen'!EF1 -> SI_3 | EF1: ='[2]312 SO-Klassen'!EG1 -> SI_4 | EG1: ='[2]312 SO-Klassen'!EH1 -> SI_5 | EH1: ='[2]312 SO-Klassen'!EI1 -> SI_6 | EI1: ='[2]312 SO-Klassen'!EJ1 -> SI_7 | EJ1: ='[2]312 SO-Klassen'!EK1 -> SI_8 | EK1: ='[2]312 SO-Klassen'!EL1 -> SI_9 | EL1: ='[2]312 SO-Klassen'!EM1 -> Genehmiger | EM1: ='[2]312 SO-Klassen'!EN1 -> GN_Datum | EN1: ='[2]312 SO-Klassen'!EO1 -> GN_Status | EO1: ='[2]312 SO-Klassen'!EP1 -> UpdateDatum | EP1: ='[2]312 SO-Klassen'!EQ1 -> SPF_lfdVerf | EQ1: ='[2]312 SO-Klassen'!ER1 -> DF-Klasse int. | ER1: ='[2]312 SO-Klassen'!ES1 -> DF-Kurs | ES1: ='[2]312 SO-Klassen'!ET1 -> DF-BFD | ET1: ='[2]312 SO-Klassen'!EU1 -> DF-Kurs int.
A2: ='[2]312 SO-Klassen'!B2 -> 2021/22 | B2: ='[2]312 SO-Klassen'!C2 -> 1 | C2: ='[2]312 SO-Klassen'!D2 -> 3 | D2: ='[2]312 SO-Klassen'!E2 -> 501013 | E2: ='[2]312 SO-Klassen'!F2 -> SO Salzburg | F2: ='[2]312 SO-Klassen'!G2 -> 2 | G2: ='[2]312 SO-Klassen'!H2 -> 2021-10-01 | H2: ='[2]312 SO-Klassen'!I2 -> 3 | I2: ='[2]312 SO-Klassen'!J2 -> 03 | J2: ='[2]312 SO-Klassen'!K2 -> 1GUS | K2: ='[2]312 SO-Klassen'!L2 -> 0 | L2: ='[2]312 SO-Klassen'!M2 -> 0 | M2: ='[2]312 SO-Klassen'!N2 -> 0 | N2: ='[2]312 SO-Klassen'!O2 -> 1 | O2: ='[2]312 SO-Klassen'!P2 -> 0 | P2: ='[2]312 SO-Klassen'!Q2 -> 0 | Q2: ='[2]312 SO-Klassen'!R2 -> 1 | R2: ='[2]312 SO-Klassen'!S2 -> 0 | S2: ='[2]312 SO-Klassen'!T2 -> 0 | T2: ='[2]312 SO-Klassen'!U2 -> 0 | U2: ='[2]312 SO-Klassen'!V2 -> 0 | V2: ='[2]312 SO-Klassen'!W2 -> 1 | W2: ='[2]312 SO-Klassen'!X2 -> 1 | X2: ='[2]312 SO-Klassen'!Y2 -> 0 | Y2: ='[2]312 SO-Klassen'!Z2 -> 1 | Z2: ='[2]312 SO-Klassen'!AA2 -> 1 | AA2: ='[2]312 SO-Klassen'!AB2 -> 1 | AB2: ='[2]312 SO-Klassen'!AC2 -> 4 | AC2: ='[2]312 SO-Klassen'!AD2 -> 4 | AD2: ='[2]312 SO-Klassen'!AE2 -> 0 | AE2: ='[2]312 SO-Klassen'!AF2 -> 1 | AF2: ='[2]312 SO-Klassen'!AG2 -> 1 | AG2: ='[2]312 SO-Klassen'!AH2 -> 0 | AH2: ='[2]312 SO-Klassen'!AI2 -> 0 | AI2: ='[2]312 SO-Klassen'!AJ2 -> 0 | AJ2: ='[2]312 SO-Klassen'!AK2 -> 0 | AK2: ='[2]312 SO-Klassen'!AL2 -> 0 | AL2: ='[2]312 SO-Klassen'!AM2 -> 0 | AM2: ='[2]312 SO-Klassen'!AN2 -> 0 | AN2: ='[2]312 SO-Klassen'!AO2 -> 0 | AO2: ='[2]312 SO-Klassen'!AP2 -> 0 | AP2: ='[2]312 SO-Klassen'!AQ2 -> 0 | AQ2: ='[2]312 SO-Klassen'!AR2 -> 0 | AR2: ='[2]312 SO-Klassen'!AS2 -> 0 | AS2: ='[2]312 SO-Klassen'!AT2 -> 0 | AT2: ='[2]312 SO-Klassen'!AU2 -> 0 | AU2: ='[2]312 SO-Klassen'!AV2 -> 0 | AV2: ='[2]312 SO-Klassen'!AW2 -> 5 | AW2: ='[2]312 SO-Klassen'!AX2 -> 0 | AX2: ='[2]312 SO-Klassen'!AY2 -> 0 | AY2: ='[2]312 SO-Klassen'!AZ2 -> 1 | AZ2: ='[2]312 SO-Klassen'!BA2 -> 1 | BA2: ='[2]312 SO-Klassen'!BB2 -> 0 | BB2: ='[2]312 SO-Klassen'!BC2 -> 0 | BC2: ='[2]312 SO-Klassen'!BD2 -> 0 | BD2: ='[2]312 SO-Klassen'!BE2 -> 0 | BE2: ='[2]312 SO-Klassen'!BF2 -> 2 | BF2: ='[2]312 SO-Klassen'!BG2 -> 2 | BG2: ='[2]312 SO-Klassen'!BH2 -> 0 | BH2: ='[2]312 SO-Klassen'!BI2 -> 1 | BI2: ='[2]312 SO-Klassen'!BJ2 -> 1 | BJ2: ='[2]312 SO-Klassen'!BK2 -> 0 | BK2: ='[2]312 SO-Klassen'!BL2 -> 0 | BL2: ='[2]312 SO-Klassen'!BM2 -> 0 | BM2: ='[2]312 SO-Klassen'!BN2 -> 0 | BN2: ='[2]312 SO-Klassen'!BO2 -> 1 | BO2: ='[2]312 SO-Klassen'!BP2 -> 0 | BP2: ='[2]312 SO-Klassen'!BQ2 -> 0 | BQ2: ='[2]312 SO-Klassen'!BR2 -> 0 | BR2: ='[2]312 SO-Klassen'!BS2 -> 0 | BS2: ='[2]312 SO-Klassen'!BT2 -> 0 | BT2: ='[2]312 SO-Klassen'!BU2 -> 0 | BU2: ='[2]312 SO-Klassen'!BV2 -> 1 | BV2: ='[2]312 SO-Klassen'!BW2 -> 0 | BW2: ='[2]312 SO-Klassen'!BX2 -> 0 | BX2: ='[2]312 SO-Klassen'!BY2 -> 0 | BY2: ='[2]312 SO-Klassen'!BZ2 -> 0 | BZ2: ='[2]312 SO-Klassen'!CA2 -> 0 | CA2: ='[2]312 SO-Klassen'!CB2 -> 0 | CB2: ='[2]312 SO-Klassen'!CC2 -> 0 | CC2: ='[2]312 SO-Klassen'!CD2 -> 4 | CD2: ='[2]312 SO-Klassen'!CE2 -> 0 | CE2: ='[2]312 SO-Klassen'!CF2 -> 0 | CF2: ='[2]312 SO-Klassen'!CG2 -> 0 | CG2: ='[2]312 SO-Klassen'!CH2 -> 0 | CH2: ='[2]312 SO-Klassen'!CI2 -> 1 | CI2: ='[2]312 SO-Klassen'!CJ2 -> 0 | CJ2: ='[2]312 SO-Klassen'!CK2 -> 0 | CK2: ='[2]312 SO-Klassen'!CL2 -> 0 | CL2: ='[2]312 SO-Klassen'!CM2 -> 0 | CM2: ='[2]312 SO-Klassen'!CN2 -> 0 | CN2: ='[2]312 SO-Klassen'!CO2 -> 0 | CO2: ='[2]312 SO-Klassen'!CP2 -> 0 | CP2: ='[2]312 SO-Klassen'!CQ2 -> 0 | CQ2: ='[2]312 SO-Klassen'!CR2 -> 1 | CR2: ='[2]312 SO-Klassen'!CS2 -> 0 | CS2: ='[2]312 SO-Klassen'!CT2 -> 0 | CT2: ='[2]312 SO-Klassen'!CU2 -> 0 | CU2: ='[2]312 SO-Klassen'!CV2 -> 0 | CV2: ='[2]312 SO-Klassen'!CW2 -> 0 | CW2: ='[2]312 SO-Klassen'!CX2 -> 0 | CX2: ='[2]312 SO-Klassen'!CY2 -> 0 | CY2: ='[2]312 SO-Klassen'!CZ2 -> 0 | CZ2: ='[2]312 SO-Klassen'!DA2 -> 1 | DA2: ='[2]312 SO-Klassen'!DB2 -> 3 | DB2: ='[2]312 SO-Klassen'!DC2 -> 0 | DC2: ='[2]312 SO-Klassen'!DD2 -> 0 | DD2: ='[2]312 SO-Klassen'!DE2 -> 0 | DE2: ='[2]312 SO-Klassen'!DF2 -> 0 | DF2: ='[2]312 SO-Klassen'!DG2 -> 0 | DG2: ='[2]312 SO-Klassen'!DH2 -> 0 | DH2: ='[2]312 SO-Klassen'!DI2 -> 0 | DI2: ='[2]312 SO-Klassen'!DJ2 -> 0 | DJ2: ='[2]312 SO-Klassen'!DK2 -> 0 | DK2: ='[2]312 SO-Klassen'!DL2 -> 0 | DL2: ='[2]312 SO-Klassen'!DM2 -> 0 | DM2: ='[2]312 SO-Klassen'!DN2 -> 0 | DN2: ='[2]312 SO-Klassen'!DO2 -> 0 | DO2: ='[2]312 SO-Klassen'!DP2 -> 0 | DP2: ='[2]312 SO-Klassen'!DQ2 -> 0 | DQ2: ='[2]312 SO-Klassen'!DR2 -> 0 | DR2: ='[2]312 SO-Klassen'!DS2 -> 0 | DS2: ='[2]312 SO-Klassen'!DT2 -> 0 | DT2: ='[2]312 SO-Klassen'!DU2 -> 0 | DU2: ='[2]312 SO-Klassen'!DV2 -> 0 | DV2: ='[2]312 SO-Klassen'!DW2 -> 0 | DW2: ='[2]312 SO-Klassen'!DX2 -> 0 | DX2: ='[2]312 SO-Klassen'!DY2 -> 0 | DY2: ='[2]312 SO-Klassen'!DZ2 -> 0 | DZ2: ='[2]312 SO-Klassen'!EA2 -> 0 | EA2: ='[2]312 SO-Klassen'!EB2 -> 0 | EB2: ='[2]312 SO-Klassen'!EC2 -> 0 | EC2: ='[2]312 SO-Klassen'!ED2 -> 1 | ED2: ='[2]312 SO-Klassen'!EE2 -> 0 | EE2: ='[2]312 SO-Klassen'!EF2 -> 0 | EF2: ='[2]312 SO-Klassen'!EG2 -> 0 | EG2: ='[2]312 SO-Klassen'!EH2 -> 0 | EH2: ='[2]312 SO-Klassen'!EI2 -> 0 | EI2: ='[2]312 SO-Klassen'!EJ2 -> 0 | EJ2: ='[2]312 SO-Klassen'!EK2 -> 0 | EK2: ='[2]312 SO-Klassen'!EL2 -> 0 | EL2: ='[2]312 SO-Klassen'!EM2 -> 501013 | EM2: ='[2]312 SO-Klassen'!EN2 -> 44475 | EN2: ='[2]312 SO-Klassen'!EO2 -> genehmigt | EO2: ='[2]312 SO-Klassen'!EP2 -> 2021-10-06 | EP2: ='[2]312 SO-Klassen'!EQ2 -> 0 | EQ2: ='[2]312 SO-Klassen'!ER2 -> 0 | ER2: ='[2]312 SO-Klassen'!ES2 -> 0 | ES2: ='[2]312 SO-Klassen'!ET2 -> 3 | ET2: ='[2]312 SO-Klassen'!EU2 -> 0
A3: ='[2]312 SO-Klassen'!B3 -> 2021/22 | B3: ='[2]312 SO-Klassen'!C3 -> 1 | C3: ='[2]312 SO-Klassen'!D3 -> 3 | D3: ='[2]312 SO-Klassen'!E3 -> 501013 | E3: ='[2]312 SO-Klassen'!F3 -> SO Salzburg | F3: ='[2]312 SO-Klassen'!G3 -> 2 | G3: ='[2]312 SO-Klassen'!H3 -> 2021-10-01 | H3: ='[2]312 SO-Klassen'!I3 -> 3 | I3: ='[2]312 SO-Klassen'!J3 -> 05 | J3: ='[2]312 SO-Klassen'!K3 -> 1aFö | K3: ='[2]312 SO-Klassen'!L3 -> 1 | L3: ='[2]312 SO-Klassen'!M3 -> 0 | M3: ='[2]312 SO-Klassen'!N3 -> 0 | N3: ='[2]312 SO-Klassen'!O3 -> 0 | O3: ='[2]312 SO-Klassen'!P3 -> 0 | P3: ='[2]312 SO-Klassen'!Q3 -> 0 | Q3: ='[2]312 SO-Klassen'!R3 -> 1 | R3: ='[2]312 SO-Klassen'!S3 -> 0 | S3: ='[2]312 SO-Klassen'!T3 -> 0 | T3: ='[2]312 SO-Klassen'!U3 -> 0 | U3: ='[2]312 SO-Klassen'!V3 -> 0 | V3: ='[2]312 SO-Klassen'!W3 -> 0 | W3: ='[2]312 SO-Klassen'!X3 -> 0 | X3: ='[2]312 SO-Klassen'!Y3 -> 0 | Y3: ='[2]312 SO-Klassen'!Z3 -> 0 | Z3: ='[2]312 SO-Klassen'!AA3 -> 0 | AA3: ='[2]312 SO-Klassen'!AB3 -> 0 | AB3: ='[2]312 SO-Klassen'!AC3 -> 0 | AC3: ='[2]312 SO-Klassen'!AD3 -> 0 | AD3: ='[2]312 SO-Klassen'!AE3 -> 0 | AE3: ='[2]312 SO-Klassen'!AF3 -> 0 | AF3: ='[2]312 SO-Klassen'!AG3 -> 0 | AG3: ='[2]312 SO-Klassen'!AH3 -> 1 | AH3: ='[2]312 SO-Klassen'!AI3 -> 9 | AI3: ='[2]312 SO-Klassen'!AJ3 -> 9 | AJ3: ='[2]312 SO-Klassen'!AK3 -> 0 | AK3: ='[2]312 SO-Klassen'!AL3 -> 0 | AL3: ='[2]312 SO-Klassen'!AM3 -> 0 | AM3: ='[2]312 SO-Klassen'!AN3 -> 0 | AN3: ='[2]312 SO-Klassen'!AO3 -> 0 | AO3: ='[2]312 SO-Klassen'!AP3 -> 0 | AP3: ='[2]312 SO-Klassen'!AQ3 -> 0 | AQ3: ='[2]312 SO-Klassen'!AR3 -> 0 | AR3: ='[2]312 SO-Klassen'!AS3 -> 0 | AS3: ='[2]312 SO-Klassen'!AT3 -> 0 | AT3: ='[2]312 SO-Klassen'!AU3 -> 0 | AU3: ='[2]312 SO-Klassen'!AV3 -> 0 | AV3: ='[2]312 SO-Klassen'!AW3 -> 5 | AW3: ='[2]312 SO-Klassen'!AX3 -> 0 | AX3: ='[2]312 SO-Klassen'!AY3 -> 0 | AY3: ='[2]312 SO-Klassen'!AZ3 -> 6 | AZ3: ='[2]312 SO-Klassen'!BA3 -> 1 | BA3: ='[2]312 SO-Klassen'!BB3 -> 0 | BB3: ='[2]312 SO-Klassen'!BC3 -> 0 | BC3: ='[2]312 SO-Klassen'!BD3 -> 0 | BD3: ='[2]312 SO-Klassen'!BE3 -> 0 | BE3: ='[2]312 SO-Klassen'!BF3 -> 2 | BF3: ='[2]312 SO-Klassen'!BG3 -> 1 | BG3: ='[2]312 SO-Klassen'!BH3 -> 0 | BH3: ='[2]312 SO-Klassen'!BI3 -> 1 | BI3: ='[2]312 SO-Klassen'!BJ3 -> 1 | BJ3: ='[2]312 SO-Klassen'!BK3 -> 0 | BK3: ='[2]312 SO-Klassen'!BL3 -> 0 | BL3: ='[2]312 SO-Klassen'!BM3 -> 0 | BM3: ='[2]312 SO-Klassen'!BN3 -> 0 | BN3: ='[2]312 SO-Klassen'!BO3 -> 1 | BO3: ='[2]312 SO-Klassen'!BP3 -> 0 | BP3: ='[2]312 SO-Klassen'!BQ3 -> 0 | BQ3: ='[2]312 SO-Klassen'!BR3 -> 0 | BR3: ='[2]312 SO-Klassen'!BS3 -> 0 | BS3: ='[2]312 SO-Klassen'!BT3 -> 0 | BT3: ='[2]312 SO-Klassen'!BU3 -> 0 | BU3: ='[2]312 SO-Klassen'!BV3 -> 0 | BV3: ='[2]312 SO-Klassen'!BW3 -> 0 | BW3: ='[2]312 SO-Klassen'!BX3 -> 1 | BX3: ='[2]312 SO-Klassen'!BY3 -> 0 | BY3: ='[2]312 SO-Klassen'!BZ3 -> 0 | BZ3: ='[2]312 SO-Klassen'!CA3 -> 1 | CA3: ='[2]312 SO-Klassen'!CB3 -> 1 | CB3: ='[2]312 SO-Klassen'!CC3 -> 0 | CC3: ='[2]312 SO-Klassen'!CD3 -> 2 | CD3: ='[2]312 SO-Klassen'!CE3 -> 0 | CE3: ='[2]312 SO-Klassen'!CF3 -> 0 | CF3: ='[2]312 SO-Klassen'!CG3 -> 0 | CG3: ='[2]312 SO-Klassen'!CH3 -> 0 | CH3: ='[2]312 SO-Klassen'!CI3 -> 0 | CI3: ='[2]312 SO-Klassen'!CJ3 -> 5 | CJ3: ='[2]312 SO-Klassen'!CK3 -> 0 | CK3: ='[2]312 SO-Klassen'!CL3 -> 0 | CL3: ='[2]312 SO-Klassen'!CM3 -> 0 | CM3: ='[2]312 SO-Klassen'!CN3 -> 0 | CN3: ='[2]312 SO-Klassen'!CO3 -> 0 | CO3: ='[2]312 SO-Klassen'!CP3 -> 0 | CP3: ='[2]312 SO-Klassen'!CQ3 -> 0 | CQ3: ='[2]312 SO-Klassen'!CR3 -> 0 | CR3: ='[2]312 SO-Klassen'!CS3 -> 0 | CS3: ='[2]312 SO-Klassen'!CT3 -> 1 | CT3: ='[2]312 SO-Klassen'!CU3 -> 0 | CU3: ='[2]312 SO-Klassen'!CV3 -> 0 | CV3: ='[2]312 SO-Klassen'!CW3 -> 0 | CW3: ='[2]312 SO-Klassen'!CX3 -> 0 | CX3: ='[2]312 SO-Klassen'!CY3 -> 0 | CY3: ='[2]312 SO-Klassen'!CZ3 -> 0 | CZ3: ='[2]312 SO-Klassen'!DA3 -> 0 | DA3: ='[2]312 SO-Klassen'!DB3 -> 0 | DB3: ='[2]312 SO-Klassen'!DC3 -> 0 | DC3: ='[2]312 SO-Klassen'!DD3 -> 2 | DD3: ='[2]312 SO-Klassen'!DE3 -> 0 | DE3: ='[2]312 SO-Klassen'!DF3 -> 0 | DF3: ='[2]312 SO-Klassen'!DG3 -> 0 | DG3: ='[2]312 SO-Klassen'!DH3 -> 0 | DH3: ='[2]312 SO-Klassen'!DI3 -> 0 | DI3: ='[2]312 SO-Klassen'!DJ3 -> 0 | DJ3: ='[2]312 SO-Klassen'!DK3 -> 0 | DK3: ='[2]312 SO-Klassen'!DL3 -> 0 | DL3: ='[2]312 SO-Klassen'!DM3 -> 0 | DM3: ='[2]312 SO-Klassen'!DN3 -> 0 | DN3: ='[2]312 SO-Klassen'!DO3 -> 0 | DO3: ='[2]312 SO-Klassen'!DP3 -> 0 | DP3: ='[2]312 SO-Klassen'!DQ3 -> 0 | DQ3: ='[2]312 SO-Klassen'!DR3 -> 0 | DR3: ='[2]312 SO-Klassen'!DS3 -> 0 | DS3: ='[2]312 SO-Klassen'!DT3 -> 0 | DT3: ='[2]312 SO-Klassen'!DU3 -> 0 | DU3: ='[2]312 SO-Klassen'!DV3 -> 0 | DV3: ='[2]312 SO-Klassen'!DW3 -> 0 | DW3: ='[2]312 SO-Klassen'!DX3 -> 0 | DX3: ='[2]312 SO-Klassen'!DY3 -> 0 | DY3: ='[2]312 SO-Klassen'!DZ3 -> 0 | DZ3: ='[2]312 SO-Klassen'!EA3 -> 0 | EA3: ='[2]312 SO-Klassen'!EB3 -> 0 | EB3: ='[2]312 SO-Klassen'!EC3 -> 0 | EC3: ='[2]312 SO-Klassen'!ED3 -> 0 | ED3: ='[2]312 SO-Klassen'!EE3 -> 0 | EE3: ='[2]312 SO-Klassen'!EF3 -> 0 | EF3: ='[2]312 SO-Klassen'!EG3 -> 0 | EG3: ='[2]312 SO-Klassen'!EH3 -> 0 | EH3: ='[2]312 SO-Klassen'!EI3 -> 0 | EI3: ='[2]312 SO-Klassen'!EJ3 -> 0 | EJ3: ='[2]312 SO-Klassen'!EK3 -> 0 | EK3: ='[2]312 SO-Klassen'!EL3 -> 0 | EL3: ='[2]312 SO-Klassen'!EM3 -> 501013 | EM3: ='[2]312 SO-Klassen'!EN3 -> 44475 | EN3: ='[2]312 SO-Klassen'!EO3 -> genehmigt | EO3: ='[2]312 SO-Klassen'!EP3 -> 2021-10-06 | EP3: ='[2]312 SO-Klassen'!EQ3 -> 0 | EQ3: ='[2]312 SO-Klassen'!ER3 -> 0 | ER3: ='[2]312 SO-Klassen'!ES3 -> 0 | ES3: ='[2]312 SO-Klassen'!ET3 -> 5 | ET3: ='[2]312 SO-Klassen'!EU3 -> 0
A4: ='[2]312 SO-Klassen'!B4 -> 2021/22 | B4: ='[2]312 SO-Klassen'!C4 -> 1 | C4: ='[2]312 SO-Klassen'!D4 -> 3 | D4: ='[2]312 SO-Klassen'!E4 -> 501013 | E4: ='[2]312 SO-Klassen'!F4 -> SO Salzburg | F4: ='[2]312 SO-Klassen'!G4 -> 2 | G4: ='[2]312 SO-Klassen'!H4 -> 2021-10-01 | H4: ='[2]312 SO-Klassen'!I4 -> 3 | I4: ='[2]312 SO-Klassen'!J4 -> 06 | J4: ='[2]312 SO-Klassen'!K4 -> 2aFö | K4: ='[2]312 SO-Klassen'!L4 -> 1 | L4: ='[2]312 SO-Klassen'!M4 -> 0 | M4: ='[2]312 SO-Klassen'!N4 -> 0 | N4: ='[2]312 SO-Klassen'!O4 -> 0 | O4: ='[2]312 SO-Klassen'!P4 -> 0 | P4: ='[2]312 SO-Klassen'!Q4 -> 0 | Q4: ='[2]312 SO-Klassen'!R4 -> 1 | R4: ='[2]312 SO-Klassen'!S4 -> 0 | S4: ='[2]312 SO-Klassen'!T4 -> 0 | T4: ='[2]312 SO-Klassen'!U4 -> 0 | U4: ='[2]312 SO-Klassen'!V4 -> 0 | V4: ='[2]312 SO-Klassen'!W4 -> 0 | W4: ='[2]312 SO-Klassen'!X4 -> 0 | X4: ='[2]312 SO-Klassen'!Y4 -> 0 | Y4: ='[2]312 SO-Klassen'!Z4 -> 0 | Z4: ='[2]312 SO-Klassen'!AA4 -> 0 | AA4: ='[2]312 SO-Klassen'!AB4 -> 0 | AB4: ='[2]312 SO-Klassen'!AC4 -> 0 | AC4: ='[2]312 SO-Klassen'!AD4 -> 0 | AD4: ='[2]312 SO-Klassen'!AE4 -> 0 | AE4: ='[2]312 SO-Klassen'!AF4 -> 0 | AF4: ='[2]312 SO-Klassen'!AG4 -> 0 | AG4: ='[2]312 SO-Klassen'!AH4 -> 0 | AH4: ='[2]312 SO-Klassen'!AI4 -> 0 | AI4: ='[2]312 SO-Klassen'!AJ4 -> 0 | AJ4: ='[2]312 SO-Klassen'!AK4 -> 1 | AK4: ='[2]312 SO-Klassen'!AL4 -> 9 | AL4: ='[2]312 SO-Klassen'!AM4 -> 7 | AM4: ='[2]312 SO-Klassen'!AN4 -> 0 | AN4: ='[2]312 SO-Klassen'!AO4 -> 0 | AO4: ='[2]312 SO-Klassen'!AP4 -> 0 | AP4: ='[2]312 SO-Klassen'!AQ4 -> 0 | AQ4: ='[2]312 SO-Klassen'!AR4 -> 0 | AR4: ='[2]312 SO-Klassen'!AS4 -> 0 | AS4: ='[2]312 SO-Klassen'!AT4 -> 0 | AT4: ='[2]312 SO-Klassen'!AU4 -> 0 | AU4: ='[2]312 SO-Klassen'!AV4 -> 0 | AV4: ='[2]312 SO-Klassen'!AW4 -> 3 | AW4: ='[2]312 SO-Klassen'!AX4 -> 0 | AX4: ='[2]312 SO-Klassen'!AY4 -> 0 | AY4: ='[2]312 SO-Klassen'!AZ4 -> 3 | AZ4: ='[2]312 SO-Klassen'!BA4 -> 2 | BA4: ='[2]312 SO-Klassen'!BB4 -> 0 | BB4: ='[2]312 SO-Klassen'!BC4 -> 1 | BC4: ='[2]312 SO-Klassen'!BD4 -> 1 | BD4: ='[2]312 SO-Klassen'!BE4 -> 0 | BE4: ='[2]312 SO-Klassen'!BF4 -> 0 | BF4: ='[2]312 SO-Klassen'!BG4 -> 0 | BG4: ='[2]312 SO-Klassen'!BH4 -> 0 | BH4: ='[2]312 SO-Klassen'!BI4 -> 2 | BI4: ='[2]312 SO-Klassen'!BJ4 -> 2 | BJ4: ='[2]312 SO-Klassen'!BK4 -> 0 | BK4: ='[2]312 SO-Klassen'!BL4 -> 0 | BL4: ='[2]312 SO-Klassen'!BM4 -> 0 | BM4: ='[2]312 SO-Klassen'!BN4 -> 0 | BN4: ='[2]312 SO-Klassen'!BO4 -> 1 | BO4: ='[2]312 SO-Klassen'!BP4 -> 0 | BP4: ='[2]312 SO-Klassen'!BQ4 -> 0 | BQ4: ='[2]312 SO-Klassen'!BR4 -> 0 | BR4: ='[2]312 SO-Klassen'!BS4 -> 0 | BS4: ='[2]312 SO-Klassen'!BT4 -> 0 | BT4: ='[2]312 SO-Klassen'!BU4 -> 0 | BU4: ='[2]312 SO-Klassen'!BV4 -> 1 | BV4: ='[2]312 SO-Klassen'!BW4 -> 0 | BW4: ='[2]312 SO-Klassen'!BX4 -> 0 | BX4: ='[2]312 SO-Klassen'!BY4 -> 0 | BY4: ='[2]312 SO-Klassen'!BZ4 -> 0 | BZ4: ='[2]312 SO-Klassen'!CA4 -> 0 | CA4: ='[2]312 SO-Klassen'!CB4 -> 0 | CB4: ='[2]312 SO-Klassen'!CC4 -> 2 | CC4: ='[2]312 SO-Klassen'!CD4 -> 3 | CD4: ='[2]312 SO-Klassen'!CE4 -> 0 | CE4: ='[2]312 SO-Klassen'!CF4 -> 0 | CF4: ='[2]312 SO-Klassen'!CG4 -> 0 | CG4: ='[2]312 SO-Klassen'!CH4 -> 0 | CH4: ='[2]312 SO-Klassen'!CI4 -> 0 | CI4: ='[2]312 SO-Klassen'!CJ4 -> 0 | CJ4: ='[2]312 SO-Klassen'!CK4 -> 8 | CK4: ='[2]312 SO-Klassen'!CL4 -> 0 | CL4: ='[2]312 SO-Klassen'!CM4 -> 0 | CM4: ='[2]312 SO-Klassen'!CN4 -> 0 | CN4: ='[2]312 SO-Klassen'!CO4 -> 0 | CO4: ='[2]312 SO-Klassen'!CP4 -> 0 | CP4: ='[2]312 SO-Klassen'!CQ4 -> 0 | CQ4: ='[2]312 SO-Klassen'!CR4 -> 0 | CR4: ='[2]312 SO-Klassen'!CS4 -> 0 | CS4: ='[2]312 SO-Klassen'!CT4 -> 0 | CT4: ='[2]312 SO-Klassen'!CU4 -> 1 | CU4: ='[2]312 SO-Klassen'!CV4 -> 0 | CV4: ='[2]312 SO-Klassen'!CW4 -> 0 | CW4: ='[2]312 SO-Klassen'!CX4 -> 0 | CX4: ='[2]312 SO-Klassen'!CY4 -> 0 | CY4: ='[2]312 SO-Klassen'!CZ4 -> 0 | CZ4: ='[2]312 SO-Klassen'!DA4 -> 0 | DA4: ='[2]312 SO-Klassen'!DB4 -> 0 | DB4: ='[2]312 SO-Klassen'!DC4 -> 0 | DC4: ='[2]312 SO-Klassen'!DD4 -> 0 | DD4: ='[2]312 SO-Klassen'!DE4 -> 0 | DE4: ='[2]312 SO-Klassen'!DF4 -> 0 | DF4: ='[2]312 SO-Klassen'!DG4 -> 0 | DG4: ='[2]312 SO-Klassen'!DH4 -> 0 | DH4: ='[2]312 SO-Klassen'!DI4 -> 0 | DI4: ='[2]312 SO-Klassen'!DJ4 -> 0 | DJ4: ='[2]312 SO-Klassen'!DK4 -> 0 | DK4: ='[2]312 SO-Klassen'!DL4 -> 0 | DL4: ='[2]312 SO-Klassen'!DM4 -> 0 | DM4: ='[2]312 SO-Klassen'!DN4 -> 0 | DN4: ='[2]312 SO-Klassen'!DO4 -> 0 | DO4: ='[2]312 SO-Klassen'!DP4 -> 0 | DP4: ='[2]312 SO-Klassen'!DQ4 -> 0 | DQ4: ='[2]312 SO-Klassen'!DR4 -> 0 | DR4: ='[2]312 SO-Klassen'!DS4 -> 0 | DS4: ='[2]312 SO-Klassen'!DT4 -> 0 | DT4: ='[2]312 SO-Klassen'!DU4 -> 0 | DU4: ='[2]312 SO-Klassen'!DV4 -> 0 | DV4: ='[2]312 SO-Klassen'!DW4 -> 0 | DW4: ='[2]312 SO-Klassen'!DX4 -> 0 | DX4: ='[2]312 SO-Klassen'!DY4 -> 0 | DY4: ='[2]312 SO-Klassen'!DZ4 -> 0 | DZ4: ='[2]312 SO-Klassen'!EA4 -> 0 | EA4: ='[2]312 SO-Klassen'!EB4 -> 0 | EB4: ='[2]312 SO-Klassen'!EC4 -> 0 | EC4: ='[2]312 SO-Klassen'!ED4 -> 0 | ED4: ='[2]312 SO-Klassen'!EE4 -> 0 | EE4: ='[2]312 SO-Klassen'!EF4 -> 0 | EF4: ='[2]312 SO-Klassen'!EG4 -> 0 | EG4: ='[2]312 SO-Klassen'!EH4 -> 0 | EH4: ='[2]312 SO-Klassen'!EI4 -> 0 | EI4: ='[2]312 SO-Klassen'!EJ4 -> 0 | EJ4: ='[2]312 SO-Klassen'!EK4 -> 0 | EK4: ='[2]312 SO-Klassen'!EL4 -> 0 | EL4: ='[2]312 SO-Klassen'!EM4 -> 501013 | EM4: ='[2]312 SO-Klassen'!EN4 -> 44475 | EN4: ='[2]312 SO-Klassen'!EO4 -> genehmigt | EO4: ='[2]312 SO-Klassen'!EP4 -> 2021-10-06 | EP4: ='[2]312 SO-Klassen'!EQ4 -> 1 | EQ4: ='[2]312 SO-Klassen'!ER4 -> 0 | ER4: ='[2]312 SO-Klassen'!ES4 -> 0 | ES4: ='[2]312 SO-Klassen'!ET4 -> 2 | ET4: ='[2]312 SO-Klassen'!EU4 -> 0
A5: ='[2]312 SO-Klassen'!B5 -> 2021/22 | B5: ='[2]312 SO-Klassen'!C5 -> 1 | C5: ='[2]312 SO-Klassen'!D5 -> 3 | D5: ='[2]312 SO-Klassen'!E5 -> 501013 | E5: ='[2]312 SO-Klassen'!F5 -> SO Salzburg | F5: ='[2]312 SO-Klassen'!G5 -> 2 | G5: ='[2]312 SO-Klassen'!H5 -> 2021-10-01 | H5: ='[2]312 SO-Klassen'!I5 -> 3 | I5: ='[2]312 SO-Klassen'!J5 -> 07 | J5: ='[2]312 SO-Klassen'!K5 -> 2agk1 | K5: ='[2]312 SO-Klassen'!L5 -> 1 | L5: ='[2]312 SO-Klassen'!M5 -> 0 | M5: ='[2]312 SO-Klassen'!N5 -> 0 | N5: ='[2]312 SO-Klassen'!O5 -> 0 | O5: ='[2]312 SO-Klassen'!P5 -> 0 | P5: ='[2]312 SO-Klassen'!Q5 -> 0 | Q5: ='[2]312 SO-Klassen'!R5 -> 1 | R5: ='[2]312 SO-Klassen'!S5 -> 0 | S5: ='[2]312 SO-Klassen'!T5 -> 0 | T5: ='[2]312 SO-Klassen'!U5 -> 0 | U5: ='[2]312 SO-Klassen'!V5 -> 0 | V5: ='[2]312 SO-Klassen'!W5 -> 0 | W5: ='[2]312 SO-Klassen'!X5 -> 0 | X5: ='[2]312 SO-Klassen'!Y5 -> 0 | Y5: ='[2]312 SO-Klassen'!Z5 -> 0 | Z5: ='[2]312 SO-Klassen'!AA5 -> 0 | AA5: ='[2]312 SO-Klassen'!AB5 -> 0 | AB5: ='[2]312 SO-Klassen'!AC5 -> 1 | AC5: ='[2]312 SO-Klassen'!AD5 -> 1 | AD5: ='[2]312 SO-Klassen'!AE5 -> 0 | AE5: ='[2]312 SO-Klassen'!AF5 -> 0 | AF5: ='[2]312 SO-Klassen'!AG5 -> 0 | AG5: ='[2]312 SO-Klassen'!AH5 -> 0 | AH5: ='[2]312 SO-Klassen'!AI5 -> 0 | AI5: ='[2]312 SO-Klassen'!AJ5 -> 0 | AJ5: ='[2]312 SO-Klassen'!AK5 -> 0 | AK5: ='[2]312 SO-Klassen'!AL5 -> 3 | AL5: ='[2]312 SO-Klassen'!AM5 -> 3 | AM5: ='[2]312 SO-Klassen'!AN5 -> 1 | AN5: ='[2]312 SO-Klassen'!AO5 -> 4 | AO5: ='[2]312 SO-Klassen'!AP5 -> 4 | AP5: ='[2]312 SO-Klassen'!AQ5 -> 0 | AQ5: ='[2]312 SO-Klassen'!AR5 -> 1 | AR5: ='[2]312 SO-Klassen'!AS5 -> 1 | AS5: ='[2]312 SO-Klassen'!AT5 -> 0 | AT5: ='[2]312 SO-Klassen'!AU5 -> 0 | AU5: ='[2]312 SO-Klassen'!AV5 -> 0 | AV5: ='[2]312 SO-Klassen'!AW5 -> 5 | AW5: ='[2]312 SO-Klassen'!AX5 -> 0 | AX5: ='[2]312 SO-Klassen'!AY5 -> 0 | AY5: ='[2]312 SO-Klassen'!AZ5 -> 2 | AZ5: ='[2]312 SO-Klassen'!BA5 -> 2 | BA5: ='[2]312 SO-Klassen'!BB5 -> 0 | BB5: ='[2]312 SO-Klassen'!BC5 -> 0 | BC5: ='[2]312 SO-Klassen'!BD5 -> 0 | BD5: ='[2]312 SO-Klassen'!BE5 -> 0 | BE5: ='[2]312 SO-Klassen'!BF5 -> 2 | BF5: ='[2]312 SO-Klassen'!BG5 -> 1 | BG5: ='[2]312 SO-Klassen'!BH5 -> 0 | BH5: ='[2]312 SO-Klassen'!BI5 -> 1 | BI5: ='[2]312 SO-Klassen'!BJ5 -> 1 | BJ5: ='[2]312 SO-Klassen'!BK5 -> 0 | BK5: ='[2]312 SO-Klassen'!BL5 -> 0 | BL5: ='[2]312 SO-Klassen'!BM5 -> 0 | BM5: ='[2]312 SO-Klassen'!BN5 -> 0 | BN5: ='[2]312 SO-Klassen'!BO5 -> 1 | BO5: ='[2]312 SO-Klassen'!BP5 -> 0 | BP5: ='[2]312 SO-Klassen'!BQ5 -> 0 | BQ5: ='[2]312 SO-Klassen'!BR5 -> 0 | BR5: ='[2]312 SO-Klassen'!BS5 -> 0 | BS5: ='[2]312 SO-Klassen'!BT5 -> 0 | BT5: ='[2]312 SO-Klassen'!BU5 -> 0 | BU5: ='[2]312 SO-Klassen'!BV5 -> 0 | BV5: ='[2]312 SO-Klassen'!BW5 -> 0 | BW5: ='[2]312 SO-Klassen'!BX5 -> 1 | BX5: ='[2]312 SO-Klassen'!BY5 -> 0 | BY5: ='[2]312 SO-Klassen'!BZ5 -> 0 | BZ5: ='[2]312 SO-Klassen'!CA5 -> 0 | CA5: ='[2]312 SO-Klassen'!CB5 -> 1 | CB5: ='[2]312 SO-Klassen'!CC5 -> 1 | CC5: ='[2]312 SO-Klassen'!CD5 -> 2 | CD5: ='[2]312 SO-Klassen'!CE5 -> 0 | CE5: ='[2]312 SO-Klassen'!CF5 -> 0 | CF5: ='[2]312 SO-Klassen'!CG5 -> 0 | CG5: ='[2]312 SO-Klassen'!CH5 -> 1 | CH5: ='[2]312 SO-Klassen'!CI5 -> 0 | CI5: ='[2]312 SO-Klassen'!CJ5 -> 0 | CJ5: ='[2]312 SO-Klassen'!CK5 -> 3 | CK5: ='[2]312 SO-Klassen'!CL5 -> 4 | CL5: ='[2]312 SO-Klassen'!CM5 -> 0 | CM5: ='[2]312 SO-Klassen'!CN5 -> 0 | CN5: ='[2]312 SO-Klassen'!CO5 -> 0 | CO5: ='[2]312 SO-Klassen'!CP5 -> 0 | CP5: ='[2]312 SO-Klassen'!CQ5 -> 0 | CQ5: ='[2]312 SO-Klassen'!CR5 -> 0 | CR5: ='[2]312 SO-Klassen'!CS5 -> 0 | CS5: ='[2]312 SO-Klassen'!CT5 -> 0 | CT5: ='[2]312 SO-Klassen'!CU5 -> 0 | CU5: ='[2]312 SO-Klassen'!CV5 -> 0 | CV5: ='[2]312 SO-Klassen'!CW5 -> 1 | CW5: ='[2]312 SO-Klassen'!CX5 -> 0 | CX5: ='[2]312 SO-Klassen'!CY5 -> 0 | CY5: ='[2]312 SO-Klassen'!CZ5 -> 0 | CZ5: ='[2]312 SO-Klassen'!DA5 -> 0 | DA5: ='[2]312 SO-Klassen'!DB5 -> 0 | DB5: ='[2]312 SO-Klassen'!DC5 -> 0 | DC5: ='[2]312 SO-Klassen'!DD5 -> 0 | DD5: ='[2]312 SO-Klassen'!DE5 -> 0 | DE5: ='[2]312 SO-Klassen'!DF5 -> 0 | DF5: ='[2]312 SO-Klassen'!DG5 -> 0 | DG5: ='[2]312 SO-Klassen'!DH5 -> 0 | DH5: ='[2]312 SO-Klassen'!DI5 -> 0 | DI5: ='[2]312 SO-Klassen'!DJ5 -> 0 | DJ5: ='[2]312 SO-Klassen'!DK5 -> 0 | DK5: ='[2]312 SO-Klassen'!DL5 -> 0 | DL5: ='[2]312 SO-Klassen'!DM5 -> 0 | DM5: ='[2]312 SO-Klassen'!DN5 -> 0 | DN5: ='[2]312 SO-Klassen'!DO5 -> 0 | DO5: ='[2]312 SO-Klassen'!DP5 -> 0 | DP5: ='[2]312 SO-Klassen'!DQ5 -> 0 | DQ5: ='[2]312 SO-Klassen'!DR5 -> 0 | DR5: ='[2]312 SO-Klassen'!DS5 -> 0 | DS5: ='[2]312 SO-Klassen'!DT5 -> 0 | DT5: ='[2]312 SO-Klassen'!DU5 -> 0 | DU5: ='[2]312 SO-Klassen'!DV5 -> 0 | DV5: ='[2]312 SO-Klassen'!DW5 -> 0 | DW5: ='[2]312 SO-Klassen'!DX5 -> 0 | DX5: ='[2]312 SO-Klassen'!DY5 -> 0 | DY5: ='[2]312 SO-Klassen'!DZ5 -> 0 | DZ5: ='[2]312 SO-Klassen'!EA5 -> 0 | EA5: ='[2]312 SO-Klassen'!EB5 -> 0 | EB5: ='[2]312 SO-Klassen'!EC5 -> 0 | EC5: ='[2]312 SO-Klassen'!ED5 -> 0 | ED5: ='[2]312 SO-Klassen'!EE5 -> 0 | EE5: ='[2]312 SO-Klassen'!EF5 -> 0 | EF5: ='[2]312 SO-Klassen'!EG5 -> 0 | EG5: ='[2]312 SO-Klassen'!EH5 -> 0 | EH5: ='[2]312 SO-Klassen'!EI5 -> 0 | EI5: ='[2]312 SO-Klassen'!EJ5 -> 0 | EJ5: ='[2]312 SO-Klassen'!EK5 -> 0 | EK5: ='[2]312 SO-Klassen'!EL5 -> 0 | EL5: ='[2]312 SO-Klassen'!EM5 -> 501013 | EM5: ='[2]312 SO-Klassen'!EN5 -> 44475 | EN5: ='[2]312 SO-Klassen'!EO5 -> genehmigt | EO5: ='[2]312 SO-Klassen'!EP5 -> 2021-10-06 | EP5: ='[2]312 SO-Klassen'!EQ5 -> 0 | EQ5: ='[2]312 SO-Klassen'!ER5 -> 0 | ER5: ='[2]312 SO-Klassen'!ES5 -> 0 | ES5: ='[2]312 SO-Klassen'!ET5 -> 5 | ET5: ='[2]312 SO-Klassen'!EU5 -> 0
A6: ='[2]312 SO-Klassen'!B6 -> 2021/22 | B6: ='[2]312 SO-Klassen'!C6 -> 1 | C6: ='[2]312 SO-Klassen'!D6 -> 3 | D6: ='[2]312 SO-Klassen'!E6 -> 501013 | E6: ='[2]312 SO-Klassen'!F6 -> SO Salzburg | F6: ='[2]312 SO-Klassen'!G6 -> 2 | G6: ='[2]312 SO-Klassen'!H6 -> 2021-10-01 | H6: ='[2]312 SO-Klassen'!I6 -> 3 | I6: ='[2]312 SO-Klassen'!J6 -> 07 | J6: ='[2]312 SO-Klassen'!K6 -> 3MS1 | K6: ='[2]312 SO-Klassen'!L6 -> 1 | L6: ='[2]312 SO-Klassen'!M6 -> 0 | M6: ='[2]312 SO-Klassen'!N6 -> 0 | N6: ='[2]312 SO-Klassen'!O6 -> 0 | O6: ='[2]312 SO-Klassen'!P6 -> 0 | P6: ='[2]312 SO-Klassen'!Q6 -> 0 | Q6: ='[2]312 SO-Klassen'!R6 -> 1 | R6: ='[2]312 SO-Klassen'!S6 -> 0 | S6: ='[2]312 SO-Klassen'!T6 -> 0 | T6: ='[2]312 SO-Klassen'!U6 -> 0 | U6: ='[2]312 SO-Klassen'!V6 -> 0 | V6: ='[2]312 SO-Klassen'!W6 -> 0 | W6: ='[2]312 SO-Klassen'!X6 -> 0 | X6: ='[2]312 SO-Klassen'!Y6 -> 0 | Y6: ='[2]312 SO-Klassen'!Z6 -> 0 | Z6: ='[2]312 SO-Klassen'!AA6 -> 0 | AA6: ='[2]312 SO-Klassen'!AB6 -> 0 | AB6: ='[2]312 SO-Klassen'!AC6 -> 0 | AC6: ='[2]312 SO-Klassen'!AD6 -> 0 | AD6: ='[2]312 SO-Klassen'!AE6 -> 0 | AE6: ='[2]312 SO-Klassen'!AF6 -> 0 | AF6: ='[2]312 SO-Klassen'!AG6 -> 0 | AG6: ='[2]312 SO-Klassen'!AH6 -> 0 | AH6: ='[2]312 SO-Klassen'!AI6 -> 0 | AI6: ='[2]312 SO-Klassen'!AJ6 -> 0 | AJ6: ='[2]312 SO-Klassen'!AK6 -> 0 | AK6: ='[2]312 SO-Klassen'!AL6 -> 0 | AL6: ='[2]312 SO-Klassen'!AM6 -> 0 | AM6: ='[2]312 SO-Klassen'!AN6 -> 1 | AN6: ='[2]312 SO-Klassen'!AO6 -> 14 | AO6: ='[2]312 SO-Klassen'!AP6 -> 9 | AP6: ='[2]312 SO-Klassen'!AQ6 -> 0 | AQ6: ='[2]312 SO-Klassen'!AR6 -> 0 | AR6: ='[2]312 SO-Klassen'!AS6 -> 0 | AS6: ='[2]312 SO-Klassen'!AT6 -> 0 | AT6: ='[2]312 SO-Klassen'!AU6 -> 0 | AU6: ='[2]312 SO-Klassen'!AV6 -> 0 | AV6: ='[2]312 SO-Klassen'!AW6 -> 13 | AW6: ='[2]312 SO-Klassen'!AX6 -> 0 | AX6: ='[2]312 SO-Klassen'!AY6 -> 0 | AY6: ='[2]312 SO-Klassen'!AZ6 -> 3 | AZ6: ='[2]312 SO-Klassen'!BA6 -> 3 | BA6: ='[2]312 SO-Klassen'!BB6 -> 0 | BB6: ='[2]312 SO-Klassen'!BC6 -> 0 | BC6: ='[2]312 SO-Klassen'!BD6 -> 0 | BD6: ='[2]312 SO-Klassen'!BE6 -> 0 | BE6: ='[2]312 SO-Klassen'!BF6 -> 7 | BF6: ='[2]312 SO-Klassen'!BG6 -> 6 | BG6: ='[2]312 SO-Klassen'!BH6 -> 0 | BH6: ='[2]312 SO-Klassen'!BI6 -> 3 | BI6: ='[2]312 SO-Klassen'!BJ6 -> 3 | BJ6: ='[2]312 SO-Klassen'!BK6 -> 0 | BK6: ='[2]312 SO-Klassen'!BL6 -> 0 | BL6: ='[2]312 SO-Klassen'!BM6 -> 0 | BM6: ='[2]312 SO-Klassen'!BN6 -> 0 | BN6: ='[2]312 SO-Klassen'!BO6 -> 1 | BO6: ='[2]312 SO-Klassen'!BP6 -> 0 | BP6: ='[2]312 SO-Klassen'!BQ6 -> 0 | BQ6: ='[2]312 SO-Klassen'!BR6 -> 0 | BR6: ='[2]312 SO-Klassen'!BS6 -> 0 | BS6: ='[2]312 SO-Klassen'!BT6 -> 0 | BT6: ='[2]312 SO-Klassen'!BU6 -> 0 | BU6: ='[2]312 SO-Klassen'!BV6 -> 0 | BV6: ='[2]312 SO-Klassen'!BW6 -> 0 | BW6: ='[2]312 SO-Klassen'!BX6 -> 1 | BX6: ='[2]312 SO-Klassen'!BY6 -> 0 | BY6: ='[2]312 SO-Klassen'!BZ6 -> 0 | BZ6: ='[2]312 SO-Klassen'!CA6 -> 0 | CA6: ='[2]312 SO-Klassen'!CB6 -> 1 | CB6: ='[2]312 SO-Klassen'!CC6 -> 2 | CC6: ='[2]312 SO-Klassen'!CD6 -> 2 | CD6: ='[2]312 SO-Klassen'!CE6 -> 0 | CE6: ='[2]312 SO-Klassen'!CF6 -> 0 | CF6: ='[2]312 SO-Klassen'!CG6 -> 0 | CG6: ='[2]312 SO-Klassen'!CH6 -> 0 | CH6: ='[2]312 SO-Klassen'!CI6 -> 0 | CI6: ='[2]312 SO-Klassen'!CJ6 -> 0 | CJ6: ='[2]312 SO-Klassen'!CK6 -> 0 | CK6: ='[2]312 SO-Klassen'!CL6 -> 7 | CL6: ='[2]312 SO-Klassen'!CM6 -> 0 | CM6: ='[2]312 SO-Klassen'!CN6 -> 0 | CN6: ='[2]312 SO-Klassen'!CO6 -> 0 | CO6: ='[2]312 SO-Klassen'!CP6 -> 0 | CP6: ='[2]312 SO-Klassen'!CQ6 -> 0 | CQ6: ='[2]312 SO-Klassen'!CR6 -> 0 | CR6: ='[2]312 SO-Klassen'!CS6 -> 0 | CS6: ='[2]312 SO-Klassen'!CT6 -> 0 | CT6: ='[2]312 SO-Klassen'!CU6 -> 0 | CU6: ='[2]312 SO-Klassen'!CV6 -> 1 | CV6: ='[2]312 SO-Klassen'!CW6 -> 0 | CW6: ='[2]312 SO-Klassen'!CX6 -> 0 | CX6: ='[2]312 SO-Klassen'!CY6 -> 0 | CY6: ='[2]312 SO-Klassen'!CZ6 -> 0 | CZ6: ='[2]312 SO-Klassen'!DA6 -> 0 | DA6: ='[2]312 SO-Klassen'!DB6 -> 0 | DB6: ='[2]312 SO-Klassen'!DC6 -> 0 | DC6: ='[2]312 SO-Klassen'!DD6 -> 0 | DD6: ='[2]312 SO-Klassen'!DE6 -> 0 | DE6: ='[2]312 SO-Klassen'!DF6 -> 0 | DF6: ='[2]312 SO-Klassen'!DG6 -> 0 | DG6: ='[2]312 SO-Klassen'!DH6 -> 0 | DH6: ='[2]312 SO-Klassen'!DI6 -> 0 | DI6: ='[2]312 SO-Klassen'!DJ6 -> 0 | DJ6: ='[2]312 SO-Klassen'!DK6 -> 0 | DK6: ='[2]312 SO-Klassen'!DL6 -> 0 | DL6: ='[2]312 SO-Klassen'!DM6 -> 0 | DM6: ='[2]312 SO-Klassen'!DN6 -> 0 | DN6: ='[2]312 SO-Klassen'!DO6 -> 0 | DO6: ='[2]312 SO-Klassen'!DP6 -> 0 | DP6: ='[2]312 SO-Klassen'!DQ6 -> 0 | DQ6: ='[2]312 SO-Klassen'!DR6 -> 0 | DR6: ='[2]312 SO-Klassen'!DS6 -> 0 | DS6: ='[2]312 SO-Klassen'!DT6 -> 0 | DT6: ='[2]312 SO-Klassen'!DU6 -> 0 | DU6: ='[2]312 SO-Klassen'!DV6 -> 0 | DV6: ='[2]312 SO-Klassen'!DW6 -> 0 | DW6: ='[2]312 SO-Klassen'!DX6 -> 0 | DX6: ='[2]312 SO-Klassen'!DY6 -> 0 | DY6: ='[2]312 SO-Klassen'!DZ6 -> 0 | DZ6: ='[2]312 SO-Klassen'!EA6 -> 0 | EA6: ='[2]312 SO-Klassen'!EB6 -> 0 | EB6: ='[2]312 SO-Klassen'!EC6 -> 0 | EC6: ='[2]312 SO-Klassen'!ED6 -> 0 | ED6: ='[2]312 SO-Klassen'!EE6 -> 0 | EE6: ='[2]312 SO-Klassen'!EF6 -> 0 | EF6: ='[2]312 SO-Klassen'!EG6 -> 0 | EG6: ='[2]312 SO-Klassen'!EH6 -> 0 | EH6: ='[2]312 SO-Klassen'!EI6 -> 0 | EI6: ='[2]312 SO-Klassen'!EJ6 -> 0 | EJ6: ='[2]312 SO-Klassen'!EK6 -> 0 | EK6: ='[2]312 SO-Klassen'!EL6 -> 0 | EL6: ='[2]312 SO-Klassen'!EM6 -> 501013 | EM6: ='[2]312 SO-Klassen'!EN6 -> 44475 | EN6: ='[2]312 SO-Klassen'!EO6 -> genehmigt | EO6: ='[2]312 SO-Klassen'!EP6 -> 2021-10-06 | EP6: ='[2]312 SO-Klassen'!EQ6 -> 0 | EQ6: ='[2]312 SO-Klassen'!ER6 -> 0 | ER6: ='[2]312 SO-Klassen'!ES6 -> 0 | ES6: ='[2]312 SO-Klassen'!ET6 -> 13 | ET6: ='[2]312 SO-Klassen'!EU6 -> 0
A7: ='[2]312 SO-Klassen'!B7 -> 2021/22 | B7: ='[2]312 SO-Klassen'!C7 -> 1 | C7: ='[2]312 SO-Klassen'!D7 -> 3 | D7: ='[2]312 SO-Klassen'!E7 -> 501013 | E7: ='[2]312 SO-Klassen'!F7 -> SO Salzburg | F7: ='[2]312 SO-Klassen'!G7 -> 2 | G7: ='[2]312 SO-Klassen'!H7 -> 2021-10-01 | H7: ='[2]312 SO-Klassen'!I7 -> 3 | I7: ='[2]312 SO-Klassen'!J7 -> 08 | J7: ='[2]312 SO-Klassen'!K7 -> 1LOK | K7: ='[2]312 SO-Klassen'!L7 -> 1 | L7: ='[2]312 SO-Klassen'!M7 -> 0 | M7: ='[2]312 SO-Klassen'!N7 -> 0 | N7: ='[2]312 SO-Klassen'!O7 -> 0 | O7: ='[2]312 SO-Klassen'!P7 -> 0 | P7: ='[2]312 SO-Klassen'!Q7 -> 0 | Q7: ='[2]312 SO-Klassen'!R7 -> 1 | R7: ='[2]312 SO-Klassen'!S7 -> 0 | S7: ='[2]312 SO-Klassen'!T7 -> 0 | T7: ='[2]312 SO-Klassen'!U7 -> 0 | U7: ='[2]312 SO-Klassen'!V7 -> 0 | V7: ='[2]312 SO-Klassen'!W7 -> 0 | W7: ='[2]312 SO-Klassen'!X7 -> 0 | X7: ='[2]312 SO-Klassen'!Y7 -> 0 | Y7: ='[2]312 SO-Klassen'!Z7 -> 0 | Z7: ='[2]312 SO-Klassen'!AA7 -> 0 | AA7: ='[2]312 SO-Klassen'!AB7 -> 0 | AB7: ='[2]312 SO-Klassen'!AC7 -> 0 | AC7: ='[2]312 SO-Klassen'!AD7 -> 0 | AD7: ='[2]312 SO-Klassen'!AE7 -> 0 | AE7: ='[2]312 SO-Klassen'!AF7 -> 0 | AF7: ='[2]312 SO-Klassen'!AG7 -> 0 | AG7: ='[2]312 SO-Klassen'!AH7 -> 0 | AH7: ='[2]312 SO-Klassen'!AI7 -> 1 | AI7: ='[2]312 SO-Klassen'!AJ7 -> 1 | AJ7: ='[2]312 SO-Klassen'!AK7 -> 0 | AK7: ='[2]312 SO-Klassen'!AL7 -> 1 | AL7: ='[2]312 SO-Klassen'!AM7 -> 1 | AM7: ='[2]312 SO-Klassen'!AN7 -> 0 | AN7: ='[2]312 SO-Klassen'!AO7 -> 4 | AO7: ='[2]312 SO-Klassen'!AP7 -> 4 | AP7: ='[2]312 SO-Klassen'!AQ7 -> 1 | AQ7: ='[2]312 SO-Klassen'!AR7 -> 0 | AR7: ='[2]312 SO-Klassen'!AS7 -> 0 | AS7: ='[2]312 SO-Klassen'!AT7 -> 0 | AT7: ='[2]312 SO-Klassen'!AU7 -> 2 | AU7: ='[2]312 SO-Klassen'!AV7 -> 2 | AV7: ='[2]312 SO-Klassen'!AW7 -> 7 | AW7: ='[2]312 SO-Klassen'!AX7 -> 0 | AX7: ='[2]312 SO-Klassen'!AY7 -> 0 | AY7: ='[2]312 SO-Klassen'!AZ7 -> 0 | AZ7: ='[2]312 SO-Klassen'!BA7 -> 0 | BA7: ='[2]312 SO-Klassen'!BB7 -> 0 | BB7: ='[2]312 SO-Klassen'!BC7 -> 0 | BC7: ='[2]312 SO-Klassen'!BD7 -> 0 | BD7: ='[2]312 SO-Klassen'!BE7 -> 0 | BE7: ='[2]312 SO-Klassen'!BF7 -> 4 | BF7: ='[2]312 SO-Klassen'!BG7 -> 4 | BG7: ='[2]312 SO-Klassen'!BH7 -> 0 | BH7: ='[2]312 SO-Klassen'!BI7 -> 2 | BI7: ='[2]312 SO-Klassen'!BJ7 -> 2 | BJ7: ='[2]312 SO-Klassen'!BK7 -> 0 | BK7: ='[2]312 SO-Klassen'!BL7 -> 0 | BL7: ='[2]312 SO-Klassen'!BM7 -> 0 | BM7: ='[2]312 SO-Klassen'!BN7 -> 0 | BN7: ='[2]312 SO-Klassen'!BO7 -> 1 | BO7: ='[2]312 SO-Klassen'!BP7 -> 0 | BP7: ='[2]312 SO-Klassen'!BQ7 -> 0 | BQ7: ='[2]312 SO-Klassen'!BR7 -> 0 | BR7: ='[2]312 SO-Klassen'!BS7 -> 0 | BS7: ='[2]312 SO-Klassen'!BT7 -> 0 | BT7: ='[2]312 SO-Klassen'!BU7 -> 0 | BU7: ='[2]312 SO-Klassen'!BV7 -> 0 | BV7: ='[2]312 SO-Klassen'!BW7 -> 1 | BW7: ='[2]312 SO-Klassen'!BX7 -> 0 | BX7: ='[2]312 SO-Klassen'!BY7 -> 0 | BY7: ='[2]312 SO-Klassen'!BZ7 -> 0 | BZ7: ='[2]312 SO-Klassen'!CA7 -> 0 | CA7: ='[2]312 SO-Klassen'!CB7 -> 1 | CB7: ='[2]312 SO-Klassen'!CC7 -> 1 | CC7: ='[2]312 SO-Klassen'!CD7 -> 1 | CD7: ='[2]312 SO-Klassen'!CE7 -> 0 | CE7: ='[2]312 SO-Klassen'!CF7 -> 0 | CF7: ='[2]312 SO-Klassen'!CG7 -> 0 | CG7: ='[2]312 SO-Klassen'!CH7 -> 0 | CH7: ='[2]312 SO-Klassen'!CI7 -> 0 | CI7: ='[2]312 SO-Klassen'!CJ7 -> 1 | CJ7: ='[2]312 SO-Klassen'!CK7 -> 1 | CK7: ='[2]312 SO-Klassen'!CL7 -> 3 | CL7: ='[2]312 SO-Klassen'!CM7 -> 0 | CM7: ='[2]312 SO-Klassen'!CN7 -> 0 | CN7: ='[2]312 SO-Klassen'!CO7 -> 0 | CO7: ='[2]312 SO-Klassen'!CP7 -> 0 | CP7: ='[2]312 SO-Klassen'!CQ7 -> 0 | CQ7: ='[2]312 SO-Klassen'!CR7 -> 0 | CR7: ='[2]312 SO-Klassen'!CS7 -> 0 | CS7: ='[2]312 SO-Klassen'!CT7 -> 0 | CT7: ='[2]312 SO-Klassen'!CU7 -> 0 | CU7: ='[2]312 SO-Klassen'!CV7 -> 1 | CV7: ='[2]312 SO-Klassen'!CW7 -> 0 | CW7: ='[2]312 SO-Klassen'!CX7 -> 0 | CX7: ='[2]312 SO-Klassen'!CY7 -> 0 | CY7: ='[2]312 SO-Klassen'!CZ7 -> 0 | CZ7: ='[2]312 SO-Klassen'!DA7 -> 0 | DA7: ='[2]312 SO-Klassen'!DB7 -> 0 | DB7: ='[2]312 SO-Klassen'!DC7 -> 0 | DC7: ='[2]312 SO-Klassen'!DD7 -> 0 | DD7: ='[2]312 SO-Klassen'!DE7 -> 0 | DE7: ='[2]312 SO-Klassen'!DF7 -> 0 | DF7: ='[2]312 SO-Klassen'!DG7 -> 0 | DG7: ='[2]312 SO-Klassen'!DH7 -> 2 | DH7: ='[2]312 SO-Klassen'!DI7 -> 0 | DI7: ='[2]312 SO-Klassen'!DJ7 -> 0 | DJ7: ='[2]312 SO-Klassen'!DK7 -> 0 | DK7: ='[2]312 SO-Klassen'!DL7 -> 0 | DL7: ='[2]312 SO-Klassen'!DM7 -> 0 | DM7: ='[2]312 SO-Klassen'!DN7 -> 0 | DN7: ='[2]312 SO-Klassen'!DO7 -> 0 | DO7: ='[2]312 SO-Klassen'!DP7 -> 0 | DP7: ='[2]312 SO-Klassen'!DQ7 -> 0 | DQ7: ='[2]312 SO-Klassen'!DR7 -> 0 | DR7: ='[2]312 SO-Klassen'!DS7 -> 0 | DS7: ='[2]312 SO-Klassen'!DT7 -> 0 | DT7: ='[2]312 SO-Klassen'!DU7 -> 0 | DU7: ='[2]312 SO-Klassen'!DV7 -> 0 | DV7: ='[2]312 SO-Klassen'!DW7 -> 0 | DW7: ='[2]312 SO-Klassen'!DX7 -> 0 | DX7: ='[2]312 SO-Klassen'!DY7 -> 0 | DY7: ='[2]312 SO-Klassen'!DZ7 -> 0 | DZ7: ='[2]312 SO-Klassen'!EA7 -> 0 | EA7: ='[2]312 SO-Klassen'!EB7 -> 0 | EB7: ='[2]312 SO-Klassen'!EC7 -> 0 | EC7: ='[2]312 SO-Klassen'!ED7 -> 0 | ED7: ='[2]312 SO-Klassen'!EE7 -> 0 | EE7: ='[2]312 SO-Klassen'!EF7 -> 0 | EF7: ='[2]312 SO-Klassen'!EG7 -> 0 | EG7: ='[2]312 SO-Klassen'!EH7 -> 0 | EH7: ='[2]312 SO-Klassen'!EI7 -> 0 | EI7: ='[2]312 SO-Klassen'!EJ7 -> 0 | EJ7: ='[2]312 SO-Klassen'!EK7 -> 0 | EK7: ='[2]312 SO-Klassen'!EL7 -> 0 | EL7: ='[2]312 SO-Klassen'!EM7 -> 501013 | EM7: ='[2]312 SO-Klassen'!EN7 -> 44475 | EN7: ='[2]312 SO-Klassen'!EO7 -> genehmigt | EO7: ='[2]312 SO-Klassen'!EP7 -> 2021-10-06 | EP7: ='[2]312 SO-Klassen'!EQ7 -> 0 | EQ7: ='[2]312 SO-Klassen'!ER7 -> 0 | ER7: ='[2]312 SO-Klassen'!ES7 -> 0 | ES7: ='[2]312 SO-Klassen'!ET7 -> 5 | ET7: ='[2]312 SO-Klassen'!EU7 -> 0
A8: ='[2]312 SO-Klassen'!B8 -> 2021/22 | B8: ='[2]312 SO-Klassen'!C8 -> 1 | C8: ='[2]312 SO-Klassen'!D8 -> 3 | D8: ='[2]312 SO-Klassen'!E8 -> 501013 | E8: ='[2]312 SO-Klassen'!F8 -> SO Salzburg | F8: ='[2]312 SO-Klassen'!G8 -> 2 | G8: ='[2]312 SO-Klassen'!H8 -> 2021-10-01 | H8: ='[2]312 SO-Klassen'!I8 -> 3 | I8: ='[2]312 SO-Klassen'!J8 -> 08 | J8: ='[2]312 SO-Klassen'!K8 -> 2fam1 | K8: ='[2]312 SO-Klassen'!L8 -> 0 | L8: ='[2]312 SO-Klassen'!M8 -> 0 | M8: ='[2]312 SO-Klassen'!N8 -> 0 | N8: ='[2]312 SO-Klassen'!O8 -> 1 | O8: ='[2]312 SO-Klassen'!P8 -> 0 | P8: ='[2]312 SO-Klassen'!Q8 -> 0 | Q8: ='[2]312 SO-Klassen'!R8 -> 1 | R8: ='[2]312 SO-Klassen'!S8 -> 0 | S8: ='[2]312 SO-Klassen'!T8 -> 0 | T8: ='[2]312 SO-Klassen'!U8 -> 0 | U8: ='[2]312 SO-Klassen'!V8 -> 0 | V8: ='[2]312 SO-Klassen'!W8 -> 0 | W8: ='[2]312 SO-Klassen'!X8 -> 0 | X8: ='[2]312 SO-Klassen'!Y8 -> 0 | Y8: ='[2]312 SO-Klassen'!Z8 -> 0 | Z8: ='[2]312 SO-Klassen'!AA8 -> 0 | AA8: ='[2]312 SO-Klassen'!AB8 -> 0 | AB8: ='[2]312 SO-Klassen'!AC8 -> 1 | AC8: ='[2]312 SO-Klassen'!AD8 -> 1 | AD8: ='[2]312 SO-Klassen'!AE8 -> 0 | AE8: ='[2]312 SO-Klassen'!AF8 -> 1 | AF8: ='[2]312 SO-Klassen'!AG8 -> 1 | AG8: ='[2]312 SO-Klassen'!AH8 -> 0 | AH8: ='[2]312 SO-Klassen'!AI8 -> 0 | AI8: ='[2]312 SO-Klassen'!AJ8 -> 0 | AJ8: ='[2]312 SO-Klassen'!AK8 -> 0 | AK8: ='[2]312 SO-Klassen'!AL8 -> 3 | AL8: ='[2]312 SO-Klassen'!AM8 -> 3 | AM8: ='[2]312 SO-Klassen'!AN8 -> 0 | AN8: ='[2]312 SO-Klassen'!AO8 -> 2 | AO8: ='[2]312 SO-Klassen'!AP8 -> 2 | AP8: ='[2]312 SO-Klassen'!AQ8 -> 1 | AQ8: ='[2]312 SO-Klassen'!AR8 -> 2 | AR8: ='[2]312 SO-Klassen'!AS8 -> 2 | AS8: ='[2]312 SO-Klassen'!AT8 -> 0 | AT8: ='[2]312 SO-Klassen'!AU8 -> 1 | AU8: ='[2]312 SO-Klassen'!AV8 -> 1 | AV8: ='[2]312 SO-Klassen'!AW8 -> 5 | AW8: ='[2]312 SO-Klassen'!AX8 -> 0 | AX8: ='[2]312 SO-Klassen'!AY8 -> 0 | AY8: ='[2]312 SO-Klassen'!AZ8 -> 3 | AZ8: ='[2]312 SO-Klassen'!BA8 -> 2 | BA8: ='[2]312 SO-Klassen'!BB8 -> 0 | BB8: ='[2]312 SO-Klassen'!BC8 -> 0 | BC8: ='[2]312 SO-Klassen'!BD8 -> 0 | BD8: ='[2]312 SO-Klassen'!BE8 -> 0 | BE8: ='[2]312 SO-Klassen'!BF8 -> 3 | BF8: ='[2]312 SO-Klassen'!BG8 -> 2 | BG8: ='[2]312 SO-Klassen'!BH8 -> 0 | BH8: ='[2]312 SO-Klassen'!BI8 -> 1 | BI8: ='[2]312 SO-Klassen'!BJ8 -> 1 | BJ8: ='[2]312 SO-Klassen'!BK8 -> 0 | BK8: ='[2]312 SO-Klassen'!BL8 -> 0 | BL8: ='[2]312 SO-Klassen'!BM8 -> 0 | BM8: ='[2]312 SO-Klassen'!BN8 -> 0 | BN8: ='[2]312 SO-Klassen'!BO8 -> 1 | BO8: ='[2]312 SO-Klassen'!BP8 -> 0 | BP8: ='[2]312 SO-Klassen'!BQ8 -> 0 | BQ8: ='[2]312 SO-Klassen'!BR8 -> 0 | BR8: ='[2]312 SO-Klassen'!BS8 -> 0 | BS8: ='[2]312 SO-Klassen'!BT8 -> 0 | BT8: ='[2]312 SO-Klassen'!BU8 -> 0 | BU8: ='[2]312 SO-Klassen'!BV8 -> 0 | BV8: ='[2]312 SO-Klassen'!BW8 -> 0 | BW8: ='[2]312 SO-Klassen'!BX8 -> 0 | BX8: ='[2]312 SO-Klassen'!BY8 -> 1 | BY8: ='[2]312 SO-Klassen'!BZ8 -> 0 | BZ8: ='[2]312 SO-Klassen'!CA8 -> 2 | CA8: ='[2]312 SO-Klassen'!CB8 -> 0 | CB8: ='[2]312 SO-Klassen'!CC8 -> 2 | CC8: ='[2]312 SO-Klassen'!CD8 -> 2 | CD8: ='[2]312 SO-Klassen'!CE8 -> 0 | CE8: ='[2]312 SO-Klassen'!CF8 -> 0 | CF8: ='[2]312 SO-Klassen'!CG8 -> 0 | CG8: ='[2]312 SO-Klassen'!CH8 -> 1 | CH8: ='[2]312 SO-Klassen'!CI8 -> 1 | CI8: ='[2]312 SO-Klassen'!CJ8 -> 0 | CJ8: ='[2]312 SO-Klassen'!CK8 -> 1 | CK8: ='[2]312 SO-Klassen'!CL8 -> 0 | CL8: ='[2]312 SO-Klassen'!CM8 -> 0 | CM8: ='[2]312 SO-Klassen'!CN8 -> 0 | CN8: ='[2]312 SO-Klassen'!CO8 -> 0 | CO8: ='[2]312 SO-Klassen'!CP8 -> 0 | CP8: ='[2]312 SO-Klassen'!CQ8 -> 0 | CQ8: ='[2]312 SO-Klassen'!CR8 -> 0 | CR8: ='[2]312 SO-Klassen'!CS8 -> 0 | CS8: ='[2]312 SO-Klassen'!CT8 -> 0 | CT8: ='[2]312 SO-Klassen'!CU8 -> 0 | CU8: ='[2]312 SO-Klassen'!CV8 -> 0 | CV8: ='[2]312 SO-Klassen'!CW8 -> 0 | CW8: ='[2]312 SO-Klassen'!CX8 -> 0 | CX8: ='[2]312 SO-Klassen'!CY8 -> 0 | CY8: ='[2]312 SO-Klassen'!CZ8 -> 0 | CZ8: ='[2]312 SO-Klassen'!DA8 -> 0 | DA8: ='[2]312 SO-Klassen'!DB8 -> 0 | DB8: ='[2]312 SO-Klassen'!DC8 -> 0 | DC8: ='[2]312 SO-Klassen'!DD8 -> 0 | DD8: ='[2]312 SO-Klassen'!DE8 -> 2 | DE8: ='[2]312 SO-Klassen'!DF8 -> 2 | DF8: ='[2]312 SO-Klassen'!DG8 -> 2 | DG8: ='[2]312 SO-Klassen'!DH8 -> 1 | DH8: ='[2]312 SO-Klassen'!DI8 -> 0 | DI8: ='[2]312 SO-Klassen'!DJ8 -> 0 | DJ8: ='[2]312 SO-Klassen'!DK8 -> 0 | DK8: ='[2]312 SO-Klassen'!DL8 -> 0 | DL8: ='[2]312 SO-Klassen'!DM8 -> 0 | DM8: ='[2]312 SO-Klassen'!DN8 -> 0 | DN8: ='[2]312 SO-Klassen'!DO8 -> 0 | DO8: ='[2]312 SO-Klassen'!DP8 -> 0 | DP8: ='[2]312 SO-Klassen'!DQ8 -> 0 | DQ8: ='[2]312 SO-Klassen'!DR8 -> 0 | DR8: ='[2]312 SO-Klassen'!DS8 -> 0 | DS8: ='[2]312 SO-Klassen'!DT8 -> 0 | DT8: ='[2]312 SO-Klassen'!DU8 -> 0 | DU8: ='[2]312 SO-Klassen'!DV8 -> 0 | DV8: ='[2]312 SO-Klassen'!DW8 -> 0 | DW8: ='[2]312 SO-Klassen'!DX8 -> 0 | DX8: ='[2]312 SO-Klassen'!DY8 -> 0 | DY8: ='[2]312 SO-Klassen'!DZ8 -> 0 | DZ8: ='[2]312 SO-Klassen'!EA8 -> 0 | EA8: ='[2]312 SO-Klassen'!EB8 -> 0 | EB8: ='[2]312 SO-Klassen'!EC8 -> 0 | EC8: ='[2]312 SO-Klassen'!ED8 -> 0 | ED8: ='[2]312 SO-Klassen'!EE8 -> 0 | EE8: ='[2]312 SO-Klassen'!EF8 -> 0 | EF8: ='[2]312 SO-Klassen'!EG8 -> 0 | EG8: ='[2]312 SO-Klassen'!EH8 -> 0 | EH8: ='[2]312 SO-Klassen'!EI8 -> 0 | EI8: ='[2]312 SO-Klassen'!EJ8 -> 0 | EJ8: ='[2]312 SO-Klassen'!EK8 -> 0 | EK8: ='[2]312 SO-Klassen'!EL8 -> 0 | EL8: ='[2]312 SO-Klassen'!EM8 -> 501013 | EM8: ='[2]312 SO-Klassen'!EN8 -> 44475 | EN8: ='[2]312 SO-Klassen'!EO8 -> genehmigt | EO8: ='[2]312 SO-Klassen'!EP8 -> 2021-10-06 | EP8: ='[2]312 SO-Klassen'!EQ8 -> 0 | EQ8: ='[2]312 SO-Klassen'!ER8 -> 0 | ER8: ='[2]312 SO-Klassen'!ES8 -> 0 | ES8: ='[2]312 SO-Klassen'!ET8 -> 5 | ET8: ='[2]312 SO-Klassen'!EU8 -> 0
A9: ='[2]312 SO-Klassen'!B9 -> 2021/22 | B9: ='[2]312 SO-Klassen'!C9 -> 1 | C9: ='[2]312 SO-Klassen'!D9 -> 3 | D9: ='[2]312 SO-Klassen'!E9 -> 501013 | E9: ='[2]312 SO-Klassen'!F9 -> SO Salzburg | F9: ='[2]312 SO-Klassen'!G9 -> 2 | G9: ='[2]312 SO-Klassen'!H9 -> 2021-10-01 | H9: ='[2]312 SO-Klassen'!I9 -> 3 | I9: ='[2]312 SO-Klassen'!J9 -> 08 | J9: ='[2]312 SO-Klassen'!K9 -> 2fam2 | K9: ='[2]312 SO-Klassen'!L9 -> 0 | L9: ='[2]312 SO-Klassen'!M9 -> 0 | M9: ='[2]312 SO-Klassen'!N9 -> 0 | N9: ='[2]312 SO-Klassen'!O9 -> 1 | O9: ='[2]312 SO-Klassen'!P9 -> 0 | P9: ='[2]312 SO-Klassen'!Q9 -> 0 | Q9: ='[2]312 SO-Klassen'!R9 -> 1 | R9: ='[2]312 SO-Klassen'!S9 -> 0 | S9: ='[2]312 SO-Klassen'!T9 -> 0 | T9: ='[2]312 SO-Klassen'!U9 -> 0 | U9: ='[2]312 SO-Klassen'!V9 -> 0 | V9: ='[2]312 SO-Klassen'!W9 -> 0 | W9: ='[2]312 SO-Klassen'!X9 -> 0 | X9: ='[2]312 SO-Klassen'!Y9 -> 0 | Y9: ='[2]312 SO-Klassen'!Z9 -> 0 | Z9: ='[2]312 SO-Klassen'!AA9 -> 0 | AA9: ='[2]312 SO-Klassen'!AB9 -> 0 | AB9: ='[2]312 SO-Klassen'!AC9 -> 2 | AC9: ='[2]312 SO-Klassen'!AD9 -> 2 | AD9: ='[2]312 SO-Klassen'!AE9 -> 0 | AE9: ='[2]312 SO-Klassen'!AF9 -> 3 | AF9: ='[2]312 SO-Klassen'!AG9 -> 3 | AG9: ='[2]312 SO-Klassen'!AH9 -> 0 | AH9: ='[2]312 SO-Klassen'!AI9 -> 1 | AI9: ='[2]312 SO-Klassen'!AJ9 -> 1 | AJ9: ='[2]312 SO-Klassen'!AK9 -> 0 | AK9: ='[2]312 SO-Klassen'!AL9 -> 5 | AL9: ='[2]312 SO-Klassen'!AM9 -> 5 | AM9: ='[2]312 SO-Klassen'!AN9 -> 0 | AN9: ='[2]312 SO-Klassen'!AO9 -> 0 | AO9: ='[2]312 SO-Klassen'!AP9 -> 0 | AP9: ='[2]312 SO-Klassen'!AQ9 -> 1 | AQ9: ='[2]312 SO-Klassen'!AR9 -> 0 | AR9: ='[2]312 SO-Klassen'!AS9 -> 0 | AS9: ='[2]312 SO-Klassen'!AT9 -> 0 | AT9: ='[2]312 SO-Klassen'!AU9 -> 0 | AU9: ='[2]312 SO-Klassen'!AV9 -> 0 | AV9: ='[2]312 SO-Klassen'!AW9 -> 5 | AW9: ='[2]312 SO-Klassen'!AX9 -> 0 | AX9: ='[2]312 SO-Klassen'!AY9 -> 0 | AY9: ='[2]312 SO-Klassen'!AZ9 -> 4 | AZ9: ='[2]312 SO-Klassen'!BA9 -> 1 | BA9: ='[2]312 SO-Klassen'!BB9 -> 0 | BB9: ='[2]312 SO-Klassen'!BC9 -> 1 | BC9: ='[2]312 SO-Klassen'!BD9 -> 1 | BD9: ='[2]312 SO-Klassen'!BE9 -> 0 | BE9: ='[2]312 SO-Klassen'!BF9 -> 4 | BF9: ='[2]312 SO-Klassen'!BG9 -> 0 | BG9: ='[2]312 SO-Klassen'!BH9 -> 0 | BH9: ='[2]312 SO-Klassen'!BI9 -> 1 | BI9: ='[2]312 SO-Klassen'!BJ9 -> 1 | BJ9: ='[2]312 SO-Klassen'!BK9 -> 0 | BK9: ='[2]312 SO-Klassen'!BL9 -> 0 | BL9: ='[2]312 SO-Klassen'!BM9 -> 0 | BM9: ='[2]312 SO-Klassen'!BN9 -> 0 | BN9: ='[2]312 SO-Klassen'!BO9 -> 1 | BO9: ='[2]312 SO-Klassen'!BP9 -> 0 | BP9: ='[2]312 SO-Klassen'!BQ9 -> 0 | BQ9: ='[2]312 SO-Klassen'!BR9 -> 0 | BR9: ='[2]312 SO-Klassen'!BS9 -> 0 | BS9: ='[2]312 SO-Klassen'!BT9 -> 0 | BT9: ='[2]312 SO-Klassen'!BU9 -> 0 | BU9: ='[2]312 SO-Klassen'!BV9 -> 0 | BV9: ='[2]312 SO-Klassen'!BW9 -> 0 | BW9: ='[2]312 SO-Klassen'!BX9 -> 0 | BX9: ='[2]312 SO-Klassen'!BY9 -> 0 | BY9: ='[2]312 SO-Klassen'!BZ9 -> 0 | BZ9: ='[2]312 SO-Klassen'!CA9 -> 0 | CA9: ='[2]312 SO-Klassen'!CB9 -> 1 | CB9: ='[2]312 SO-Klassen'!CC9 -> 1 | CC9: ='[2]312 SO-Klassen'!CD9 -> 4 | CD9: ='[2]312 SO-Klassen'!CE9 -> 0 | CE9: ='[2]312 SO-Klassen'!CF9 -> 0 | CF9: ='[2]312 SO-Klassen'!CG9 -> 0 | CG9: ='[2]312 SO-Klassen'!CH9 -> 1 | CH9: ='[2]312 SO-Klassen'!CI9 -> 3 | CI9: ='[2]312 SO-Klassen'!CJ9 -> 1 | CJ9: ='[2]312 SO-Klassen'!CK9 -> 2 | CK9: ='[2]312 SO-Klassen'!CL9 -> 0 | CL9: ='[2]312 SO-Klassen'!CM9 -> 0 | CM9: ='[2]312 SO-Klassen'!CN9 -> 0 | CN9: ='[2]312 SO-Klassen'!CO9 -> 0 | CO9: ='[2]312 SO-Klassen'!CP9 -> 0 | CP9: ='[2]312 SO-Klassen'!CQ9 -> 0 | CQ9: ='[2]312 SO-Klassen'!CR9 -> 0 | CR9: ='[2]312 SO-Klassen'!CS9 -> 0 | CS9: ='[2]312 SO-Klassen'!CT9 -> 0 | CT9: ='[2]312 SO-Klassen'!CU9 -> 1 | CU9: ='[2]312 SO-Klassen'!CV9 -> 0 | CV9: ='[2]312 SO-Klassen'!CW9 -> 0 | CW9: ='[2]312 SO-Klassen'!CX9 -> 0 | CX9: ='[2]312 SO-Klassen'!CY9 -> 0 | CY9: ='[2]312 SO-Klassen'!CZ9 -> 0 | CZ9: ='[2]312 SO-Klassen'!DA9 -> 0 | DA9: ='[2]312 SO-Klassen'!DB9 -> 1 | DB9: ='[2]312 SO-Klassen'!DC9 -> 0 | DC9: ='[2]312 SO-Klassen'!DD9 -> 0 | DD9: ='[2]312 SO-Klassen'!DE9 -> 2 | DE9: ='[2]312 SO-Klassen'!DF9 -> 0 | DF9: ='[2]312 SO-Klassen'!DG9 -> 0 | DG9: ='[2]312 SO-Klassen'!DH9 -> 0 | DH9: ='[2]312 SO-Klassen'!DI9 -> 0 | DI9: ='[2]312 SO-Klassen'!DJ9 -> 0 | DJ9: ='[2]312 SO-Klassen'!DK9 -> 0 | DK9: ='[2]312 SO-Klassen'!DL9 -> 0 | DL9: ='[2]312 SO-Klassen'!DM9 -> 0 | DM9: ='[2]312 SO-Klassen'!DN9 -> 0 | DN9: ='[2]312 SO-Klassen'!DO9 -> 0 | DO9: ='[2]312 SO-Klassen'!DP9 -> 0 | DP9: ='[2]312 SO-Klassen'!DQ9 -> 0 | DQ9: ='[2]312 SO-Klassen'!DR9 -> 0 | DR9: ='[2]312 SO-Klassen'!DS9 -> 0 | DS9: ='[2]312 SO-Klassen'!DT9 -> 0 | DT9: ='[2]312 SO-Klassen'!DU9 -> 0 | DU9: ='[2]312 SO-Klassen'!DV9 -> 0 | DV9: ='[2]312 SO-Klassen'!DW9 -> 0 | DW9: ='[2]312 SO-Klassen'!DX9 -> 0 | DX9: ='[2]312 SO-Klassen'!DY9 -> 0 | DY9: ='[2]312 SO-Klassen'!DZ9 -> 0 | DZ9: ='[2]312 SO-Klassen'!EA9 -> 0 | EA9: ='[2]312 SO-Klassen'!EB9 -> 0 | EB9: ='[2]312 SO-Klassen'!EC9 -> 0 | EC9: ='[2]312 SO-Klassen'!ED9 -> 0 | ED9: ='[2]312 SO-Klassen'!EE9 -> 0 | EE9: ='[2]312 SO-Klassen'!EF9 -> 0 | EF9: ='[2]312 SO-Klassen'!EG9 -> 0 | EG9: ='[2]312 SO-Klassen'!EH9 -> 0 | EH9: ='[2]312 SO-Klassen'!EI9 -> 0 | EI9: ='[2]312 SO-Klassen'!EJ9 -> 0 | EJ9: ='[2]312 SO-Klassen'!EK9 -> 0 | EK9: ='[2]312 SO-Klassen'!EL9 -> 0 | EL9: ='[2]312 SO-Klassen'!EM9 -> 501013 | EM9: ='[2]312 SO-Klassen'!EN9 -> 44475 | EN9: ='[2]312 SO-Klassen'!EO9 -> genehmigt | EO9: ='[2]312 SO-Klassen'!EP9 -> 2021-10-06 | EP9: ='[2]312 SO-Klassen'!EQ9 -> 0 | EQ9: ='[2]312 SO-Klassen'!ER9 -> 0 | ER9: ='[2]312 SO-Klassen'!ES9 -> 0 | ES9: ='[2]312 SO-Klassen'!ET9 -> 5 | ET9: ='[2]312 SO-Klassen'!EU9 -> 0
A10: ='[2]312 SO-Klassen'!B10 -> 2021/22 | B10: ='[2]312 SO-Klassen'!C10 -> 1 | C10: ='[2]312 SO-Klassen'!D10 -> 3 | D10: ='[2]312 SO-Klassen'!E10 -> 501013 | E10: ='[2]312 SO-Klassen'!F10 -> SO Salzburg | F10: ='[2]312 SO-Klassen'!G10 -> 2 | G10: ='[2]312 SO-Klassen'!H10 -> 2021-10-01 | H10: ='[2]312 SO-Klassen'!I10 -> 3 | I10: ='[2]312 SO-Klassen'!J10 -> 08 | J10: ='[2]312 SO-Klassen'!K10 -> 4MS1 | K10: ='[2]312 SO-Klassen'!L10 -> 1 | L10: ='[2]312 SO-Klassen'!M10 -> 0 | M10: ='[2]312 SO-Klassen'!N10 -> 0 | N10: ='[2]312 SO-Klassen'!O10 -> 0 | O10: ='[2]312 SO-Klassen'!P10 -> 0 | P10: ='[2]312 SO-Klassen'!Q10 -> 0 | Q10: ='[2]312 SO-Klassen'!R10 -> 1 | R10: ='[2]312 SO-Klassen'!S10 -> 0 | S10: ='[2]312 SO-Klassen'!T10 -> 0 | T10: ='[2]312 SO-Klassen'!U10 -> 0 | U10: ='[2]312 SO-Klassen'!V10 -> 0 | V10: ='[2]312 SO-Klassen'!W10 -> 0 | W10: ='[2]312 SO-Klassen'!X10 -> 0 | X10: ='[2]312 SO-Klassen'!Y10 -> 0 | Y10: ='[2]312 SO-Klassen'!Z10 -> 0 | Z10: ='[2]312 SO-Klassen'!AA10 -> 0 | AA10: ='[2]312 SO-Klassen'!AB10 -> 0 | AB10: ='[2]312 SO-Klassen'!AC10 -> 0 | AC10: ='[2]312 SO-Klassen'!AD10 -> 0 | AD10: ='[2]312 SO-Klassen'!AE10 -> 0 | AE10: ='[2]312 SO-Klassen'!AF10 -> 0 | AF10: ='[2]312 SO-Klassen'!AG10 -> 0 | AG10: ='[2]312 SO-Klassen'!AH10 -> 0 | AH10: ='[2]312 SO-Klassen'!AI10 -> 0 | AI10: ='[2]312 SO-Klassen'!AJ10 -> 0 | AJ10: ='[2]312 SO-Klassen'!AK10 -> 0 | AK10: ='[2]312 SO-Klassen'!AL10 -> 0 | AL10: ='[2]312 SO-Klassen'!AM10 -> 0 | AM10: ='[2]312 SO-Klassen'!AN10 -> 0 | AN10: ='[2]312 SO-Klassen'!AO10 -> 0 | AO10: ='[2]312 SO-Klassen'!AP10 -> 0 | AP10: ='[2]312 SO-Klassen'!AQ10 -> 1 | AQ10: ='[2]312 SO-Klassen'!AR10 -> 10 | AR10: ='[2]312 SO-Klassen'!AS10 -> 7 | AS10: ='[2]312 SO-Klassen'!AT10 -> 0 | AT10: ='[2]312 SO-Klassen'!AU10 -> 0 | AU10: ='[2]312 SO-Klassen'!AV10 -> 0 | AV10: ='[2]312 SO-Klassen'!AW10 -> 6 | AW10: ='[2]312 SO-Klassen'!AX10 -> 0 | AX10: ='[2]312 SO-Klassen'!AY10 -> 0 | AY10: ='[2]312 SO-Klassen'!AZ10 -> 3 | AZ10: ='[2]312 SO-Klassen'!BA10 -> 2 | BA10: ='[2]312 SO-Klassen'!BB10 -> 0 | BB10: ='[2]312 SO-Klassen'!BC10 -> 0 | BC10: ='[2]312 SO-Klassen'!BD10 -> 0 | BD10: ='[2]312 SO-Klassen'!BE10 -> 0 | BE10: ='[2]312 SO-Klassen'!BF10 -> 4 | BF10: ='[2]312 SO-Klassen'!BG10 -> 1 | BG10: ='[2]312 SO-Klassen'!BH10 -> 0 | BH10: ='[2]312 SO-Klassen'!BI10 -> 0 | BI10: ='[2]312 SO-Klassen'!BJ10 -> 0 | BJ10: ='[2]312 SO-Klassen'!BK10 -> 0 | BK10: ='[2]312 SO-Klassen'!BL10 -> 0 | BL10: ='[2]312 SO-Klassen'!BM10 -> 0 | BM10: ='[2]312 SO-Klassen'!BN10 -> 0 | BN10: ='[2]312 SO-Klassen'!BO10 -> 1 | BO10: ='[2]312 SO-Klassen'!BP10 -> 0 | BP10: ='[2]312 SO-Klassen'!BQ10 -> 0 | BQ10: ='[2]312 SO-Klassen'!BR10 -> 0 | BR10: ='[2]312 SO-Klassen'!BS10 -> 0 | BS10: ='[2]312 SO-Klassen'!BT10 -> 0 | BT10: ='[2]312 SO-Klassen'!BU10 -> 0 | BU10: ='[2]312 SO-Klassen'!BV10 -> 1 | BV10: ='[2]312 SO-Klassen'!BW10 -> 0 | BW10: ='[2]312 SO-Klassen'!BX10 -> 0 | BX10: ='[2]312 SO-Klassen'!BY10 -> 0 | BY10: ='[2]312 SO-Klassen'!BZ10 -> 0 | BZ10: ='[2]312 SO-Klassen'!CA10 -> 1 | CA10: ='[2]312 SO-Klassen'!CB10 -> 2 | CB10: ='[2]312 SO-Klassen'!CC10 -> 0 | CC10: ='[2]312 SO-Klassen'!CD10 -> 0 | CD10: ='[2]312 SO-Klassen'!CE10 -> 0 | CE10: ='[2]312 SO-Klassen'!CF10 -> 0 | CF10: ='[2]312 SO-Klassen'!CG10 -> 0 | CG10: ='[2]312 SO-Klassen'!CH10 -> 0 | CH10: ='[2]312 SO-Klassen'!CI10 -> 0 | CI10: ='[2]312 SO-Klassen'!CJ10 -> 0 | CJ10: ='[2]312 SO-Klassen'!CK10 -> 0 | CK10: ='[2]312 SO-Klassen'!CL10 -> 0 | CL10: ='[2]312 SO-Klassen'!CM10 -> 5 | CM10: ='[2]312 SO-Klassen'!CN10 -> 0 | CN10: ='[2]312 SO-Klassen'!CO10 -> 0 | CO10: ='[2]312 SO-Klassen'!CP10 -> 0 | CP10: ='[2]312 SO-Klassen'!CQ10 -> 0 | CQ10: ='[2]312 SO-Klassen'!CR10 -> 0 | CR10: ='[2]312 SO-Klassen'!CS10 -> 0 | CS10: ='[2]312 SO-Klassen'!CT10 -> 0 | CT10: ='[2]312 SO-Klassen'!CU10 -> 0 | CU10: ='[2]312 SO-Klassen'!CV10 -> 0 | CV10: ='[2]312 SO-Klassen'!CW10 -> 3 | CW10: ='[2]312 SO-Klassen'!CX10 -> 0 | CX10: ='[2]312 SO-Klassen'!CY10 -> 0 | CY10: ='[2]312 SO-Klassen'!CZ10 -> 0 | CZ10: ='[2]312 SO-Klassen'!DA10 -> 0 | DA10: ='[2]312 SO-Klassen'!DB10 -> 0 | DB10: ='[2]312 SO-Klassen'!DC10 -> 0 | DC10: ='[2]312 SO-Klassen'!DD10 -> 0 | DD10: ='[2]312 SO-Klassen'!DE10 -> 0 | DE10: ='[2]312 SO-Klassen'!DF10 -> 0 | DF10: ='[2]312 SO-Klassen'!DG10 -> 0 | DG10: ='[2]312 SO-Klassen'!DH10 -> 0 | DH10: ='[2]312 SO-Klassen'!DI10 -> 0 | DI10: ='[2]312 SO-Klassen'!DJ10 -> 0 | DJ10: ='[2]312 SO-Klassen'!DK10 -> 0 | DK10: ='[2]312 SO-Klassen'!DL10 -> 0 | DL10: ='[2]312 SO-Klassen'!DM10 -> 0 | DM10: ='[2]312 SO-Klassen'!DN10 -> 0 | DN10: ='[2]312 SO-Klassen'!DO10 -> 0 | DO10: ='[2]312 SO-Klassen'!DP10 -> 0 | DP10: ='[2]312 SO-Klassen'!DQ10 -> 0 | DQ10: ='[2]312 SO-Klassen'!DR10 -> 0 | DR10: ='[2]312 SO-Klassen'!DS10 -> 0 | DS10: ='[2]312 SO-Klassen'!DT10 -> 0 | DT10: ='[2]312 SO-Klassen'!DU10 -> 0 | DU10: ='[2]312 SO-Klassen'!DV10 -> 0 | DV10: ='[2]312 SO-Klassen'!DW10 -> 0 | DW10: ='[2]312 SO-Klassen'!DX10 -> 0 | DX10: ='[2]312 SO-Klassen'!DY10 -> 0 | DY10: ='[2]312 SO-Klassen'!DZ10 -> 0 | DZ10: ='[2]312 SO-Klassen'!EA10 -> 0 | EA10: ='[2]312 SO-Klassen'!EB10 -> 0 | EB10: ='[2]312 SO-Klassen'!EC10 -> 0 | EC10: ='[2]312 SO-Klassen'!ED10 -> 0 | ED10: ='[2]312 SO-Klassen'!EE10 -> 0 | EE10: ='[2]312 SO-Klassen'!EF10 -> 0 | EF10: ='[2]312 SO-Klassen'!EG10 -> 0 | EG10: ='[2]312 SO-Klassen'!EH10 -> 0 | EH10: ='[2]312 SO-Klassen'!EI10 -> 0 | EI10: ='[2]312 SO-Klassen'!EJ10 -> 0 | EJ10: ='[2]312 SO-Klassen'!EK10 -> 0 | EK10: ='[2]312 SO-Klassen'!EL10 -> 0 | EL10: ='[2]312 SO-Klassen'!EM10 -> 501013 | EM10: ='[2]312 SO-Klassen'!EN10 -> 44475 | EN10: ='[2]312 SO-Klassen'!EO10 -> genehmigt | EO10: ='[2]312 SO-Klassen'!EP10 -> 2021-10-06 | EP10: ='[2]312 SO-Klassen'!EQ10 -> 1 | EQ10: ='[2]312 SO-Klassen'!ER10 -> 0 | ER10: ='[2]312 SO-Klassen'!ES10 -> 0 | ES10: ='[2]312 SO-Klassen'!ET10 -> 6 | ET10: ='[2]312 SO-Klassen'!EU10 -> 0
A11: ='[2]312 SO-Klassen'!B11 -> 2021/22 | B11: ='[2]312 SO-Klassen'!C11 -> 1 | C11: ='[2]312 SO-Klassen'!D11 -> 3 | D11: ='[2]312 SO-Klassen'!E11 -> 501013 | E11: ='[2]312 SO-Klassen'!F11 -> SO Salzburg | F11: ='[2]312 SO-Klassen'!G11 -> 2 | G11: ='[2]312 SO-Klassen'!H11 -> 2021-10-01 | H11: ='[2]312 SO-Klassen'!I11 -> 3 | I11: ='[2]312 SO-Klassen'!J11 -> 09 | J11: ='[2]312 SO-Klassen'!K11 -> 1bv1 | K11: ='[2]312 SO-Klassen'!L11 -> 1 | L11: ='[2]312 SO-Klassen'!M11 -> 0 | M11: ='[2]312 SO-Klassen'!N11 -> 0 | N11: ='[2]312 SO-Klassen'!O11 -> 0 | O11: ='[2]312 SO-Klassen'!P11 -> 0 | P11: ='[2]312 SO-Klassen'!Q11 -> 0 | Q11: ='[2]312 SO-Klassen'!R11 -> 1 | R11: ='[2]312 SO-Klassen'!S11 -> 0 | S11: ='[2]312 SO-Klassen'!T11 -> 0 | T11: ='[2]312 SO-Klassen'!U11 -> 0 | U11: ='[2]312 SO-Klassen'!V11 -> 0 | V11: ='[2]312 SO-Klassen'!W11 -> 0 | W11: ='[2]312 SO-Klassen'!X11 -> 0 | X11: ='[2]312 SO-Klassen'!Y11 -> 0 | Y11: ='[2]312 SO-Klassen'!Z11 -> 0 | Z11: ='[2]312 SO-Klassen'!AA11 -> 0 | AA11: ='[2]312 SO-Klassen'!AB11 -> 0 | AB11: ='[2]312 SO-Klassen'!AC11 -> 0 | AC11: ='[2]312 SO-Klassen'!AD11 -> 0 | AD11: ='[2]312 SO-Klassen'!AE11 -> 0 | AE11: ='[2]312 SO-Klassen'!AF11 -> 0 | AF11: ='[2]312 SO-Klassen'!AG11 -> 0 | AG11: ='[2]312 SO-Klassen'!AH11 -> 0 | AH11: ='[2]312 SO-Klassen'!AI11 -> 0 | AI11: ='[2]312 SO-Klassen'!AJ11 -> 0 | AJ11: ='[2]312 SO-Klassen'!AK11 -> 0 | AK11: ='[2]312 SO-Klassen'!AL11 -> 0 | AL11: ='[2]312 SO-Klassen'!AM11 -> 0 | AM11: ='[2]312 SO-Klassen'!AN11 -> 0 | AN11: ='[2]312 SO-Klassen'!AO11 -> 0 | AO11: ='[2]312 SO-Klassen'!AP11 -> 0 | AP11: ='[2]312 SO-Klassen'!AQ11 -> 0 | AQ11: ='[2]312 SO-Klassen'!AR11 -> 0 | AR11: ='[2]312 SO-Klassen'!AS11 -> 0 | AS11: ='[2]312 SO-Klassen'!AT11 -> 1 | AT11: ='[2]312 SO-Klassen'!AU11 -> 12 | AU11: ='[2]312 SO-Klassen'!AV11 -> 12 | AV11: ='[2]312 SO-Klassen'!AW11 -> 6 | AW11: ='[2]312 SO-Klassen'!AX11 -> 0 | AX11: ='[2]312 SO-Klassen'!AY11 -> 0 | AY11: ='[2]312 SO-Klassen'!AZ11 -> 3 | AZ11: ='[2]312 SO-Klassen'!BA11 -> 2 | BA11: ='[2]312 SO-Klassen'!BB11 -> 0 | BB11: ='[2]312 SO-Klassen'!BC11 -> 2 | BC11: ='[2]312 SO-Klassen'!BD11 -> 2 | BD11: ='[2]312 SO-Klassen'!BE11 -> 0 | BE11: ='[2]312 SO-Klassen'!BF11 -> 4 | BF11: ='[2]312 SO-Klassen'!BG11 -> 4 | BG11: ='[2]312 SO-Klassen'!BH11 -> 0 | BH11: ='[2]312 SO-Klassen'!BI11 -> 0 | BI11: ='[2]312 SO-Klassen'!BJ11 -> 0 | BJ11: ='[2]312 SO-Klassen'!BK11 -> 0 | BK11: ='[2]312 SO-Klassen'!BL11 -> 0 | BL11: ='[2]312 SO-Klassen'!BM11 -> 0 | BM11: ='[2]312 SO-Klassen'!BN11 -> 0 | BN11: ='[2]312 SO-Klassen'!BO11 -> 1 | BO11: ='[2]312 SO-Klassen'!BP11 -> 0 | BP11: ='[2]312 SO-Klassen'!BQ11 -> 0 | BQ11: ='[2]312 SO-Klassen'!BR11 -> 0 | BR11: ='[2]312 SO-Klassen'!BS11 -> 0 | BS11: ='[2]312 SO-Klassen'!BT11 -> 0 | BT11: ='[2]312 SO-Klassen'!BU11 -> 0 | BU11: ='[2]312 SO-Klassen'!BV11 -> 0 | BV11: ='[2]312 SO-Klassen'!BW11 -> 0 | BW11: ='[2]312 SO-Klassen'!BX11 -> 0 | BX11: ='[2]312 SO-Klassen'!BY11 -> 0 | BY11: ='[2]312 SO-Klassen'!BZ11 -> 0 | BZ11: ='[2]312 SO-Klassen'!CA11 -> 0 | CA11: ='[2]312 SO-Klassen'!CB11 -> 0 | CB11: ='[2]312 SO-Klassen'!CC11 -> 0 | CC11: ='[2]312 SO-Klassen'!CD11 -> 0 | CD11: ='[2]312 SO-Klassen'!CE11 -> 0 | CE11: ='[2]312 SO-Klassen'!CF11 -> 0 | CF11: ='[2]312 SO-Klassen'!CG11 -> 0 | CG11: ='[2]312 SO-Klassen'!CH11 -> 0 | CH11: ='[2]312 SO-Klassen'!CI11 -> 0 | CI11: ='[2]312 SO-Klassen'!CJ11 -> 0 | CJ11: ='[2]312 SO-Klassen'!CK11 -> 0 | CK11: ='[2]312 SO-Klassen'!CL11 -> 0 | CL11: ='[2]312 SO-Klassen'!CM11 -> 0 | CM11: ='[2]312 SO-Klassen'!CN11 -> 12 | CN11: ='[2]312 SO-Klassen'!CO11 -> 0 | CO11: ='[2]312 SO-Klassen'!CP11 -> 0 | CP11: ='[2]312 SO-Klassen'!CQ11 -> 0 | CQ11: ='[2]312 SO-Klassen'!CR11 -> 0 | CR11: ='[2]312 SO-Klassen'!CS11 -> 0 | CS11: ='[2]312 SO-Klassen'!CT11 -> 0 | CT11: ='[2]312 SO-Klassen'!CU11 -> 0 | CU11: ='[2]312 SO-Klassen'!CV11 -> 0 | CV11: ='[2]312 SO-Klassen'!CW11 -> 0 | CW11: ='[2]312 SO-Klassen'!CX11 -> 0 | CX11: ='[2]312 SO-Klassen'!CY11 -> 0 | CY11: ='[2]312 SO-Klassen'!CZ11 -> 0 | CZ11: ='[2]312 SO-Klassen'!DA11 -> 0 | DA11: ='[2]312 SO-Klassen'!DB11 -> 0 | DB11: ='[2]312 SO-Klassen'!DC11 -> 0 | DC11: ='[2]312 SO-Klassen'!DD11 -> 0 | DD11: ='[2]312 SO-Klassen'!DE11 -> 0 | DE11: ='[2]312 SO-Klassen'!DF11 -> 0 | DF11: ='[2]312 SO-Klassen'!DG11 -> 0 | DG11: ='[2]312 SO-Klassen'!DH11 -> 0 | DH11: ='[2]312 SO-Klassen'!DI11 -> 0 | DI11: ='[2]312 SO-Klassen'!DJ11 -> 0 | DJ11: ='[2]312 SO-Klassen'!DK11 -> 0 | DK11: ='[2]312 SO-Klassen'!DL11 -> 0 | DL11: ='[2]312 SO-Klassen'!DM11 -> 0 | DM11: ='[2]312 SO-Klassen'!DN11 -> 0 | DN11: ='[2]312 SO-Klassen'!DO11 -> 0 | DO11: ='[2]312 SO-Klassen'!DP11 -> 0 | DP11: ='[2]312 SO-Klassen'!DQ11 -> 0 | DQ11: ='[2]312 SO-Klassen'!DR11 -> 0 | DR11: ='[2]312 SO-Klassen'!DS11 -> 0 | DS11: ='[2]312 SO-Klassen'!DT11 -> 0 | DT11: ='[2]312 SO-Klassen'!DU11 -> 0 | DU11: ='[2]312 SO-Klassen'!DV11 -> 0 | DV11: ='[2]312 SO-Klassen'!DW11 -> 0 | DW11: ='[2]312 SO-Klassen'!DX11 -> 0 | DX11: ='[2]312 SO-Klassen'!DY11 -> 0 | DY11: ='[2]312 SO-Klassen'!DZ11 -> 0 | DZ11: ='[2]312 SO-Klassen'!EA11 -> 0 | EA11: ='[2]312 SO-Klassen'!EB11 -> 0 | EB11: ='[2]312 SO-Klassen'!EC11 -> 0 | EC11: ='[2]312 SO-Klassen'!ED11 -> 0 | ED11: ='[2]312 SO-Klassen'!EE11 -> 0 | EE11: ='[2]312 SO-Klassen'!EF11 -> 0 | EF11: ='[2]312 SO-Klassen'!EG11 -> 0 | EG11: ='[2]312 SO-Klassen'!EH11 -> 0 | EH11: ='[2]312 SO-Klassen'!EI11 -> 0 | EI11: ='[2]312 SO-Klassen'!EJ11 -> 0 | EJ11: ='[2]312 SO-Klassen'!EK11 -> 0 | EK11: ='[2]312 SO-Klassen'!EL11 -> 0 | EL11: ='[2]312 SO-Klassen'!EM11 -> 501013 | EM11: ='[2]312 SO-Klassen'!EN11 -> 44475 | EN11: ='[2]312 SO-Klassen'!EO11 -> genehmigt | EO11: ='[2]312 SO-Klassen'!EP11 -> 2021-10-06 | EP11: ='[2]312 SO-Klassen'!EQ11 -> 0 | EQ11: ='[2]312 SO-Klassen'!ER11 -> 0 | ER11: ='[2]312 SO-Klassen'!ES11 -> 0 | ES11: ='[2]312 SO-Klassen'!ET11 -> 2 | ET11: ='[2]312 SO-Klassen'!EU11 -> 0
A12: ='[2]312 SO-Klassen'!B12 -> 2021/22 | B12: ='[2]312 SO-Klassen'!C12 -> 1 | C12: ='[2]312 SO-Klassen'!D12 -> 3 | D12: ='[2]312 SO-Klassen'!E12 -> 501013 | E12: ='[2]312 SO-Klassen'!F12 -> SO Salzburg | F12: ='[2]312 SO-Klassen'!G12 -> 2 | G12: ='[2]312 SO-Klassen'!H12 -> 2021-10-01 | H12: ='[2]312 SO-Klassen'!I12 -> 3 | I12: ='[2]312 SO-Klassen'!J12 -> 09 | J12: ='[2]312 SO-Klassen'!K12 -> 1bv2 | K12: ='[2]312 SO-Klassen'!L12 -> 1 | L12: ='[2]312 SO-Klassen'!M12 -> 0 | M12: ='[2]312 SO-Klassen'!N12 -> 0 | N12: ='[2]312 SO-Klassen'!O12 -> 0 | O12: ='[2]312 SO-Klassen'!P12 -> 0 | P12: ='[2]312 SO-Klassen'!Q12 -> 0 | Q12: ='[2]312 SO-Klassen'!R12 -> 1 | R12: ='[2]312 SO-Klassen'!S12 -> 0 | S12: ='[2]312 SO-Klassen'!T12 -> 0 | T12: ='[2]312 SO-Klassen'!U12 -> 0 | U12: ='[2]312 SO-Klassen'!V12 -> 0 | V12: ='[2]312 SO-Klassen'!W12 -> 0 | W12: ='[2]312 SO-Klassen'!X12 -> 0 | X12: ='[2]312 SO-Klassen'!Y12 -> 0 | Y12: ='[2]312 SO-Klassen'!Z12 -> 0 | Z12: ='[2]312 SO-Klassen'!AA12 -> 0 | AA12: ='[2]312 SO-Klassen'!AB12 -> 0 | AB12: ='[2]312 SO-Klassen'!AC12 -> 0 | AC12: ='[2]312 SO-Klassen'!AD12 -> 0 | AD12: ='[2]312 SO-Klassen'!AE12 -> 0 | AE12: ='[2]312 SO-Klassen'!AF12 -> 0 | AF12: ='[2]312 SO-Klassen'!AG12 -> 0 | AG12: ='[2]312 SO-Klassen'!AH12 -> 0 | AH12: ='[2]312 SO-Klassen'!AI12 -> 0 | AI12: ='[2]312 SO-Klassen'!AJ12 -> 0 | AJ12: ='[2]312 SO-Klassen'!AK12 -> 0 | AK12: ='[2]312 SO-Klassen'!AL12 -> 0 | AL12: ='[2]312 SO-Klassen'!AM12 -> 0 | AM12: ='[2]312 SO-Klassen'!AN12 -> 0 | AN12: ='[2]312 SO-Klassen'!AO12 -> 0 | AO12: ='[2]312 SO-Klassen'!AP12 -> 0 | AP12: ='[2]312 SO-Klassen'!AQ12 -> 0 | AQ12: ='[2]312 SO-Klassen'!AR12 -> 1 | AR12: ='[2]312 SO-Klassen'!AS12 -> 1 | AS12: ='[2]312 SO-Klassen'!AT12 -> 1 | AT12: ='[2]312 SO-Klassen'!AU12 -> 9 | AU12: ='[2]312 SO-Klassen'!AV12 -> 9 | AV12: ='[2]312 SO-Klassen'!AW12 -> 9 | AW12: ='[2]312 SO-Klassen'!AX12 -> 0 | AX12: ='[2]312 SO-Klassen'!AY12 -> 0 | AY12: ='[2]312 SO-Klassen'!AZ12 -> 1 | AZ12: ='[2]312 SO-Klassen'!BA12 -> 1 | BA12: ='[2]312 SO-Klassen'!BB12 -> 0 | BB12: ='[2]312 SO-Klassen'!BC12 -> 0 | BC12: ='[2]312 SO-Klassen'!BD12 -> 0 | BD12: ='[2]312 SO-Klassen'!BE12 -> 0 | BE12: ='[2]312 SO-Klassen'!BF12 -> 5 | BF12: ='[2]312 SO-Klassen'!BG12 -> 4 | BG12: ='[2]312 SO-Klassen'!BH12 -> 0 | BH12: ='[2]312 SO-Klassen'!BI12 -> 2 | BI12: ='[2]312 SO-Klassen'!BJ12 -> 2 | BJ12: ='[2]312 SO-Klassen'!BK12 -> 0 | BK12: ='[2]312 SO-Klassen'!BL12 -> 0 | BL12: ='[2]312 SO-Klassen'!BM12 -> 0 | BM12: ='[2]312 SO-Klassen'!BN12 -> 0 | BN12: ='[2]312 SO-Klassen'!BO12 -> 1 | BO12: ='[2]312 SO-Klassen'!BP12 -> 0 | BP12: ='[2]312 SO-Klassen'!BQ12 -> 0 | BQ12: ='[2]312 SO-Klassen'!BR12 -> 0 | BR12: ='[2]312 SO-Klassen'!BS12 -> 0 | BS12: ='[2]312 SO-Klassen'!BT12 -> 0 | BT12: ='[2]312 SO-Klassen'!BU12 -> 0 | BU12: ='[2]312 SO-Klassen'!BV12 -> 0 | BV12: ='[2]312 SO-Klassen'!BW12 -> 0 | BW12: ='[2]312 SO-Klassen'!BX12 -> 0 | BX12: ='[2]312 SO-Klassen'!BY12 -> 1 | BY12: ='[2]312 SO-Klassen'!BZ12 -> 0 | BZ12: ='[2]312 SO-Klassen'!CA12 -> 0 | CA12: ='[2]312 SO-Klassen'!CB12 -> 0 | CB12: ='[2]312 SO-Klassen'!CC12 -> 0 | CC12: ='[2]312 SO-Klassen'!CD12 -> 0 | CD12: ='[2]312 SO-Klassen'!CE12 -> 0 | CE12: ='[2]312 SO-Klassen'!CF12 -> 0 | CF12: ='[2]312 SO-Klassen'!CG12 -> 0 | CG12: ='[2]312 SO-Klassen'!CH12 -> 0 | CH12: ='[2]312 SO-Klassen'!CI12 -> 0 | CI12: ='[2]312 SO-Klassen'!CJ12 -> 0 | CJ12: ='[2]312 SO-Klassen'!CK12 -> 0 | CK12: ='[2]312 SO-Klassen'!CL12 -> 0 | CL12: ='[2]312 SO-Klassen'!CM12 -> 0 | CM12: ='[2]312 SO-Klassen'!CN12 -> 9 | CN12: ='[2]312 SO-Klassen'!CO12 -> 0 | CO12: ='[2]312 SO-Klassen'!CP12 -> 0 | CP12: ='[2]312 SO-Klassen'!CQ12 -> 0 | CQ12: ='[2]312 SO-Klassen'!CR12 -> 0 | CR12: ='[2]312 SO-Klassen'!CS12 -> 0 | CS12: ='[2]312 SO-Klassen'!CT12 -> 0 | CT12: ='[2]312 SO-Klassen'!CU12 -> 0 | CU12: ='[2]312 SO-Klassen'!CV12 -> 0 | CV12: ='[2]312 SO-Klassen'!CW12 -> 1 | CW12: ='[2]312 SO-Klassen'!CX12 -> 0 | CX12: ='[2]312 SO-Klassen'!CY12 -> 0 | CY12: ='[2]312 SO-Klassen'!CZ12 -> 0 | CZ12: ='[2]312 SO-Klassen'!DA12 -> 0 | DA12: ='[2]312 SO-Klassen'!DB12 -> 0 | DB12: ='[2]312 SO-Klassen'!DC12 -> 0 | DC12: ='[2]312 SO-Klassen'!DD12 -> 0 | DD12: ='[2]312 SO-Klassen'!DE12 -> 0 | DE12: ='[2]312 SO-Klassen'!DF12 -> 0 | DF12: ='[2]312 SO-Klassen'!DG12 -> 0 | DG12: ='[2]312 SO-Klassen'!DH12 -> 0 | DH12: ='[2]312 SO-Klassen'!DI12 -> 0 | DI12: ='[2]312 SO-Klassen'!DJ12 -> 0 | DJ12: ='[2]312 SO-Klassen'!DK12 -> 0 | DK12: ='[2]312 SO-Klassen'!DL12 -> 0 | DL12: ='[2]312 SO-Klassen'!DM12 -> 0 | DM12: ='[2]312 SO-Klassen'!DN12 -> 0 | DN12: ='[2]312 SO-Klassen'!DO12 -> 0 | DO12: ='[2]312 SO-Klassen'!DP12 -> 0 | DP12: ='[2]312 SO-Klassen'!DQ12 -> 0 | DQ12: ='[2]312 SO-Klassen'!DR12 -> 0 | DR12: ='[2]312 SO-Klassen'!DS12 -> 0 | DS12: ='[2]312 SO-Klassen'!DT12 -> 0 | DT12: ='[2]312 SO-Klassen'!DU12 -> 0 | DU12: ='[2]312 SO-Klassen'!DV12 -> 0 | DV12: ='[2]312 SO-Klassen'!DW12 -> 0 | DW12: ='[2]312 SO-Klassen'!DX12 -> 0 | DX12: ='[2]312 SO-Klassen'!DY12 -> 0 | DY12: ='[2]312 SO-Klassen'!DZ12 -> 0 | DZ12: ='[2]312 SO-Klassen'!EA12 -> 0 | EA12: ='[2]312 SO-Klassen'!EB12 -> 0 | EB12: ='[2]312 SO-Klassen'!EC12 -> 0 | EC12: ='[2]312 SO-Klassen'!ED12 -> 0 | ED12: ='[2]312 SO-Klassen'!EE12 -> 0 | EE12: ='[2]312 SO-Klassen'!EF12 -> 0 | EF12: ='[2]312 SO-Klassen'!EG12 -> 0 | EG12: ='[2]312 SO-Klassen'!EH12 -> 0 | EH12: ='[2]312 SO-Klassen'!EI12 -> 0 | EI12: ='[2]312 SO-Klassen'!EJ12 -> 0 | EJ12: ='[2]312 SO-Klassen'!EK12 -> 0 | EK12: ='[2]312 SO-Klassen'!EL12 -> 0 | EL12: ='[2]312 SO-Klassen'!EM12 -> 501013 | EM12: ='[2]312 SO-Klassen'!EN12 -> 44475 | EN12: ='[2]312 SO-Klassen'!EO12 -> genehmigt | EO12: ='[2]312 SO-Klassen'!EP12 -> 2021-10-06 | EP12: ='[2]312 SO-Klassen'!EQ12 -> 0 | EQ12: ='[2]312 SO-Klassen'!ER12 -> 0 | ER12: ='[2]312 SO-Klassen'!ES12 -> 0 | ES12: ='[2]312 SO-Klassen'!ET12 -> 7 | ET12: ='[2]312 SO-Klassen'!EU12 -> 0
A13: ='[2]312 SO-Klassen'!B13 -> 2021/22 | B13: ='[2]312 SO-Klassen'!C13 -> 1 | C13: ='[2]312 SO-Klassen'!D13 -> 3 | D13: ='[2]312 SO-Klassen'!E13 -> 501013 | E13: ='[2]312 SO-Klassen'!F13 -> SO Salzburg | F13: ='[2]312 SO-Klassen'!G13 -> 2 | G13: ='[2]312 SO-Klassen'!H13 -> 2021-10-01 | H13: ='[2]312 SO-Klassen'!I13 -> 3 | I13: ='[2]312 SO-Klassen'!J13 -> 09 | J13: ='[2]312 SO-Klassen'!K13 -> 1bv3 | K13: ='[2]312 SO-Klassen'!L13 -> 1 | L13: ='[2]312 SO-Klassen'!M13 -> 0 | M13: ='[2]312 SO-Klassen'!N13 -> 0 | N13: ='[2]312 SO-Klassen'!O13 -> 0 | O13: ='[2]312 SO-Klassen'!P13 -> 0 | P13: ='[2]312 SO-Klassen'!Q13 -> 0 | Q13: ='[2]312 SO-Klassen'!R13 -> 1 | R13: ='[2]312 SO-Klassen'!S13 -> 0 | S13: ='[2]312 SO-Klassen'!T13 -> 0 | T13: ='[2]312 SO-Klassen'!U13 -> 0 | U13: ='[2]312 SO-Klassen'!V13 -> 0 | V13: ='[2]312 SO-Klassen'!W13 -> 0 | W13: ='[2]312 SO-Klassen'!X13 -> 0 | X13: ='[2]312 SO-Klassen'!Y13 -> 0 | Y13: ='[2]312 SO-Klassen'!Z13 -> 0 | Z13: ='[2]312 SO-Klassen'!AA13 -> 0 | AA13: ='[2]312 SO-Klassen'!AB13 -> 0 | AB13: ='[2]312 SO-Klassen'!AC13 -> 0 | AC13: ='[2]312 SO-Klassen'!AD13 -> 0 | AD13: ='[2]312 SO-Klassen'!AE13 -> 0 | AE13: ='[2]312 SO-Klassen'!AF13 -> 0 | AF13: ='[2]312 SO-Klassen'!AG13 -> 0 | AG13: ='[2]312 SO-Klassen'!AH13 -> 0 | AH13: ='[2]312 SO-Klassen'!AI13 -> 0 | AI13: ='[2]312 SO-Klassen'!AJ13 -> 0 | AJ13: ='[2]312 SO-Klassen'!AK13 -> 0 | AK13: ='[2]312 SO-Klassen'!AL13 -> 0 | AL13: ='[2]312 SO-Klassen'!AM13 -> 0 | AM13: ='[2]312 SO-Klassen'!AN13 -> 0 | AN13: ='[2]312 SO-Klassen'!AO13 -> 0 | AO13: ='[2]312 SO-Klassen'!AP13 -> 0 | AP13: ='[2]312 SO-Klassen'!AQ13 -> 0 | AQ13: ='[2]312 SO-Klassen'!AR13 -> 3 | AR13: ='[2]312 SO-Klassen'!AS13 -> 3 | AS13: ='[2]312 SO-Klassen'!AT13 -> 1 | AT13: ='[2]312 SO-Klassen'!AU13 -> 8 | AU13: ='[2]312 SO-Klassen'!AV13 -> 8 | AV13: ='[2]312 SO-Klassen'!AW13 -> 9 | AW13: ='[2]312 SO-Klassen'!AX13 -> 0 | AX13: ='[2]312 SO-Klassen'!AY13 -> 0 | AY13: ='[2]312 SO-Klassen'!AZ13 -> 1 | AZ13: ='[2]312 SO-Klassen'!BA13 -> 1 | BA13: ='[2]312 SO-Klassen'!BB13 -> 0 | BB13: ='[2]312 SO-Klassen'!BC13 -> 0 | BC13: ='[2]312 SO-Klassen'!BD13 -> 0 | BD13: ='[2]312 SO-Klassen'!BE13 -> 0 | BE13: ='[2]312 SO-Klassen'!BF13 -> 8 | BF13: ='[2]312 SO-Klassen'!BG13 -> 8 | BG13: ='[2]312 SO-Klassen'!BH13 -> 0 | BH13: ='[2]312 SO-Klassen'!BI13 -> 0 | BI13: ='[2]312 SO-Klassen'!BJ13 -> 0 | BJ13: ='[2]312 SO-Klassen'!BK13 -> 0 | BK13: ='[2]312 SO-Klassen'!BL13 -> 0 | BL13: ='[2]312 SO-Klassen'!BM13 -> 0 | BM13: ='[2]312 SO-Klassen'!BN13 -> 0 | BN13: ='[2]312 SO-Klassen'!BO13 -> 1 | BO13: ='[2]312 SO-Klassen'!BP13 -> 0 | BP13: ='[2]312 SO-Klassen'!BQ13 -> 0 | BQ13: ='[2]312 SO-Klassen'!BR13 -> 0 | BR13: ='[2]312 SO-Klassen'!BS13 -> 0 | BS13: ='[2]312 SO-Klassen'!BT13 -> 0 | BT13: ='[2]312 SO-Klassen'!BU13 -> 0 | BU13: ='[2]312 SO-Klassen'!BV13 -> 0 | BV13: ='[2]312 SO-Klassen'!BW13 -> 0 | BW13: ='[2]312 SO-Klassen'!BX13 -> 0 | BX13: ='[2]312 SO-Klassen'!BY13 -> 0 | BY13: ='[2]312 SO-Klassen'!BZ13 -> 0 | BZ13: ='[2]312 SO-Klassen'!CA13 -> 0 | CA13: ='[2]312 SO-Klassen'!CB13 -> 0 | CB13: ='[2]312 SO-Klassen'!CC13 -> 0 | CC13: ='[2]312 SO-Klassen'!CD13 -> 0 | CD13: ='[2]312 SO-Klassen'!CE13 -> 0 | CE13: ='[2]312 SO-Klassen'!CF13 -> 0 | CF13: ='[2]312 SO-Klassen'!CG13 -> 0 | CG13: ='[2]312 SO-Klassen'!CH13 -> 0 | CH13: ='[2]312 SO-Klassen'!CI13 -> 0 | CI13: ='[2]312 SO-Klassen'!CJ13 -> 0 | CJ13: ='[2]312 SO-Klassen'!CK13 -> 0 | CK13: ='[2]312 SO-Klassen'!CL13 -> 0 | CL13: ='[2]312 SO-Klassen'!CM13 -> 3 | CM13: ='[2]312 SO-Klassen'!CN13 -> 8 | CN13: ='[2]312 SO-Klassen'!CO13 -> 0 | CO13: ='[2]312 SO-Klassen'!CP13 -> 0 | CP13: ='[2]312 SO-Klassen'!CQ13 -> 0 | CQ13: ='[2]312 SO-Klassen'!CR13 -> 0 | CR13: ='[2]312 SO-Klassen'!CS13 -> 0 | CS13: ='[2]312 SO-Klassen'!CT13 -> 0 | CT13: ='[2]312 SO-Klassen'!CU13 -> 0 | CU13: ='[2]312 SO-Klassen'!CV13 -> 0 | CV13: ='[2]312 SO-Klassen'!CW13 -> 0 | CW13: ='[2]312 SO-Klassen'!CX13 -> 0 | CX13: ='[2]312 SO-Klassen'!CY13 -> 0 | CY13: ='[2]312 SO-Klassen'!CZ13 -> 0 | CZ13: ='[2]312 SO-Klassen'!DA13 -> 0 | DA13: ='[2]312 SO-Klassen'!DB13 -> 0 | DB13: ='[2]312 SO-Klassen'!DC13 -> 0 | DC13: ='[2]312 SO-Klassen'!DD13 -> 0 | DD13: ='[2]312 SO-Klassen'!DE13 -> 0 | DE13: ='[2]312 SO-Klassen'!DF13 -> 0 | DF13: ='[2]312 SO-Klassen'!DG13 -> 0 | DG13: ='[2]312 SO-Klassen'!DH13 -> 0 | DH13: ='[2]312 SO-Klassen'!DI13 -> 0 | DI13: ='[2]312 SO-Klassen'!DJ13 -> 0 | DJ13: ='[2]312 SO-Klassen'!DK13 -> 0 | DK13: ='[2]312 SO-Klassen'!DL13 -> 0 | DL13: ='[2]312 SO-Klassen'!DM13 -> 0 | DM13: ='[2]312 SO-Klassen'!DN13 -> 0 | DN13: ='[2]312 SO-Klassen'!DO13 -> 0 | DO13: ='[2]312 SO-Klassen'!DP13 -> 0 | DP13: ='[2]312 SO-Klassen'!DQ13 -> 0 | DQ13: ='[2]312 SO-Klassen'!DR13 -> 0 | DR13: ='[2]312 SO-Klassen'!DS13 -> 0 | DS13: ='[2]312 SO-Klassen'!DT13 -> 0 | DT13: ='[2]312 SO-Klassen'!DU13 -> 0 | DU13: ='[2]312 SO-Klassen'!DV13 -> 0 | DV13: ='[2]312 SO-Klassen'!DW13 -> 0 | DW13: ='[2]312 SO-Klassen'!DX13 -> 0 | DX13: ='[2]312 SO-Klassen'!DY13 -> 0 | DY13: ='[2]312 SO-Klassen'!DZ13 -> 0 | DZ13: ='[2]312 SO-Klassen'!EA13 -> 0 | EA13: ='[2]312 SO-Klassen'!EB13 -> 0 | EB13: ='[2]312 SO-Klassen'!EC13 -> 0 | EC13: ='[2]312 SO-Klassen'!ED13 -> 0 | ED13: ='[2]312 SO-Klassen'!EE13 -> 0 | EE13: ='[2]312 SO-Klassen'!EF13 -> 0 | EF13: ='[2]312 SO-Klassen'!EG13 -> 0 | EG13: ='[2]312 SO-Klassen'!EH13 -> 0 | EH13: ='[2]312 SO-Klassen'!EI13 -> 0 | EI13: ='[2]312 SO-Klassen'!EJ13 -> 0 | EJ13: ='[2]312 SO-Klassen'!EK13 -> 0 | EK13: ='[2]312 SO-Klassen'!EL13 -> 0 | EL13: ='[2]312 SO-Klassen'!EM13 -> 501013 | EM13: ='[2]312 SO-Klassen'!EN13 -> 44475 | EN13: ='[2]312 SO-Klassen'!EO13 -> genehmigt | EO13: ='[2]312 SO-Klassen'!EP13 -> 2021-10-06 | EP13: ='[2]312 SO-Klassen'!EQ13 -> 0 | EQ13: ='[2]312 SO-Klassen'!ER13 -> 0 | ER13: ='[2]312 SO-Klassen'!ES13 -> 0 | ES13: ='[2]312 SO-Klassen'!ET13 -> 8 | ET13: ='[2]312 SO-Klassen'!EU13 -> 0
A14: ='[2]312 SO-Klassen'!B14 -> 2021/22 | B14: ='[2]312 SO-Klassen'!C14 -> 1 | C14: ='[2]312 SO-Klassen'!D14 -> 3 | D14: ='[2]312 SO-Klassen'!E14 -> 501013 | E14: ='[2]312 SO-Klassen'!F14 -> SO Salzburg | F14: ='[2]312 SO-Klassen'!G14 -> 2 | G14: ='[2]312 SO-Klassen'!H14 -> 2021-10-01 | H14: ='[2]312 SO-Klassen'!I14 -> 3 | I14: ='[2]312 SO-Klassen'!J14 -> 09 | J14: ='[2]312 SO-Klassen'!K14 -> 1bv4 | K14: ='[2]312 SO-Klassen'!L14 -> 0 | L14: ='[2]312 SO-Klassen'!M14 -> 0 | M14: ='[2]312 SO-Klassen'!N14 -> 0 | N14: ='[2]312 SO-Klassen'!O14 -> 1 | O14: ='[2]312 SO-Klassen'!P14 -> 0 | P14: ='[2]312 SO-Klassen'!Q14 -> 0 | Q14: ='[2]312 SO-Klassen'!R14 -> 1 | R14: ='[2]312 SO-Klassen'!S14 -> 0 | S14: ='[2]312 SO-Klassen'!T14 -> 0 | T14: ='[2]312 SO-Klassen'!U14 -> 0 | U14: ='[2]312 SO-Klassen'!V14 -> 0 | V14: ='[2]312 SO-Klassen'!W14 -> 0 | W14: ='[2]312 SO-Klassen'!X14 -> 0 | X14: ='[2]312 SO-Klassen'!Y14 -> 0 | Y14: ='[2]312 SO-Klassen'!Z14 -> 0 | Z14: ='[2]312 SO-Klassen'!AA14 -> 0 | AA14: ='[2]312 SO-Klassen'!AB14 -> 0 | AB14: ='[2]312 SO-Klassen'!AC14 -> 0 | AC14: ='[2]312 SO-Klassen'!AD14 -> 0 | AD14: ='[2]312 SO-Klassen'!AE14 -> 0 | AE14: ='[2]312 SO-Klassen'!AF14 -> 0 | AF14: ='[2]312 SO-Klassen'!AG14 -> 0 | AG14: ='[2]312 SO-Klassen'!AH14 -> 0 | AH14: ='[2]312 SO-Klassen'!AI14 -> 0 | AI14: ='[2]312 SO-Klassen'!AJ14 -> 0 | AJ14: ='[2]312 SO-Klassen'!AK14 -> 0 | AK14: ='[2]312 SO-Klassen'!AL14 -> 0 | AL14: ='[2]312 SO-Klassen'!AM14 -> 0 | AM14: ='[2]312 SO-Klassen'!AN14 -> 0 | AN14: ='[2]312 SO-Klassen'!AO14 -> 0 | AO14: ='[2]312 SO-Klassen'!AP14 -> 0 | AP14: ='[2]312 SO-Klassen'!AQ14 -> 0 | AQ14: ='[2]312 SO-Klassen'!AR14 -> 4 | AR14: ='[2]312 SO-Klassen'!AS14 -> 4 | AS14: ='[2]312 SO-Klassen'!AT14 -> 1 | AT14: ='[2]312 SO-Klassen'!AU14 -> 4 | AU14: ='[2]312 SO-Klassen'!AV14 -> 4 | AV14: ='[2]312 SO-Klassen'!AW14 -> 6 | AW14: ='[2]312 SO-Klassen'!AX14 -> 0 | AX14: ='[2]312 SO-Klassen'!AY14 -> 0 | AY14: ='[2]312 SO-Klassen'!AZ14 -> 1 | AZ14: ='[2]312 SO-Klassen'!BA14 -> 0 | BA14: ='[2]312 SO-Klassen'!BB14 -> 0 | BB14: ='[2]312 SO-Klassen'!BC14 -> 0 | BC14: ='[2]312 SO-Klassen'!BD14 -> 0 | BD14: ='[2]312 SO-Klassen'!BE14 -> 0 | BE14: ='[2]312 SO-Klassen'!BF14 -> 3 | BF14: ='[2]312 SO-Klassen'!BG14 -> 2 | BG14: ='[2]312 SO-Klassen'!BH14 -> 0 | BH14: ='[2]312 SO-Klassen'!BI14 -> 2 | BI14: ='[2]312 SO-Klassen'!BJ14 -> 2 | BJ14: ='[2]312 SO-Klassen'!BK14 -> 0 | BK14: ='[2]312 SO-Klassen'!BL14 -> 0 | BL14: ='[2]312 SO-Klassen'!BM14 -> 0 | BM14: ='[2]312 SO-Klassen'!BN14 -> 0 | BN14: ='[2]312 SO-Klassen'!BO14 -> 1 | BO14: ='[2]312 SO-Klassen'!BP14 -> 0 | BP14: ='[2]312 SO-Klassen'!BQ14 -> 0 | BQ14: ='[2]312 SO-Klassen'!BR14 -> 0 | BR14: ='[2]312 SO-Klassen'!BS14 -> 0 | BS14: ='[2]312 SO-Klassen'!BT14 -> 0 | BT14: ='[2]312 SO-Klassen'!BU14 -> 0 | BU14: ='[2]312 SO-Klassen'!BV14 -> 0 | BV14: ='[2]312 SO-Klassen'!BW14 -> 1 | BW14: ='[2]312 SO-Klassen'!BX14 -> 0 | BX14: ='[2]312 SO-Klassen'!BY14 -> 0 | BY14: ='[2]312 SO-Klassen'!BZ14 -> 0 | BZ14: ='[2]312 SO-Klassen'!CA14 -> 0 | CA14: ='[2]312 SO-Klassen'!CB14 -> 0 | CB14: ='[2]312 SO-Klassen'!CC14 -> 0 | CC14: ='[2]312 SO-Klassen'!CD14 -> 1 | CD14: ='[2]312 SO-Klassen'!CE14 -> 0 | CE14: ='[2]312 SO-Klassen'!CF14 -> 0 | CF14: ='[2]312 SO-Klassen'!CG14 -> 0 | CG14: ='[2]312 SO-Klassen'!CH14 -> 0 | CH14: ='[2]312 SO-Klassen'!CI14 -> 0 | CI14: ='[2]312 SO-Klassen'!CJ14 -> 0 | CJ14: ='[2]312 SO-Klassen'!CK14 -> 0 | CK14: ='[2]312 SO-Klassen'!CL14 -> 0 | CL14: ='[2]312 SO-Klassen'!CM14 -> 0 | CM14: ='[2]312 SO-Klassen'!CN14 -> 0 | CN14: ='[2]312 SO-Klassen'!CO14 -> 0 | CO14: ='[2]312 SO-Klassen'!CP14 -> 0 | CP14: ='[2]312 SO-Klassen'!CQ14 -> 0 | CQ14: ='[2]312 SO-Klassen'!CR14 -> 0 | CR14: ='[2]312 SO-Klassen'!CS14 -> 0 | CS14: ='[2]312 SO-Klassen'!CT14 -> 0 | CT14: ='[2]312 SO-Klassen'!CU14 -> 0 | CU14: ='[2]312 SO-Klassen'!CV14 -> 0 | CV14: ='[2]312 SO-Klassen'!CW14 -> 0 | CW14: ='[2]312 SO-Klassen'!CX14 -> 0 | CX14: ='[2]312 SO-Klassen'!CY14 -> 0 | CY14: ='[2]312 SO-Klassen'!CZ14 -> 0 | CZ14: ='[2]312 SO-Klassen'!DA14 -> 0 | DA14: ='[2]312 SO-Klassen'!DB14 -> 0 | DB14: ='[2]312 SO-Klassen'!DC14 -> 0 | DC14: ='[2]312 SO-Klassen'!DD14 -> 0 | DD14: ='[2]312 SO-Klassen'!DE14 -> 0 | DE14: ='[2]312 SO-Klassen'!DF14 -> 0 | DF14: ='[2]312 SO-Klassen'!DG14 -> 4 | DG14: ='[2]312 SO-Klassen'!DH14 -> 4 | DH14: ='[2]312 SO-Klassen'!DI14 -> 0 | DI14: ='[2]312 SO-Klassen'!DJ14 -> 0 | DJ14: ='[2]312 SO-Klassen'!DK14 -> 0 | DK14: ='[2]312 SO-Klassen'!DL14 -> 0 | DL14: ='[2]312 SO-Klassen'!DM14 -> 0 | DM14: ='[2]312 SO-Klassen'!DN14 -> 0 | DN14: ='[2]312 SO-Klassen'!DO14 -> 0 | DO14: ='[2]312 SO-Klassen'!DP14 -> 0 | DP14: ='[2]312 SO-Klassen'!DQ14 -> 0 | DQ14: ='[2]312 SO-Klassen'!DR14 -> 0 | DR14: ='[2]312 SO-Klassen'!DS14 -> 0 | DS14: ='[2]312 SO-Klassen'!DT14 -> 0 | DT14: ='[2]312 SO-Klassen'!DU14 -> 0 | DU14: ='[2]312 SO-Klassen'!DV14 -> 0 | DV14: ='[2]312 SO-Klassen'!DW14 -> 0 | DW14: ='[2]312 SO-Klassen'!DX14 -> 0 | DX14: ='[2]312 SO-Klassen'!DY14 -> 0 | DY14: ='[2]312 SO-Klassen'!DZ14 -> 0 | DZ14: ='[2]312 SO-Klassen'!EA14 -> 0 | EA14: ='[2]312 SO-Klassen'!EB14 -> 0 | EB14: ='[2]312 SO-Klassen'!EC14 -> 0 | EC14: ='[2]312 SO-Klassen'!ED14 -> 0 | ED14: ='[2]312 SO-Klassen'!EE14 -> 0 | EE14: ='[2]312 SO-Klassen'!EF14 -> 0 | EF14: ='[2]312 SO-Klassen'!EG14 -> 0 | EG14: ='[2]312 SO-Klassen'!EH14 -> 0 | EH14: ='[2]312 SO-Klassen'!EI14 -> 0 | EI14: ='[2]312 SO-Klassen'!EJ14 -> 0 | EJ14: ='[2]312 SO-Klassen'!EK14 -> 0 | EK14: ='[2]312 SO-Klassen'!EL14 -> 0 | EL14: ='[2]312 SO-Klassen'!EM14 -> 501013 | EM14: ='[2]312 SO-Klassen'!EN14 -> 44475 | EN14: ='[2]312 SO-Klassen'!EO14 -> genehmigt | EO14: ='[2]312 SO-Klassen'!EP14 -> 2021-10-06 | EP14: ='[2]312 SO-Klassen'!EQ14 -> 0 | EQ14: ='[2]312 SO-Klassen'!ER14 -> 0 | ER14: ='[2]312 SO-Klassen'!ES14 -> 0 | ES14: ='[2]312 SO-Klassen'!ET14 -> 6 | ET14: ='[2]312 SO-Klassen'!EU14 -> 0
A15: ='[2]312 SO-Klassen'!B15 -> 2021/22 | B15: ='[2]312 SO-Klassen'!C15 -> 1 | C15: ='[2]312 SO-Klassen'!D15 -> 3 | D15: ='[2]312 SO-Klassen'!E15 -> 501013 | E15: ='[2]312 SO-Klassen'!F15 -> SO Salzburg | F15: ='[2]312 SO-Klassen'!G15 -> 2 | G15: ='[2]312 SO-Klassen'!H15 -> 2021-10-01 | H15: ='[2]312 SO-Klassen'!I15 -> 3 | I15: ='[2]312 SO-Klassen'!J15 -> 09 | J15: ='[2]312 SO-Klassen'!K15 -> 1bv5 | K15: ='[2]312 SO-Klassen'!L15 -> 0 | L15: ='[2]312 SO-Klassen'!M15 -> 0 | M15: ='[2]312 SO-Klassen'!N15 -> 0 | N15: ='[2]312 SO-Klassen'!O15 -> 1 | O15: ='[2]312 SO-Klassen'!P15 -> 0 | P15: ='[2]312 SO-Klassen'!Q15 -> 0 | Q15: ='[2]312 SO-Klassen'!R15 -> 1 | R15: ='[2]312 SO-Klassen'!S15 -> 0 | S15: ='[2]312 SO-Klassen'!T15 -> 0 | T15: ='[2]312 SO-Klassen'!U15 -> 0 | U15: ='[2]312 SO-Klassen'!V15 -> 0 | V15: ='[2]312 SO-Klassen'!W15 -> 0 | W15: ='[2]312 SO-Klassen'!X15 -> 0 | X15: ='[2]312 SO-Klassen'!Y15 -> 0 | Y15: ='[2]312 SO-Klassen'!Z15 -> 0 | Z15: ='[2]312 SO-Klassen'!AA15 -> 0 | AA15: ='[2]312 SO-Klassen'!AB15 -> 0 | AB15: ='[2]312 SO-Klassen'!AC15 -> 0 | AC15: ='[2]312 SO-Klassen'!AD15 -> 0 | AD15: ='[2]312 SO-Klassen'!AE15 -> 0 | AE15: ='[2]312 SO-Klassen'!AF15 -> 0 | AF15: ='[2]312 SO-Klassen'!AG15 -> 0 | AG15: ='[2]312 SO-Klassen'!AH15 -> 0 | AH15: ='[2]312 SO-Klassen'!AI15 -> 0 | AI15: ='[2]312 SO-Klassen'!AJ15 -> 0 | AJ15: ='[2]312 SO-Klassen'!AK15 -> 0 | AK15: ='[2]312 SO-Klassen'!AL15 -> 0 | AL15: ='[2]312 SO-Klassen'!AM15 -> 0 | AM15: ='[2]312 SO-Klassen'!AN15 -> 0 | AN15: ='[2]312 SO-Klassen'!AO15 -> 0 | AO15: ='[2]312 SO-Klassen'!AP15 -> 0 | AP15: ='[2]312 SO-Klassen'!AQ15 -> 0 | AQ15: ='[2]312 SO-Klassen'!AR15 -> 1 | AR15: ='[2]312 SO-Klassen'!AS15 -> 1 | AS15: ='[2]312 SO-Klassen'!AT15 -> 1 | AT15: ='[2]312 SO-Klassen'!AU15 -> 6 | AU15: ='[2]312 SO-Klassen'!AV15 -> 6 | AV15: ='[2]312 SO-Klassen'!AW15 -> 6 | AW15: ='[2]312 SO-Klassen'!AX15 -> 0 | AX15: ='[2]312 SO-Klassen'!AY15 -> 0 | AY15: ='[2]312 SO-Klassen'!AZ15 -> 2 | AZ15: ='[2]312 SO-Klassen'!BA15 -> 0 | BA15: ='[2]312 SO-Klassen'!BB15 -> 0 | BB15: ='[2]312 SO-Klassen'!BC15 -> 0 | BC15: ='[2]312 SO-Klassen'!BD15 -> 0 | BD15: ='[2]312 SO-Klassen'!BE15 -> 0 | BE15: ='[2]312 SO-Klassen'!BF15 -> 4 | BF15: ='[2]312 SO-Klassen'!BG15 -> 3 | BG15: ='[2]312 SO-Klassen'!BH15 -> 0 | BH15: ='[2]312 SO-Klassen'!BI15 -> 1 | BI15: ='[2]312 SO-Klassen'!BJ15 -> 1 | BJ15: ='[2]312 SO-Klassen'!BK15 -> 0 | BK15: ='[2]312 SO-Klassen'!BL15 -> 0 | BL15: ='[2]312 SO-Klassen'!BM15 -> 0 | BM15: ='[2]312 SO-Klassen'!BN15 -> 0 | BN15: ='[2]312 SO-Klassen'!BO15 -> 1 | BO15: ='[2]312 SO-Klassen'!BP15 -> 0 | BP15: ='[2]312 SO-Klassen'!BQ15 -> 0 | BQ15: ='[2]312 SO-Klassen'!BR15 -> 0 | BR15: ='[2]312 SO-Klassen'!BS15 -> 0 | BS15: ='[2]312 SO-Klassen'!BT15 -> 0 | BT15: ='[2]312 SO-Klassen'!BU15 -> 0 | BU15: ='[2]312 SO-Klassen'!BV15 -> 1 | BV15: ='[2]312 SO-Klassen'!BW15 -> 0 | BW15: ='[2]312 SO-Klassen'!BX15 -> 0 | BX15: ='[2]312 SO-Klassen'!BY15 -> 0 | BY15: ='[2]312 SO-Klassen'!BZ15 -> 0 | BZ15: ='[2]312 SO-Klassen'!CA15 -> 0 | CA15: ='[2]312 SO-Klassen'!CB15 -> 0 | CB15: ='[2]312 SO-Klassen'!CC15 -> 3 | CC15: ='[2]312 SO-Klassen'!CD15 -> 3 | CD15: ='[2]312 SO-Klassen'!CE15 -> 0 | CE15: ='[2]312 SO-Klassen'!CF15 -> 0 | CF15: ='[2]312 SO-Klassen'!CG15 -> 0 | CG15: ='[2]312 SO-Klassen'!CH15 -> 0 | CH15: ='[2]312 SO-Klassen'!CI15 -> 0 | CI15: ='[2]312 SO-Klassen'!CJ15 -> 0 | CJ15: ='[2]312 SO-Klassen'!CK15 -> 0 | CK15: ='[2]312 SO-Klassen'!CL15 -> 0 | CL15: ='[2]312 SO-Klassen'!CM15 -> 0 | CM15: ='[2]312 SO-Klassen'!CN15 -> 0 | CN15: ='[2]312 SO-Klassen'!CO15 -> 0 | CO15: ='[2]312 SO-Klassen'!CP15 -> 0 | CP15: ='[2]312 SO-Klassen'!CQ15 -> 0 | CQ15: ='[2]312 SO-Klassen'!CR15 -> 0 | CR15: ='[2]312 SO-Klassen'!CS15 -> 0 | CS15: ='[2]312 SO-Klassen'!CT15 -> 0 | CT15: ='[2]312 SO-Klassen'!CU15 -> 0 | CU15: ='[2]312 SO-Klassen'!CV15 -> 0 | CV15: ='[2]312 SO-Klassen'!CW15 -> 0 | CW15: ='[2]312 SO-Klassen'!CX15 -> 0 | CX15: ='[2]312 SO-Klassen'!CY15 -> 0 | CY15: ='[2]312 SO-Klassen'!CZ15 -> 0 | CZ15: ='[2]312 SO-Klassen'!DA15 -> 0 | DA15: ='[2]312 SO-Klassen'!DB15 -> 0 | DB15: ='[2]312 SO-Klassen'!DC15 -> 0 | DC15: ='[2]312 SO-Klassen'!DD15 -> 0 | DD15: ='[2]312 SO-Klassen'!DE15 -> 0 | DE15: ='[2]312 SO-Klassen'!DF15 -> 0 | DF15: ='[2]312 SO-Klassen'!DG15 -> 1 | DG15: ='[2]312 SO-Klassen'!DH15 -> 6 | DH15: ='[2]312 SO-Klassen'!DI15 -> 0 | DI15: ='[2]312 SO-Klassen'!DJ15 -> 0 | DJ15: ='[2]312 SO-Klassen'!DK15 -> 0 | DK15: ='[2]312 SO-Klassen'!DL15 -> 0 | DL15: ='[2]312 SO-Klassen'!DM15 -> 0 | DM15: ='[2]312 SO-Klassen'!DN15 -> 0 | DN15: ='[2]312 SO-Klassen'!DO15 -> 0 | DO15: ='[2]312 SO-Klassen'!DP15 -> 0 | DP15: ='[2]312 SO-Klassen'!DQ15 -> 0 | DQ15: ='[2]312 SO-Klassen'!DR15 -> 0 | DR15: ='[2]312 SO-Klassen'!DS15 -> 0 | DS15: ='[2]312 SO-Klassen'!DT15 -> 0 | DT15: ='[2]312 SO-Klassen'!DU15 -> 0 | DU15: ='[2]312 SO-Klassen'!DV15 -> 0 | DV15: ='[2]312 SO-Klassen'!DW15 -> 0 | DW15: ='[2]312 SO-Klassen'!DX15 -> 0 | DX15: ='[2]312 SO-Klassen'!DY15 -> 0 | DY15: ='[2]312 SO-Klassen'!DZ15 -> 0 | DZ15: ='[2]312 SO-Klassen'!EA15 -> 0 | EA15: ='[2]312 SO-Klassen'!EB15 -> 0 | EB15: ='[2]312 SO-Klassen'!EC15 -> 0 | EC15: ='[2]312 SO-Klassen'!ED15 -> 0 | ED15: ='[2]312 SO-Klassen'!EE15 -> 0 | EE15: ='[2]312 SO-Klassen'!EF15 -> 0 | EF15: ='[2]312 SO-Klassen'!EG15 -> 0 | EG15: ='[2]312 SO-Klassen'!EH15 -> 0 | EH15: ='[2]312 SO-Klassen'!EI15 -> 0 | EI15: ='[2]312 SO-Klassen'!EJ15 -> 0 | EJ15: ='[2]312 SO-Klassen'!EK15 -> 0 | EK15: ='[2]312 SO-Klassen'!EL15 -> 0 | EL15: ='[2]312 SO-Klassen'!EM15 -> 501013 | EM15: ='[2]312 SO-Klassen'!EN15 -> 44475 | EN15: ='[2]312 SO-Klassen'!EO15 -> genehmigt | EO15: ='[2]312 SO-Klassen'!EP15 -> 2021-10-06 | EP15: ='[2]312 SO-Klassen'!EQ15 -> 0 | EQ15: ='[2]312 SO-Klassen'!ER15 -> 0 | ER15: ='[2]312 SO-Klassen'!ES15 -> 0 | ES15: ='[2]312 SO-Klassen'!ET15 -> 5 | ET15: ='[2]312 SO-Klassen'!EU15 -> 0
A16: ='[2]312 SO-Klassen'!B16 -> 2021/22 | B16: ='[2]312 SO-Klassen'!C16 -> 1 | C16: ='[2]312 SO-Klassen'!D16 -> 3 | D16: ='[2]312 SO-Klassen'!E16 -> 501013 | E16: ='[2]312 SO-Klassen'!F16 -> SO Salzburg | F16: ='[2]312 SO-Klassen'!G16 -> 2 | G16: ='[2]312 SO-Klassen'!H16 -> 2000-01-01 | H16: ='[2]312 SO-Klassen'!I16 -> 3 | I16: ='[2]312 SO-Klassen'!J16 -> 99 | J16: ='[2]312 SO-Klassen'!K16 -> X | K16: ='[2]312 SO-Klassen'!L16 -> 0 | L16: ='[2]312 SO-Klassen'!M16 -> 0 | M16: ='[2]312 SO-Klassen'!N16 -> 0 | N16: ='[2]312 SO-Klassen'!O16 -> 0 | O16: ='[2]312 SO-Klassen'!P16 -> 0 | P16: ='[2]312 SO-Klassen'!Q16 -> 0 | Q16: ='[2]312 SO-Klassen'!R16 -> 1 | R16: ='[2]312 SO-Klassen'!S16 -> 0 | S16: ='[2]312 SO-Klassen'!T16 ->  | T16: ='[2]312 SO-Klassen'!U16 ->  | U16: ='[2]312 SO-Klassen'!V16 -> 0 | V16: ='[2]312 SO-Klassen'!W16 ->  | W16: ='[2]312 SO-Klassen'!X16 ->  | X16: ='[2]312 SO-Klassen'!Y16 -> 0 | Y16: ='[2]312 SO-Klassen'!Z16 ->  | Z16: ='[2]312 SO-Klassen'!AA16 ->  | AA16: ='[2]312 SO-Klassen'!AB16 -> 0 | AB16: ='[2]312 SO-Klassen'!AC16 ->  | AC16: ='[2]312 SO-Klassen'!AD16 ->  | AD16: ='[2]312 SO-Klassen'!AE16 -> 0 | AE16: ='[2]312 SO-Klassen'!AF16 ->  | AF16: ='[2]312 SO-Klassen'!AG16 ->  | AG16: ='[2]312 SO-Klassen'!AH16 -> 0 | AH16: ='[2]312 SO-Klassen'!AI16 ->  | AI16: ='[2]312 SO-Klassen'!AJ16 ->  | AJ16: ='[2]312 SO-Klassen'!AK16 -> 0 | AK16: ='[2]312 SO-Klassen'!AL16 ->  | AL16: ='[2]312 SO-Klassen'!AM16 ->  | AM16: ='[2]312 SO-Klassen'!AN16 -> 0 | AN16: ='[2]312 SO-Klassen'!AO16 ->  | AO16: ='[2]312 SO-Klassen'!AP16 ->  | AP16: ='[2]312 SO-Klassen'!AQ16 -> 0 | AQ16: ='[2]312 SO-Klassen'!AR16 ->  | AR16: ='[2]312 SO-Klassen'!AS16 ->  | AS16: ='[2]312 SO-Klassen'!AT16 -> 0 | AT16: ='[2]312 SO-Klassen'!AU16 ->  | AU16: ='[2]312 SO-Klassen'!AV16 ->  | AV16: ='[2]312 SO-Klassen'!AW16 ->  | AW16: ='[2]312 SO-Klassen'!AX16 ->  | AX16: ='[2]312 SO-Klassen'!AY16 ->  | AY16: ='[2]312 SO-Klassen'!AZ16 ->  | AZ16: ='[2]312 SO-Klassen'!BA16 ->  | BA16: ='[2]312 SO-Klassen'!BB16 ->  | BB16: ='[2]312 SO-Klassen'!BC16 ->  | BC16: ='[2]312 SO-Klassen'!BD16 ->  | BD16: ='[2]312 SO-Klassen'!BE16 ->  | BE16: ='[2]312 SO-Klassen'!BF16 ->  | BF16: ='[2]312 SO-Klassen'!BG16 ->  | BG16: ='[2]312 SO-Klassen'!BH16 ->  | BH16: ='[2]312 SO-Klassen'!BI16 ->  | BI16: ='[2]312 SO-Klassen'!BJ16 ->  | BJ16: ='[2]312 SO-Klassen'!BK16 ->  | BK16: ='[2]312 SO-Klassen'!BL16 ->  | BL16: ='[2]312 SO-Klassen'!BM16 ->  | BM16: ='[2]312 SO-Klassen'!BN16 ->  | BN16: ='[2]312 SO-Klassen'!BO16 ->  | BO16: ='[2]312 SO-Klassen'!BP16 -> 0 | BP16: ='[2]312 SO-Klassen'!BQ16 -> 0 | BQ16: ='[2]312 SO-Klassen'!BR16 -> 0 | BR16: ='[2]312 SO-Klassen'!BS16 -> 0 | BS16: ='[2]312 SO-Klassen'!BT16 -> 0 | BT16: ='[2]312 SO-Klassen'!BU16 -> 0 | BU16: ='[2]312 SO-Klassen'!BV16 -> 0 | BV16: ='[2]312 SO-Klassen'!BW16 -> 0 | BW16: ='[2]312 SO-Klassen'!BX16 -> 0 | BX16: ='[2]312 SO-Klassen'!BY16 -> 0 | BY16: ='[2]312 SO-Klassen'!BZ16 ->  | BZ16: ='[2]312 SO-Klassen'!CA16 ->  | CA16: ='[2]312 SO-Klassen'!CB16 ->  | CB16: ='[2]312 SO-Klassen'!CC16 ->  | CC16: ='[2]312 SO-Klassen'!CD16 ->  | CD16: ='[2]312 SO-Klassen'!CE16 ->  | CE16: ='[2]312 SO-Klassen'!CF16 ->  | CF16: ='[2]312 SO-Klassen'!CG16 ->  | CG16: ='[2]312 SO-Klassen'!CH16 ->  | CH16: ='[2]312 SO-Klassen'!CI16 ->  | CI16: ='[2]312 SO-Klassen'!CJ16 ->  | CJ16: ='[2]312 SO-Klassen'!CK16 ->  | CK16: ='[2]312 SO-Klassen'!CL16 ->  | CL16: ='[2]312 SO-Klassen'!CM16 ->  | CM16: ='[2]312 SO-Klassen'!CN16 ->  | CN16: ='[2]312 SO-Klassen'!CO16 ->  | CO16: ='[2]312 SO-Klassen'!CP16 ->  | CP16: ='[2]312 SO-Klassen'!CQ16 ->  | CQ16: ='[2]312 SO-Klassen'!CR16 ->  | CR16: ='[2]312 SO-Klassen'!CS16 ->  | CS16: ='[2]312 SO-Klassen'!CT16 ->  | CT16: ='[2]312 SO-Klassen'!CU16 ->  | CU16: ='[2]312 SO-Klassen'!CV16 ->  | CV16: ='[2]312 SO-Klassen'!CW16 ->  | CW16: ='[2]312 SO-Klassen'!CX16 ->  | CX16: ='[2]312 SO-Klassen'!CY16 ->  | CY16: ='[2]312 SO-Klassen'!CZ16 ->  | CZ16: ='[2]312 SO-Klassen'!DA16 ->  | DA16: ='[2]312 SO-Klassen'!DB16 ->  | DB16: ='[2]312 SO-Klassen'!DC16 ->  | DC16: ='[2]312 SO-Klassen'!DD16 ->  | DD16: ='[2]312 SO-Klassen'!DE16 ->  | DE16: ='[2]312 SO-Klassen'!DF16 ->  | DF16: ='[2]312 SO-Klassen'!DG16 ->  | DG16: ='[2]312 SO-Klassen'!DH16 ->  | DH16: ='[2]312 SO-Klassen'!DI16 ->  | DI16: ='[2]312 SO-Klassen'!DJ16 ->  | DJ16: ='[2]312 SO-Klassen'!DK16 ->  | DK16: ='[2]312 SO-Klassen'!DL16 ->  | DL16: ='[2]312 SO-Klassen'!DM16 ->  | DM16: ='[2]312 SO-Klassen'!DN16 ->  | DN16: ='[2]312 SO-Klassen'!DO16 ->  | DO16: ='[2]312 SO-Klassen'!DP16 ->  | DP16: ='[2]312 SO-Klassen'!DQ16 ->  | DQ16: ='[2]312 SO-Klassen'!DR16 ->  | DR16: ='[2]312 SO-Klassen'!DS16 ->  | DS16: ='[2]312 SO-Klassen'!DT16 ->  | DT16: ='[2]312 SO-Klassen'!DU16 ->  | DU16: ='[2]312 SO-Klassen'!DV16 ->  | DV16: ='[2]312 SO-Klassen'!DW16 ->  | DW16: ='[2]312 SO-Klassen'!DX16 ->  | DX16: ='[2]312 SO-Klassen'!DY16 ->  | DY16: ='[2]312 SO-Klassen'!DZ16 ->  | DZ16: ='[2]312 SO-Klassen'!EA16 ->  | EA16: ='[2]312 SO-Klassen'!EB16 ->  | EB16: ='[2]312 SO-Klassen'!EC16 ->  | EC16: ='[2]312 SO-Klassen'!ED16 ->  | ED16: ='[2]312 SO-Klassen'!EE16 ->  | EE16: ='[2]312 SO-Klassen'!EF16 ->  | EF16: ='[2]312 SO-Klassen'!EG16 ->  | EG16: ='[2]312 SO-Klassen'!EH16 ->  | EH16: ='[2]312 SO-Klassen'!EI16 ->  | EI16: ='[2]312 SO-Klassen'!EJ16 ->  | EJ16: ='[2]312 SO-Klassen'!EK16 ->  | EK16: ='[2]312 SO-Klassen'!EL16 ->  | EL16: ='[2]312 SO-Klassen'!EM16 -> 501013 | EM16: ='[2]312 SO-Klassen'!EN16 -> 44475 | EN16: ='[2]312 SO-Klassen'!EO16 -> genehmigt | EO16: ='[2]312 SO-Klassen'!EP16 -> 2021-10-06 | EP16: ='[2]312 SO-Klassen'!EQ16 ->  | EQ16: ='[2]312 SO-Klassen'!ER16 ->  | ER16: ='[2]312 SO-Klassen'!ES16 ->  | ES16: ='[2]312 SO-Klassen'!ET16 ->  | ET16: ='[2]312 SO-Klassen'!EU16 -> 
A17: ='[2]312 SO-Klassen'!B17 -> 2021/22 | B17: ='[2]312 SO-Klassen'!C17 -> 1 | C17: ='[2]312 SO-Klassen'!D17 -> 3 | D17: ='[2]312 SO-Klassen'!E17 -> 501013 | E17: ='[2]312 SO-Klassen'!F17 -> SO Salzburg | F17: ='[2]312 SO-Klassen'!G17 -> 2 | G17: ='[2]312 SO-Klassen'!H17 -> 2000-01-01 | H17: ='[2]312 SO-Klassen'!I17 -> 3 | I17: ='[2]312 SO-Klassen'!J17 -> 99 | J17: ='[2]312 SO-Klassen'!K17 -> X | K17: ='[2]312 SO-Klassen'!L17 -> 0 | L17: ='[2]312 SO-Klassen'!M17 -> 0 | M17: ='[2]312 SO-Klassen'!N17 -> 0 | N17: ='[2]312 SO-Klassen'!O17 -> 0 | O17: ='[2]312 SO-Klassen'!P17 -> 0 | P17: ='[2]312 SO-Klassen'!Q17 -> 0 | Q17: ='[2]312 SO-Klassen'!R17 -> 1 | R17: ='[2]312 SO-Klassen'!S17 -> 0 | S17: ='[2]312 SO-Klassen'!T17 ->  | T17: ='[2]312 SO-Klassen'!U17 ->  | U17: ='[2]312 SO-Klassen'!V17 -> 0 | V17: ='[2]312 SO-Klassen'!W17 ->  | W17: ='[2]312 SO-Klassen'!X17 ->  | X17: ='[2]312 SO-Klassen'!Y17 -> 0 | Y17: ='[2]312 SO-Klassen'!Z17 ->  | Z17: ='[2]312 SO-Klassen'!AA17 ->  | AA17: ='[2]312 SO-Klassen'!AB17 -> 0 | AB17: ='[2]312 SO-Klassen'!AC17 ->  | AC17: ='[2]312 SO-Klassen'!AD17 ->  | AD17: ='[2]312 SO-Klassen'!AE17 -> 0 | AE17: ='[2]312 SO-Klassen'!AF17 ->  | AF17: ='[2]312 SO-Klassen'!AG17 ->  | AG17: ='[2]312 SO-Klassen'!AH17 -> 0 | AH17: ='[2]312 SO-Klassen'!AI17 ->  | AI17: ='[2]312 SO-Klassen'!AJ17 ->  | AJ17: ='[2]312 SO-Klassen'!AK17 -> 0 | AK17: ='[2]312 SO-Klassen'!AL17 ->  | AL17: ='[2]312 SO-Klassen'!AM17 ->  | AM17: ='[2]312 SO-Klassen'!AN17 -> 0 | AN17: ='[2]312 SO-Klassen'!AO17 ->  | AO17: ='[2]312 SO-Klassen'!AP17 ->  | AP17: ='[2]312 SO-Klassen'!AQ17 -> 0 | AQ17: ='[2]312 SO-Klassen'!AR17 ->  | AR17: ='[2]312 SO-Klassen'!AS17 ->  | AS17: ='[2]312 SO-Klassen'!AT17 -> 0 | AT17: ='[2]312 SO-Klassen'!AU17 ->  | AU17: ='[2]312 SO-Klassen'!AV17 ->  | AV17: ='[2]312 SO-Klassen'!AW17 ->  | AW17: ='[2]312 SO-Klassen'!AX17 ->  | AX17: ='[2]312 SO-Klassen'!AY17 ->  | AY17: ='[2]312 SO-Klassen'!AZ17 ->  | AZ17: ='[2]312 SO-Klassen'!BA17 ->  | BA17: ='[2]312 SO-Klassen'!BB17 ->  | BB17: ='[2]312 SO-Klassen'!BC17 ->  | BC17: ='[2]312 SO-Klassen'!BD17 ->  | BD17: ='[2]312 SO-Klassen'!BE17 ->  | BE17: ='[2]312 SO-Klassen'!BF17 ->  | BF17: ='[2]312 SO-Klassen'!BG17 ->  | BG17: ='[2]312 SO-Klassen'!BH17 ->  | BH17: ='[2]312 SO-Klassen'!BI17 ->  | BI17: ='[2]312 SO-Klassen'!BJ17 ->  | BJ17: ='[2]312 SO-Klassen'!BK17 ->  | BK17: ='[2]312 SO-Klassen'!BL17 ->  | BL17: ='[2]312 SO-Klassen'!BM17 ->  | BM17: ='[2]312 SO-Klassen'!BN17 ->  | BN17: ='[2]312 SO-Klassen'!BO17 ->  | BO17: ='[2]312 SO-Klassen'!BP17 -> 0 | BP17: ='[2]312 SO-Klassen'!BQ17 -> 0 | BQ17: ='[2]312 SO-Klassen'!BR17 -> 0 | BR17: ='[2]312 SO-Klassen'!BS17 -> 0 | BS17: ='[2]312 SO-Klassen'!BT17 -> 0 | BT17: ='[2]312 SO-Klassen'!BU17 -> 0 | BU17: ='[2]312 SO-Klassen'!BV17 -> 0 | BV17: ='[2]312 SO-Klassen'!BW17 -> 0 | BW17: ='[2]312 SO-Klassen'!BX17 -> 0 | BX17: ='[2]312 SO-Klassen'!BY17 -> 0 | BY17: ='[2]312 SO-Klassen'!BZ17 ->  | BZ17: ='[2]312 SO-Klassen'!CA17 ->  | CA17: ='[2]312 SO-Klassen'!CB17 ->  | CB17: ='[2]312 SO-Klassen'!CC17 ->  | CC17: ='[2]312 SO-Klassen'!CD17 ->  | CD17: ='[2]312 SO-Klassen'!CE17 ->  | CE17: ='[2]312 SO-Klassen'!CF17 ->  | CF17: ='[2]312 SO-Klassen'!CG17 ->  | CG17: ='[2]312 SO-Klassen'!CH17 ->  | CH17: ='[2]312 SO-Klassen'!CI17 ->  | CI17: ='[2]312 SO-Klassen'!CJ17 ->  | CJ17: ='[2]312 SO-Klassen'!CK17 ->  | CK17: ='[2]312 SO-Klassen'!CL17 ->  | CL17: ='[2]312 SO-Klassen'!CM17 ->  | CM17: ='[2]312 SO-Klassen'!CN17 ->  | CN17: ='[2]312 SO-Klassen'!CO17 ->  | CO17: ='[2]312 SO-Klassen'!CP17 ->  | CP17: ='[2]312 SO-Klassen'!CQ17 ->  | CQ17: ='[2]312 SO-Klassen'!CR17 ->  | CR17: ='[2]312 SO-Klassen'!CS17 ->  | CS17: ='[2]312 SO-Klassen'!CT17 ->  | CT17: ='[2]312 SO-Klassen'!CU17 ->  | CU17: ='[2]312 SO-Klassen'!CV17 ->  | CV17: ='[2]312 SO-Klassen'!CW17 ->  | CW17: ='[2]312 SO-Klassen'!CX17 ->  | CX17: ='[2]312 SO-Klassen'!CY17 ->  | CY17: ='[2]312 SO-Klassen'!CZ17 ->  | CZ17: ='[2]312 SO-Klassen'!DA17 ->  | DA17: ='[2]312 SO-Klassen'!DB17 ->  | DB17: ='[2]312 SO-Klassen'!DC17 ->  | DC17: ='[2]312 SO-Klassen'!DD17 ->  | DD17: ='[2]312 SO-Klassen'!DE17 ->  | DE17: ='[2]312 SO-Klassen'!DF17 ->  | DF17: ='[2]312 SO-Klassen'!DG17 ->  | DG17: ='[2]312 SO-Klassen'!DH17 ->  | DH17: ='[2]312 SO-Klassen'!DI17 ->  | DI17: ='[2]312 SO-Klassen'!DJ17 ->  | DJ17: ='[2]312 SO-Klassen'!DK17 ->  | DK17: ='[2]312 SO-Klassen'!DL17 ->  | DL17: ='[2]312 SO-Klassen'!DM17 ->  | DM17: ='[2]312 SO-Klassen'!DN17 ->  | DN17: ='[2]312 SO-Klassen'!DO17 ->  | DO17: ='[2]312 SO-Klassen'!DP17 ->  | DP17: ='[2]312 SO-Klassen'!DQ17 ->  | DQ17: ='[2]312 SO-Klassen'!DR17 ->  | DR17: ='[2]312 SO-Klassen'!DS17 ->  | DS17: ='[2]312 SO-Klassen'!DT17 ->  | DT17: ='[2]312 SO-Klassen'!DU17 ->  | DU17: ='[2]312 SO-Klassen'!DV17 ->  | DV17: ='[2]312 SO-Klassen'!DW17 ->  | DW17: ='[2]312 SO-Klassen'!DX17 ->  | DX17: ='[2]312 SO-Klassen'!DY17 ->  | DY17: ='[2]312 SO-Klassen'!DZ17 ->  | DZ17: ='[2]312 SO-Klassen'!EA17 ->  | EA17: ='[2]312 SO-Klassen'!EB17 ->  | EB17: ='[2]312 SO-Klassen'!EC17 ->  | EC17: ='[2]312 SO-Klassen'!ED17 ->  | ED17: ='[2]312 SO-Klassen'!EE17 ->  | EE17: ='[2]312 SO-Klassen'!EF17 ->  | EF17: ='[2]312 SO-Klassen'!EG17 ->  | EG17: ='[2]312 SO-Klassen'!EH17 ->  | EH17: ='[2]312 SO-Klassen'!EI17 ->  | EI17: ='[2]312 SO-Klassen'!EJ17 ->  | EJ17: ='[2]312 SO-Klassen'!EK17 ->  | EK17: ='[2]312 SO-Klassen'!EL17 ->  | EL17: ='[2]312 SO-Klassen'!EM17 -> 501013 | EM17: ='[2]312 SO-Klassen'!EN17 -> 44475 | EN17: ='[2]312 SO-Klassen'!EO17 -> genehmigt | EO17: ='[2]312 SO-Klassen'!EP17 -> 2021-10-06 | EP17: ='[2]312 SO-Klassen'!EQ17 ->  | EQ17: ='[2]312 SO-Klassen'!ER17 ->  | ER17: ='[2]312 SO-Klassen'!ES17 ->  | ES17: ='[2]312 SO-Klassen'!ET17 ->  | ET17: ='[2]312 SO-Klassen'!EU17 -> 
A18: ='[2]312 SO-Klassen'!B18 -> 2021/22 | B18: ='[2]312 SO-Klassen'!C18 -> 1 | C18: ='[2]312 SO-Klassen'!D18 -> 3 | D18: ='[2]312 SO-Klassen'!E18 -> 501013 | E18: ='[2]312 SO-Klassen'!F18 -> SO Salzburg | F18: ='[2]312 SO-Klassen'!G18 -> 2 | G18: ='[2]312 SO-Klassen'!H18 -> 2000-01-01 | H18: ='[2]312 SO-Klassen'!I18 -> 3 | I18: ='[2]312 SO-Klassen'!J18 -> 99 | J18: ='[2]312 SO-Klassen'!K18 -> X | K18: ='[2]312 SO-Klassen'!L18 -> 0 | L18: ='[2]312 SO-Klassen'!M18 -> 0 | M18: ='[2]312 SO-Klassen'!N18 -> 0 | N18: ='[2]312 SO-Klassen'!O18 -> 0 | O18: ='[2]312 SO-Klassen'!P18 -> 0 | P18: ='[2]312 SO-Klassen'!Q18 -> 0 | Q18: ='[2]312 SO-Klassen'!R18 -> 1 | R18: ='[2]312 SO-Klassen'!S18 -> 0 | S18: ='[2]312 SO-Klassen'!T18 ->  | T18: ='[2]312 SO-Klassen'!U18 ->  | U18: ='[2]312 SO-Klassen'!V18 -> 0 | V18: ='[2]312 SO-Klassen'!W18 ->  | W18: ='[2]312 SO-Klassen'!X18 ->  | X18: ='[2]312 SO-Klassen'!Y18 -> 0 | Y18: ='[2]312 SO-Klassen'!Z18 ->  | Z18: ='[2]312 SO-Klassen'!AA18 ->  | AA18: ='[2]312 SO-Klassen'!AB18 -> 0 | AB18: ='[2]312 SO-Klassen'!AC18 ->  | AC18: ='[2]312 SO-Klassen'!AD18 ->  | AD18: ='[2]312 SO-Klassen'!AE18 -> 0 | AE18: ='[2]312 SO-Klassen'!AF18 ->  | AF18: ='[2]312 SO-Klassen'!AG18 ->  | AG18: ='[2]312 SO-Klassen'!AH18 -> 0 | AH18: ='[2]312 SO-Klassen'!AI18 ->  | AI18: ='[2]312 SO-Klassen'!AJ18 ->  | AJ18: ='[2]312 SO-Klassen'!AK18 -> 0 | AK18: ='[2]312 SO-Klassen'!AL18 ->  | AL18: ='[2]312 SO-Klassen'!AM18 ->  | AM18: ='[2]312 SO-Klassen'!AN18 -> 0 | AN18: ='[2]312 SO-Klassen'!AO18 ->  | AO18: ='[2]312 SO-Klassen'!AP18 ->  | AP18: ='[2]312 SO-Klassen'!AQ18 -> 0 | AQ18: ='[2]312 SO-Klassen'!AR18 ->  | AR18: ='[2]312 SO-Klassen'!AS18 ->  | AS18: ='[2]312 SO-Klassen'!AT18 -> 0 | AT18: ='[2]312 SO-Klassen'!AU18 ->  | AU18: ='[2]312 SO-Klassen'!AV18 ->  | AV18: ='[2]312 SO-Klassen'!AW18 ->  | AW18: ='[2]312 SO-Klassen'!AX18 ->  | AX18: ='[2]312 SO-Klassen'!AY18 ->  | AY18: ='[2]312 SO-Klassen'!AZ18 ->  | AZ18: ='[2]312 SO-Klassen'!BA18 ->  | BA18: ='[2]312 SO-Klassen'!BB18 ->  | BB18: ='[2]312 SO-Klassen'!BC18 ->  | BC18: ='[2]312 SO-Klassen'!BD18 ->  | BD18: ='[2]312 SO-Klassen'!BE18 ->  | BE18: ='[2]312 SO-Klassen'!BF18 ->  | BF18: ='[2]312 SO-Klassen'!BG18 ->  | BG18: ='[2]312 SO-Klassen'!BH18 ->  | BH18: ='[2]312 SO-Klassen'!BI18 ->  | BI18: ='[2]312 SO-Klassen'!BJ18 ->  | BJ18: ='[2]312 SO-Klassen'!BK18 ->  | BK18: ='[2]312 SO-Klassen'!BL18 ->  | BL18: ='[2]312 SO-Klassen'!BM18 ->  | BM18: ='[2]312 SO-Klassen'!BN18 ->  | BN18: ='[2]312 SO-Klassen'!BO18 ->  | BO18: ='[2]312 SO-Klassen'!BP18 -> 0 | BP18: ='[2]312 SO-Klassen'!BQ18 -> 0 | BQ18: ='[2]312 SO-Klassen'!BR18 -> 0 | BR18: ='[2]312 SO-Klassen'!BS18 -> 0 | BS18: ='[2]312 SO-Klassen'!BT18 -> 0 | BT18: ='[2]312 SO-Klassen'!BU18 -> 0 | BU18: ='[2]312 SO-Klassen'!BV18 -> 0 | BV18: ='[2]312 SO-Klassen'!BW18 -> 0 | BW18: ='[2]312 SO-Klassen'!BX18 -> 0 | BX18: ='[2]312 SO-Klassen'!BY18 -> 0 | BY18: ='[2]312 SO-Klassen'!BZ18 ->  | BZ18: ='[2]312 SO-Klassen'!CA18 ->  | CA18: ='[2]312 SO-Klassen'!CB18 ->  | CB18: ='[2]312 SO-Klassen'!CC18 ->  | CC18: ='[2]312 SO-Klassen'!CD18 ->  | CD18: ='[2]312 SO-Klassen'!CE18 ->  | CE18: ='[2]312 SO-Klassen'!CF18 ->  | CF18: ='[2]312 SO-Klassen'!CG18 ->  | CG18: ='[2]312 SO-Klassen'!CH18 ->  | CH18: ='[2]312 SO-Klassen'!CI18 ->  | CI18: ='[2]312 SO-Klassen'!CJ18 ->  | CJ18: ='[2]312 SO-Klassen'!CK18 ->  | CK18: ='[2]312 SO-Klassen'!CL18 ->  | CL18: ='[2]312 SO-Klassen'!CM18 ->  | CM18: ='[2]312 SO-Klassen'!CN18 ->  | CN18: ='[2]312 SO-Klassen'!CO18 ->  | CO18: ='[2]312 SO-Klassen'!CP18 ->  | CP18: ='[2]312 SO-Klassen'!CQ18 ->  | CQ18: ='[2]312 SO-Klassen'!CR18 ->  | CR18: ='[2]312 SO-Klassen'!CS18 ->  | CS18: ='[2]312 SO-Klassen'!CT18 ->  | CT18: ='[2]312 SO-Klassen'!CU18 ->  | CU18: ='[2]312 SO-Klassen'!CV18 ->  | CV18: ='[2]312 SO-Klassen'!CW18 ->  | CW18: ='[2]312 SO-Klassen'!CX18 ->  | CX18: ='[2]312 SO-Klassen'!CY18 ->  | CY18: ='[2]312 SO-Klassen'!CZ18 ->  | CZ18: ='[2]312 SO-Klassen'!DA18 ->  | DA18: ='[2]312 SO-Klassen'!DB18 ->  | DB18: ='[2]312 SO-Klassen'!DC18 ->  | DC18: ='[2]312 SO-Klassen'!DD18 ->  | DD18: ='[2]312 SO-Klassen'!DE18 ->  | DE18: ='[2]312 SO-Klassen'!DF18 ->  | DF18: ='[2]312 SO-Klassen'!DG18 ->  | DG18: ='[2]312 SO-Klassen'!DH18 ->  | DH18: ='[2]312 SO-Klassen'!DI18 ->  | DI18: ='[2]312 SO-Klassen'!DJ18 ->  | DJ18: ='[2]312 SO-Klassen'!DK18 ->  | DK18: ='[2]312 SO-Klassen'!DL18 ->  | DL18: ='[2]312 SO-Klassen'!DM18 ->  | DM18: ='[2]312 SO-Klassen'!DN18 ->  | DN18: ='[2]312 SO-Klassen'!DO18 ->  | DO18: ='[2]312 SO-Klassen'!DP18 ->  | DP18: ='[2]312 SO-Klassen'!DQ18 ->  | DQ18: ='[2]312 SO-Klassen'!DR18 ->  | DR18: ='[2]312 SO-Klassen'!DS18 ->  | DS18: ='[2]312 SO-Klassen'!DT18 ->  | DT18: ='[2]312 SO-Klassen'!DU18 ->  | DU18: ='[2]312 SO-Klassen'!DV18 ->  | DV18: ='[2]312 SO-Klassen'!DW18 ->  | DW18: ='[2]312 SO-Klassen'!DX18 ->  | DX18: ='[2]312 SO-Klassen'!DY18 ->  | DY18: ='[2]312 SO-Klassen'!DZ18 ->  | DZ18: ='[2]312 SO-Klassen'!EA18 ->  | EA18: ='[2]312 SO-Klassen'!EB18 ->  | EB18: ='[2]312 SO-Klassen'!EC18 ->  | EC18: ='[2]312 SO-Klassen'!ED18 ->  | ED18: ='[2]312 SO-Klassen'!EE18 ->  | EE18: ='[2]312 SO-Klassen'!EF18 ->  | EF18: ='[2]312 SO-Klassen'!EG18 ->  | EG18: ='[2]312 SO-Klassen'!EH18 ->  | EH18: ='[2]312 SO-Klassen'!EI18 ->  | EI18: ='[2]312 SO-Klassen'!EJ18 ->  | EJ18: ='[2]312 SO-Klassen'!EK18 ->  | EK18: ='[2]312 SO-Klassen'!EL18 ->  | EL18: ='[2]312 SO-Klassen'!EM18 -> 501013 | EM18: ='[2]312 SO-Klassen'!EN18 -> 44475 | EN18: ='[2]312 SO-Klassen'!EO18 -> genehmigt | EO18: ='[2]312 SO-Klassen'!EP18 -> 2021-10-06 | EP18: ='[2]312 SO-Klassen'!EQ18 ->  | EQ18: ='[2]312 SO-Klassen'!ER18 ->  | ER18: ='[2]312 SO-Klassen'!ES18 ->  | ES18: ='[2]312 SO-Klassen'!ET18 ->  | ET18: ='[2]312 SO-Klassen'!EU18 -> 
A19: ='[2]312 SO-Klassen'!B19 -> 2021/22 | B19: ='[2]312 SO-Klassen'!C19 -> 1 | C19: ='[2]312 SO-Klassen'!D19 -> 3 | D19: ='[2]312 SO-Klassen'!E19 -> 501013 | E19: ='[2]312 SO-Klassen'!F19 -> SO Salzburg | F19: ='[2]312 SO-Klassen'!G19 -> 2 | G19: ='[2]312 SO-Klassen'!H19 -> 2000-01-01 | H19: ='[2]312 SO-Klassen'!I19 -> 3 | I19: ='[2]312 SO-Klassen'!J19 -> 99 | J19: ='[2]312 SO-Klassen'!K19 -> X | K19: ='[2]312 SO-Klassen'!L19 -> 0 | L19: ='[2]312 SO-Klassen'!M19 -> 0 | M19: ='[2]312 SO-Klassen'!N19 -> 0 | N19: ='[2]312 SO-Klassen'!O19 -> 0 | O19: ='[2]312 SO-Klassen'!P19 -> 0 | P19: ='[2]312 SO-Klassen'!Q19 -> 0 | Q19: ='[2]312 SO-Klassen'!R19 -> 1 | R19: ='[2]312 SO-Klassen'!S19 -> 0 | S19: ='[2]312 SO-Klassen'!T19 ->  | T19: ='[2]312 SO-Klassen'!U19 ->  | U19: ='[2]312 SO-Klassen'!V19 -> 0 | V19: ='[2]312 SO-Klassen'!W19 ->  | W19: ='[2]312 SO-Klassen'!X19 ->  | X19: ='[2]312 SO-Klassen'!Y19 -> 0 | Y19: ='[2]312 SO-Klassen'!Z19 ->  | Z19: ='[2]312 SO-Klassen'!AA19 ->  | AA19: ='[2]312 SO-Klassen'!AB19 -> 0 | AB19: ='[2]312 SO-Klassen'!AC19 ->  | AC19: ='[2]312 SO-Klassen'!AD19 ->  | AD19: ='[2]312 SO-Klassen'!AE19 -> 0 | AE19: ='[2]312 SO-Klassen'!AF19 ->  | AF19: ='[2]312 SO-Klassen'!AG19 ->  | AG19: ='[2]312 SO-Klassen'!AH19 -> 0 | AH19: ='[2]312 SO-Klassen'!AI19 ->  | AI19: ='[2]312 SO-Klassen'!AJ19 ->  | AJ19: ='[2]312 SO-Klassen'!AK19 -> 0 | AK19: ='[2]312 SO-Klassen'!AL19 ->  | AL19: ='[2]312 SO-Klassen'!AM19 ->  | AM19: ='[2]312 SO-Klassen'!AN19 -> 0 | AN19: ='[2]312 SO-Klassen'!AO19 ->  | AO19: ='[2]312 SO-Klassen'!AP19 ->  | AP19: ='[2]312 SO-Klassen'!AQ19 -> 0 | AQ19: ='[2]312 SO-Klassen'!AR19 ->  | AR19: ='[2]312 SO-Klassen'!AS19 ->  | AS19: ='[2]312 SO-Klassen'!AT19 -> 0 | AT19: ='[2]312 SO-Klassen'!AU19 ->  | AU19: ='[2]312 SO-Klassen'!AV19 ->  | AV19: ='[2]312 SO-Klassen'!AW19 ->  | AW19: ='[2]312 SO-Klassen'!AX19 ->  | AX19: ='[2]312 SO-Klassen'!AY19 ->  | AY19: ='[2]312 SO-Klassen'!AZ19 ->  | AZ19: ='[2]312 SO-Klassen'!BA19 ->  | BA19: ='[2]312 SO-Klassen'!BB19 ->  | BB19: ='[2]312 SO-Klassen'!BC19 ->  | BC19: ='[2]312 SO-Klassen'!BD19 ->  | BD19: ='[2]312 SO-Klassen'!BE19 ->  | BE19: ='[2]312 SO-Klassen'!BF19 ->  | BF19: ='[2]312 SO-Klassen'!BG19 ->  | BG19: ='[2]312 SO-Klassen'!BH19 ->  | BH19: ='[2]312 SO-Klassen'!BI19 ->  | BI19: ='[2]312 SO-Klassen'!BJ19 ->  | BJ19: ='[2]312 SO-Klassen'!BK19 ->  | BK19: ='[2]312 SO-Klassen'!BL19 ->  | BL19: ='[2]312 SO-Klassen'!BM19 ->  | BM19: ='[2]312 SO-Klassen'!BN19 ->  | BN19: ='[2]312 SO-Klassen'!BO19 ->  | BO19: ='[2]312 SO-Klassen'!BP19 -> 0 | BP19: ='[2]312 SO-Klassen'!BQ19 -> 0 | BQ19: ='[2]312 SO-Klassen'!BR19 -> 0 | BR19: ='[2]312 SO-Klassen'!BS19 -> 0 | BS19: ='[2]312 SO-Klassen'!BT19 -> 0 | BT19: ='[2]312 SO-Klassen'!BU19 -> 0 | BU19: ='[2]312 SO-Klassen'!BV19 -> 0 | BV19: ='[2]312 SO-Klassen'!BW19 -> 0 | BW19: ='[2]312 SO-Klassen'!BX19 -> 0 | BX19: ='[2]312 SO-Klassen'!BY19 -> 0 | BY19: ='[2]312 SO-Klassen'!BZ19 ->  | BZ19: ='[2]312 SO-Klassen'!CA19 ->  | CA19: ='[2]312 SO-Klassen'!CB19 ->  | CB19: ='[2]312 SO-Klassen'!CC19 ->  | CC19: ='[2]312 SO-Klassen'!CD19 ->  | CD19: ='[2]312 SO-Klassen'!CE19 ->  | CE19: ='[2]312 SO-Klassen'!CF19 ->  | CF19: ='[2]312 SO-Klassen'!CG19 ->  | CG19: ='[2]312 SO-Klassen'!CH19 ->  | CH19: ='[2]312 SO-Klassen'!CI19 ->  | CI19: ='[2]312 SO-Klassen'!CJ19 ->  | CJ19: ='[2]312 SO-Klassen'!CK19 ->  | CK19: ='[2]312 SO-Klassen'!CL19 ->  | CL19: ='[2]312 SO-Klassen'!CM19 ->  | CM19: ='[2]312 SO-Klassen'!CN19 ->  | CN19: ='[2]312 SO-Klassen'!CO19 ->  | CO19: ='[2]312 SO-Klassen'!CP19 ->  | CP19: ='[2]312 SO-Klassen'!CQ19 ->  | CQ19: ='[2]312 SO-Klassen'!CR19 ->  | CR19: ='[2]312 SO-Klassen'!CS19 ->  | CS19: ='[2]312 SO-Klassen'!CT19 ->  | CT19: ='[2]312 SO-Klassen'!CU19 ->  | CU19: ='[2]312 SO-Klassen'!CV19 ->  | CV19: ='[2]312 SO-Klassen'!CW19 ->  | CW19: ='[2]312 SO-Klassen'!CX19 ->  | CX19: ='[2]312 SO-Klassen'!CY19 ->  | CY19: ='[2]312 SO-Klassen'!CZ19 ->  | CZ19: ='[2]312 SO-Klassen'!DA19 ->  | DA19: ='[2]312 SO-Klassen'!DB19 ->  | DB19: ='[2]312 SO-Klassen'!DC19 ->  | DC19: ='[2]312 SO-Klassen'!DD19 ->  | DD19: ='[2]312 SO-Klassen'!DE19 ->  | DE19: ='[2]312 SO-Klassen'!DF19 ->  | DF19: ='[2]312 SO-Klassen'!DG19 ->  | DG19: ='[2]312 SO-Klassen'!DH19 ->  | DH19: ='[2]312 SO-Klassen'!DI19 ->  | DI19: ='[2]312 SO-Klassen'!DJ19 ->  | DJ19: ='[2]312 SO-Klassen'!DK19 ->  | DK19: ='[2]312 SO-Klassen'!DL19 ->  | DL19: ='[2]312 SO-Klassen'!DM19 ->  | DM19: ='[2]312 SO-Klassen'!DN19 ->  | DN19: ='[2]312 SO-Klassen'!DO19 ->  | DO19: ='[2]312 SO-Klassen'!DP19 ->  | DP19: ='[2]312 SO-Klassen'!DQ19 ->  | DQ19: ='[2]312 SO-Klassen'!DR19 ->  | DR19: ='[2]312 SO-Klassen'!DS19 ->  | DS19: ='[2]312 SO-Klassen'!DT19 ->  | DT19: ='[2]312 SO-Klassen'!DU19 ->  | DU19: ='[2]312 SO-Klassen'!DV19 ->  | DV19: ='[2]312 SO-Klassen'!DW19 ->  | DW19: ='[2]312 SO-Klassen'!DX19 ->  | DX19: ='[2]312 SO-Klassen'!DY19 ->  | DY19: ='[2]312 SO-Klassen'!DZ19 ->  | DZ19: ='[2]312 SO-Klassen'!EA19 ->  | EA19: ='[2]312 SO-Klassen'!EB19 ->  | EB19: ='[2]312 SO-Klassen'!EC19 ->  | EC19: ='[2]312 SO-Klassen'!ED19 ->  | ED19: ='[2]312 SO-Klassen'!EE19 ->  | EE19: ='[2]312 SO-Klassen'!EF19 ->  | EF19: ='[2]312 SO-Klassen'!EG19 ->  | EG19: ='[2]312 SO-Klassen'!EH19 ->  | EH19: ='[2]312 SO-Klassen'!EI19 ->  | EI19: ='[2]312 SO-Klassen'!EJ19 ->  | EJ19: ='[2]312 SO-Klassen'!EK19 ->  | EK19: ='[2]312 SO-Klassen'!EL19 ->  | EL19: ='[2]312 SO-Klassen'!EM19 -> 501013 | EM19: ='[2]312 SO-Klassen'!EN19 -> 44475 | EN19: ='[2]312 SO-Klassen'!EO19 -> genehmigt | EO19: ='[2]312 SO-Klassen'!EP19 -> 2021-10-06 | EP19: ='[2]312 SO-Klassen'!EQ19 ->  | EQ19: ='[2]312 SO-Klassen'!ER19 ->  | ER19: ='[2]312 SO-Klassen'!ES19 ->  | ES19: ='[2]312 SO-Klassen'!ET19 ->  | ET19: ='[2]312 SO-Klassen'!EU19 -> 
A20: ='[2]312 SO-Klassen'!B20 -> 2021/22 | B20: ='[2]312 SO-Klassen'!C20 -> 1 | C20: ='[2]312 SO-Klassen'!D20 -> 3 | D20: ='[2]312 SO-Klassen'!E20 -> 501013 | E20: ='[2]312 SO-Klassen'!F20 -> SO Salzburg | F20: ='[2]312 SO-Klassen'!G20 -> 2 | G20: ='[2]312 SO-Klassen'!H20 -> 2000-01-01 | H20: ='[2]312 SO-Klassen'!I20 -> 3 | I20: ='[2]312 SO-Klassen'!J20 -> 99 | J20: ='[2]312 SO-Klassen'!K20 -> X | K20: ='[2]312 SO-Klassen'!L20 -> 0 | L20: ='[2]312 SO-Klassen'!M20 -> 0 | M20: ='[2]312 SO-Klassen'!N20 -> 0 | N20: ='[2]312 SO-Klassen'!O20 -> 0 | O20: ='[2]312 SO-Klassen'!P20 -> 0 | P20: ='[2]312 SO-Klassen'!Q20 -> 0 | Q20: ='[2]312 SO-Klassen'!R20 -> 1 | R20: ='[2]312 SO-Klassen'!S20 -> 0 | S20: ='[2]312 SO-Klassen'!T20 ->  | T20: ='[2]312 SO-Klassen'!U20 ->  | U20: ='[2]312 SO-Klassen'!V20 -> 0 | V20: ='[2]312 SO-Klassen'!W20 ->  | W20: ='[2]312 SO-Klassen'!X20 ->  | X20: ='[2]312 SO-Klassen'!Y20 -> 0 | Y20: ='[2]312 SO-Klassen'!Z20 ->  | Z20: ='[2]312 SO-Klassen'!AA20 ->  | AA20: ='[2]312 SO-Klassen'!AB20 -> 0 | AB20: ='[2]312 SO-Klassen'!AC20 ->  | AC20: ='[2]312 SO-Klassen'!AD20 ->  | AD20: ='[2]312 SO-Klassen'!AE20 -> 0 | AE20: ='[2]312 SO-Klassen'!AF20 ->  | AF20: ='[2]312 SO-Klassen'!AG20 ->  | AG20: ='[2]312 SO-Klassen'!AH20 -> 0 | AH20: ='[2]312 SO-Klassen'!AI20 ->  | AI20: ='[2]312 SO-Klassen'!AJ20 ->  | AJ20: ='[2]312 SO-Klassen'!AK20 -> 0 | AK20: ='[2]312 SO-Klassen'!AL20 ->  | AL20: ='[2]312 SO-Klassen'!AM20 ->  | AM20: ='[2]312 SO-Klassen'!AN20 -> 0 | AN20: ='[2]312 SO-Klassen'!AO20 ->  | AO20: ='[2]312 SO-Klassen'!AP20 ->  | AP20: ='[2]312 SO-Klassen'!AQ20 -> 0 | AQ20: ='[2]312 SO-Klassen'!AR20 ->  | AR20: ='[2]312 SO-Klassen'!AS20 ->  | AS20: ='[2]312 SO-Klassen'!AT20 -> 0 | AT20: ='[2]312 SO-Klassen'!AU20 ->  | AU20: ='[2]312 SO-Klassen'!AV20 ->  | AV20: ='[2]312 SO-Klassen'!AW20 ->  | AW20: ='[2]312 SO-Klassen'!AX20 ->  | AX20: ='[2]312 SO-Klassen'!AY20 ->  | AY20: ='[2]312 SO-Klassen'!AZ20 ->  | AZ20: ='[2]312 SO-Klassen'!BA20 ->  | BA20: ='[2]312 SO-Klassen'!BB20 ->  | BB20: ='[2]312 SO-Klassen'!BC20 ->  | BC20: ='[2]312 SO-Klassen'!BD20 ->  | BD20: ='[2]312 SO-Klassen'!BE20 ->  | BE20: ='[2]312 SO-Klassen'!BF20 ->  | BF20: ='[2]312 SO-Klassen'!BG20 ->  | BG20: ='[2]312 SO-Klassen'!BH20 ->  | BH20: ='[2]312 SO-Klassen'!BI20 ->  | BI20: ='[2]312 SO-Klassen'!BJ20 ->  | BJ20: ='[2]312 SO-Klassen'!BK20 ->  | BK20: ='[2]312 SO-Klassen'!BL20 ->  | BL20: ='[2]312 SO-Klassen'!BM20 ->  | BM20: ='[2]312 SO-Klassen'!BN20 ->  | BN20: ='[2]312 SO-Klassen'!BO20 ->  | BO20: ='[2]312 SO-Klassen'!BP20 -> 0 | BP20: ='[2]312 SO-Klassen'!BQ20 -> 0 | BQ20: ='[2]312 SO-Klassen'!BR20 -> 0 | BR20: ='[2]312 SO-Klassen'!BS20 -> 0 | BS20: ='[2]312 SO-Klassen'!BT20 -> 0 | BT20: ='[2]312 SO-Klassen'!BU20 -> 0 | BU20: ='[2]312 SO-Klassen'!BV20 -> 0 | BV20: ='[2]312 SO-Klassen'!BW20 -> 0 | BW20: ='[2]312 SO-Klassen'!BX20 -> 0 | BX20: ='[2]312 SO-Klassen'!BY20 -> 0 | BY20: ='[2]312 SO-Klassen'!BZ20 ->  | BZ20: ='[2]312 SO-Klassen'!CA20 ->  | CA20: ='[2]312 SO-Klassen'!CB20 ->  | CB20: ='[2]312 SO-Klassen'!CC20 ->  | CC20: ='[2]312 SO-Klassen'!CD20 ->  | CD20: ='[2]312 SO-Klassen'!CE20 ->  | CE20: ='[2]312 SO-Klassen'!CF20 ->  | CF20: ='[2]312 SO-Klassen'!CG20 ->  | CG20: ='[2]312 SO-Klassen'!CH20 ->  | CH20: ='[2]312 SO-Klassen'!CI20 ->  | CI20: ='[2]312 SO-Klassen'!CJ20 ->  | CJ20: ='[2]312 SO-Klassen'!CK20 ->  | CK20: ='[2]312 SO-Klassen'!CL20 ->  | CL20: ='[2]312 SO-Klassen'!CM20 ->  | CM20: ='[2]312 SO-Klassen'!CN20 ->  | CN20: ='[2]312 SO-Klassen'!CO20 ->  | CO20: ='[2]312 SO-Klassen'!CP20 ->  | CP20: ='[2]312 SO-Klassen'!CQ20 ->  | CQ20: ='[2]312 SO-Klassen'!CR20 ->  | CR20: ='[2]312 SO-Klassen'!CS20 ->  | CS20: ='[2]312 SO-Klassen'!CT20 ->  | CT20: ='[2]312 SO-Klassen'!CU20 ->  | CU20: ='[2]312 SO-Klassen'!CV20 ->  | CV20: ='[2]312 SO-Klassen'!CW20 ->  | CW20: ='[2]312 SO-Klassen'!CX20 ->  | CX20: ='[2]312 SO-Klassen'!CY20 ->  | CY20: ='[2]312 SO-Klassen'!CZ20 ->  | CZ20: ='[2]312 SO-Klassen'!DA20 ->  | DA20: ='[2]312 SO-Klassen'!DB20 ->  | DB20: ='[2]312 SO-Klassen'!DC20 ->  | DC20: ='[2]312 SO-Klassen'!DD20 ->  | DD20: ='[2]312 SO-Klassen'!DE20 ->  | DE20: ='[2]312 SO-Klassen'!DF20 ->  | DF20: ='[2]312 SO-Klassen'!DG20 ->  | DG20: ='[2]312 SO-Klassen'!DH20 ->  | DH20: ='[2]312 SO-Klassen'!DI20 ->  | DI20: ='[2]312 SO-Klassen'!DJ20 ->  | DJ20: ='[2]312 SO-Klassen'!DK20 ->  | DK20: ='[2]312 SO-Klassen'!DL20 ->  | DL20: ='[2]312 SO-Klassen'!DM20 ->  | DM20: ='[2]312 SO-Klassen'!DN20 ->  | DN20: ='[2]312 SO-Klassen'!DO20 ->  | DO20: ='[2]312 SO-Klassen'!DP20 ->  | DP20: ='[2]312 SO-Klassen'!DQ20 ->  | DQ20: ='[2]312 SO-Klassen'!DR20 ->  | DR20: ='[2]312 SO-Klassen'!DS20 ->  | DS20: ='[2]312 SO-Klassen'!DT20 ->  | DT20: ='[2]312 SO-Klassen'!DU20 ->  | DU20: ='[2]312 SO-Klassen'!DV20 ->  | DV20: ='[2]312 SO-Klassen'!DW20 ->  | DW20: ='[2]312 SO-Klassen'!DX20 ->  | DX20: ='[2]312 SO-Klassen'!DY20 ->  | DY20: ='[2]312 SO-Klassen'!DZ20 ->  | DZ20: ='[2]312 SO-Klassen'!EA20 ->  | EA20: ='[2]312 SO-Klassen'!EB20 ->  | EB20: ='[2]312 SO-Klassen'!EC20 ->  | EC20: ='[2]312 SO-Klassen'!ED20 ->  | ED20: ='[2]312 SO-Klassen'!EE20 ->  | EE20: ='[2]312 SO-Klassen'!EF20 ->  | EF20: ='[2]312 SO-Klassen'!EG20 ->  | EG20: ='[2]312 SO-Klassen'!EH20 ->  | EH20: ='[2]312 SO-Klassen'!EI20 ->  | EI20: ='[2]312 SO-Klassen'!EJ20 ->  | EJ20: ='[2]312 SO-Klassen'!EK20 ->  | EK20: ='[2]312 SO-Klassen'!EL20 ->  | EL20: ='[2]312 SO-Klassen'!EM20 -> 501013 | EM20: ='[2]312 SO-Klassen'!EN20 -> 44475 | EN20: ='[2]312 SO-Klassen'!EO20 -> genehmigt | EO20: ='[2]312 SO-Klassen'!EP20 -> 2021-10-06 | EP20: ='[2]312 SO-Klassen'!EQ20 ->  | EQ20: ='[2]312 SO-Klassen'!ER20 ->  | ER20: ='[2]312 SO-Klassen'!ES20 ->  | ES20: ='[2]312 SO-Klassen'!ET20 ->  | ET20: ='[2]312 SO-Klassen'!EU20 -> 
A21: ='[2]312 SO-Klassen'!B21 -> 2021/22 | B21: ='[2]312 SO-Klassen'!C21 -> 1 | C21: ='[2]312 SO-Klassen'!D21 -> 3 | D21: ='[2]312 SO-Klassen'!E21 -> 501013 | E21: ='[2]312 SO-Klassen'!F21 -> SO Salzburg | F21: ='[2]312 SO-Klassen'!G21 -> 2 | G21: ='[2]312 SO-Klassen'!H21 -> 2000-01-01 | H21: ='[2]312 SO-Klassen'!I21 -> 3 | I21: ='[2]312 SO-Klassen'!J21 -> 99 | J21: ='[2]312 SO-Klassen'!K21 -> X | K21: ='[2]312 SO-Klassen'!L21 -> 0 | L21: ='[2]312 SO-Klassen'!M21 -> 0 | M21: ='[2]312 SO-Klassen'!N21 -> 0 | N21: ='[2]312 SO-Klassen'!O21 -> 0 | O21: ='[2]312 SO-Klassen'!P21 -> 0 | P21: ='[2]312 SO-Klassen'!Q21 -> 0 | Q21: ='[2]312 SO-Klassen'!R21 -> 1 | R21: ='[2]312 SO-Klassen'!S21 -> 0 | S21: ='[2]312 SO-Klassen'!T21 ->  | T21: ='[2]312 SO-Klassen'!U21 ->  | U21: ='[2]312 SO-Klassen'!V21 -> 0 | V21: ='[2]312 SO-Klassen'!W21 ->  | W21: ='[2]312 SO-Klassen'!X21 ->  | X21: ='[2]312 SO-Klassen'!Y21 -> 0 | Y21: ='[2]312 SO-Klassen'!Z21 ->  | Z21: ='[2]312 SO-Klassen'!AA21 ->  | AA21: ='[2]312 SO-Klassen'!AB21 -> 0 | AB21: ='[2]312 SO-Klassen'!AC21 ->  | AC21: ='[2]312 SO-Klassen'!AD21 ->  | AD21: ='[2]312 SO-Klassen'!AE21 -> 0 | AE21: ='[2]312 SO-Klassen'!AF21 ->  | AF21: ='[2]312 SO-Klassen'!AG21 ->  | AG21: ='[2]312 SO-Klassen'!AH21 -> 0 | AH21: ='[2]312 SO-Klassen'!AI21 ->  | AI21: ='[2]312 SO-Klassen'!AJ21 ->  | AJ21: ='[2]312 SO-Klassen'!AK21 -> 0 | AK21: ='[2]312 SO-Klassen'!AL21 ->  | AL21: ='[2]312 SO-Klassen'!AM21 ->  | AM21: ='[2]312 SO-Klassen'!AN21 -> 0 | AN21: ='[2]312 SO-Klassen'!AO21 ->  | AO21: ='[2]312 SO-Klassen'!AP21 ->  | AP21: ='[2]312 SO-Klassen'!AQ21 -> 0 | AQ21: ='[2]312 SO-Klassen'!AR21 ->  | AR21: ='[2]312 SO-Klassen'!AS21 ->  | AS21: ='[2]312 SO-Klassen'!AT21 -> 0 | AT21: ='[2]312 SO-Klassen'!AU21 ->  | AU21: ='[2]312 SO-Klassen'!AV21 ->  | AV21: ='[2]312 SO-Klassen'!AW21 ->  | AW21: ='[2]312 SO-Klassen'!AX21 ->  | AX21: ='[2]312 SO-Klassen'!AY21 ->  | AY21: ='[2]312 SO-Klassen'!AZ21 ->  | AZ21: ='[2]312 SO-Klassen'!BA21 ->  | BA21: ='[2]312 SO-Klassen'!BB21 ->  | BB21: ='[2]312 SO-Klassen'!BC21 ->  | BC21: ='[2]312 SO-Klassen'!BD21 ->  | BD21: ='[2]312 SO-Klassen'!BE21 ->  | BE21: ='[2]312 SO-Klassen'!BF21 ->  | BF21: ='[2]312 SO-Klassen'!BG21 ->  | BG21: ='[2]312 SO-Klassen'!BH21 ->  | BH21: ='[2]312 SO-Klassen'!BI21 ->  | BI21: ='[2]312 SO-Klassen'!BJ21 ->  | BJ21: ='[2]312 SO-Klassen'!BK21 ->  | BK21: ='[2]312 SO-Klassen'!BL21 ->  | BL21: ='[2]312 SO-Klassen'!BM21 ->  | BM21: ='[2]312 SO-Klassen'!BN21 ->  | BN21: ='[2]312 SO-Klassen'!BO21 ->  | BO21: ='[2]312 SO-Klassen'!BP21 -> 0 | BP21: ='[2]312 SO-Klassen'!BQ21 -> 0 | BQ21: ='[2]312 SO-Klassen'!BR21 -> 0 | BR21: ='[2]312 SO-Klassen'!BS21 -> 0 | BS21: ='[2]312 SO-Klassen'!BT21 -> 0 | BT21: ='[2]312 SO-Klassen'!BU21 -> 0 | BU21: ='[2]312 SO-Klassen'!BV21 -> 0 | BV21: ='[2]312 SO-Klassen'!BW21 -> 0 | BW21: ='[2]312 SO-Klassen'!BX21 -> 0 | BX21: ='[2]312 SO-Klassen'!BY21 -> 0 | BY21: ='[2]312 SO-Klassen'!BZ21 ->  | BZ21: ='[2]312 SO-Klassen'!CA21 ->  | CA21: ='[2]312 SO-Klassen'!CB21 ->  | CB21: ='[2]312 SO-Klassen'!CC21 ->  | CC21: ='[2]312 SO-Klassen'!CD21 ->  | CD21: ='[2]312 SO-Klassen'!CE21 ->  | CE21: ='[2]312 SO-Klassen'!CF21 ->  | CF21: ='[2]312 SO-Klassen'!CG21 ->  | CG21: ='[2]312 SO-Klassen'!CH21 ->  | CH21: ='[2]312 SO-Klassen'!CI21 ->  | CI21: ='[2]312 SO-Klassen'!CJ21 ->  | CJ21: ='[2]312 SO-Klassen'!CK21 ->  | CK21: ='[2]312 SO-Klassen'!CL21 ->  | CL21: ='[2]312 SO-Klassen'!CM21 ->  | CM21: ='[2]312 SO-Klassen'!CN21 ->  | CN21: ='[2]312 SO-Klassen'!CO21 ->  | CO21: ='[2]312 SO-Klassen'!CP21 ->  | CP21: ='[2]312 SO-Klassen'!CQ21 ->  | CQ21: ='[2]312 SO-Klassen'!CR21 ->  | CR21: ='[2]312 SO-Klassen'!CS21 ->  | CS21: ='[2]312 SO-Klassen'!CT21 ->  | CT21: ='[2]312 SO-Klassen'!CU21 ->  | CU21: ='[2]312 SO-Klassen'!CV21 ->  | CV21: ='[2]312 SO-Klassen'!CW21 ->  | CW21: ='[2]312 SO-Klassen'!CX21 ->  | CX21: ='[2]312 SO-Klassen'!CY21 ->  | CY21: ='[2]312 SO-Klassen'!CZ21 ->  | CZ21: ='[2]312 SO-Klassen'!DA21 ->  | DA21: ='[2]312 SO-Klassen'!DB21 ->  | DB21: ='[2]312 SO-Klassen'!DC21 ->  | DC21: ='[2]312 SO-Klassen'!DD21 ->  | DD21: ='[2]312 SO-Klassen'!DE21 ->  | DE21: ='[2]312 SO-Klassen'!DF21 ->  | DF21: ='[2]312 SO-Klassen'!DG21 ->  | DG21: ='[2]312 SO-Klassen'!DH21 ->  | DH21: ='[2]312 SO-Klassen'!DI21 ->  | DI21: ='[2]312 SO-Klassen'!DJ21 ->  | DJ21: ='[2]312 SO-Klassen'!DK21 ->  | DK21: ='[2]312 SO-Klassen'!DL21 ->  | DL21: ='[2]312 SO-Klassen'!DM21 ->  | DM21: ='[2]312 SO-Klassen'!DN21 ->  | DN21: ='[2]312 SO-Klassen'!DO21 ->  | DO21: ='[2]312 SO-Klassen'!DP21 ->  | DP21: ='[2]312 SO-Klassen'!DQ21 ->  | DQ21: ='[2]312 SO-Klassen'!DR21 ->  | DR21: ='[2]312 SO-Klassen'!DS21 ->  | DS21: ='[2]312 SO-Klassen'!DT21 ->  | DT21: ='[2]312 SO-Klassen'!DU21 ->  | DU21: ='[2]312 SO-Klassen'!DV21 ->  | DV21: ='[2]312 SO-Klassen'!DW21 ->  | DW21: ='[2]312 SO-Klassen'!DX21 ->  | DX21: ='[2]312 SO-Klassen'!DY21 ->  | DY21: ='[2]312 SO-Klassen'!DZ21 ->  | DZ21: ='[2]312 SO-Klassen'!EA21 ->  | EA21: ='[2]312 SO-Klassen'!EB21 ->  | EB21: ='[2]312 SO-Klassen'!EC21 ->  | EC21: ='[2]312 SO-Klassen'!ED21 ->  | ED21: ='[2]312 SO-Klassen'!EE21 ->  | EE21: ='[2]312 SO-Klassen'!EF21 ->  | EF21: ='[2]312 SO-Klassen'!EG21 ->  | EG21: ='[2]312 SO-Klassen'!EH21 ->  | EH21: ='[2]312 SO-Klassen'!EI21 ->  | EI21: ='[2]312 SO-Klassen'!EJ21 ->  | EJ21: ='[2]312 SO-Klassen'!EK21 ->  | EK21: ='[2]312 SO-Klassen'!EL21 ->  | EL21: ='[2]312 SO-Klassen'!EM21 -> 501013 | EM21: ='[2]312 SO-Klassen'!EN21 -> 44475 | EN21: ='[2]312 SO-Klassen'!EO21 -> genehmigt | EO21: ='[2]312 SO-Klassen'!EP21 -> 2021-10-06 | EP21: ='[2]312 SO-Klassen'!EQ21 ->  | EQ21: ='[2]312 SO-Klassen'!ER21 ->  | ER21: ='[2]312 SO-Klassen'!ES21 ->  | ES21: ='[2]312 SO-Klassen'!ET21 ->  | ET21: ='[2]312 SO-Klassen'!EU21 -> 
A22: ='[2]312 SO-Klassen'!B22 -> 2021/22 | B22: ='[2]312 SO-Klassen'!C22 -> 1 | C22: ='[2]312 SO-Klassen'!D22 -> 3 | D22: ='[2]312 SO-Klassen'!E22 -> 501013 | E22: ='[2]312 SO-Klassen'!F22 -> SO Salzburg | F22: ='[2]312 SO-Klassen'!G22 -> 2 | G22: ='[2]312 SO-Klassen'!H22 -> 2000-01-01 | H22: ='[2]312 SO-Klassen'!I22 -> 3 | I22: ='[2]312 SO-Klassen'!J22 -> 99 | J22: ='[2]312 SO-Klassen'!K22 -> X | K22: ='[2]312 SO-Klassen'!L22 -> 0 | L22: ='[2]312 SO-Klassen'!M22 -> 0 | M22: ='[2]312 SO-Klassen'!N22 -> 0 | N22: ='[2]312 SO-Klassen'!O22 -> 0 | O22: ='[2]312 SO-Klassen'!P22 -> 0 | P22: ='[2]312 SO-Klassen'!Q22 -> 0 | Q22: ='[2]312 SO-Klassen'!R22 -> 1 | R22: ='[2]312 SO-Klassen'!S22 -> 0 | S22: ='[2]312 SO-Klassen'!T22 ->  | T22: ='[2]312 SO-Klassen'!U22 ->  | U22: ='[2]312 SO-Klassen'!V22 -> 0 | V22: ='[2]312 SO-Klassen'!W22 ->  | W22: ='[2]312 SO-Klassen'!X22 ->  | X22: ='[2]312 SO-Klassen'!Y22 -> 0 | Y22: ='[2]312 SO-Klassen'!Z22 ->  | Z22: ='[2]312 SO-Klassen'!AA22 ->  | AA22: ='[2]312 SO-Klassen'!AB22 -> 0 | AB22: ='[2]312 SO-Klassen'!AC22 ->  | AC22: ='[2]312 SO-Klassen'!AD22 ->  | AD22: ='[2]312 SO-Klassen'!AE22 -> 0 | AE22: ='[2]312 SO-Klassen'!AF22 ->  | AF22: ='[2]312 SO-Klassen'!AG22 ->  | AG22: ='[2]312 SO-Klassen'!AH22 -> 0 | AH22: ='[2]312 SO-Klassen'!AI22 ->  | AI22: ='[2]312 SO-Klassen'!AJ22 ->  | AJ22: ='[2]312 SO-Klassen'!AK22 -> 0 | AK22: ='[2]312 SO-Klassen'!AL22 ->  | AL22: ='[2]312 SO-Klassen'!AM22 ->  | AM22: ='[2]312 SO-Klassen'!AN22 -> 0 | AN22: ='[2]312 SO-Klassen'!AO22 ->  | AO22: ='[2]312 SO-Klassen'!AP22 ->  | AP22: ='[2]312 SO-Klassen'!AQ22 -> 0 | AQ22: ='[2]312 SO-Klassen'!AR22 ->  | AR22: ='[2]312 SO-Klassen'!AS22 ->  | AS22: ='[2]312 SO-Klassen'!AT22 -> 0 | AT22: ='[2]312 SO-Klassen'!AU22 ->  | AU22: ='[2]312 SO-Klassen'!AV22 ->  | AV22: ='[2]312 SO-Klassen'!AW22 ->  | AW22: ='[2]312 SO-Klassen'!AX22 ->  | AX22: ='[2]312 SO-Klassen'!AY22 ->  | AY22: ='[2]312 SO-Klassen'!AZ22 ->  | AZ22: ='[2]312 SO-Klassen'!BA22 ->  | BA22: ='[2]312 SO-Klassen'!BB22 ->  | BB22: ='[2]312 SO-Klassen'!BC22 ->  | BC22: ='[2]312 SO-Klassen'!BD22 ->  | BD22: ='[2]312 SO-Klassen'!BE22 ->  | BE22: ='[2]312 SO-Klassen'!BF22 ->  | BF22: ='[2]312 SO-Klassen'!BG22 ->  | BG22: ='[2]312 SO-Klassen'!BH22 ->  | BH22: ='[2]312 SO-Klassen'!BI22 ->  | BI22: ='[2]312 SO-Klassen'!BJ22 ->  | BJ22: ='[2]312 SO-Klassen'!BK22 ->  | BK22: ='[2]312 SO-Klassen'!BL22 ->  | BL22: ='[2]312 SO-Klassen'!BM22 ->  | BM22: ='[2]312 SO-Klassen'!BN22 ->  | BN22: ='[2]312 SO-Klassen'!BO22 ->  | BO22: ='[2]312 SO-Klassen'!BP22 -> 0 | BP22: ='[2]312 SO-Klassen'!BQ22 -> 0 | BQ22: ='[2]312 SO-Klassen'!BR22 -> 0 | BR22: ='[2]312 SO-Klassen'!BS22 -> 0 | BS22: ='[2]312 SO-Klassen'!BT22 -> 0 | BT22: ='[2]312 SO-Klassen'!BU22 -> 0 | BU22: ='[2]312 SO-Klassen'!BV22 -> 0 | BV22: ='[2]312 SO-Klassen'!BW22 -> 0 | BW22: ='[2]312 SO-Klassen'!BX22 -> 0 | BX22: ='[2]312 SO-Klassen'!BY22 -> 0 | BY22: ='[2]312 SO-Klassen'!BZ22 ->  | BZ22: ='[2]312 SO-Klassen'!CA22 ->  | CA22: ='[2]312 SO-Klassen'!CB22 ->  | CB22: ='[2]312 SO-Klassen'!CC22 ->  | CC22: ='[2]312 SO-Klassen'!CD22 ->  | CD22: ='[2]312 SO-Klassen'!CE22 ->  | CE22: ='[2]312 SO-Klassen'!CF22 ->  | CF22: ='[2]312 SO-Klassen'!CG22 ->  | CG22: ='[2]312 SO-Klassen'!CH22 ->  | CH22: ='[2]312 SO-Klassen'!CI22 ->  | CI22: ='[2]312 SO-Klassen'!CJ22 ->  | CJ22: ='[2]312 SO-Klassen'!CK22 ->  | CK22: ='[2]312 SO-Klassen'!CL22 ->  | CL22: ='[2]312 SO-Klassen'!CM22 ->  | CM22: ='[2]312 SO-Klassen'!CN22 ->  | CN22: ='[2]312 SO-Klassen'!CO22 ->  | CO22: ='[2]312 SO-Klassen'!CP22 ->  | CP22: ='[2]312 SO-Klassen'!CQ22 ->  | CQ22: ='[2]312 SO-Klassen'!CR22 ->  | CR22: ='[2]312 SO-Klassen'!CS22 ->  | CS22: ='[2]312 SO-Klassen'!CT22 ->  | CT22: ='[2]312 SO-Klassen'!CU22 ->  | CU22: ='[2]312 SO-Klassen'!CV22 ->  | CV22: ='[2]312 SO-Klassen'!CW22 ->  | CW22: ='[2]312 SO-Klassen'!CX22 ->  | CX22: ='[2]312 SO-Klassen'!CY22 ->  | CY22: ='[2]312 SO-Klassen'!CZ22 ->  | CZ22: ='[2]312 SO-Klassen'!DA22 ->  | DA22: ='[2]312 SO-Klassen'!DB22 ->  | DB22: ='[2]312 SO-Klassen'!DC22 ->  | DC22: ='[2]312 SO-Klassen'!DD22 ->  | DD22: ='[2]312 SO-Klassen'!DE22 ->  | DE22: ='[2]312 SO-Klassen'!DF22 ->  | DF22: ='[2]312 SO-Klassen'!DG22 ->  | DG22: ='[2]312 SO-Klassen'!DH22 ->  | DH22: ='[2]312 SO-Klassen'!DI22 ->  | DI22: ='[2]312 SO-Klassen'!DJ22 ->  | DJ22: ='[2]312 SO-Klassen'!DK22 ->  | DK22: ='[2]312 SO-Klassen'!DL22 ->  | DL22: ='[2]312 SO-Klassen'!DM22 ->  | DM22: ='[2]312 SO-Klassen'!DN22 ->  | DN22: ='[2]312 SO-Klassen'!DO22 ->  | DO22: ='[2]312 SO-Klassen'!DP22 ->  | DP22: ='[2]312 SO-Klassen'!DQ22 ->  | DQ22: ='[2]312 SO-Klassen'!DR22 ->  | DR22: ='[2]312 SO-Klassen'!DS22 ->  | DS22: ='[2]312 SO-Klassen'!DT22 ->  | DT22: ='[2]312 SO-Klassen'!DU22 ->  | DU22: ='[2]312 SO-Klassen'!DV22 ->  | DV22: ='[2]312 SO-Klassen'!DW22 ->  | DW22: ='[2]312 SO-Klassen'!DX22 ->  | DX22: ='[2]312 SO-Klassen'!DY22 ->  | DY22: ='[2]312 SO-Klassen'!DZ22 ->  | DZ22: ='[2]312 SO-Klassen'!EA22 ->  | EA22: ='[2]312 SO-Klassen'!EB22 ->  | EB22: ='[2]312 SO-Klassen'!EC22 ->  | EC22: ='[2]312 SO-Klassen'!ED22 ->  | ED22: ='[2]312 SO-Klassen'!EE22 ->  | EE22: ='[2]312 SO-Klassen'!EF22 ->  | EF22: ='[2]312 SO-Klassen'!EG22 ->  | EG22: ='[2]312 SO-Klassen'!EH22 ->  | EH22: ='[2]312 SO-Klassen'!EI22 ->  | EI22: ='[2]312 SO-Klassen'!EJ22 ->  | EJ22: ='[2]312 SO-Klassen'!EK22 ->  | EK22: ='[2]312 SO-Klassen'!EL22 ->  | EL22: ='[2]312 SO-Klassen'!EM22 -> 501013 | EM22: ='[2]312 SO-Klassen'!EN22 -> 44475 | EN22: ='[2]312 SO-Klassen'!EO22 -> genehmigt | EO22: ='[2]312 SO-Klassen'!EP22 -> 2021-10-06 | EP22: ='[2]312 SO-Klassen'!EQ22 ->  | EQ22: ='[2]312 SO-Klassen'!ER22 ->  | ER22: ='[2]312 SO-Klassen'!ES22 ->  | ES22: ='[2]312 SO-Klassen'!ET22 ->  | ET22: ='[2]312 SO-Klassen'!EU22 -> 
A23: ='[2]312 SO-Klassen'!B23 -> 2021/22 | B23: ='[2]312 SO-Klassen'!C23 -> 1 | C23: ='[2]312 SO-Klassen'!D23 -> 3 | D23: ='[2]312 SO-Klassen'!E23 -> 501013 | E23: ='[2]312 SO-Klassen'!F23 -> SO Salzburg | F23: ='[2]312 SO-Klassen'!G23 -> 2 | G23: ='[2]312 SO-Klassen'!H23 -> 2000-01-01 | H23: ='[2]312 SO-Klassen'!I23 -> 3 | I23: ='[2]312 SO-Klassen'!J23 -> 99 | J23: ='[2]312 SO-Klassen'!K23 -> X | K23: ='[2]312 SO-Klassen'!L23 -> 0 | L23: ='[2]312 SO-Klassen'!M23 -> 0 | M23: ='[2]312 SO-Klassen'!N23 -> 0 | N23: ='[2]312 SO-Klassen'!O23 -> 0 | O23: ='[2]312 SO-Klassen'!P23 -> 0 | P23: ='[2]312 SO-Klassen'!Q23 -> 0 | Q23: ='[2]312 SO-Klassen'!R23 -> 1 | R23: ='[2]312 SO-Klassen'!S23 -> 0 | S23: ='[2]312 SO-Klassen'!T23 ->  | T23: ='[2]312 SO-Klassen'!U23 ->  | U23: ='[2]312 SO-Klassen'!V23 -> 0 | V23: ='[2]312 SO-Klassen'!W23 ->  | W23: ='[2]312 SO-Klassen'!X23 ->  | X23: ='[2]312 SO-Klassen'!Y23 -> 0 | Y23: ='[2]312 SO-Klassen'!Z23 ->  | Z23: ='[2]312 SO-Klassen'!AA23 ->  | AA23: ='[2]312 SO-Klassen'!AB23 -> 0 | AB23: ='[2]312 SO-Klassen'!AC23 ->  | AC23: ='[2]312 SO-Klassen'!AD23 ->  | AD23: ='[2]312 SO-Klassen'!AE23 -> 0 | AE23: ='[2]312 SO-Klassen'!AF23 ->  | AF23: ='[2]312 SO-Klassen'!AG23 ->  | AG23: ='[2]312 SO-Klassen'!AH23 -> 0 | AH23: ='[2]312 SO-Klassen'!AI23 ->  | AI23: ='[2]312 SO-Klassen'!AJ23 ->  | AJ23: ='[2]312 SO-Klassen'!AK23 -> 0 | AK23: ='[2]312 SO-Klassen'!AL23 ->  | AL23: ='[2]312 SO-Klassen'!AM23 ->  | AM23: ='[2]312 SO-Klassen'!AN23 -> 0 | AN23: ='[2]312 SO-Klassen'!AO23 ->  | AO23: ='[2]312 SO-Klassen'!AP23 ->  | AP23: ='[2]312 SO-Klassen'!AQ23 -> 0 | AQ23: ='[2]312 SO-Klassen'!AR23 ->  | AR23: ='[2]312 SO-Klassen'!AS23 ->  | AS23: ='[2]312 SO-Klassen'!AT23 -> 0 | AT23: ='[2]312 SO-Klassen'!AU23 ->  | AU23: ='[2]312 SO-Klassen'!AV23 ->  | AV23: ='[2]312 SO-Klassen'!AW23 ->  | AW23: ='[2]312 SO-Klassen'!AX23 ->  | AX23: ='[2]312 SO-Klassen'!AY23 ->  | AY23: ='[2]312 SO-Klassen'!AZ23 ->  | AZ23: ='[2]312 SO-Klassen'!BA23 ->  | BA23: ='[2]312 SO-Klassen'!BB23 ->  | BB23: ='[2]312 SO-Klassen'!BC23 ->  | BC23: ='[2]312 SO-Klassen'!BD23 ->  | BD23: ='[2]312 SO-Klassen'!BE23 ->  | BE23: ='[2]312 SO-Klassen'!BF23 ->  | BF23: ='[2]312 SO-Klassen'!BG23 ->  | BG23: ='[2]312 SO-Klassen'!BH23 ->  | BH23: ='[2]312 SO-Klassen'!BI23 ->  | BI23: ='[2]312 SO-Klassen'!BJ23 ->  | BJ23: ='[2]312 SO-Klassen'!BK23 ->  | BK23: ='[2]312 SO-Klassen'!BL23 ->  | BL23: ='[2]312 SO-Klassen'!BM23 ->  | BM23: ='[2]312 SO-Klassen'!BN23 ->  | BN23: ='[2]312 SO-Klassen'!BO23 ->  | BO23: ='[2]312 SO-Klassen'!BP23 -> 0 | BP23: ='[2]312 SO-Klassen'!BQ23 -> 0 | BQ23: ='[2]312 SO-Klassen'!BR23 -> 0 | BR23: ='[2]312 SO-Klassen'!BS23 -> 0 | BS23: ='[2]312 SO-Klassen'!BT23 -> 0 | BT23: ='[2]312 SO-Klassen'!BU23 -> 0 | BU23: ='[2]312 SO-Klassen'!BV23 -> 0 | BV23: ='[2]312 SO-Klassen'!BW23 -> 0 | BW23: ='[2]312 SO-Klassen'!BX23 -> 0 | BX23: ='[2]312 SO-Klassen'!BY23 -> 0 | BY23: ='[2]312 SO-Klassen'!BZ23 ->  | BZ23: ='[2]312 SO-Klassen'!CA23 ->  | CA23: ='[2]312 SO-Klassen'!CB23 ->  | CB23: ='[2]312 SO-Klassen'!CC23 ->  | CC23: ='[2]312 SO-Klassen'!CD23 ->  | CD23: ='[2]312 SO-Klassen'!CE23 ->  | CE23: ='[2]312 SO-Klassen'!CF23 ->  | CF23: ='[2]312 SO-Klassen'!CG23 ->  | CG23: ='[2]312 SO-Klassen'!CH23 ->  | CH23: ='[2]312 SO-Klassen'!CI23 ->  | CI23: ='[2]312 SO-Klassen'!CJ23 ->  | CJ23: ='[2]312 SO-Klassen'!CK23 ->  | CK23: ='[2]312 SO-Klassen'!CL23 ->  | CL23: ='[2]312 SO-Klassen'!CM23 ->  | CM23: ='[2]312 SO-Klassen'!CN23 ->  | CN23: ='[2]312 SO-Klassen'!CO23 ->  | CO23: ='[2]312 SO-Klassen'!CP23 ->  | CP23: ='[2]312 SO-Klassen'!CQ23 ->  | CQ23: ='[2]312 SO-Klassen'!CR23 ->  | CR23: ='[2]312 SO-Klassen'!CS23 ->  | CS23: ='[2]312 SO-Klassen'!CT23 ->  | CT23: ='[2]312 SO-Klassen'!CU23 ->  | CU23: ='[2]312 SO-Klassen'!CV23 ->  | CV23: ='[2]312 SO-Klassen'!CW23 ->  | CW23: ='[2]312 SO-Klassen'!CX23 ->  | CX23: ='[2]312 SO-Klassen'!CY23 ->  | CY23: ='[2]312 SO-Klassen'!CZ23 ->  | CZ23: ='[2]312 SO-Klassen'!DA23 ->  | DA23: ='[2]312 SO-Klassen'!DB23 ->  | DB23: ='[2]312 SO-Klassen'!DC23 ->  | DC23: ='[2]312 SO-Klassen'!DD23 ->  | DD23: ='[2]312 SO-Klassen'!DE23 ->  | DE23: ='[2]312 SO-Klassen'!DF23 ->  | DF23: ='[2]312 SO-Klassen'!DG23 ->  | DG23: ='[2]312 SO-Klassen'!DH23 ->  | DH23: ='[2]312 SO-Klassen'!DI23 ->  | DI23: ='[2]312 SO-Klassen'!DJ23 ->  | DJ23: ='[2]312 SO-Klassen'!DK23 ->  | DK23: ='[2]312 SO-Klassen'!DL23 ->  | DL23: ='[2]312 SO-Klassen'!DM23 ->  | DM23: ='[2]312 SO-Klassen'!DN23 ->  | DN23: ='[2]312 SO-Klassen'!DO23 ->  | DO23: ='[2]312 SO-Klassen'!DP23 ->  | DP23: ='[2]312 SO-Klassen'!DQ23 ->  | DQ23: ='[2]312 SO-Klassen'!DR23 ->  | DR23: ='[2]312 SO-Klassen'!DS23 ->  | DS23: ='[2]312 SO-Klassen'!DT23 ->  | DT23: ='[2]312 SO-Klassen'!DU23 ->  | DU23: ='[2]312 SO-Klassen'!DV23 ->  | DV23: ='[2]312 SO-Klassen'!DW23 ->  | DW23: ='[2]312 SO-Klassen'!DX23 ->  | DX23: ='[2]312 SO-Klassen'!DY23 ->  | DY23: ='[2]312 SO-Klassen'!DZ23 ->  | DZ23: ='[2]312 SO-Klassen'!EA23 ->  | EA23: ='[2]312 SO-Klassen'!EB23 ->  | EB23: ='[2]312 SO-Klassen'!EC23 ->  | EC23: ='[2]312 SO-Klassen'!ED23 ->  | ED23: ='[2]312 SO-Klassen'!EE23 ->  | EE23: ='[2]312 SO-Klassen'!EF23 ->  | EF23: ='[2]312 SO-Klassen'!EG23 ->  | EG23: ='[2]312 SO-Klassen'!EH23 ->  | EH23: ='[2]312 SO-Klassen'!EI23 ->  | EI23: ='[2]312 SO-Klassen'!EJ23 ->  | EJ23: ='[2]312 SO-Klassen'!EK23 ->  | EK23: ='[2]312 SO-Klassen'!EL23 ->  | EL23: ='[2]312 SO-Klassen'!EM23 -> 501013 | EM23: ='[2]312 SO-Klassen'!EN23 -> 44475 | EN23: ='[2]312 SO-Klassen'!EO23 -> genehmigt | EO23: ='[2]312 SO-Klassen'!EP23 -> 2021-10-06 | EP23: ='[2]312 SO-Klassen'!EQ23 ->  | EQ23: ='[2]312 SO-Klassen'!ER23 ->  | ER23: ='[2]312 SO-Klassen'!ES23 ->  | ES23: ='[2]312 SO-Klassen'!ET23 ->  | ET23: ='[2]312 SO-Klassen'!EU23 -> 
A24: ='[2]312 SO-Klassen'!B24 -> 2021/22 | B24: ='[2]312 SO-Klassen'!C24 -> 1 | C24: ='[2]312 SO-Klassen'!D24 -> 3 | D24: ='[2]312 SO-Klassen'!E24 -> 501013 | E24: ='[2]312 SO-Klassen'!F24 -> SO Salzburg | F24: ='[2]312 SO-Klassen'!G24 -> 2 | G24: ='[2]312 SO-Klassen'!H24 -> 2000-01-01 | H24: ='[2]312 SO-Klassen'!I24 -> 3 | I24: ='[2]312 SO-Klassen'!J24 -> 99 | J24: ='[2]312 SO-Klassen'!K24 -> X | K24: ='[2]312 SO-Klassen'!L24 -> 0 | L24: ='[2]312 SO-Klassen'!M24 -> 0 | M24: ='[2]312 SO-Klassen'!N24 -> 0 | N24: ='[2]312 SO-Klassen'!O24 -> 0 | O24: ='[2]312 SO-Klassen'!P24 -> 0 | P24: ='[2]312 SO-Klassen'!Q24 -> 0 | Q24: ='[2]312 SO-Klassen'!R24 -> 1 | R24: ='[2]312 SO-Klassen'!S24 -> 0 | S24: ='[2]312 SO-Klassen'!T24 ->  | T24: ='[2]312 SO-Klassen'!U24 ->  | U24: ='[2]312 SO-Klassen'!V24 -> 0 | V24: ='[2]312 SO-Klassen'!W24 ->  | W24: ='[2]312 SO-Klassen'!X24 ->  | X24: ='[2]312 SO-Klassen'!Y24 -> 0 | Y24: ='[2]312 SO-Klassen'!Z24 ->  | Z24: ='[2]312 SO-Klassen'!AA24 ->  | AA24: ='[2]312 SO-Klassen'!AB24 -> 0 | AB24: ='[2]312 SO-Klassen'!AC24 ->  | AC24: ='[2]312 SO-Klassen'!AD24 ->  | AD24: ='[2]312 SO-Klassen'!AE24 -> 0 | AE24: ='[2]312 SO-Klassen'!AF24 ->  | AF24: ='[2]312 SO-Klassen'!AG24 ->  | AG24: ='[2]312 SO-Klassen'!AH24 -> 0 | AH24: ='[2]312 SO-Klassen'!AI24 ->  | AI24: ='[2]312 SO-Klassen'!AJ24 ->  | AJ24: ='[2]312 SO-Klassen'!AK24 -> 0 | AK24: ='[2]312 SO-Klassen'!AL24 ->  | AL24: ='[2]312 SO-Klassen'!AM24 ->  | AM24: ='[2]312 SO-Klassen'!AN24 -> 0 | AN24: ='[2]312 SO-Klassen'!AO24 ->  | AO24: ='[2]312 SO-Klassen'!AP24 ->  | AP24: ='[2]312 SO-Klassen'!AQ24 -> 0 | AQ24: ='[2]312 SO-Klassen'!AR24 ->  | AR24: ='[2]312 SO-Klassen'!AS24 ->  | AS24: ='[2]312 SO-Klassen'!AT24 -> 0 | AT24: ='[2]312 SO-Klassen'!AU24 ->  | AU24: ='[2]312 SO-Klassen'!AV24 ->  | AV24: ='[2]312 SO-Klassen'!AW24 ->  | AW24: ='[2]312 SO-Klassen'!AX24 ->  | AX24: ='[2]312 SO-Klassen'!AY24 ->  | AY24: ='[2]312 SO-Klassen'!AZ24 ->  | AZ24: ='[2]312 SO-Klassen'!BA24 ->  | BA24: ='[2]312 SO-Klassen'!BB24 ->  | BB24: ='[2]312 SO-Klassen'!BC24 ->  | BC24: ='[2]312 SO-Klassen'!BD24 ->  | BD24: ='[2]312 SO-Klassen'!BE24 ->  | BE24: ='[2]312 SO-Klassen'!BF24 ->  | BF24: ='[2]312 SO-Klassen'!BG24 ->  | BG24: ='[2]312 SO-Klassen'!BH24 ->  | BH24: ='[2]312 SO-Klassen'!BI24 ->  | BI24: ='[2]312 SO-Klassen'!BJ24 ->  | BJ24: ='[2]312 SO-Klassen'!BK24 ->  | BK24: ='[2]312 SO-Klassen'!BL24 ->  | BL24: ='[2]312 SO-Klassen'!BM24 ->  | BM24: ='[2]312 SO-Klassen'!BN24 ->  | BN24: ='[2]312 SO-Klassen'!BO24 ->  | BO24: ='[2]312 SO-Klassen'!BP24 -> 0 | BP24: ='[2]312 SO-Klassen'!BQ24 -> 0 | BQ24: ='[2]312 SO-Klassen'!BR24 -> 0 | BR24: ='[2]312 SO-Klassen'!BS24 -> 0 | BS24: ='[2]312 SO-Klassen'!BT24 -> 0 | BT24: ='[2]312 SO-Klassen'!BU24 -> 0 | BU24: ='[2]312 SO-Klassen'!BV24 -> 0 | BV24: ='[2]312 SO-Klassen'!BW24 -> 0 | BW24: ='[2]312 SO-Klassen'!BX24 -> 0 | BX24: ='[2]312 SO-Klassen'!BY24 -> 0 | BY24: ='[2]312 SO-Klassen'!BZ24 ->  | BZ24: ='[2]312 SO-Klassen'!CA24 ->  | CA24: ='[2]312 SO-Klassen'!CB24 ->  | CB24: ='[2]312 SO-Klassen'!CC24 ->  | CC24: ='[2]312 SO-Klassen'!CD24 ->  | CD24: ='[2]312 SO-Klassen'!CE24 ->  | CE24: ='[2]312 SO-Klassen'!CF24 ->  | CF24: ='[2]312 SO-Klassen'!CG24 ->  | CG24: ='[2]312 SO-Klassen'!CH24 ->  | CH24: ='[2]312 SO-Klassen'!CI24 ->  | CI24: ='[2]312 SO-Klassen'!CJ24 ->  | CJ24: ='[2]312 SO-Klassen'!CK24 ->  | CK24: ='[2]312 SO-Klassen'!CL24 ->  | CL24: ='[2]312 SO-Klassen'!CM24 ->  | CM24: ='[2]312 SO-Klassen'!CN24 ->  | CN24: ='[2]312 SO-Klassen'!CO24 ->  | CO24: ='[2]312 SO-Klassen'!CP24 ->  | CP24: ='[2]312 SO-Klassen'!CQ24 ->  | CQ24: ='[2]312 SO-Klassen'!CR24 ->  | CR24: ='[2]312 SO-Klassen'!CS24 ->  | CS24: ='[2]312 SO-Klassen'!CT24 ->  | CT24: ='[2]312 SO-Klassen'!CU24 ->  | CU24: ='[2]312 SO-Klassen'!CV24 ->  | CV24: ='[2]312 SO-Klassen'!CW24 ->  | CW24: ='[2]312 SO-Klassen'!CX24 ->  | CX24: ='[2]312 SO-Klassen'!CY24 ->  | CY24: ='[2]312 SO-Klassen'!CZ24 ->  | CZ24: ='[2]312 SO-Klassen'!DA24 ->  | DA24: ='[2]312 SO-Klassen'!DB24 ->  | DB24: ='[2]312 SO-Klassen'!DC24 ->  | DC24: ='[2]312 SO-Klassen'!DD24 ->  | DD24: ='[2]312 SO-Klassen'!DE24 ->  | DE24: ='[2]312 SO-Klassen'!DF24 ->  | DF24: ='[2]312 SO-Klassen'!DG24 ->  | DG24: ='[2]312 SO-Klassen'!DH24 ->  | DH24: ='[2]312 SO-Klassen'!DI24 ->  | DI24: ='[2]312 SO-Klassen'!DJ24 ->  | DJ24: ='[2]312 SO-Klassen'!DK24 ->  | DK24: ='[2]312 SO-Klassen'!DL24 ->  | DL24: ='[2]312 SO-Klassen'!DM24 ->  | DM24: ='[2]312 SO-Klassen'!DN24 ->  | DN24: ='[2]312 SO-Klassen'!DO24 ->  | DO24: ='[2]312 SO-Klassen'!DP24 ->  | DP24: ='[2]312 SO-Klassen'!DQ24 ->  | DQ24: ='[2]312 SO-Klassen'!DR24 ->  | DR24: ='[2]312 SO-Klassen'!DS24 ->  | DS24: ='[2]312 SO-Klassen'!DT24 ->  | DT24: ='[2]312 SO-Klassen'!DU24 ->  | DU24: ='[2]312 SO-Klassen'!DV24 ->  | DV24: ='[2]312 SO-Klassen'!DW24 ->  | DW24: ='[2]312 SO-Klassen'!DX24 ->  | DX24: ='[2]312 SO-Klassen'!DY24 ->  | DY24: ='[2]312 SO-Klassen'!DZ24 ->  | DZ24: ='[2]312 SO-Klassen'!EA24 ->  | EA24: ='[2]312 SO-Klassen'!EB24 ->  | EB24: ='[2]312 SO-Klassen'!EC24 ->  | EC24: ='[2]312 SO-Klassen'!ED24 ->  | ED24: ='[2]312 SO-Klassen'!EE24 ->  | EE24: ='[2]312 SO-Klassen'!EF24 ->  | EF24: ='[2]312 SO-Klassen'!EG24 ->  | EG24: ='[2]312 SO-Klassen'!EH24 ->  | EH24: ='[2]312 SO-Klassen'!EI24 ->  | EI24: ='[2]312 SO-Klassen'!EJ24 ->  | EJ24: ='[2]312 SO-Klassen'!EK24 ->  | EK24: ='[2]312 SO-Klassen'!EL24 ->  | EL24: ='[2]312 SO-Klassen'!EM24 -> 501013 | EM24: ='[2]312 SO-Klassen'!EN24 -> 44475 | EN24: ='[2]312 SO-Klassen'!EO24 -> genehmigt | EO24: ='[2]312 SO-Klassen'!EP24 -> 2021-10-06 | EP24: ='[2]312 SO-Klassen'!EQ24 ->  | EQ24: ='[2]312 SO-Klassen'!ER24 ->  | ER24: ='[2]312 SO-Klassen'!ES24 ->  | ES24: ='[2]312 SO-Klassen'!ET24 ->  | ET24: ='[2]312 SO-Klassen'!EU24 -> 
A25: ='[2]312 SO-Klassen'!B25 -> 2021/22 | B25: ='[2]312 SO-Klassen'!C25 -> 1 | C25: ='[2]312 SO-Klassen'!D25 -> 3 | D25: ='[2]312 SO-Klassen'!E25 -> 501013 | E25: ='[2]312 SO-Klassen'!F25 -> SO Salzburg | F25: ='[2]312 SO-Klassen'!G25 -> 2 | G25: ='[2]312 SO-Klassen'!H25 -> 2000-01-01 | H25: ='[2]312 SO-Klassen'!I25 -> 3 | I25: ='[2]312 SO-Klassen'!J25 -> 99 | J25: ='[2]312 SO-Klassen'!K25 -> X | K25: ='[2]312 SO-Klassen'!L25 -> 0 | L25: ='[2]312 SO-Klassen'!M25 -> 0 | M25: ='[2]312 SO-Klassen'!N25 -> 0 | N25: ='[2]312 SO-Klassen'!O25 -> 0 | O25: ='[2]312 SO-Klassen'!P25 -> 0 | P25: ='[2]312 SO-Klassen'!Q25 -> 0 | Q25: ='[2]312 SO-Klassen'!R25 -> 1 | R25: ='[2]312 SO-Klassen'!S25 -> 0 | S25: ='[2]312 SO-Klassen'!T25 ->  | T25: ='[2]312 SO-Klassen'!U25 ->  | U25: ='[2]312 SO-Klassen'!V25 -> 0 | V25: ='[2]312 SO-Klassen'!W25 ->  | W25: ='[2]312 SO-Klassen'!X25 ->  | X25: ='[2]312 SO-Klassen'!Y25 -> 0 | Y25: ='[2]312 SO-Klassen'!Z25 ->  | Z25: ='[2]312 SO-Klassen'!AA25 ->  | AA25: ='[2]312 SO-Klassen'!AB25 -> 0 | AB25: ='[2]312 SO-Klassen'!AC25 ->  | AC25: ='[2]312 SO-Klassen'!AD25 ->  | AD25: ='[2]312 SO-Klassen'!AE25 -> 0 | AE25: ='[2]312 SO-Klassen'!AF25 ->  | AF25: ='[2]312 SO-Klassen'!AG25 ->  | AG25: ='[2]312 SO-Klassen'!AH25 -> 0 | AH25: ='[2]312 SO-Klassen'!AI25 ->  | AI25: ='[2]312 SO-Klassen'!AJ25 ->  | AJ25: ='[2]312 SO-Klassen'!AK25 -> 0 | AK25: ='[2]312 SO-Klassen'!AL25 ->  | AL25: ='[2]312 SO-Klassen'!AM25 ->  | AM25: ='[2]312 SO-Klassen'!AN25 -> 0 | AN25: ='[2]312 SO-Klassen'!AO25 ->  | AO25: ='[2]312 SO-Klassen'!AP25 ->  | AP25: ='[2]312 SO-Klassen'!AQ25 -> 0 | AQ25: ='[2]312 SO-Klassen'!AR25 ->  | AR25: ='[2]312 SO-Klassen'!AS25 ->  | AS25: ='[2]312 SO-Klassen'!AT25 -> 0 | AT25: ='[2]312 SO-Klassen'!AU25 ->  | AU25: ='[2]312 SO-Klassen'!AV25 ->  | AV25: ='[2]312 SO-Klassen'!AW25 ->  | AW25: ='[2]312 SO-Klassen'!AX25 ->  | AX25: ='[2]312 SO-Klassen'!AY25 ->  | AY25: ='[2]312 SO-Klassen'!AZ25 ->  | AZ25: ='[2]312 SO-Klassen'!BA25 ->  | BA25: ='[2]312 SO-Klassen'!BB25 ->  | BB25: ='[2]312 SO-Klassen'!BC25 ->  | BC25: ='[2]312 SO-Klassen'!BD25 ->  | BD25: ='[2]312 SO-Klassen'!BE25 ->  | BE25: ='[2]312 SO-Klassen'!BF25 ->  | BF25: ='[2]312 SO-Klassen'!BG25 ->  | BG25: ='[2]312 SO-Klassen'!BH25 ->  | BH25: ='[2]312 SO-Klassen'!BI25 ->  | BI25: ='[2]312 SO-Klassen'!BJ25 ->  | BJ25: ='[2]312 SO-Klassen'!BK25 ->  | BK25: ='[2]312 SO-Klassen'!BL25 ->  | BL25: ='[2]312 SO-Klassen'!BM25 ->  | BM25: ='[2]312 SO-Klassen'!BN25 ->  | BN25: ='[2]312 SO-Klassen'!BO25 ->  | BO25: ='[2]312 SO-Klassen'!BP25 -> 0 | BP25: ='[2]312 SO-Klassen'!BQ25 -> 0 | BQ25: ='[2]312 SO-Klassen'!BR25 -> 0 | BR25: ='[2]312 SO-Klassen'!BS25 -> 0 | BS25: ='[2]312 SO-Klassen'!BT25 -> 0 | BT25: ='[2]312 SO-Klassen'!BU25 -> 0 | BU25: ='[2]312 SO-Klassen'!BV25 -> 0 | BV25: ='[2]312 SO-Klassen'!BW25 -> 0 | BW25: ='[2]312 SO-Klassen'!BX25 -> 0 | BX25: ='[2]312 SO-Klassen'!BY25 -> 0 | BY25: ='[2]312 SO-Klassen'!BZ25 ->  | BZ25: ='[2]312 SO-Klassen'!CA25 ->  | CA25: ='[2]312 SO-Klassen'!CB25 ->  | CB25: ='[2]312 SO-Klassen'!CC25 ->  | CC25: ='[2]312 SO-Klassen'!CD25 ->  | CD25: ='[2]312 SO-Klassen'!CE25 ->  | CE25: ='[2]312 SO-Klassen'!CF25 ->  | CF25: ='[2]312 SO-Klassen'!CG25 ->  | CG25: ='[2]312 SO-Klassen'!CH25 ->  | CH25: ='[2]312 SO-Klassen'!CI25 ->  | CI25: ='[2]312 SO-Klassen'!CJ25 ->  | CJ25: ='[2]312 SO-Klassen'!CK25 ->  | CK25: ='[2]312 SO-Klassen'!CL25 ->  | CL25: ='[2]312 SO-Klassen'!CM25 ->  | CM25: ='[2]312 SO-Klassen'!CN25 ->  | CN25: ='[2]312 SO-Klassen'!CO25 ->  | CO25: ='[2]312 SO-Klassen'!CP25 ->  | CP25: ='[2]312 SO-Klassen'!CQ25 ->  | CQ25: ='[2]312 SO-Klassen'!CR25 ->  | CR25: ='[2]312 SO-Klassen'!CS25 ->  | CS25: ='[2]312 SO-Klassen'!CT25 ->  | CT25: ='[2]312 SO-Klassen'!CU25 ->  | CU25: ='[2]312 SO-Klassen'!CV25 ->  | CV25: ='[2]312 SO-Klassen'!CW25 ->  | CW25: ='[2]312 SO-Klassen'!CX25 ->  | CX25: ='[2]312 SO-Klassen'!CY25 ->  | CY25: ='[2]312 SO-Klassen'!CZ25 ->  | CZ25: ='[2]312 SO-Klassen'!DA25 ->  | DA25: ='[2]312 SO-Klassen'!DB25 ->  | DB25: ='[2]312 SO-Klassen'!DC25 ->  | DC25: ='[2]312 SO-Klassen'!DD25 ->  | DD25: ='[2]312 SO-Klassen'!DE25 ->  | DE25: ='[2]312 SO-Klassen'!DF25 ->  | DF25: ='[2]312 SO-Klassen'!DG25 ->  | DG25: ='[2]312 SO-Klassen'!DH25 ->  | DH25: ='[2]312 SO-Klassen'!DI25 ->  | DI25: ='[2]312 SO-Klassen'!DJ25 ->  | DJ25: ='[2]312 SO-Klassen'!DK25 ->  | DK25: ='[2]312 SO-Klassen'!DL25 ->  | DL25: ='[2]312 SO-Klassen'!DM25 ->  | DM25: ='[2]312 SO-Klassen'!DN25 ->  | DN25: ='[2]312 SO-Klassen'!DO25 ->  | DO25: ='[2]312 SO-Klassen'!DP25 ->  | DP25: ='[2]312 SO-Klassen'!DQ25 ->  | DQ25: ='[2]312 SO-Klassen'!DR25 ->  | DR25: ='[2]312 SO-Klassen'!DS25 ->  | DS25: ='[2]312 SO-Klassen'!DT25 ->  | DT25: ='[2]312 SO-Klassen'!DU25 ->  | DU25: ='[2]312 SO-Klassen'!DV25 ->  | DV25: ='[2]312 SO-Klassen'!DW25 ->  | DW25: ='[2]312 SO-Klassen'!DX25 ->  | DX25: ='[2]312 SO-Klassen'!DY25 ->  | DY25: ='[2]312 SO-Klassen'!DZ25 ->  | DZ25: ='[2]312 SO-Klassen'!EA25 ->  | EA25: ='[2]312 SO-Klassen'!EB25 ->  | EB25: ='[2]312 SO-Klassen'!EC25 ->  | EC25: ='[2]312 SO-Klassen'!ED25 ->  | ED25: ='[2]312 SO-Klassen'!EE25 ->  | EE25: ='[2]312 SO-Klassen'!EF25 ->  | EF25: ='[2]312 SO-Klassen'!EG25 ->  | EG25: ='[2]312 SO-Klassen'!EH25 ->  | EH25: ='[2]312 SO-Klassen'!EI25 ->  | EI25: ='[2]312 SO-Klassen'!EJ25 ->  | EJ25: ='[2]312 SO-Klassen'!EK25 ->  | EK25: ='[2]312 SO-Klassen'!EL25 ->  | EL25: ='[2]312 SO-Klassen'!EM25 -> 501013 | EM25: ='[2]312 SO-Klassen'!EN25 -> 44475 | EN25: ='[2]312 SO-Klassen'!EO25 -> genehmigt | EO25: ='[2]312 SO-Klassen'!EP25 -> 2021-10-06 | EP25: ='[2]312 SO-Klassen'!EQ25 ->  | EQ25: ='[2]312 SO-Klassen'!ER25 ->  | ER25: ='[2]312 SO-Klassen'!ES25 ->  | ES25: ='[2]312 SO-Klassen'!ET25 ->  | ET25: ='[2]312 SO-Klassen'!EU25 -> 
A26: ='[2]312 SO-Klassen'!B26 -> 2021/22 | B26: ='[2]312 SO-Klassen'!C26 -> 1 | C26: ='[2]312 SO-Klassen'!D26 -> 3 | D26: ='[2]312 SO-Klassen'!E26 -> 501013 | E26: ='[2]312 SO-Klassen'!F26 -> SO Salzburg | F26: ='[2]312 SO-Klassen'!G26 -> 2 | G26: ='[2]312 SO-Klassen'!H26 -> 2000-01-01 | H26: ='[2]312 SO-Klassen'!I26 -> 3 | I26: ='[2]312 SO-Klassen'!J26 -> 99 | J26: ='[2]312 SO-Klassen'!K26 -> X | K26: ='[2]312 SO-Klassen'!L26 -> 0 | L26: ='[2]312 SO-Klassen'!M26 -> 0 | M26: ='[2]312 SO-Klassen'!N26 -> 0 | N26: ='[2]312 SO-Klassen'!O26 -> 0 | O26: ='[2]312 SO-Klassen'!P26 -> 0 | P26: ='[2]312 SO-Klassen'!Q26 -> 0 | Q26: ='[2]312 SO-Klassen'!R26 -> 1 | R26: ='[2]312 SO-Klassen'!S26 -> 0 | S26: ='[2]312 SO-Klassen'!T26 ->  | T26: ='[2]312 SO-Klassen'!U26 ->  | U26: ='[2]312 SO-Klassen'!V26 -> 0 | V26: ='[2]312 SO-Klassen'!W26 ->  | W26: ='[2]312 SO-Klassen'!X26 ->  | X26: ='[2]312 SO-Klassen'!Y26 -> 0 | Y26: ='[2]312 SO-Klassen'!Z26 ->  | Z26: ='[2]312 SO-Klassen'!AA26 ->  | AA26: ='[2]312 SO-Klassen'!AB26 -> 0 | AB26: ='[2]312 SO-Klassen'!AC26 ->  | AC26: ='[2]312 SO-Klassen'!AD26 ->  | AD26: ='[2]312 SO-Klassen'!AE26 -> 0 | AE26: ='[2]312 SO-Klassen'!AF26 ->  | AF26: ='[2]312 SO-Klassen'!AG26 ->  | AG26: ='[2]312 SO-Klassen'!AH26 -> 0 | AH26: ='[2]312 SO-Klassen'!AI26 ->  | AI26: ='[2]312 SO-Klassen'!AJ26 ->  | AJ26: ='[2]312 SO-Klassen'!AK26 -> 0 | AK26: ='[2]312 SO-Klassen'!AL26 ->  | AL26: ='[2]312 SO-Klassen'!AM26 ->  | AM26: ='[2]312 SO-Klassen'!AN26 -> 0 | AN26: ='[2]312 SO-Klassen'!AO26 ->  | AO26: ='[2]312 SO-Klassen'!AP26 ->  | AP26: ='[2]312 SO-Klassen'!AQ26 -> 0 | AQ26: ='[2]312 SO-Klassen'!AR26 ->  | AR26: ='[2]312 SO-Klassen'!AS26 ->  | AS26: ='[2]312 SO-Klassen'!AT26 -> 0 | AT26: ='[2]312 SO-Klassen'!AU26 ->  | AU26: ='[2]312 SO-Klassen'!AV26 ->  | AV26: ='[2]312 SO-Klassen'!AW26 ->  | AW26: ='[2]312 SO-Klassen'!AX26 ->  | AX26: ='[2]312 SO-Klassen'!AY26 ->  | AY26: ='[2]312 SO-Klassen'!AZ26 ->  | AZ26: ='[2]312 SO-Klassen'!BA26 ->  | BA26: ='[2]312 SO-Klassen'!BB26 ->  | BB26: ='[2]312 SO-Klassen'!BC26 ->  | BC26: ='[2]312 SO-Klassen'!BD26 ->  | BD26: ='[2]312 SO-Klassen'!BE26 ->  | BE26: ='[2]312 SO-Klassen'!BF26 ->  | BF26: ='[2]312 SO-Klassen'!BG26 ->  | BG26: ='[2]312 SO-Klassen'!BH26 ->  | BH26: ='[2]312 SO-Klassen'!BI26 ->  | BI26: ='[2]312 SO-Klassen'!BJ26 ->  | BJ26: ='[2]312 SO-Klassen'!BK26 ->  | BK26: ='[2]312 SO-Klassen'!BL26 ->  | BL26: ='[2]312 SO-Klassen'!BM26 ->  | BM26: ='[2]312 SO-Klassen'!BN26 ->  | BN26: ='[2]312 SO-Klassen'!BO26 ->  | BO26: ='[2]312 SO-Klassen'!BP26 -> 0 | BP26: ='[2]312 SO-Klassen'!BQ26 -> 0 | BQ26: ='[2]312 SO-Klassen'!BR26 -> 0 | BR26: ='[2]312 SO-Klassen'!BS26 -> 0 | BS26: ='[2]312 SO-Klassen'!BT26 -> 0 | BT26: ='[2]312 SO-Klassen'!BU26 -> 0 | BU26: ='[2]312 SO-Klassen'!BV26 -> 0 | BV26: ='[2]312 SO-Klassen'!BW26 -> 0 | BW26: ='[2]312 SO-Klassen'!BX26 -> 0 | BX26: ='[2]312 SO-Klassen'!BY26 -> 0 | BY26: ='[2]312 SO-Klassen'!BZ26 ->  | BZ26: ='[2]312 SO-Klassen'!CA26 ->  | CA26: ='[2]312 SO-Klassen'!CB26 ->  | CB26: ='[2]312 SO-Klassen'!CC26 ->  | CC26: ='[2]312 SO-Klassen'!CD26 ->  | CD26: ='[2]312 SO-Klassen'!CE26 ->  | CE26: ='[2]312 SO-Klassen'!CF26 ->  | CF26: ='[2]312 SO-Klassen'!CG26 ->  | CG26: ='[2]312 SO-Klassen'!CH26 ->  | CH26: ='[2]312 SO-Klassen'!CI26 ->  | CI26: ='[2]312 SO-Klassen'!CJ26 ->  | CJ26: ='[2]312 SO-Klassen'!CK26 ->  | CK26: ='[2]312 SO-Klassen'!CL26 ->  | CL26: ='[2]312 SO-Klassen'!CM26 ->  | CM26: ='[2]312 SO-Klassen'!CN26 ->  | CN26: ='[2]312 SO-Klassen'!CO26 ->  | CO26: ='[2]312 SO-Klassen'!CP26 ->  | CP26: ='[2]312 SO-Klassen'!CQ26 ->  | CQ26: ='[2]312 SO-Klassen'!CR26 ->  | CR26: ='[2]312 SO-Klassen'!CS26 ->  | CS26: ='[2]312 SO-Klassen'!CT26 ->  | CT26: ='[2]312 SO-Klassen'!CU26 ->  | CU26: ='[2]312 SO-Klassen'!CV26 ->  | CV26: ='[2]312 SO-Klassen'!CW26 ->  | CW26: ='[2]312 SO-Klassen'!CX26 ->  | CX26: ='[2]312 SO-Klassen'!CY26 ->  | CY26: ='[2]312 SO-Klassen'!CZ26 ->  | CZ26: ='[2]312 SO-Klassen'!DA26 ->  | DA26: ='[2]312 SO-Klassen'!DB26 ->  | DB26: ='[2]312 SO-Klassen'!DC26 ->  | DC26: ='[2]312 SO-Klassen'!DD26 ->  | DD26: ='[2]312 SO-Klassen'!DE26 ->  | DE26: ='[2]312 SO-Klassen'!DF26 ->  | DF26: ='[2]312 SO-Klassen'!DG26 ->  | DG26: ='[2]312 SO-Klassen'!DH26 ->  | DH26: ='[2]312 SO-Klassen'!DI26 ->  | DI26: ='[2]312 SO-Klassen'!DJ26 ->  | DJ26: ='[2]312 SO-Klassen'!DK26 ->  | DK26: ='[2]312 SO-Klassen'!DL26 ->  | DL26: ='[2]312 SO-Klassen'!DM26 ->  | DM26: ='[2]312 SO-Klassen'!DN26 ->  | DN26: ='[2]312 SO-Klassen'!DO26 ->  | DO26: ='[2]312 SO-Klassen'!DP26 ->  | DP26: ='[2]312 SO-Klassen'!DQ26 ->  | DQ26: ='[2]312 SO-Klassen'!DR26 ->  | DR26: ='[2]312 SO-Klassen'!DS26 ->  | DS26: ='[2]312 SO-Klassen'!DT26 ->  | DT26: ='[2]312 SO-Klassen'!DU26 ->  | DU26: ='[2]312 SO-Klassen'!DV26 ->  | DV26: ='[2]312 SO-Klassen'!DW26 ->  | DW26: ='[2]312 SO-Klassen'!DX26 ->  | DX26: ='[2]312 SO-Klassen'!DY26 ->  | DY26: ='[2]312 SO-Klassen'!DZ26 ->  | DZ26: ='[2]312 SO-Klassen'!EA26 ->  | EA26: ='[2]312 SO-Klassen'!EB26 ->  | EB26: ='[2]312 SO-Klassen'!EC26 ->  | EC26: ='[2]312 SO-Klassen'!ED26 ->  | ED26: ='[2]312 SO-Klassen'!EE26 ->  | EE26: ='[2]312 SO-Klassen'!EF26 ->  | EF26: ='[2]312 SO-Klassen'!EG26 ->  | EG26: ='[2]312 SO-Klassen'!EH26 ->  | EH26: ='[2]312 SO-Klassen'!EI26 ->  | EI26: ='[2]312 SO-Klassen'!EJ26 ->  | EJ26: ='[2]312 SO-Klassen'!EK26 ->  | EK26: ='[2]312 SO-Klassen'!EL26 ->  | EL26: ='[2]312 SO-Klassen'!EM26 -> 501013 | EM26: ='[2]312 SO-Klassen'!EN26 -> 44475 | EN26: ='[2]312 SO-Klassen'!EO26 -> genehmigt | EO26: ='[2]312 SO-Klassen'!EP26 -> 2021-10-06 | EP26: ='[2]312 SO-Klassen'!EQ26 ->  | EQ26: ='[2]312 SO-Klassen'!ER26 ->  | ER26: ='[2]312 SO-Klassen'!ES26 ->  | ES26: ='[2]312 SO-Klassen'!ET26 ->  | ET26: ='[2]312 SO-Klassen'!EU26 -> 

Sheet STP3
A1: ='[3]313 SO-Stunden'!B1 -> Schuljahr | B1: ='[3]313 SO-Stunden'!C1 -> BezirkNr | C1: ='[3]313 SO-Stunden'!D1 -> Schultyp | D1: ='[3]313 SO-Stunden'!E1 -> SKZ | E1: ='[3]313 SO-Stunden'!F1 -> Schule | F1: ='[3]313 SO-Stunden'!G1 -> Status | G1: ='[3]313 SO-Stunden'!H1 -> Stichtag | H1: ='[3]313 SO-Stunden'!I1 -> Schulart | I1: ='[3]313 SO-Stunden'!J1 -> EH(x) | J1: ='[3]313 SO-Stunden'!K1 -> TXW(x) | K1: ='[3]313 SO-Stunden'!L1 -> Pflicht_Std(x) | L1: ='[3]313 SO-Stunden'!M1 -> Foe_Std(x) | M1: ='[3]313 SO-Stunden'!N1 -> Autonom_Std(x) | N1: ='[3]313 SO-Stunden'!O1 -> GTS_Grp | O1: ='[3]313 SO-Stunden'!P1 -> GLZ_Std | P1: ='[3]313 SO-Stunden'!Q1 -> ILZ_Std | Q1: ='[3]313 SO-Stunden'!R1 -> SV_Std1 | R1: ='[3]313 SO-Stunden'!S1 -> SV_Std2 | S1: ='[3]313 SO-Stunden'!T1 -> SV_Std3 | T1: ='[3]313 SO-Stunden'!U1 -> GK_Zuw(Bez) | U1: ='[3]313 SO-Stunden'!V1 -> BFD_Std(Bez) | V1: ='[3]313 SO-Stunden'!W1 -> ZusatzStd(Bez) | W1: ='[3]313 SO-Stunden'!X1 -> SINNE(Bez) | X1: ='[3]313 SO-Stunden'!Y1 -> SPH_Std(Bez) | Y1: ='[3]313 SO-Stunden'!Z1 -> BER_Std(Bez) | Z1: ='[3]313 SO-Stunden'!AA1 -> BFD_Anz(x) | AA1: ='[3]313 SO-Stunden'!AB1 -> BFD_Std(x) | AB1: ='[3]313 SO-Stunden'!AC1 -> SPH_Std(x) | AC1: ='[3]313 SO-Stunden'!AD1 -> BER_Std(x) | AD1: ='[3]313 SO-Stunden'!AE1 -> Rel_Grp_rk | AE1: ='[3]313 SO-Stunden'!AF1 -> Rel_Std_rk | AF1: ='[3]313 SO-Stunden'!AG1 -> Rel_Grp_ev | AG1: ='[3]313 SO-Stunden'!AH1 -> Rel_Std_ev | AH1: ='[3]313 SO-Stunden'!AI1 -> Rel_Grp_isl | AI1: ='[3]313 SO-Stunden'!AJ1 -> Rel_Std_isl | AJ1: ='[3]313 SO-Stunden'!AK1 -> Rel_Grp_orth | AK1: ='[3]313 SO-Stunden'!AL1 -> Rel_Std_orth | AL1: ='[3]313 SO-Stunden'!AM1 -> Rel_Grp_sonst | AM1: ='[3]313 SO-Stunden'!AN1 -> Rel_Std_sonst | AN1: ='[3]313 SO-Stunden'!AO1 -> SPF_VS_Plan | AO1: ='[3]313 SO-Stunden'!AP1 -> SPF_VS_Anz | AP1: ='[3]313 SO-Stunden'!AQ1 -> SPF_VS_Kl | AQ1: ='[3]313 SO-Stunden'!AR1 -> SPF_HS_Plan | AR1: ='[3]313 SO-Stunden'!AS1 -> SPF_HS_Anz | AS1: ='[3]313 SO-Stunden'!AT1 -> SPF_HS_Kl | AT1: ='[3]313 SO-Stunden'!AU1 -> SPF_SO_Plan | AU1: ='[3]313 SO-Stunden'!AV1 -> SPF_SO_Anz | AV1: ='[3]313 SO-Stunden'!AW1 -> SPF_SO_Kl | AW1: ='[3]313 SO-Stunden'!AX1 -> SPF_PTS_Plan | AX1: ='[3]313 SO-Stunden'!AY1 -> SPF_PTS_Anz | AY1: ='[3]313 SO-Stunden'!AZ1 -> SPF_PTS_Kl | AZ1: ='[3]313 SO-Stunden'!BA1 -> MUU_Std(Bez) | BA1: ='[3]313 SO-Stunden'!BA1 -> MUU_Std(Bez)
A2: ='[3]313 SO-Stunden'!B2 -> 2021/22 | B2: ='[3]313 SO-Stunden'!C2 -> 1 | C2: ='[3]313 SO-Stunden'!D2 -> 3 | D2: ='[3]313 SO-Stunden'!E2 -> 501013 | E2: ='[3]313 SO-Stunden'!F2 -> SO Salzburg | F2: ='[3]313 SO-Stunden'!G2 -> 2 | G2: ='[3]313 SO-Stunden'!H2 -> 2021-10-01 | H2: ='[3]313 SO-Stunden'!I2 -> 3 | I2: ='[3]313 SO-Stunden'!J2 -> 0 | J2: ='[3]313 SO-Stunden'!K2 -> 0 | K2: ='[3]313 SO-Stunden'!L2 -> 0 | L2: ='[3]313 SO-Stunden'!M2 -> 0 | M2: ='[3]313 SO-Stunden'!N2 -> 0 | N2: ='[3]313 SO-Stunden'!O2 -> 5 | O2: ='[3]313 SO-Stunden'!P2 -> 30 | P2: ='[3]313 SO-Stunden'!Q2 -> 0 | Q2: ='[3]313 SO-Stunden'!R2 -> 37 | R2: ='[3]313 SO-Stunden'!S2 -> 0 | S2: ='[3]313 SO-Stunden'!T2 -> 0 | T2: ='[3]313 SO-Stunden'!U2 -> 557 | U2: ='[3]313 SO-Stunden'!V2 -> 10 | V2: ='[3]313 SO-Stunden'!W2 -> 1 | W2: ='[3]313 SO-Stunden'!X2 -> 2 | X2: ='[3]313 SO-Stunden'!Y2 -> 5 | Y2: ='[3]313 SO-Stunden'!Z2 -> 11 | Z2: ='[3]313 SO-Stunden'!AA2 -> 0 | AA2: ='[3]313 SO-Stunden'!AB2 -> 0 | AB2: ='[3]313 SO-Stunden'!AC2 -> 0 | AC2: ='[3]313 SO-Stunden'!AD2 -> 0 | AD2: ='[3]313 SO-Stunden'!AE2 -> 3 | AE2: ='[3]313 SO-Stunden'!AF2 -> 3 | AF2: ='[3]313 SO-Stunden'!AG2 -> 0 | AG2: ='[3]313 SO-Stunden'!AH2 -> 0 | AH2: ='[3]313 SO-Stunden'!AI2 -> 3 | AI2: ='[3]313 SO-Stunden'!AJ2 -> 3 | AJ2: ='[3]313 SO-Stunden'!AK2 -> 0 | AK2: ='[3]313 SO-Stunden'!AL2 -> 0 | AL2: ='[3]313 SO-Stunden'!AM2 -> 0 | AM2: ='[3]313 SO-Stunden'!AN2 -> 0 | AN2: ='[3]313 SO-Stunden'!AO2 -> 0 | AO2: ='[3]313 SO-Stunden'!AP2 -> 161 | AP2: ='[3]313 SO-Stunden'!AQ2 -> 73 | AQ2: ='[3]313 SO-Stunden'!AR2 -> 0 | AR2: ='[3]313 SO-Stunden'!AS2 -> 307 | AS2: ='[3]313 SO-Stunden'!AT2 -> 65 | AT2: ='[3]313 SO-Stunden'!AU2 -> 0 | AU2: ='[3]313 SO-Stunden'!AV2 -> 0 | AV2: ='[3]313 SO-Stunden'!AW2 -> 0 | AW2: ='[3]313 SO-Stunden'!AX2 -> 0 | AX2: ='[3]313 SO-Stunden'!AY2 -> 23 | AY2: ='[3]313 SO-Stunden'!AZ2 -> 6 | AZ2: ='[3]313 SO-Stunden'!BA2 -> 0 | BA2: ='[3]313 SO-Stunden'!BA2 -> 00:00:00
